Workbook

Sheet Intro
G2: Electricity Transmission Network Service Provider
I3: RFM - Depreciation tracking module
L4: Version: | M4: 1
L5: Date: | M5: April 2020
B8: Introduction | J8: Electricity transmission module
C14: This attachment to the RFM is used by the AER to determine the forecast regulatory asset base (RAB) and tax asset base (TAB) depreciation for a transmission network service provider.
C15: It also calculates the actual tax depreciation for use in the main RFM.
C17: INSTRUCTIONS FOR USE
C18: The RFM - depreciation tracking module handbook, which contains information on this depreciation tracking module, is available on the AER website at http://www.aer.gov.au
C20: a. Fill out input cells on the 'RAB input' and 'TAB input' sheets. These input cells are highlighted blue.
C21: This provides the data for the depreciation tracking calculations.
C22: In general, input expenditure data should be valued in nominal dollar terms of the year indicated.
C23: Units and basis for entry are specified where required for each data table.
C24: Not all input cells require an input - be sure to read and follow the instructions contained within the comments for each section heading.
C25: All relevant inputs are to be filled on an ongoing basis, with the details of past expenditure and asset lives to be preserved.
C27: b. The values in the 'Tracking output' sheet
C28: This sheet summarises the key outputs of the year-by-year tracking approach, which includes forecast RAB and TAB depreciation to be input into the PTRM
C29: as well as actual tax depreciation for the current regulatory control period to be input into the RFM.
C31: VERSION RECORD
C33: Version | D33: Date | F33: Description
C34: 1 | D34: April 2020 | F34: Initial module

Sheet RAB input
E2: =IF($F$8='TAB input'!$F$8, $F$8, 'TAB input'!$F$8)&" - RAB input - Elec TNSP "&Intro!$I$3&" - version "& Intro!$M$4 -> AusNet - RAB input - Elec TNSP RFM - Depreciation tracking module - version 1 | J2: Input cells in blue
E4: Year | F4: =IF(LEN($H$9)>4, CONCATENATE(LEFT($H$9, 4)-2 & "-" & IF(AND(RIGHT($H$9, 2)<"12", RIGHT($H$9, 2)>"01"), "0", "") & IF(RIGHT($H$9, 2)="00", "98", IF(RIGHT($H$9, 2)="01", "99", RIGHT($H$9, 2)-2))), $H$9-2) -> 2000-01 | G4: =IF(LEN(F4)>4,CONCATENATE(LEFT(F4,4)+1&"-"&IF(RIGHT(F4, 2)<"09", "0","")&IF(RIGHT(F4, 2)="99", "00", RIGHT(F4,2)+1)),F4+1) -> 2001-02 | H4: =IF(LEN(G4)>4,CONCATENATE(LEFT(G4,4)+1&"-"&IF(RIGHT(G4, 2)<"09", "0","")&IF(RIGHT(G4, 2)="99", "00", RIGHT(G4,2)+1)),G4+1) -> 2002-03 | I4: 2003-04 | J4: 2004-05 | K4: 2005-06 | L4: 2006-07 | M4: 2007-08 | N4: 2008-09 | O4: 2009-10 | P4: 2010-11 | Q4: 2011-12 | R4: 2012-13 | S4: 2013-14 | T4: 2014-15 | U4: 2015-16 | V4: 2016-17 | W4: 2017-18 | X4: 2018-19 | Y4: 2019-20 | Z4: 2020-21 | AA4: 2021-22 | AB4: 2022-23 | AC4: 2023-24 | AD4: 2024-25 | AE4: 2025-26 | AF4: 2026-27 | AG4: 2027-28 | AH4: 2028-29 | AI4: 2029-30 | AJ4: 2030-31 | AK4: 2031-32 | AL4: 2032-33 | AM4: 2033-34 | AN4: 2034-35 | AO4: 2035-36 | AP4: 2036-37 | AQ4: 2037-38 | AR4: 2038-39 | AS4: 2039-40 | AT4: 2040-41 | AU4: 2041-42 | AV4: 2042-43 | AW4: 2043-44 | AX4: 2044-45 | AY4: 2045-46 | AZ4: 2046-47 | BA4: 2047-48 | BB4: 2048-49 | BC4: 2049-50 | BD4: 2050-51 | BE4: 2051-52 | BF4: 2052-53 | BG4: 2053-54 | BH4: 2054-55 | BI4: 2055-56 | BJ4: 2056-57 | BK4: 2057-58 | BL4: 2058-59 | BM4: 2059-60 | BN4: 2060-61 | BO4: 2061-62 | BP4: 2062-63 | BQ4: 2063-64 | BR4: 2064-65 | BS4: 2065-66 | BT4: =IF(LEN(BS4)>4,CONCATENATE(LEFT(BS4,4)+1&"-"&IF(RIGHT(BS4, 2)<"09", "0","")&IF(RIGHT(BS4, 2)="99", "00", RIGHT(BS4,2)+1)),BS4+1) -> 2066-67 | BU4: 2067-68 | BV4: 2068-69 | BW4: 2069-70 | BX4: 2070-71 | BY4: 2071-72 | BZ4: 2072-73 | CA4: 2073-74 | CB4: 2074-75 | CC4: 2075-76 | CD4: 2076-77 | CE4: 2077-78 | CF4: 2078-79 | CG4: 2079-80 | CH4: 2080-81 | CI4: 2081-82 | CJ4: 2082-83
D6: General information
E8: Business name | F8: AusNet
E9: First regulatory year for tracking | H9: 2002-03 | I9: =IF(SUM($11:$11)=COUNTA($H$9:H$9), "Input for next period", "") ->  | J9: =IF(SUM($11:$11)=COUNTA($H$9:I$9), "Input for next period", "") ->  | K9: =IF(SUM($11:$11)=COUNTA($H$9:J$9), "Input for next period", "") ->  | L9: =IF(SUM($11:$11)=COUNTA($H$9:K$9), "Input for next period", "") ->  | M9: =IF(SUM($11:$11)=COUNTA($H$9:L$9), "Input for next period", "") ->  | N9: =IF(SUM($11:$11)=COUNTA($H$9:M$9), "Input for next period", "") ->  | O9: =IF(SUM($11:$11)=COUNTA($H$9:N$9), "Input for next period", "") ->  | P9: =IF(SUM($11:$11)=COUNTA($H$9:O$9), "Input for next period", "") ->  | Q9: =IF(SUM($11:$11)=COUNTA($H$9:P$9), "Input for next period", "") ->  | R9: =IF(SUM($11:$11)=COUNTA($H$9:Q$9), "Input for next period", "") ->  | S9: =IF(SUM($11:$11)=COUNTA($H$9:R$9), "Input for next period", "") ->  | T9: =IF(SUM($11:$11)=COUNTA($H$9:S$9), "Input for next period", "") ->  | U9: =IF(SUM($11:$11)=COUNTA($H$9:T$9), "Input for next period", "") ->  | V9: =IF(SUM($11:$11)=COUNTA($H$9:U$9), "Input for next period", "") ->  | W9: =IF(SUM($11:$11)=COUNTA($H$9:V$9), "Input for next period", "") ->  | X9: =IF(SUM($11:$11)=COUNTA($H$9:W$9), "Input for next period", "") ->  | Y9: =IF(SUM($11:$11)=COUNTA($H$9:X$9), "Input for next period", "") ->  | Z9: =IF(SUM($11:$11)=COUNTA($H$9:Y$9), "Input for next period", "") ->  | AA9: =IF(SUM($11:$11)=COUNTA($H$9:Z$9), "Input for next period", "") ->  | AB9: =IF(SUM($11:$11)=COUNTA($H$9:AA$9), "Input for next period", "") ->  | AC9: =IF(SUM($11:$11)=COUNTA($H$9:AB$9), "Input for next period", "") ->  | AD9: =IF(SUM($11:$11)=COUNTA($H$9:AC$9), "Input for next period", "") ->  | AE9: =IF(SUM($11:$11)=COUNTA($H$9:AD$9), "Input for next period", "") ->  | AF9: =IF(SUM($11:$11)=COUNTA($H$9:AE$9), "Input for next period", "") ->  | AG9: =IF(SUM($11:$11)=COUNTA($H$9:AF$9), "Input for next period", "") -> Input for next period | AH9: =IF(SUM($11:$11)=COUNTA($H$9:AG$9), "Input for next period", "") ->  | AI9: =IF(SUM($11:$11)=COUNTA($H$9:AH$9), "Input for next period", "") ->  | AJ9: =IF(SUM($11:$11)=COUNTA($H$9:AI$9), "Input for next period", "") ->  | AK9: =IF(SUM($11:$11)=COUNTA($H$9:AJ$9), "Input for next period", "") ->  | AL9: =IF(SUM($11:$11)=COUNTA($H$9:AK$9), "Input for next period", "") ->  | AM9: =IF(SUM($11:$11)=COUNTA($H$9:AL$9), "Input for next period", "") ->  | AN9: =IF(SUM($11:$11)=COUNTA($H$9:AM$9), "Input for next period", "") ->  | AO9: =IF(SUM($11:$11)=COUNTA($H$9:AN$9), "Input for next period", "") ->  | AP9: =IF(SUM($11:$11)=COUNTA($H$9:AO$9), "Input for next period", "") ->  | AQ9: =IF(SUM($11:$11)=COUNTA($H$9:AP$9), "Input for next period", "") ->  | AR9: =IF(SUM($11:$11)=COUNTA($H$9:AQ$9), "Input for next period", "") ->  | AS9: =IF(SUM($11:$11)=COUNTA($H$9:AR$9), "Input for next period", "") ->  | AT9: =IF(SUM($11:$11)=COUNTA($H$9:AS$9), "Input for next period", "") ->  | AU9: =IF(SUM($11:$11)=COUNTA($H$9:AT$9), "Input for next period", "") ->  | AV9: =IF(SUM($11:$11)=COUNTA($H$9:AU$9), "Input for next period", "") ->  | AW9: =IF(SUM($11:$11)=COUNTA($H$9:AV$9), "Input for next period", "") ->  | AX9: =IF(SUM($11:$11)=COUNTA($H$9:AW$9), "Input for next period", "") ->  | AY9: =IF(SUM($11:$11)=COUNTA($H$9:AX$9), "Input for next period", "") ->  | AZ9: =IF(SUM($11:$11)=COUNTA($H$9:AY$9), "Input for next period", "") ->  | BA9: =IF(SUM($11:$11)=COUNTA($H$9:AZ$9), "Input for next period", "") ->  | BB9: =IF(SUM($11:$11)=COUNTA($H$9:BA$9), "Input for next period", "") ->  | BC9: =IF(SUM($11:$11)=COUNTA($H$9:BB$9), "Input for next period", "") ->  | BD9: =IF(SUM($11:$11)=COUNTA($H$9:BC$9), "Input for next period", "") ->  | BE9: =IF(SUM($11:$11)=COUNTA($H$9:BD$9), "Input for next period", "") ->  | BF9: =IF(SUM($11:$11)=COUNTA($H$9:BE$9), "Input for next period", "") ->  | BG9: =IF(SUM($11:$11)=COUNTA($H$9:BF$9), "Input for next period", "") ->  | BH9: =IF(SUM($11:$11)=COUNTA($H$9:BG$9), "Input for next period", "") ->  | BI9: =IF(SUM($11:$11)=COUNTA($H$9:BH$9), "Input for next period", "") ->  | BJ9: =IF(SUM($11:$11)=COUNTA($H$9:BI$9), "Input for next period", "") ->  | BK9: =IF(SUM($11:$11)=COUNTA($H$9:BJ$9), "Input for next period", "") ->  | BL9: =IF(SUM($11:$11)=COUNTA($H$9:BK$9), "Input for next period", "") ->  | BM9: =IF(SUM($11:$11)=COUNTA($H$9:BL$9), "Input for next period", "") ->  | BN9: =IF(SUM($11:$11)=COUNTA($H$9:BM$9), "Input for next period", "") ->  | BO9: =IF(SUM($11:$11)=COUNTA($H$9:BN$9), "Input for next period", "") ->  | BP9: =IF(SUM($11:$11)=COUNTA($H$9:BO$9), "Input for next period", "") ->  | BQ9: =IF(SUM($11:$11)=COUNTA($H$9:BP$9), "Input for next period", "") ->  | BR9: =IF(SUM($11:$11)=COUNTA($H$9:BQ$9), "Input for next period", "") ->  | BS9: =IF(SUM($11:$11)=COUNTA($H$9:BR$9), "Input for next period", "") ->  | BT9: =IF(SUM($11:$11)=COUNTA($H$9:BS$9), "Input for next period", "") ->  | BU9: =IF(SUM($11:$11)=COUNTA($H$9:BT$9), "Input for next period", "") ->  | BV9: =IF(SUM($11:$11)=COUNTA($H$9:BU$9), "Input for next period", "") ->  | BW9: =IF(SUM($11:$11)=COUNTA($H$9:BV$9), "Input for next period", "") ->  | BX9: =IF(SUM($11:$11)=COUNTA($H$9:BW$9), "Input for next period", "") ->  | BY9: =IF(SUM($11:$11)=COUNTA($H$9:BX$9), "Input for next period", "") ->  | BZ9: =IF(SUM($11:$11)=COUNTA($H$9:BY$9), "Input for next period", "") ->  | CA9: =IF(SUM($11:$11)=COUNTA($H$9:BZ$9), "Input for next period", "") ->  | CB9: =IF(SUM($11:$11)=COUNTA($H$9:CA$9), "Input for next period", "") ->  | CC9: =IF(SUM($11:$11)=COUNTA($H$9:CB$9), "Input for next period", "") ->  | CD9: =IF(SUM($11:$11)=COUNTA($H$9:CC$9), "Input for next period", "") ->  | CE9: =IF(SUM($11:$11)=COUNTA($H$9:CD$9), "Input for next period", "") ->  | CF9: =IF(SUM($11:$11)=COUNTA($H$9:CE$9), "Input for next period", "") ->  | CG9: =IF(SUM($11:$11)=COUNTA($H$9:CF$9), "Input for next period", "") ->  | CH9: =IF(SUM($11:$11)=COUNTA($H$9:CG$9), "Input for next period", "") ->  | CI9: =IF(SUM($11:$11)=COUNTA($H$9:CH$9), "Input for next period", "") ->  | CJ9: =IF(SUM($11:$11)=COUNTA($H$9:CI$9), "Input for next period", "") -> 
E10: Regulatory period | H10: =CONCATENATE(LEFT(H9,4)&"-"&IF(RIGHT(H9, 2)<"06", "0","")&RIGHT(H9,2)-1+H11) -> 2002-08 | N10: 2008-14 | T10: 2014-17 | W10: 2017-22 | AB10: 2023-27
E11: Years in regulatory period | H11: 6 | N11: 6 | T11: 3 | W11: 5 | AB11: 5
E13: Actual CPI inflation Rate | H13: 0.03028064993 | I13: 0.02365591398 | J13: 0.02591036415 | K13: 0.02798634812 | L13: 0.03253652058 | M13: 0.02958199357 | N13: 0.03685196752 | O13: 0.02108433735 | P13: 0.02654867257 | Q13: 0.03103448276 | R13: 0.02204408818 | S13: 0.02745098039 | T13: 0.02307692308 | U13: 0.01503759398 | V13: 0.01296296296 | W13: 0.01828153565 | X13: 0.01885098743 | Y13: 0.01674008811 | Z13: 0.006932409012 | AA13: ='[4]RFM input'!G$385 -> 0.03012048193 | AB13: ='[4]RFM input'!H$385 -> 0.07268170426 | AC13: ='[4]RFM input'!I$385 -> 0.05373831776 | AD13: ='[4]RFM input'!J$385 -> 0.0280857354 | AE13: ='[4]RFM input'!K$385 -> 0.0255 | AF13: ='[4]RFM input'!L$385 -> 0.03
E14: Actual CPI (one year lagged) | F14: =G14/(1+F13) -> 1 | G14: 1 | H14: =G14*(1+G13) -> 1 | I14: =H14*(1+H13) -> 1.03028065 | J14: 1.05465288 | K14: 1.081979321 | L14: 1.11225997 | M14: 1.14844904 | N14: 1.182422452 | O14: 1.225997046 | P14: 1.251846381 | Q14: 1.285081241 | R14: 1.324963072 | S14: 1.354170675 | T14: 1.391343988 | U14: 1.423451926 | V14: 1.444857218 | W14: 1.463586849 | X14: 1.490343464 | Y14: 1.51843791 | Z14: 1.543856694 | AA14: 1.55455934 | AB14: 1.601383417 | AC14: 1.717774693 | AD14: 1.810085015 | AE14: 1.860922584 | AF14: 1.90837611 | AG14: 1.965627393 | AH14: 1.965627393 | AI14: 1.965627393 | AJ14: 1.965627393 | AK14: 1.965627393 | AL14: 1.965627393 | AM14: 1.965627393 | AN14: 1.965627393 | AO14: 1.965627393 | AP14: 1.965627393 | AQ14: 1.965627393 | AR14: 1.965627393 | AS14: 1.965627393 | AT14: 1.965627393 | AU14: 1.965627393 | AV14: 1.965627393 | AW14: 1.965627393 | AX14: 1.965627393 | AY14: 1.965627393 | AZ14: 1.965627393 | BA14: 1.965627393 | BB14: 1.965627393 | BC14: 1.965627393 | BD14: 1.965627393 | BE14: 1.965627393 | BF14: 1.965627393 | BG14: 1.965627393 | BH14: 1.965627393 | BI14: 1.965627393 | BJ14: 1.965627393 | BK14: 1.965627393 | BL14: 1.965627393 | BM14: 1.965627393 | BN14: 1.965627393 | BO14: 1.965627393 | BP14: 1.965627393 | BQ14: 1.965627393 | BR14: 1.965627393 | BS14: 1.965627393 | BT14: 1.965627393 | BU14: =BT14*(1+BT13) -> 1.965627393 | BV14: 1.965627393 | BW14: 1.965627393 | BX14: 1.965627393 | BY14: 1.965627393 | BZ14: 1.965627393 | CA14: 1.965627393 | CB14: 1.965627393 | CC14: 1.965627393 | CD14: 1.965627393 | CE14: 1.965627393 | CF14: 1.965627393 | CG14: 1.965627393 | CH14: 1.965627393 | CI14: 1.965627393 | CJ14: 1.965627393
E16: Nominal vanilla WACC (fixed real time varying) | H16: =(1+0.0848193045168053)^0.25-1 -> 0.02056190042 | I16: 0.09161051404 | J16: 0.08573533732 | K16: 0.0881265082 | L16: 0.09032838984 | M16: 0.09202080291 | N16: 0.1093651462 | O16: 0.09249479254 | P16: 0.09834128098 | Q16: 0.1031408104 | R16: 0.09352166441 | S16: 0.09930669252 | T16: 0.07724019982 | U16: ='[2]RFM input'!F392 -> 0.0687752562 | V16: ='[2]RFM input'!G392 -> 0.066590791 | W16: ='[2]RFM input'!H392 -> 0.05210968334 | X16: ='[2]RFM input'!I392 -> 0.05275833515 | Y16: ='[2]RFM input'!J392 -> 0.05047145799 | Z16: ='[2]RFM input'!K392 -> 0.03948472129 | AA16: ='[4]RFM input'!G$392 -> 0.06210465429 | AB16: ='[4]RFM input'!H$392 -> 0.09645926951 | AC16: ='[4]RFM input'!I$392 -> 0.07658854163 | AD16: ='[4]RFM input'!J$392 -> 0.05129373752 | AE16: ='[4]RFM input'!K$392 -> 0.0491762763 | AF16: ='[4]RFM input'!L$392 -> 0.05424009285
E17: Nominal vanilla WACC index | F17: =G17/(1+G16) -> 1 | G17: 1 | H17: =G17*(1+H16) -> 1.0205619 | I17: 1.114056101 | J17: 1.209570076 | K17: 1.316165264 | L17: 1.435052353 | M17: 1.567107022 | N17: 1.738493911 | O17: 1.899295544 | P17: 2.086074701 | Q17: 2.301234136
E18: Real vanilla WACC | H18: 0.06064481482 | I18: 0.06064481482 | J18: 0.06064481482 | K18: 0.06064481482 | L18: 0.06064481482 | M18: 0.06064481482 | N18: 0.06993590302 | O18: 0.06993590302 | P18: 0.06993590302 | Q18: 0.06993590302 | R18: 0.06993590302 | S18: 0.06993590302 | T18: 0.0529415487 | U18: 0.0529415487 | V18: 0.0529415487 | W18: 0.03322082009 | X18: 0.0332799871 | Y18: 0.03317600071 | Z18: 0.03232819997 | AA18: ='[2]RFM input'!$L$391 -> 0.03104896264 | AB18: ='[4]RFM input'!H$391 -> 0.02216646854 | AC18: ='[4]RFM input'!I$391 -> 0.02168491312 | AD18: ='[4]RFM input'!J$391 -> 0.02257399487 | AE18: ='[4]RFM input'!K$391 -> 0.02308754393 | AF18: ='[4]RFM input'!L$391 -> 0.02353407073
E19: Real vanilla WACC index | F19: =G19/(1+G18) -> 1 | G19: 1 | H19: =G19*(1+H18) -> 1.060644815 | I19: 1.124967423 | J19: 1.193190864 | K19: 1.265551703 | L19: 1.342300852 | M19: 1.423704439 | N19: 1.523272494 | O19: 1.629803931 | P19: 1.743785741 | Q19: 1.865738972 | R19: 1.996221111 | S19: 2.135828638 | T19: 2.248902713 | U19: 2.367963106 | V19: 2.49332674 | W19: 2.576157099 | X19: 2.661891574 | Y19: 2.750202491 | Z19: 2.839111587 | AA19: 2.927263056 | AB19: 2.992150141 | AC19: 3.057034657 | AD19: 3.126044141 | AE19: 3.198216823 | AF19: 3.273483884 | AG19: 3.273483884 | AH19: 3.273483884 | AI19: 3.273483884 | AJ19: 3.273483884 | AK19: 3.273483884 | AL19: 3.273483884 | AM19: 3.273483884 | AN19: 3.273483884 | AO19: 3.273483884 | AP19: 3.273483884 | AQ19: 3.273483884 | AR19: 3.273483884 | AS19: 3.273483884 | AT19: 3.273483884 | AU19: 3.273483884 | AV19: 3.273483884 | AW19: 3.273483884 | AX19: 3.273483884 | AY19: 3.273483884 | AZ19: 3.273483884 | BA19: 3.273483884 | BB19: 3.273483884 | BC19: 3.273483884 | BD19: 3.273483884 | BE19: 3.273483884 | BF19: 3.273483884 | BG19: 3.273483884 | BH19: 3.273483884 | BI19: 3.273483884 | BJ19: 3.273483884 | BK19: 3.273483884 | BL19: 3.273483884 | BM19: 3.273483884 | BN19: 3.273483884 | BO19: 3.273483884 | BP19: 3.273483884 | BQ19: 3.273483884 | BR19: 3.273483884 | BS19: 3.273483884 | BT19: =BS19*(1+BT18) -> 3.273483884 | BU19: 3.273483884 | BV19: 3.273483884 | BW19: 3.273483884 | BX19: 3.273483884 | BY19: 3.273483884 | BZ19: 3.273483884 | CA19: 3.273483884 | CB19: 3.273483884 | CC19: 3.273483884 | CD19: 3.273483884 | CE19: 3.273483884 | CF19: 3.273483884 | CG19: 3.273483884 | CH19: 3.273483884 | CI19: 3.273483884 | CJ19: 3.273483884
D21: Starting RAB and actual gross capex - As commissioned ($m, nominal)
E22: Asset class | G22: ="RAB (closing as at "&$G$4&")" -> RAB (closing as at 2001-02) | H22: ="Actual gross capex ("&H4&")" -> Actual gross capex (2002-03) | I22: =IF(COUNTA($H$22:H$22)<SUM($11:$11), "Actual gross capex ("&I4&")", "") -> Actual gross capex (2003-04) | J22: =IF(COUNTA($H$22:I$22)<SUM($11:$11), "Actual gross capex ("&J4&")", "") -> Actual gross capex (2004-05) | K22: =IF(COUNTA($H$22:J$22)<SUM($11:$11), "Actual gross capex ("&K4&")", "") -> Actual gross capex (2005-06) | L22: =IF(COUNTA($H$22:K$22)<SUM($11:$11), "Actual gross capex ("&L4&")", "") -> Actual gross capex (2006-07) | M22: =IF(COUNTA($H$22:L$22)<SUM($11:$11), "Actual gross capex ("&M4&")", "") -> Actual gross capex (2007-08) | N22: =IF(COUNTA($H$22:M$22)<SUM($11:$11), "Actual gross capex ("&N4&")", "") -> Actual gross capex (2008-09) | O22: =IF(COUNTA($H$22:N$22)<SUM($11:$11), "Actual gross capex ("&O4&")", "") -> Actual gross capex (2009-10) | P22: =IF(COUNTA($H$22:O$22)<SUM($11:$11), "Actual gross capex ("&P4&")", "") -> Actual gross capex (2010-11) | Q22: =IF(COUNTA($H$22:P$22)<SUM($11:$11), "Actual gross capex ("&Q4&")", "") -> Actual gross capex (2011-12) | R22: =IF(COUNTA($H$22:Q$22)<SUM($11:$11), "Actual gross capex ("&R4&")", "") -> Actual gross capex (2012-13) | S22: =IF(COUNTA($H$22:R$22)<SUM($11:$11), "Actual gross capex ("&S4&")", "") -> Actual gross capex (2013-14) | T22: =IF(COUNTA($H$22:S$22)<SUM($11:$11), "Actual gross capex ("&T4&")", "") -> Actual gross capex (2014-15) | U22: =IF(COUNTA($H$22:T$22)<SUM($11:$11), "Actual gross capex ("&U4&")", "") -> Actual gross capex (2015-16) | V22: =IF(COUNTA($H$22:U$22)<SUM($11:$11), "Actual gross capex ("&V4&")", "") -> Actual gross capex (2016-17) | W22: =IF(COUNTA($H$22:V$22)<SUM($11:$11), "Actual gross capex ("&W4&")", "") -> Actual gross capex (2017-18) | X22: =IF(COUNTA($H$22:W$22)<SUM($11:$11), "Actual gross capex ("&X4&")", "") -> Actual gross capex (2018-19) | Y22: =IF(COUNTA($H$22:X$22)<SUM($11:$11), "Actual gross capex ("&Y4&")", "") -> Actual gross capex (2019-20) | Z22: =IF(COUNTA($H$22:Y$22)<SUM($11:$11), "Actual gross capex ("&Z4&")", "") -> Actual gross capex (2020-21) | AA22: =IF(COUNTA($H$22:Z$22)<SUM($11:$11), "Actual gross capex ("&AA4&")", "") -> Actual gross capex (2021-22) | AB22: =IF(COUNTA($H$22:AA$22)<SUM($11:$11), "Actual gross capex ("&AB4&")", "") -> Actual gross capex (2022-23) | AC22: =IF(COUNTA($H$22:AB$22)<SUM($11:$11), "Actual gross capex ("&AC4&")", "") -> Actual gross capex (2023-24) | AD22: =IF(COUNTA($H$22:AC$22)<SUM($11:$11), "Actual gross capex ("&AD4&")", "") -> Actual gross capex (2024-25) | AE22: =IF(COUNTA($H$22:AD$22)<SUM($11:$11), "Actual gross capex ("&AE4&")", "") -> Actual gross capex (2025-26) | AF22: =IF(COUNTA($H$22:AE$22)<SUM($11:$11), "Actual gross capex ("&AF4&")", "") -> Actual gross capex (2026-27) | AG22: =IF(COUNTA($H$22:AF$22)<SUM($11:$11), "Actual gross capex ("&AG4&")", "") ->  | AH22: =IF(COUNTA($H$22:AG$22)<SUM($11:$11), "Actual gross capex ("&AH4&")", "") ->  | AI22: =IF(COUNTA($H$22:AH$22)<SUM($11:$11), "Actual gross capex ("&AI4&")", "") ->  | AJ22: =IF(COUNTA($H$22:AI$22)<SUM($11:$11), "Actual gross capex ("&AJ4&")", "") ->  | AK22: =IF(COUNTA($H$22:AJ$22)<SUM($11:$11), "Actual gross capex ("&AK4&")", "") ->  | AL22: =IF(COUNTA($H$22:AK$22)<SUM($11:$11), "Actual gross capex ("&AL4&")", "") ->  | AM22: =IF(COUNTA($H$22:AL$22)<SUM($11:$11), "Actual gross capex ("&AM4&")", "") ->  | AN22: =IF(COUNTA($H$22:AM$22)<SUM($11:$11), "Actual gross capex ("&AN4&")", "") ->  | AO22: =IF(COUNTA($H$22:AN$22)<SUM($11:$11), "Actual gross capex ("&AO4&")", "") ->  | AP22: =IF(COUNTA($H$22:AO$22)<SUM($11:$11), "Actual gross capex ("&AP4&")", "") ->  | AQ22: =IF(COUNTA($H$22:AP$22)<SUM($11:$11), "Actual gross capex ("&AQ4&")", "") ->  | AR22: =IF(COUNTA($H$22:AQ$22)<SUM($11:$11), "Actual gross capex ("&AR4&")", "") ->  | AS22: =IF(COUNTA($H$22:AR$22)<SUM($11:$11), "Actual gross capex ("&AS4&")", "") ->  | AT22: =IF(COUNTA($H$22:AS$22)<SUM($11:$11), "Actual gross capex ("&AT4&")", "") ->  | AU22: =IF(COUNTA($H$22:AT$22)<SUM($11:$11), "Actual gross capex ("&AU4&")", "") ->  | AV22: =IF(COUNTA($H$22:AU$22)<SUM($11:$11), "Actual gross capex ("&AV4&")", "") ->  | AW22: =IF(COUNTA($H$22:AV$22)<SUM($11:$11), "Actual gross capex ("&AW4&")", "") ->  | AX22: =IF(COUNTA($H$22:AW$22)<SUM($11:$11), "Actual gross capex ("&AX4&")", "") ->  | AY22: =IF(COUNTA($H$22:AX$22)<SUM($11:$11), "Actual gross capex ("&AY4&")", "") ->  | AZ22: =IF(COUNTA($H$22:AY$22)<SUM($11:$11), "Actual gross capex ("&AZ4&")", "") ->  | BA22: =IF(COUNTA($H$22:AZ$22)<SUM($11:$11), "Actual gross capex ("&BA4&")", "") ->  | BB22: =IF(COUNTA($H$22:BA$22)<SUM($11:$11), "Actual gross capex ("&BB4&")", "") ->  | BC22: =IF(COUNTA($H$22:BB$22)<SUM($11:$11), "Actual gross capex ("&BC4&")", "") ->  | BD22: =IF(COUNTA($H$22:BC$22)<SUM($11:$11), "Actual gross capex ("&BD4&")", "") ->  | BE22: =IF(COUNTA($H$22:BD$22)<SUM($11:$11), "Actual gross capex ("&BE4&")", "") ->  | BF22: =IF(COUNTA($H$22:BE$22)<SUM($11:$11), "Actual gross capex ("&BF4&")", "") ->  | BG22: =IF(COUNTA($H$22:BF$22)<SUM($11:$11), "Actual gross capex ("&BG4&")", "") ->  | BH22: =IF(COUNTA($H$22:BG$22)<SUM($11:$11), "Actual gross capex ("&BH4&")", "") ->  | BI22: =IF(COUNTA($H$22:BH$22)<SUM($11:$11), "Actual gross capex ("&BI4&")", "") ->  | BJ22: =IF(COUNTA($H$22:BI$22)<SUM($11:$11), "Actual gross capex ("&BJ4&")", "") ->  | BK22: =IF(COUNTA($H$22:BJ$22)<SUM($11:$11), "Actual gross capex ("&BK4&")", "") ->  | BL22: =IF(COUNTA($H$22:BK$22)<SUM($11:$11), "Actual gross capex ("&BL4&")", "") ->  | BM22: =IF(COUNTA($H$22:BL$22)<SUM($11:$11), "Actual gross capex ("&BM4&")", "") ->  | BN22: =IF(COUNTA($H$22:BM$22)<SUM($11:$11), "Actual gross capex ("&BN4&")", "") ->  | BO22: =IF(COUNTA($H$22:BN$22)<SUM($11:$11), "Actual gross capex ("&BO4&")", "") ->  | BP22: =IF(COUNTA($H$22:BO$22)<SUM($11:$11), "Actual gross capex ("&BP4&")", "") ->  | BQ22: =IF(COUNTA($H$22:BP$22)<SUM($11:$11), "Actual gross capex ("&BQ4&")", "") ->  | BR22: =IF(COUNTA($H$22:BQ$22)<SUM($11:$11), "Actual gross capex ("&BR4&")", "") ->  | BS22: =IF(COUNTA($H$22:BR$22)<SUM($11:$11), "Actual gross capex ("&BS4&")", "") ->  | BT22: =IF(COUNTA($H$22:BS$22)<SUM($11:$11), "Actual gross capex ("&BT4&")", "") ->  | BU22: =IF(COUNTA($H$22:BT$22)<SUM($11:$11), "Actual gross capex ("&BU4&")", "") ->  | BV22: =IF(COUNTA($H$22:BU$22)<SUM($11:$11), "Actual gross capex ("&BV4&")", "") ->  | BW22: =IF(COUNTA($H$22:BV$22)<SUM($11:$11), "Actual gross capex ("&BW4&")", "") ->  | BX22: =IF(COUNTA($H$22:BW$22)<SUM($11:$11), "Actual gross capex ("&BX4&")", "") ->  | BY22: =IF(COUNTA($H$22:BX$22)<SUM($11:$11), "Actual gross capex ("&BY4&")", "") ->  | BZ22: =IF(COUNTA($H$22:BY$22)<SUM($11:$11), "Actual gross capex ("&BZ4&")", "") ->  | CA22: =IF(COUNTA($H$22:BZ$22)<SUM($11:$11), "Actual gross capex ("&CA4&")", "") ->  | CB22: =IF(COUNTA($H$22:CA$22)<SUM($11:$11), "Actual gross capex ("&CB4&")", "") ->  | CC22: =IF(COUNTA($H$22:CB$22)<SUM($11:$11), "Actual gross capex ("&CC4&")", "") ->  | CD22: =IF(COUNTA($H$22:CC$22)<SUM($11:$11), "Actual gross capex ("&CD4&")", "") ->  | CE22: =IF(COUNTA($H$22:CD$22)<SUM($11:$11), "Actual gross capex ("&CE4&")", "") ->  | CF22: =IF(COUNTA($H$22:CE$22)<SUM($11:$11), "Actual gross capex ("&CF4&")", "") ->  | CG22: =IF(COUNTA($H$22:CF$22)<SUM($11:$11), "Actual gross capex ("&CG4&")", "") ->  | CH22: =IF(COUNTA($H$22:CG$22)<SUM($11:$11), "Actual gross capex ("&CH4&")", "") ->  | CI22: =IF(COUNTA($H$22:CH$22)<SUM($11:$11), "Actual gross capex ("&CI4&")", "") ->  | CJ22: =IF(COUNTA($H$22:CI$22)<SUM($11:$11), "Actual gross capex ("&CJ4&")", "") -> 
D24: 1 | E24: Secondary | G24: 105.6512268 | H24: =H14*15*1/1000*'[1]AST Depreciation'!L219/($S$14*(1+H16)^0.5) -> 1.65 | I24: =I14*15*1/1000*'[1]AST Depreciation'!L220/($S$14*(1+I16)^0.5) -> 10.99214264 | J24: =J14*15*1/1000*'[1]AST Depreciation'!L221/($S$14*(1+J16)^0.5) -> 9.662221823 | K24: =K14*15*1/1000*'[1]AST Depreciation'!L222/($S$14*(1+K16)^0.5) -> 16.30693875 | L24: =L14*15*1/1000*'[1]AST Depreciation'!L223/(S$14*(1+L16)^0.5) -> 19.10455546 | M24: 18.73217622 | N24: 7.114004702 | O24: 2.907537787 | P24: 10.00028289 | Q24: 11.8229275 | R24: 13.47705921 | S24: 19.72533999 | T24: 40.16476446 | U24: 15.24654964 | V24: ='[2]RFM input'!G223 -> 28.70763923 | W24: ='[2]RFM input'!H223 -> 15.25041399 | X24: ='[2]RFM input'!I223 -> 12.94647667 | Y24: ='[2]RFM input'!J223 -> 24.18736376 | Z24: ='[2]RFM input'!K223 -> 12.94361748 | AA24: =INDEX('[4]RFM input'!G$223:G$272,MATCH($E24,'[4]RFM input'!$E$223:$E$272,0)) -> 38.37655925 | AB24: =INDEX('[4]RFM input'!H$223:H$272,MATCH($E24,'[4]RFM input'!$E$223:$E$272,0)) -> 14.84815086 | AC24: =INDEX('[4]RFM input'!I$223:I$272,MATCH($E24,'[4]RFM input'!$E$223:$E$272,0)) -> 19.15547679 | AD24: =INDEX('[4]RFM input'!J$223:J$272,MATCH($E24,'[4]RFM input'!$E$223:$E$272,0)) -> 21.41099645 | AE24: =INDEX('[4]RFM input'!K$223:K$272,MATCH($E24,'[4]RFM input'!$E$223:$E$272,0)) -> 27.839941 | AF24: =INDEX('[4]RFM input'!L$223:L$272,MATCH($E24,'[4]RFM input'!$E$223:$E$272,0)) -> 34.673409
D25: 2 | E25: Switchgear | G25: 220.1873768 | H25: 1.578 | I25: 1.804175 | J25: 18.66443682 | K25: 10.93727539 | L25: 46.38129783 | M25: 47.67171476 | N25: 6.185252712 | O25: 26.04209819 | P25: 48.76304994 | Q25: 32.79817655 | R25: 30.04723213 | S25: 28.29735619 | T25: 38.20540214 | U25: 17.8256734 | V25: ='[2]RFM input'!G224 -> 29.51234152 | W25: ='[2]RFM input'!H224 -> 22.63745327 | X25: ='[2]RFM input'!I224 -> 21.50946122 | Y25: ='[2]RFM input'!J224 -> 51.70502679 | Z25: ='[2]RFM input'!K224 -> 31.43707228 | AA25: =INDEX('[4]RFM input'!G$223:G$272,MATCH($E25,'[4]RFM input'!$E$223:$E$272,0)) -> 68.76634057 | AB25: =INDEX('[4]RFM input'!H$223:H$272,MATCH($E25,'[4]RFM input'!$E$223:$E$272,0)) -> 52.69109824 | AC25: =INDEX('[4]RFM input'!I$223:I$272,MATCH($E25,'[4]RFM input'!$E$223:$E$272,0)) -> 20.38934168 | AD25: =INDEX('[4]RFM input'!J$223:J$272,MATCH($E25,'[4]RFM input'!$E$223:$E$272,0)) -> 10.1882988 | AE25: =INDEX('[4]RFM input'!K$223:K$272,MATCH($E25,'[4]RFM input'!$E$223:$E$272,0)) -> 59.473421 | AF25: =INDEX('[4]RFM input'!L$223:L$272,MATCH($E25,'[4]RFM input'!$E$223:$E$272,0)) -> 64.769189
D26: 3 | E26: Transformers | G26: 153.799641 | H26: 6.28 | I26: 2.229248 | J26: 0.7500130205 | K26: 12.321245 | L26: 12.92125732 | M26: 12.31665549 | N26: 4.748242028 | O26: 6.058469815 | P26: 10.74214778 | Q26: 8.926122934 | R26: 31.74521644 | S26: 37.24864264 | T26: 10.51943639 | U26: 10.04367536 | V26: ='[2]RFM input'!G225 -> 14.4564704 | W26: ='[2]RFM input'!H225 -> 21.18046031 | X26: ='[2]RFM input'!I225 -> 38.28978714 | Y26: ='[2]RFM input'!J225 -> 15.37412018 | Z26: ='[2]RFM input'!K225 -> 11.78308038 | AA26: =INDEX('[4]RFM input'!G$223:G$272,MATCH($E26,'[4]RFM input'!$E$223:$E$272,0)) -> 6.676104015 | AB26: =INDEX('[4]RFM input'!H$223:H$272,MATCH($E26,'[4]RFM input'!$E$223:$E$272,0)) -> 3.383212244 | AC26: =INDEX('[4]RFM input'!I$223:I$272,MATCH($E26,'[4]RFM input'!$E$223:$E$272,0)) -> 17.35992558 | AD26: =INDEX('[4]RFM input'!J$223:J$272,MATCH($E26,'[4]RFM input'!$E$223:$E$272,0)) -> 10.81252073 | AE26: =INDEX('[4]RFM input'!K$223:K$272,MATCH($E26,'[4]RFM input'!$E$223:$E$272,0)) -> 51.714159 | AF26: =INDEX('[4]RFM input'!L$223:L$272,MATCH($E26,'[4]RFM input'!$E$223:$E$272,0)) -> 91.913066
D27: 4 | E27: Reactive | G27: 82.28707237 | H27: 0 | I27: 0.754326 | J27: 3.061457941 | K27: 2.757695961 | L27: -1.734977182 | M27: 0.1074142013 | N27: 0.003050634124 | O27: 0.9777792319 | P27: 0.04643770652 | Q27: 0.5207217664 | R27: 5.186423333 | S27: 1.540672936 | T27: 4.960878103 | U27: 1.060628057 | V27: ='[2]RFM input'!G226 -> 0.1500779087 | W27: ='[2]RFM input'!H226 -> 0.235972759 | X27: ='[2]RFM input'!I226 -> 0.7894508979 | Y27: ='[2]RFM input'!J226 -> 1.787448972 | Z27: ='[2]RFM input'!K226 -> 4.814453742 | AA27: =INDEX('[4]RFM input'!G$223:G$272,MATCH($E27,'[4]RFM input'!$E$223:$E$272,0)) -> 10.52935235 | AB27: =INDEX('[4]RFM input'!H$223:H$272,MATCH($E27,'[4]RFM input'!$E$223:$E$272,0)) -> 2.533866639 | AC27: =INDEX('[4]RFM input'!I$223:I$272,MATCH($E27,'[4]RFM input'!$E$223:$E$272,0)) -> 1.707435867 | AD27: =INDEX('[4]RFM input'!J$223:J$272,MATCH($E27,'[4]RFM input'!$E$223:$E$272,0)) -> 0.9116992189 | AE27: =INDEX('[4]RFM input'!K$223:K$272,MATCH($E27,'[4]RFM input'!$E$223:$E$272,0)) -> 0.875178 | AF27: =INDEX('[4]RFM input'!L$223:L$272,MATCH($E27,'[4]RFM input'!$E$223:$E$272,0)) -> 1.321201
D28: 5 | E28: Towers and Conductor | G28: 1030.480614 | H28: 13.456 | I28: 13.28832 | J28: 14.70302081 | K28: 6.171104389 | L28: 0.5513550975 | M28: 2.356239607 | N28: 5.373240423 | O28: 18.85041313 | P28: 9.042788819 | Q28: 40.47602301 | R28: 37.67150167 | S28: 27.50037786 | T28: 24.27604234 | U28: 18.47445902 | V28: ='[2]RFM input'!G227 -> 21.76405396 | W28: ='[2]RFM input'!H227 -> 24.86707855 | X28: ='[2]RFM input'!I227 -> 9.367118324 | Y28: ='[2]RFM input'!J227 -> 20.71979595 | Z28: ='[2]RFM input'!K227 -> 29.55079108 | AA28: =INDEX('[4]RFM input'!G$223:G$272,MATCH($E28,'[4]RFM input'!$E$223:$E$272,0)) -> 34.69014988 | AB28: =INDEX('[4]RFM input'!H$223:H$272,MATCH($E28,'[4]RFM input'!$E$223:$E$272,0)) -> 1.515420329 | AC28: =INDEX('[4]RFM input'!I$223:I$272,MATCH($E28,'[4]RFM input'!$E$223:$E$272,0)) -> 3.757893801 | AD28: =INDEX('[4]RFM input'!J$223:J$272,MATCH($E28,'[4]RFM input'!$E$223:$E$272,0)) -> 55.98963241 | AE28: =INDEX('[4]RFM input'!K$223:K$272,MATCH($E28,'[4]RFM input'!$E$223:$E$272,0)) -> 48.375355 | AF28: =INDEX('[4]RFM input'!L$223:L$272,MATCH($E28,'[4]RFM input'!$E$223:$E$272,0)) -> 88.062519
D29: 6 | E29: Establishment | G29: 31.16119904 | H29: 0.717 | I29: 8.308468 | J29: 6.592340186 | K29: 26.15926304 | L29: 19.65568808 | M29: 14.14251263 | N29: 12.22199022 | O29: 10.93815714 | P29: 6.266951058 | Q29: 6.29256967 | R29: 21.12372363 | S29: 23.04837549 | T29: 29.34880458 | U29: 27.18487847 | V29: ='[2]RFM input'!G228 -> 9.754000976 | W29: ='[2]RFM input'!H228 -> 15.68280611 | X29: ='[2]RFM input'!I228 -> 10.45263576 | Y29: ='[2]RFM input'!J228 -> 20.98608445 | Z29: ='[2]RFM input'!K228 -> 21.80122554 | AA29: =INDEX('[4]RFM input'!G$223:G$272,MATCH($E29,'[4]RFM input'!$E$223:$E$272,0)) -> 6.77707755 | AB29: =INDEX('[4]RFM input'!H$223:H$272,MATCH($E29,'[4]RFM input'!$E$223:$E$272,0)) -> 5.82758477 | AC29: =INDEX('[4]RFM input'!I$223:I$272,MATCH($E29,'[4]RFM input'!$E$223:$E$272,0)) -> 7.821085643 | AD29: =INDEX('[4]RFM input'!J$223:J$272,MATCH($E29,'[4]RFM input'!$E$223:$E$272,0)) -> 7.005551488 | AE29: =INDEX('[4]RFM input'!K$223:K$272,MATCH($E29,'[4]RFM input'!$E$223:$E$272,0)) -> 20.722286 | AF29: =INDEX('[4]RFM input'!L$223:L$272,MATCH($E29,'[4]RFM input'!$E$223:$E$272,0)) -> 37.844399
D30: 7 | E30: Communications | G30: 4.589613724 | H30: 0.982 | I30: 2.57448 | J30: 5.848082373 | K30: 2.732521956 | L30: 0.2191946664 | M30: 1.132815452 | N30: 0.3265320399 | O30: 1.996055823 | P30: 11.78799757 | Q30: 6.611412728 | R30: 5.827284812 | S30: 8.634042373 | T30: 19.63534216 | U30: 3.673481807 | V30: ='[2]RFM input'!G229 -> 10.33120136 | W30: ='[2]RFM input'!H229 -> 1.849598149 | X30: ='[2]RFM input'!I229 -> 6.741013949 | Y30: ='[2]RFM input'!J229 -> 29.47950324 | Z30: ='[2]RFM input'!K229 -> 13.43842568 | AA30: =INDEX('[4]RFM input'!G$223:G$272,MATCH($E30,'[4]RFM input'!$E$223:$E$272,0)) -> 13.53492668 | AB30: =INDEX('[4]RFM input'!H$223:H$272,MATCH($E30,'[4]RFM input'!$E$223:$E$272,0)) -> 1.412640478 | AC30: =INDEX('[4]RFM input'!I$223:I$272,MATCH($E30,'[4]RFM input'!$E$223:$E$272,0)) -> 7.266650142 | AD30: =INDEX('[4]RFM input'!J$223:J$272,MATCH($E30,'[4]RFM input'!$E$223:$E$272,0)) -> 1.297277966 | AE30: =INDEX('[4]RFM input'!K$223:K$272,MATCH($E30,'[4]RFM input'!$E$223:$E$272,0)) -> 20.095025 | AF30: =INDEX('[4]RFM input'!L$223:L$272,MATCH($E30,'[4]RFM input'!$E$223:$E$272,0)) -> 34.717082
D31: 8 | E31: Inventory | G31: 2.471713312 | H31: 0.03441848 | I31: 1.57805258 | J31: 0.39757901 | K31: 1.65358787 | L31: -0.12932106 | M31: 0 | N31: 0 | O31: 0 | P31: 0 | Q31: 0 | R31: 0 | S31: 0.82268351 | T31: 1.83768393 | U31: -0.2882583162 | V31: ='[2]RFM input'!G230 -> -1.688057064 | W31: ='[2]RFM input'!H230 -> 1.51794128 | X31: ='[2]RFM input'!I230 -> -0.62547339 | Y31: ='[2]RFM input'!J230 -> 1.27521033 | Z31: ='[2]RFM input'!K230 -> 2.0383031 | AA31: =INDEX('[4]RFM input'!G$223:G$272,MATCH($E31,'[4]RFM input'!$E$223:$E$272,0)) -> 1.09428095 | AB31: =INDEX('[4]RFM input'!H$223:H$272,MATCH($E31,'[4]RFM input'!$E$223:$E$272,0)) -> 1.927923122 | AC31: =INDEX('[4]RFM input'!I$223:I$272,MATCH($E31,'[4]RFM input'!$E$223:$E$272,0)) -> 0.02288004 | AD31: =INDEX('[4]RFM input'!J$223:J$272,MATCH($E31,'[4]RFM input'!$E$223:$E$272,0)) -> 1.01127326 | AE31: =INDEX('[4]RFM input'!K$223:K$272,MATCH($E31,'[4]RFM input'!$E$223:$E$272,0)) -> 0 | AF31: =INDEX('[4]RFM input'!L$223:L$272,MATCH($E31,'[4]RFM input'!$E$223:$E$272,0)) -> 0
D32: 9 | E32: IT | G32: 14.80492811 | H32: 3.98684839 | I32: 6.320201848 | J32: 4.441102703 | K32: 9.631394849 | L32: 4.998462616 | M32: 9.661577724 | N32: 2.77728824 | O32: 12.10084392 | P32: 4.614285296 | Q32: 8.913162463 | R32: 8.364140915 | S32: 14.71918098 | T32: 3.834674148 | U32: 33.45206801 | V32: ='[2]RFM input'!G231 -> 6.593011958 | W32: ='[2]RFM input'!H231 -> 5.912117661 | X32: ='[2]RFM input'!I231 -> 13.2127267 | Y32: ='[2]RFM input'!J231 -> 11.75596155 | Z32: ='[2]RFM input'!K231 -> 12.98015154 | AA32: =INDEX('[4]RFM input'!G$223:G$272,MATCH($E32,'[4]RFM input'!$E$223:$E$272,0)) -> 14.42166817 | AB32: =INDEX('[4]RFM input'!H$223:H$272,MATCH($E32,'[4]RFM input'!$E$223:$E$272,0)) -> 2.220168421 | AC32: =INDEX('[4]RFM input'!I$223:I$272,MATCH($E32,'[4]RFM input'!$E$223:$E$272,0)) -> 1.062788641 | AD32: =INDEX('[4]RFM input'!J$223:J$272,MATCH($E32,'[4]RFM input'!$E$223:$E$272,0)) -> 2.980068457 | AE32: =INDEX('[4]RFM input'!K$223:K$272,MATCH($E32,'[4]RFM input'!$E$223:$E$272,0)) -> 9.730892 | AF32: =INDEX('[4]RFM input'!L$223:L$272,MATCH($E32,'[4]RFM input'!$E$223:$E$272,0)) -> 13.682
D33: 10 | E33: Vehicles | G33: 5.309290004 | H33: 0.31785223 | I33: 1.323319177 | J33: 0.92997954 | K33: 1.47710646 | L33: 0.9606276425 | M33: 0.9889218011 | N33: 0.4272983116 | O33: 0.5230224037 | P33: -0.01027433917 | Q33: 0.1772857966 | R33: 0.9325986858 | S33: 1.609678833 | T33: 0.6730363313 | U33: 0.6884410055 | V33: ='[2]RFM input'!G232 -> 0.4883993913 | W33: ='[2]RFM input'!H232 -> 0.3673066371 | X33: ='[2]RFM input'!I232 -> 1.170407047 | Y33: ='[2]RFM input'!J232 -> 0.07336384706 | Z33: ='[2]RFM input'!K232 -> 0 | AA33: =INDEX('[4]RFM input'!G$223:G$272,MATCH($E33,'[4]RFM input'!$E$223:$E$272,0)) -> 0 | AB33: =INDEX('[4]RFM input'!H$223:H$272,MATCH($E33,'[4]RFM input'!$E$223:$E$272,0)) -> 0.1674753928 | AC33: =INDEX('[4]RFM input'!I$223:I$272,MATCH($E33,'[4]RFM input'!$E$223:$E$272,0)) -> 0 | AD33: =INDEX('[4]RFM input'!J$223:J$272,MATCH($E33,'[4]RFM input'!$E$223:$E$272,0)) -> 0.8708860839 | AE33: =INDEX('[4]RFM input'!K$223:K$272,MATCH($E33,'[4]RFM input'!$E$223:$E$272,0)) -> 0.584434 | AF33: =INDEX('[4]RFM input'!L$223:L$272,MATCH($E33,'[4]RFM input'!$E$223:$E$272,0)) -> 1.267509
D34: 11 | E34: Other (non-network) | G34: 4.18106568 | H34: 0.57512257 | I34: 2.067491732 | J34: 3.52622051 | K34: 2.565120411 | L34: 0.1873773122 | M34: 2.240709994 | N34: 0.4152109591 | O34: 1.872058783 | P34: 4.436735279 | Q34: 2.18449123 | R34: 4.483092716 | S34: 4.749410847 | T34: 3.187454531 | U34: 0.9364895111 | V34: ='[2]RFM input'!G233 -> 1.668234792 | W34: ='[2]RFM input'!H233 -> 1.5217545 | X34: ='[2]RFM input'!I233 -> 2.792551412 | Y34: ='[2]RFM input'!J233 -> 2.795790719 | Z34: ='[2]RFM input'!K233 -> 3.949426334 | AA34: =INDEX('[4]RFM input'!G$223:G$272,MATCH($E34,'[4]RFM input'!$E$223:$E$272,0)) -> 1.920490853 | AB34: =INDEX('[4]RFM input'!H$223:H$272,MATCH($E34,'[4]RFM input'!$E$223:$E$272,0)) -> 5.559338522 | AC34: =INDEX('[4]RFM input'!I$223:I$272,MATCH($E34,'[4]RFM input'!$E$223:$E$272,0)) -> 1.86425158 | AD34: =INDEX('[4]RFM input'!J$223:J$272,MATCH($E34,'[4]RFM input'!$E$223:$E$272,0)) -> 1.561655182 | AE34: =INDEX('[4]RFM input'!K$223:K$272,MATCH($E34,'[4]RFM input'!$E$223:$E$272,0)) -> 1.263159 | AF34: =INDEX('[4]RFM input'!L$223:L$272,MATCH($E34,'[4]RFM input'!$E$223:$E$272,0)) -> 3
D35: 12 | E35: Premises | G35: 3.399175852 | H35: 0.67417681 | I35: 0.4776976628 | J35: 0.63410447 | K35: 5.925201461 | L35: 0.1067311489 | M35: 0.1454468054 | N35: -0.02006418516 | O35: 0.3504006243 | P35: 0.08298202603 | Q35: 0.138552994 | R35: 0.06372652479 | S35: 0.2441075825 | T35: 0.4451256864 | U35: 0 | V35: ='[2]RFM input'!G234 -> 0 | W35: ='[2]RFM input'!H234 -> 0 | X35: ='[2]RFM input'!I234 -> 0 | Y35: ='[2]RFM input'!J234 -> 0 | Z35: ='[2]RFM input'!K234 -> 0 | AA35: =INDEX('[4]RFM input'!G$223:G$272,MATCH($E35,'[4]RFM input'!$E$223:$E$272,0)) -> 0 | AB35: =INDEX('[4]RFM input'!H$223:H$272,MATCH($E35,'[4]RFM input'!$E$223:$E$272,0)) -> 0 | AC35: =INDEX('[4]RFM input'!I$223:I$272,MATCH($E35,'[4]RFM input'!$E$223:$E$272,0)) -> 0 | AD35: =INDEX('[4]RFM input'!J$223:J$272,MATCH($E35,'[4]RFM input'!$E$223:$E$272,0)) -> 0 | AE35: =INDEX('[4]RFM input'!K$223:K$272,MATCH($E35,'[4]RFM input'!$E$223:$E$272,0)) -> 0.211876 | AF35: =INDEX('[4]RFM input'!L$223:L$272,MATCH($E35,'[4]RFM input'!$E$223:$E$272,0)) -> 0.225
D36: 13 | E36: Land | G36: 86.61560197 | H36: 0 | I36: 0 | J36: 0 | K36: 0 | L36: 0 | M36: 0 | N36: 0 | O36: 0.191692 | P36: 0 | Q36: 0 | R36: 0 | S36: 0 | T36: 0 | U36: 0 | V36: ='[2]RFM input'!G235 -> 0 | W36: ='[2]RFM input'!H235 -> 0 | X36: ='[2]RFM input'!I235 -> 0 | Y36: ='[2]RFM input'!J235 -> 0 | Z36: ='[2]RFM input'!K235 -> 0 | AA36: =INDEX('[4]RFM input'!G$223:G$272,MATCH($E36,'[4]RFM input'!$E$223:$E$272,0)) -> 0 | AB36: =INDEX('[4]RFM input'!H$223:H$272,MATCH($E36,'[4]RFM input'!$E$223:$E$272,0)) -> 0 | AC36: =INDEX('[4]RFM input'!I$223:I$272,MATCH($E36,'[4]RFM input'!$E$223:$E$272,0)) -> 0 | AD36: =INDEX('[4]RFM input'!J$223:J$272,MATCH($E36,'[4]RFM input'!$E$223:$E$272,0)) -> 1.168248652 | AE36: =INDEX('[4]RFM input'!K$223:K$272,MATCH($E36,'[4]RFM input'!$E$223:$E$272,0)) -> 0 | AF36: =INDEX('[4]RFM input'!L$223:L$272,MATCH($E36,'[4]RFM input'!$E$223:$E$272,0)) -> 0
D37: 14 | E37: Easements | G37: 95.37295413 | H37: 0 | I37: 0.057 | J37: 0 | K37: 0 | L37: 0 | M37: 0 | N37: 0 | O37: 0 | P37: 0 | Q37: 0 | R37: 0 | S37: 0 | T37: 0 | U37: 0 | V37: ='[2]RFM input'!G236 -> 0 | W37: ='[2]RFM input'!H236 -> 0 | X37: ='[2]RFM input'!I236 -> 0 | Y37: ='[2]RFM input'!J236 -> 0 | Z37: ='[2]RFM input'!K236 -> 0 | AA37: =INDEX('[4]RFM input'!G$223:G$272,MATCH($E37,'[4]RFM input'!$E$223:$E$272,0)) -> 0 | AB37: =INDEX('[4]RFM input'!H$223:H$272,MATCH($E37,'[4]RFM input'!$E$223:$E$272,0)) -> 0 | AC37: =INDEX('[4]RFM input'!I$223:I$272,MATCH($E37,'[4]RFM input'!$E$223:$E$272,0)) -> 0.1462815738 | AD37: =INDEX('[4]RFM input'!J$223:J$272,MATCH($E37,'[4]RFM input'!$E$223:$E$272,0)) -> 0 | AE37: =INDEX('[4]RFM input'!K$223:K$272,MATCH($E37,'[4]RFM input'!$E$223:$E$272,0)) -> 0 | AF37: =INDEX('[4]RFM input'!L$223:L$272,MATCH($E37,'[4]RFM input'!$E$223:$E$272,0)) -> 0
D38: 15 | E38: Equity raising costs (2003-08) | G38: 0 | H38: 0 | I38: 0 | J38: 0 | K38: 0 | L38: 0 | M38: 0 | N38: 0 | O38: 0 | P38: 0 | Q38: 0 | R38: 0 | S38: 0 | T38: 0 | U38: 0 | V38: ='[2]RFM input'!G237 -> 0 | W38: ='[2]RFM input'!H237 -> 0 | X38: ='[2]RFM input'!I237 -> 0 | Y38: ='[2]RFM input'!J237 -> 0 | Z38: ='[2]RFM input'!K237 -> 0 | AA38: =INDEX('[4]RFM input'!G$223:G$272,MATCH($E38,'[4]RFM input'!$E$223:$E$272,0)) -> 0 | AB38: =INDEX('[4]RFM input'!H$223:H$272,MATCH($E38,'[4]RFM input'!$E$223:$E$272,0)) -> 0 | AC38: =INDEX('[4]RFM input'!I$223:I$272,MATCH($E38,'[4]RFM input'!$E$223:$E$272,0)) -> 0 | AD38: =INDEX('[4]RFM input'!J$223:J$272,MATCH($E38,'[4]RFM input'!$E$223:$E$272,0)) -> 0 | AE38: =INDEX('[4]RFM input'!K$223:K$272,MATCH($E38,'[4]RFM input'!$E$223:$E$272,0)) -> 0 | AF38: =INDEX('[4]RFM input'!L$223:L$272,MATCH($E38,'[4]RFM input'!$E$223:$E$272,0)) -> 0
D39: 16 | E39: Inventory Adjustment (Other non-network) | G39: 0 | H39: 0 | I39: 0 | J39: 0 | K39: 0 | L39: 0 | M39: 0 | N39: 0 | O39: 0 | P39: 0 | Q39: 0 | R39: 0 | S39: 0 | T39: 0 | U39: 0 | V39: ='[2]RFM input'!G238 -> 0 | W39: ='[2]RFM input'!H238 -> 0 | X39: ='[2]RFM input'!I238 -> 0 | Y39: ='[2]RFM input'!J238 -> 0 | Z39: ='[2]RFM input'!K238 -> 0 | AA39: =INDEX('[4]RFM input'!G$223:G$272,MATCH($E39,'[4]RFM input'!$E$223:$E$272,0)) -> 0 | AB39: =INDEX('[4]RFM input'!H$223:H$272,MATCH($E39,'[4]RFM input'!$E$223:$E$272,0)) -> 0 | AC39: =INDEX('[4]RFM input'!I$223:I$272,MATCH($E39,'[4]RFM input'!$E$223:$E$272,0)) -> 0 | AD39: =INDEX('[4]RFM input'!J$223:J$272,MATCH($E39,'[4]RFM input'!$E$223:$E$272,0)) -> 0 | AE39: =INDEX('[4]RFM input'!K$223:K$272,MATCH($E39,'[4]RFM input'!$E$223:$E$272,0)) -> 0 | AF39: =INDEX('[4]RFM input'!L$223:L$272,MATCH($E39,'[4]RFM input'!$E$223:$E$272,0)) -> 0
D40: 17 | E40: Accelerated Depr | V40: ='[2]RFM input'!G239 -> 0 | W40: ='[2]RFM input'!H239 -> 0 | X40: ='[2]RFM input'!I239 -> 0 | Y40: ='[2]RFM input'!J239 -> 0 | Z40: ='[2]RFM input'!K239 -> 0 | AA40: =INDEX('[4]RFM input'!G$223:G$272,MATCH($E40,'[4]RFM input'!$E$223:$E$272,0)) -> 0 | AB40: =INDEX('[4]RFM input'!H$223:H$272,MATCH($E40,'[4]RFM input'!$E$223:$E$272,0)) -> 0 | AC40: =INDEX('[4]RFM input'!I$223:I$272,MATCH($E40,'[4]RFM input'!$E$223:$E$272,0)) -> 0 | AD40: =INDEX('[4]RFM input'!J$223:J$272,MATCH($E40,'[4]RFM input'!$E$223:$E$272,0)) -> 0 | AE40: =INDEX('[4]RFM input'!K$223:K$272,MATCH($E40,'[4]RFM input'!$E$223:$E$272,0)) -> 0 | AF40: =INDEX('[4]RFM input'!L$223:L$272,MATCH($E40,'[4]RFM input'!$E$223:$E$272,0)) -> 0
D41: 18 | E41: Insulators - Already Decommissioned | V41: ='[2]RFM input'!G240 -> 0 | W41: ='[2]RFM input'!H240 -> 0 | X41: ='[2]RFM input'!I240 -> 0 | Y41: ='[2]RFM input'!J240 -> 0 | Z41: ='[2]RFM input'!K240 -> 0 | AA41: =INDEX('[4]RFM input'!G$223:G$272,MATCH($E41,'[4]RFM input'!$E$223:$E$272,0)) -> 0 | AB41: =INDEX('[4]RFM input'!H$223:H$272,MATCH($E41,'[4]RFM input'!$E$223:$E$272,0)) -> 0 | AC41: =INDEX('[4]RFM input'!I$223:I$272,MATCH($E41,'[4]RFM input'!$E$223:$E$272,0)) -> 0 | AD41: =INDEX('[4]RFM input'!J$223:J$272,MATCH($E41,'[4]RFM input'!$E$223:$E$272,0)) -> 0 | AE41: =INDEX('[4]RFM input'!K$223:K$272,MATCH($E41,'[4]RFM input'!$E$223:$E$272,0)) -> 0 | AF41: =INDEX('[4]RFM input'!L$223:L$272,MATCH($E41,'[4]RFM input'!$E$223:$E$272,0)) -> 0
D42: 19 | E42: Insulators - Decommission 2022-2027 | V42: ='[2]RFM input'!G241 -> 0 | W42: ='[2]RFM input'!H241 -> 0 | X42: ='[2]RFM input'!I241 -> 0 | Y42: ='[2]RFM input'!J241 -> 0 | Z42: ='[2]RFM input'!K241 -> 0 | AA42: =INDEX('[4]RFM input'!G$223:G$272,MATCH($E42,'[4]RFM input'!$E$223:$E$272,0)) -> 0 | AB42: =INDEX('[4]RFM input'!H$223:H$272,MATCH($E42,'[4]RFM input'!$E$223:$E$272,0)) -> 0 | AC42: =INDEX('[4]RFM input'!I$223:I$272,MATCH($E42,'[4]RFM input'!$E$223:$E$272,0)) -> 0 | AD42: =INDEX('[4]RFM input'!J$223:J$272,MATCH($E42,'[4]RFM input'!$E$223:$E$272,0)) -> 0 | AE42: =INDEX('[4]RFM input'!K$223:K$272,MATCH($E42,'[4]RFM input'!$E$223:$E$272,0)) -> 0 | AF42: =INDEX('[4]RFM input'!L$223:L$272,MATCH($E42,'[4]RFM input'!$E$223:$E$272,0)) -> 0
D43: 20 | E43: Polymeric Insulators | V43: ='[2]RFM input'!G242 -> 0 | W43: ='[2]RFM input'!H242 -> 0 | X43: ='[2]RFM input'!I242 -> 0 | Y43: ='[2]RFM input'!J242 -> 0 | Z43: ='[2]RFM input'!K242 -> 0 | AA43: =INDEX('[4]RFM input'!G$223:G$272,MATCH($E43,'[4]RFM input'!$E$223:$E$272,0)) -> 0 | AB43: =INDEX('[4]RFM input'!H$223:H$272,MATCH($E43,'[4]RFM input'!$E$223:$E$272,0)) -> 0.601604701 | AC43: =INDEX('[4]RFM input'!I$223:I$272,MATCH($E43,'[4]RFM input'!$E$223:$E$272,0)) -> 6.55933295 | AD43: =INDEX('[4]RFM input'!J$223:J$272,MATCH($E43,'[4]RFM input'!$E$223:$E$272,0)) -> 2.353793139 | AE43: =INDEX('[4]RFM input'!K$223:K$272,MATCH($E43,'[4]RFM input'!$E$223:$E$272,0)) -> 12.399813 | AF43: =INDEX('[4]RFM input'!L$223:L$272,MATCH($E43,'[4]RFM input'!$E$223:$E$272,0)) -> 19.546893
D44: 21 | E44: Instrument Transformers - Already Decommissioned | V44: ='[2]RFM input'!G243 -> 0 | W44: ='[2]RFM input'!H243 -> 0 | X44: ='[2]RFM input'!I243 -> 0 | Y44: ='[2]RFM input'!J243 -> 0 | Z44: ='[2]RFM input'!K243 -> 0 | AA44: =INDEX('[4]RFM input'!G$223:G$272,MATCH($E44,'[4]RFM input'!$E$223:$E$272,0)) -> 0 | AB44: =INDEX('[4]RFM input'!H$223:H$272,MATCH($E44,'[4]RFM input'!$E$223:$E$272,0)) -> 0 | AC44: =INDEX('[4]RFM input'!I$223:I$272,MATCH($E44,'[4]RFM input'!$E$223:$E$272,0)) -> 0 | AD44: =INDEX('[4]RFM input'!J$223:J$272,MATCH($E44,'[4]RFM input'!$E$223:$E$272,0)) -> 0 | AE44: =INDEX('[4]RFM input'!K$223:K$272,MATCH($E44,'[4]RFM input'!$E$223:$E$272,0)) -> 0 | AF44: =INDEX('[4]RFM input'!L$223:L$272,MATCH($E44,'[4]RFM input'!$E$223:$E$272,0)) -> 0
D45: 22 | E45: Instrument Transformers - Decommission 2022-2027 | V45: ='[2]RFM input'!G244 -> 0 | W45: ='[2]RFM input'!H244 -> 0 | X45: ='[2]RFM input'!I244 -> 0 | Y45: ='[2]RFM input'!J244 -> 0 | Z45: ='[2]RFM input'!K244 -> 0 | AA45: =INDEX('[4]RFM input'!G$223:G$272,MATCH($E45,'[4]RFM input'!$E$223:$E$272,0)) -> 0 | AB45: =INDEX('[4]RFM input'!H$223:H$272,MATCH($E45,'[4]RFM input'!$E$223:$E$272,0)) -> 0 | AC45: =INDEX('[4]RFM input'!I$223:I$272,MATCH($E45,'[4]RFM input'!$E$223:$E$272,0)) -> 0 | AD45: =INDEX('[4]RFM input'!J$223:J$272,MATCH($E45,'[4]RFM input'!$E$223:$E$272,0)) -> 0 | AE45: =INDEX('[4]RFM input'!K$223:K$272,MATCH($E45,'[4]RFM input'!$E$223:$E$272,0)) -> 0 | AF45: =INDEX('[4]RFM input'!L$223:L$272,MATCH($E45,'[4]RFM input'!$E$223:$E$272,0)) -> 0
D46: 23 | V46: ='[2]RFM input'!G245 -> 0 | W46: ='[2]RFM input'!H245 -> 0 | X46: ='[2]RFM input'!I245 -> 0 | Y46: ='[2]RFM input'!J245 -> 0 | Z46: ='[2]RFM input'!K245 -> 0 | AA46: =INDEX('[4]RFM input'!G$223:G$272,MATCH($E46,'[4]RFM input'!$E$223:$E$272,0)) -> 0 | AB46: =INDEX('[4]RFM input'!H$223:H$272,MATCH($E46,'[4]RFM input'!$E$223:$E$272,0)) -> 0 | AC46: =INDEX('[4]RFM input'!I$223:I$272,MATCH($E46,'[4]RFM input'!$E$223:$E$272,0)) -> 0 | AD46: =INDEX('[4]RFM input'!J$223:J$272,MATCH($E46,'[4]RFM input'!$E$223:$E$272,0)) -> 0 | AE46: =INDEX('[4]RFM input'!K$223:K$272,MATCH($E46,'[4]RFM input'!$E$223:$E$272,0)) -> 0 | AF46: =INDEX('[4]RFM input'!L$223:L$272,MATCH($E46,'[4]RFM input'!$E$223:$E$272,0)) -> 0
D47: 24 | E47: Lease L&B 2019-20 < 20 years rem life | V47: ='[2]RFM input'!G246 -> 0 | W47: ='[2]RFM input'!H246 -> 0 | X47: ='[2]RFM input'!I246 -> 0 | Y47: ='[2]RFM input'!J246 -> 0 | Z47: ='[2]RFM input'!K246 -> 0 | AA47: =INDEX('[4]RFM input'!G$223:G$272,MATCH($E47,'[4]RFM input'!$E$223:$E$272,0)) -> -2.562039651 | AB47: =INDEX('[4]RFM input'!H$223:H$272,MATCH($E47,'[4]RFM input'!$E$223:$E$272,0)) -> 0 | AC47: =INDEX('[4]RFM input'!I$223:I$272,MATCH($E47,'[4]RFM input'!$E$223:$E$272,0)) -> 0 | AD47: =INDEX('[4]RFM input'!J$223:J$272,MATCH($E47,'[4]RFM input'!$E$223:$E$272,0)) -> 0 | AE47: =INDEX('[4]RFM input'!K$223:K$272,MATCH($E47,'[4]RFM input'!$E$223:$E$272,0)) -> 0 | AF47: =INDEX('[4]RFM input'!L$223:L$272,MATCH($E47,'[4]RFM input'!$E$223:$E$272,0)) -> 0
D48: 25 | E48: Lease L&B 2019-20 > 20 years rem life | V48: ='[2]RFM input'!G247 -> 0 | W48: ='[2]RFM input'!H247 -> 0 | X48: ='[2]RFM input'!I247 -> 0 | Y48: ='[2]RFM input'!J247 -> 0 | Z48: ='[2]RFM input'!K247 -> 0 | AA48: =INDEX('[4]RFM input'!G$223:G$272,MATCH($E48,'[4]RFM input'!$E$223:$E$272,0)) -> 2.14710629 | AB48: =INDEX('[4]RFM input'!H$223:H$272,MATCH($E48,'[4]RFM input'!$E$223:$E$272,0)) -> 0 | AC48: =INDEX('[4]RFM input'!I$223:I$272,MATCH($E48,'[4]RFM input'!$E$223:$E$272,0)) -> 0 | AD48: =INDEX('[4]RFM input'!J$223:J$272,MATCH($E48,'[4]RFM input'!$E$223:$E$272,0)) -> 0 | AE48: =INDEX('[4]RFM input'!K$223:K$272,MATCH($E48,'[4]RFM input'!$E$223:$E$272,0)) -> 0 | AF48: =INDEX('[4]RFM input'!L$223:L$272,MATCH($E48,'[4]RFM input'!$E$223:$E$272,0)) -> 0
D49: 26 | E49: Lease L&B 2020-21 | V49: ='[2]RFM input'!G248 -> 0 | W49: ='[2]RFM input'!H248 -> 0 | X49: ='[2]RFM input'!I248 -> 0 | Y49: ='[2]RFM input'!J248 -> 0 | Z49: ='[2]RFM input'!K248 -> 0 | AA49: =INDEX('[4]RFM input'!G$223:G$272,MATCH($E49,'[4]RFM input'!$E$223:$E$272,0)) -> -2.647513604 | AB49: =INDEX('[4]RFM input'!H$223:H$272,MATCH($E49,'[4]RFM input'!$E$223:$E$272,0)) -> 0 | AC49: =INDEX('[4]RFM input'!I$223:I$272,MATCH($E49,'[4]RFM input'!$E$223:$E$272,0)) -> 0 | AD49: =INDEX('[4]RFM input'!J$223:J$272,MATCH($E49,'[4]RFM input'!$E$223:$E$272,0)) -> 0 | AE49: =INDEX('[4]RFM input'!K$223:K$272,MATCH($E49,'[4]RFM input'!$E$223:$E$272,0)) -> 0 | AF49: =INDEX('[4]RFM input'!L$223:L$272,MATCH($E49,'[4]RFM input'!$E$223:$E$272,0)) -> 0
D50: 27 | E50: Lease L&B 2021-22 | V50: ='[2]RFM input'!G249 -> 0 | W50: ='[2]RFM input'!H249 -> 0 | X50: ='[2]RFM input'!I249 -> 0 | Y50: ='[2]RFM input'!J249 -> 0 | Z50: ='[2]RFM input'!K249 -> 0 | AA50: =INDEX('[4]RFM input'!G$223:G$272,MATCH($E50,'[4]RFM input'!$E$223:$E$272,0)) -> 0.2615625717 | AB50: =INDEX('[4]RFM input'!H$223:H$272,MATCH($E50,'[4]RFM input'!$E$223:$E$272,0)) -> 0 | AC50: =INDEX('[4]RFM input'!I$223:I$272,MATCH($E50,'[4]RFM input'!$E$223:$E$272,0)) -> 0 | AD50: =INDEX('[4]RFM input'!J$223:J$272,MATCH($E50,'[4]RFM input'!$E$223:$E$272,0)) -> 0 | AE50: =INDEX('[4]RFM input'!K$223:K$272,MATCH($E50,'[4]RFM input'!$E$223:$E$272,0)) -> 0 | AF50: =INDEX('[4]RFM input'!L$223:L$272,MATCH($E50,'[4]RFM input'!$E$223:$E$272,0)) -> 0
D51: 28 | E51: Lease L&B 2022-23 | V51: ='[2]RFM input'!G250 -> 0 | W51: ='[2]RFM input'!H250 -> 0 | X51: ='[2]RFM input'!I250 -> 0 | Y51: ='[2]RFM input'!J250 -> 0 | Z51: ='[2]RFM input'!K250 -> 0 | AA51: =INDEX('[4]RFM input'!G$223:G$272,MATCH($E51,'[4]RFM input'!$E$223:$E$272,0)) -> 0 | AB51: =INDEX('[4]RFM input'!H$223:H$272,MATCH($E51,'[4]RFM input'!$E$223:$E$272,0)) -> 0 | AC51: =INDEX('[4]RFM input'!I$223:I$272,MATCH($E51,'[4]RFM input'!$E$223:$E$272,0)) -> 0 | AD51: =INDEX('[4]RFM input'!J$223:J$272,MATCH($E51,'[4]RFM input'!$E$223:$E$272,0)) -> 0 | AE51: =INDEX('[4]RFM input'!K$223:K$272,MATCH($E51,'[4]RFM input'!$E$223:$E$272,0)) -> 0 | AF51: =INDEX('[4]RFM input'!L$223:L$272,MATCH($E51,'[4]RFM input'!$E$223:$E$272,0)) -> 0
D52: 29 | E52: Lease L&B 2023-24 | AA52: =INDEX('[4]RFM input'!G$223:G$272,MATCH($E52,'[4]RFM input'!$E$223:$E$272,0)) -> 0 | AB52: =INDEX('[4]RFM input'!H$223:H$272,MATCH($E52,'[4]RFM input'!$E$223:$E$272,0)) -> 0 | AC52: =INDEX('[4]RFM input'!I$223:I$272,MATCH($E52,'[4]RFM input'!$E$223:$E$272,0)) -> 0 | AD52: =INDEX('[4]RFM input'!J$223:J$272,MATCH($E52,'[4]RFM input'!$E$223:$E$272,0)) -> 0 | AE52: =INDEX('[4]RFM input'!K$223:K$272,MATCH($E52,'[4]RFM input'!$E$223:$E$272,0)) -> 0 | AF52: =INDEX('[4]RFM input'!L$223:L$272,MATCH($E52,'[4]RFM input'!$E$223:$E$272,0)) -> 0
D53: 30 | AA53: =INDEX('[4]RFM input'!G$223:G$272,MATCH($E53,'[4]RFM input'!$E$223:$E$272,0)) -> 0 | AB53: =INDEX('[4]RFM input'!H$223:H$272,MATCH($E53,'[4]RFM input'!$E$223:$E$272,0)) -> 0 | AC53: =INDEX('[4]RFM input'!I$223:I$272,MATCH($E53,'[4]RFM input'!$E$223:$E$272,0)) -> 0 | AD53: =INDEX('[4]RFM input'!J$223:J$272,MATCH($E53,'[4]RFM input'!$E$223:$E$272,0)) -> 0 | AE53: =INDEX('[4]RFM input'!K$223:K$272,MATCH($E53,'[4]RFM input'!$E$223:$E$272,0)) -> 0 | AF53: =INDEX('[4]RFM input'!L$223:L$272,MATCH($E53,'[4]RFM input'!$E$223:$E$272,0)) -> 0
D54: 31 | E54: Lease L&B 2025-26 | AA54: =INDEX('[4]RFM input'!G$223:G$272,MATCH($E54,'[4]RFM input'!$E$223:$E$272,0)) -> 0 | AB54: =INDEX('[4]RFM input'!H$223:H$272,MATCH($E54,'[4]RFM input'!$E$223:$E$272,0)) -> 0 | AC54: =INDEX('[4]RFM input'!I$223:I$272,MATCH($E54,'[4]RFM input'!$E$223:$E$272,0)) -> 0 | AD54: =INDEX('[4]RFM input'!J$223:J$272,MATCH($E54,'[4]RFM input'!$E$223:$E$272,0)) -> 0 | AE54: =INDEX('[4]RFM input'!K$223:K$272,MATCH($E54,'[4]RFM input'!$E$223:$E$272,0)) -> 0 | AF54: =INDEX('[4]RFM input'!L$223:L$272,MATCH($E54,'[4]RFM input'!$E$223:$E$272,0)) -> 0
D55: 32 | E55: Lease L&B 2026-27 | AA55: =INDEX('[4]RFM input'!G$223:G$272,MATCH($E55,'[4]RFM input'!$E$223:$E$272,0)) -> 0 | AB55: =INDEX('[4]RFM input'!H$223:H$272,MATCH($E55,'[4]RFM input'!$E$223:$E$272,0)) -> 0 | AC55: =INDEX('[4]RFM input'!I$223:I$272,MATCH($E55,'[4]RFM input'!$E$223:$E$272,0)) -> 0 | AD55: =INDEX('[4]RFM input'!J$223:J$272,MATCH($E55,'[4]RFM input'!$E$223:$E$272,0)) -> 0.01648302615 | AE55: =INDEX('[4]RFM input'!K$223:K$272,MATCH($E55,'[4]RFM input'!$E$223:$E$272,0)) -> 0 | AF55: =INDEX('[4]RFM input'!L$223:L$272,MATCH($E55,'[4]RFM input'!$E$223:$E$272,0)) -> 0
D56: 33 | AA56: =INDEX('[4]RFM input'!G$223:G$272,MATCH($E56,'[4]RFM input'!$E$223:$E$272,0)) -> 0 | AB56: =INDEX('[4]RFM input'!H$223:H$272,MATCH($E56,'[4]RFM input'!$E$223:$E$272,0)) -> 0 | AC56: =INDEX('[4]RFM input'!I$223:I$272,MATCH($E56,'[4]RFM input'!$E$223:$E$272,0)) -> 0 | AD56: =INDEX('[4]RFM input'!J$223:J$272,MATCH($E56,'[4]RFM input'!$E$223:$E$272,0)) -> 0 | AE56: =INDEX('[4]RFM input'!K$223:K$272,MATCH($E56,'[4]RFM input'!$E$223:$E$272,0)) -> 0 | AF56: =INDEX('[4]RFM input'!L$223:L$272,MATCH($E56,'[4]RFM input'!$E$223:$E$272,0)) -> 0
D57: 34 | AA57: =INDEX('[4]RFM input'!G$223:G$272,MATCH($E57,'[4]RFM input'!$E$223:$E$272,0)) -> 0 | AB57: =INDEX('[4]RFM input'!H$223:H$272,MATCH($E57,'[4]RFM input'!$E$223:$E$272,0)) -> 0 | AC57: =INDEX('[4]RFM input'!I$223:I$272,MATCH($E57,'[4]RFM input'!$E$223:$E$272,0)) -> 0 | AD57: =INDEX('[4]RFM input'!J$223:J$272,MATCH($E57,'[4]RFM input'!$E$223:$E$272,0)) -> 0 | AE57: =INDEX('[4]RFM input'!K$223:K$272,MATCH($E57,'[4]RFM input'!$E$223:$E$272,0)) -> 0 | AF57: =INDEX('[4]RFM input'!L$223:L$272,MATCH($E57,'[4]RFM input'!$E$223:$E$272,0)) -> 0
D58: 35 | AA58: =INDEX('[4]RFM input'!G$223:G$272,MATCH($E58,'[4]RFM input'!$E$223:$E$272,0)) -> 0 | AB58: =INDEX('[4]RFM input'!H$223:H$272,MATCH($E58,'[4]RFM input'!$E$223:$E$272,0)) -> 0 | AC58: =INDEX('[4]RFM input'!I$223:I$272,MATCH($E58,'[4]RFM input'!$E$223:$E$272,0)) -> 0 | AD58: =INDEX('[4]RFM input'!J$223:J$272,MATCH($E58,'[4]RFM input'!$E$223:$E$272,0)) -> 0 | AE58: =INDEX('[4]RFM input'!K$223:K$272,MATCH($E58,'[4]RFM input'!$E$223:$E$272,0)) -> 0 | AF58: =INDEX('[4]RFM input'!L$223:L$272,MATCH($E58,'[4]RFM input'!$E$223:$E$272,0)) -> 0
D59: 36 | AA59: =INDEX('[4]RFM input'!G$223:G$272,MATCH($E59,'[4]RFM input'!$E$223:$E$272,0)) -> 0 | AB59: =INDEX('[4]RFM input'!H$223:H$272,MATCH($E59,'[4]RFM input'!$E$223:$E$272,0)) -> 0 | AC59: =INDEX('[4]RFM input'!I$223:I$272,MATCH($E59,'[4]RFM input'!$E$223:$E$272,0)) -> 0 | AD59: =INDEX('[4]RFM input'!J$223:J$272,MATCH($E59,'[4]RFM input'!$E$223:$E$272,0)) -> 0 | AE59: =INDEX('[4]RFM input'!K$223:K$272,MATCH($E59,'[4]RFM input'!$E$223:$E$272,0)) -> 0 | AF59: =INDEX('[4]RFM input'!L$223:L$272,MATCH($E59,'[4]RFM input'!$E$223:$E$272,0)) -> 0
D60: 37 | AA60: =INDEX('[4]RFM input'!G$223:G$272,MATCH($E60,'[4]RFM input'!$E$223:$E$272,0)) -> 0 | AB60: =INDEX('[4]RFM input'!H$223:H$272,MATCH($E60,'[4]RFM input'!$E$223:$E$272,0)) -> 0 | AC60: =INDEX('[4]RFM input'!I$223:I$272,MATCH($E60,'[4]RFM input'!$E$223:$E$272,0)) -> 0 | AD60: =INDEX('[4]RFM input'!J$223:J$272,MATCH($E60,'[4]RFM input'!$E$223:$E$272,0)) -> 0 | AE60: =INDEX('[4]RFM input'!K$223:K$272,MATCH($E60,'[4]RFM input'!$E$223:$E$272,0)) -> 0 | AF60: =INDEX('[4]RFM input'!L$223:L$272,MATCH($E60,'[4]RFM input'!$E$223:$E$272,0)) -> 0
D61: 38 | AA61: =INDEX('[4]RFM input'!G$223:G$272,MATCH($E61,'[4]RFM input'!$E$223:$E$272,0)) -> 0 | AB61: =INDEX('[4]RFM input'!H$223:H$272,MATCH($E61,'[4]RFM input'!$E$223:$E$272,0)) -> 0 | AC61: =INDEX('[4]RFM input'!I$223:I$272,MATCH($E61,'[4]RFM input'!$E$223:$E$272,0)) -> 0 | AD61: =INDEX('[4]RFM input'!J$223:J$272,MATCH($E61,'[4]RFM input'!$E$223:$E$272,0)) -> 0 | AE61: =INDEX('[4]RFM input'!K$223:K$272,MATCH($E61,'[4]RFM input'!$E$223:$E$272,0)) -> 0 | AF61: =INDEX('[4]RFM input'!L$223:L$272,MATCH($E61,'[4]RFM input'!$E$223:$E$272,0)) -> 0
D62: 39 | AA62: =INDEX('[4]RFM input'!G$223:G$272,MATCH($E62,'[4]RFM input'!$E$223:$E$272,0)) -> 0 | AB62: =INDEX('[4]RFM input'!H$223:H$272,MATCH($E62,'[4]RFM input'!$E$223:$E$272,0)) -> 0 | AC62: =INDEX('[4]RFM input'!I$223:I$272,MATCH($E62,'[4]RFM input'!$E$223:$E$272,0)) -> 0 | AD62: =INDEX('[4]RFM input'!J$223:J$272,MATCH($E62,'[4]RFM input'!$E$223:$E$272,0)) -> 0 | AE62: =INDEX('[4]RFM input'!K$223:K$272,MATCH($E62,'[4]RFM input'!$E$223:$E$272,0)) -> 0 | AF62: =INDEX('[4]RFM input'!L$223:L$272,MATCH($E62,'[4]RFM input'!$E$223:$E$272,0)) -> 0
D63: 40 | AA63: =INDEX('[4]RFM input'!G$223:G$272,MATCH($E63,'[4]RFM input'!$E$223:$E$272,0)) -> 0 | AB63: =INDEX('[4]RFM input'!H$223:H$272,MATCH($E63,'[4]RFM input'!$E$223:$E$272,0)) -> 0 | AC63: =INDEX('[4]RFM input'!I$223:I$272,MATCH($E63,'[4]RFM input'!$E$223:$E$272,0)) -> 0 | AD63: =INDEX('[4]RFM input'!J$223:J$272,MATCH($E63,'[4]RFM input'!$E$223:$E$272,0)) -> 0 | AE63: =INDEX('[4]RFM input'!K$223:K$272,MATCH($E63,'[4]RFM input'!$E$223:$E$272,0)) -> 0 | AF63: =INDEX('[4]RFM input'!L$223:L$272,MATCH($E63,'[4]RFM input'!$E$223:$E$272,0)) -> 0
D64: 41 | AA64: =INDEX('[4]RFM input'!G$223:G$272,MATCH($E64,'[4]RFM input'!$E$223:$E$272,0)) -> 0 | AB64: =INDEX('[4]RFM input'!H$223:H$272,MATCH($E64,'[4]RFM input'!$E$223:$E$272,0)) -> 0 | AC64: =INDEX('[4]RFM input'!I$223:I$272,MATCH($E64,'[4]RFM input'!$E$223:$E$272,0)) -> 0 | AD64: =INDEX('[4]RFM input'!J$223:J$272,MATCH($E64,'[4]RFM input'!$E$223:$E$272,0)) -> 0 | AE64: =INDEX('[4]RFM input'!K$223:K$272,MATCH($E64,'[4]RFM input'!$E$223:$E$272,0)) -> 0 | AF64: =INDEX('[4]RFM input'!L$223:L$272,MATCH($E64,'[4]RFM input'!$E$223:$E$272,0)) -> 0
D65: 42 | AA65: =INDEX('[4]RFM input'!G$223:G$272,MATCH($E65,'[4]RFM input'!$E$223:$E$272,0)) -> 0 | AB65: =INDEX('[4]RFM input'!H$223:H$272,MATCH($E65,'[4]RFM input'!$E$223:$E$272,0)) -> 0 | AC65: =INDEX('[4]RFM input'!I$223:I$272,MATCH($E65,'[4]RFM input'!$E$223:$E$272,0)) -> 0 | AD65: =INDEX('[4]RFM input'!J$223:J$272,MATCH($E65,'[4]RFM input'!$E$223:$E$272,0)) -> 0 | AE65: =INDEX('[4]RFM input'!K$223:K$272,MATCH($E65,'[4]RFM input'!$E$223:$E$272,0)) -> 0 | AF65: =INDEX('[4]RFM input'!L$223:L$272,MATCH($E65,'[4]RFM input'!$E$223:$E$272,0)) -> 0
D66: 43 | AA66: =INDEX('[4]RFM input'!G$223:G$272,MATCH($E66,'[4]RFM input'!$E$223:$E$272,0)) -> 0 | AB66: =INDEX('[4]RFM input'!H$223:H$272,MATCH($E66,'[4]RFM input'!$E$223:$E$272,0)) -> 0 | AC66: =INDEX('[4]RFM input'!I$223:I$272,MATCH($E66,'[4]RFM input'!$E$223:$E$272,0)) -> 0 | AD66: =INDEX('[4]RFM input'!J$223:J$272,MATCH($E66,'[4]RFM input'!$E$223:$E$272,0)) -> 0 | AE66: =INDEX('[4]RFM input'!K$223:K$272,MATCH($E66,'[4]RFM input'!$E$223:$E$272,0)) -> 0 | AF66: =INDEX('[4]RFM input'!L$223:L$272,MATCH($E66,'[4]RFM input'!$E$223:$E$272,0)) -> 0
D67: 44 | AA67: =INDEX('[4]RFM input'!G$223:G$272,MATCH($E67,'[4]RFM input'!$E$223:$E$272,0)) -> 0 | AB67: =INDEX('[4]RFM input'!H$223:H$272,MATCH($E67,'[4]RFM input'!$E$223:$E$272,0)) -> 0 | AC67: =INDEX('[4]RFM input'!I$223:I$272,MATCH($E67,'[4]RFM input'!$E$223:$E$272,0)) -> 0 | AD67: =INDEX('[4]RFM input'!J$223:J$272,MATCH($E67,'[4]RFM input'!$E$223:$E$272,0)) -> 0 | AE67: =INDEX('[4]RFM input'!K$223:K$272,MATCH($E67,'[4]RFM input'!$E$223:$E$272,0)) -> 0 | AF67: =INDEX('[4]RFM input'!L$223:L$272,MATCH($E67,'[4]RFM input'!$E$223:$E$272,0)) -> 0
D68: 45 | AA68: =INDEX('[4]RFM input'!G$223:G$272,MATCH($E68,'[4]RFM input'!$E$223:$E$272,0)) -> 0 | AB68: =INDEX('[4]RFM input'!H$223:H$272,MATCH($E68,'[4]RFM input'!$E$223:$E$272,0)) -> 0 | AC68: =INDEX('[4]RFM input'!I$223:I$272,MATCH($E68,'[4]RFM input'!$E$223:$E$272,0)) -> 0 | AD68: =INDEX('[4]RFM input'!J$223:J$272,MATCH($E68,'[4]RFM input'!$E$223:$E$272,0)) -> 0 | AE68: =INDEX('[4]RFM input'!K$223:K$272,MATCH($E68,'[4]RFM input'!$E$223:$E$272,0)) -> 0 | AF68: =INDEX('[4]RFM input'!L$223:L$272,MATCH($E68,'[4]RFM input'!$E$223:$E$272,0)) -> 0
D69: 46 | AA69: =INDEX('[4]RFM input'!G$223:G$272,MATCH($E69,'[4]RFM input'!$E$223:$E$272,0)) -> 0 | AB69: =INDEX('[4]RFM input'!H$223:H$272,MATCH($E69,'[4]RFM input'!$E$223:$E$272,0)) -> 0 | AC69: =INDEX('[4]RFM input'!I$223:I$272,MATCH($E69,'[4]RFM input'!$E$223:$E$272,0)) -> 0 | AD69: =INDEX('[4]RFM input'!J$223:J$272,MATCH($E69,'[4]RFM input'!$E$223:$E$272,0)) -> 0 | AE69: =INDEX('[4]RFM input'!K$223:K$272,MATCH($E69,'[4]RFM input'!$E$223:$E$272,0)) -> 0 | AF69: =INDEX('[4]RFM input'!L$223:L$272,MATCH($E69,'[4]RFM input'!$E$223:$E$272,0)) -> 0
D70: 47 | AA70: =INDEX('[4]RFM input'!G$223:G$272,MATCH($E70,'[4]RFM input'!$E$223:$E$272,0)) -> 0 | AB70: =INDEX('[4]RFM input'!H$223:H$272,MATCH($E70,'[4]RFM input'!$E$223:$E$272,0)) -> 0 | AC70: =INDEX('[4]RFM input'!I$223:I$272,MATCH($E70,'[4]RFM input'!$E$223:$E$272,0)) -> 0 | AD70: =INDEX('[4]RFM input'!J$223:J$272,MATCH($E70,'[4]RFM input'!$E$223:$E$272,0)) -> 0 | AE70: =INDEX('[4]RFM input'!K$223:K$272,MATCH($E70,'[4]RFM input'!$E$223:$E$272,0)) -> 0 | AF70: =INDEX('[4]RFM input'!L$223:L$272,MATCH($E70,'[4]RFM input'!$E$223:$E$272,0)) -> 0
D71: 48 | E71: Buildings - capital works | AA71: =INDEX('[4]RFM input'!G$223:G$272,MATCH($E71,'[4]RFM input'!$E$223:$E$272,0)) -> 0 | AB71: =INDEX('[4]RFM input'!H$223:H$272,MATCH($E71,'[4]RFM input'!$E$223:$E$272,0)) -> 0 | AC71: =INDEX('[4]RFM input'!I$223:I$272,MATCH($E71,'[4]RFM input'!$E$223:$E$272,0)) -> 0 | AD71: =INDEX('[4]RFM input'!J$223:J$272,MATCH($E71,'[4]RFM input'!$E$223:$E$272,0)) -> 0 | AE71: =INDEX('[4]RFM input'!K$223:K$272,MATCH($E71,'[4]RFM input'!$E$223:$E$272,0)) -> 0.754828 | AF71: =INDEX('[4]RFM input'!L$223:L$272,MATCH($E71,'[4]RFM input'!$E$223:$E$272,0)) -> 13.553952
D72: 49 | E72: In-house software | AA72: =INDEX('[4]RFM input'!G$223:G$272,MATCH($E72,'[4]RFM input'!$E$223:$E$272,0)) -> 0 | AB72: =INDEX('[4]RFM input'!H$223:H$272,MATCH($E72,'[4]RFM input'!$E$223:$E$272,0)) -> 9.980358754 | AC72: =INDEX('[4]RFM input'!I$223:I$272,MATCH($E72,'[4]RFM input'!$E$223:$E$272,0)) -> 9.810404055 | AD72: =INDEX('[4]RFM input'!J$223:J$272,MATCH($E72,'[4]RFM input'!$E$223:$E$272,0)) -> 11.47654483 | AE72: =INDEX('[4]RFM input'!K$223:K$272,MATCH($E72,'[4]RFM input'!$E$223:$E$272,0)) -> 15.532523 | AF72: =INDEX('[4]RFM input'!L$223:L$272,MATCH($E72,'[4]RFM input'!$E$223:$E$272,0)) -> 41.536685
D73: 50 | E73: Equity raising costs | AA73: =INDEX('[4]RFM input'!G$223:G$272,MATCH($E73,'[4]RFM input'!$E$223:$E$272,0)) -> 0 | AB73: =INDEX('[4]RFM input'!H$223:H$272,MATCH($E73,'[4]RFM input'!$E$223:$E$272,0)) -> 0 | AC73: =INDEX('[4]RFM input'!I$223:I$272,MATCH($E73,'[4]RFM input'!$E$223:$E$272,0)) -> 0 | AD73: =INDEX('[4]RFM input'!J$223:J$272,MATCH($E73,'[4]RFM input'!$E$223:$E$272,0)) -> 0 | AE73: =INDEX('[4]RFM input'!K$223:K$272,MATCH($E73,'[4]RFM input'!$E$223:$E$272,0)) -> 0 | AF73: =INDEX('[4]RFM input'!L$223:L$272,MATCH($E73,'[4]RFM input'!$E$223:$E$272,0)) -> 0
E74: Total | G74: =SUM(G24:G73) -> 1840.311473 | H74: =SUM(H24:H73) -> 30.25141848 | I74: 51.77492264 | J74: 69.21055921 | K74: 98.63845554 | L74: 103.2222489 | M74: 109.4961847 | N74: 39.57204608 | O74: 82.80852885 | P74: 105.773384 | Q74: 118.8614466 | R74: 158.9220001 | S74: 168.1398692 | T74: 177.0886448 | U74: 128.298086 | V74: 121.7373744 | W74: 111.0229032 | X74: 116.6461557 | Y74: 180.1396698 | Z74: 144.7365472 | AA74: 193.9860659 | AB74: 102.6688425 | AC74: 96.92374834 | AD74: 129.0549297 | AE74: 269.57289 | AF74: 446.112904 | AG74: 0 | AH74: 0 | AI74: 0 | AJ74: 0 | AK74: 0 | AL74: 0 | AM74: 0 | AN74: 0 | AO74: 0 | AP74: 0 | AQ74: 0 | AR74: 0 | AS74: 0 | AT74: 0 | AU74: 0 | AV74: 0 | AW74: 0 | AX74: 0 | AY74: 0 | AZ74: 0 | BA74: 0 | BB74: 0 | BC74: 0 | BD74: 0 | BE74: 0 | BF74: 0 | BG74: 0 | BH74: 0 | BI74: 0 | BJ74: 0 | BK74: 0 | BL74: 0 | BM74: 0 | BN74: 0 | BO74: 0 | BP74: 0 | BQ74: 0 | BR74: 0 | BS74: 0 | BT74: =SUM(BT24:BT73) -> 0 | BU74: 0 | BV74: 0 | BW74: 0 | BX74: 0 | BY74: 0 | BZ74: 0 | CA74: 0 | CB74: 0 | CC74: 0 | CD74: 0 | CE74: 0 | CF74: 0 | CG74: 0 | CH74: 0 | CI74: 0 | CJ74: 0
D76: Actual asset disposals - As decommissioned ($m, nominal)
E77: =$E$22 -> Asset class | H77: =IF(H$22="", "", "Actual asset disposals ("&H$4&")") -> Actual asset disposals (2002-03) | I77: Actual asset disposals (2003-04) | J77: Actual asset disposals (2004-05) | K77: Actual asset disposals (2005-06) | L77: Actual asset disposals (2006-07) | M77: Actual asset disposals (2007-08) | N77: Actual asset disposals (2008-09) | O77: Actual asset disposals (2009-10) | P77: Actual asset disposals (2010-11) | Q77: Actual asset disposals (2011-12) | R77: Actual asset disposals (2012-13) | S77: Actual asset disposals (2013-14) | T77: Actual asset disposals (2014-15) | U77: Actual asset disposals (2015-16) | V77: Actual asset disposals (2016-17) | W77: Actual asset disposals (2017-18) | X77: Actual asset disposals (2018-19) | Y77: Actual asset disposals (2019-20) | Z77: Actual asset disposals (2020-21) | AA77: Actual asset disposals (2021-22) | AB77: Actual asset disposals (2022-23) | AC77: Actual asset disposals (2023-24) | AD77: Actual asset disposals (2024-25) | AE77: Actual asset disposals (2025-26) | AF77: Actual asset disposals (2026-27) | AN77: =IF(AN$22="", "", "Actual asset disposals ("&AN$4&")") -> 
E78: =E24 -> Secondary | H78: 0 | I78: 0 | J78: 0 | K78: 0 | L78: 0 | M78: 0 | N78: 0 | O78: 0 | P78: 0 | Q78: 0 | R78: 0 | S78: 0 | T78: 0 | U78: 0 | V78: ='[2]RFM input'!G277 -> 0 | W78: ='[2]RFM input'!H277 -> 0 | X78: ='[2]RFM input'!I277 -> 0 | Y78: ='[2]RFM input'!J277 -> 0 | Z78: ='[2]RFM input'!K277 -> 0 | AA78: =INDEX('[4]RFM input'!G$277:G$326,MATCH($E78,'[4]RFM input'!$E$277:$E$326,0)) -> 0 | AB78: =INDEX('[4]RFM input'!H$277:H$326,MATCH($E78,'[4]RFM input'!$E$277:$E$326,0)) -> 0 | AC78: =INDEX('[4]RFM input'!I$277:I$326,MATCH($E78,'[4]RFM input'!$E$277:$E$326,0)) -> 0 | AD78: =INDEX('[4]RFM input'!J$277:J$326,MATCH($E78,'[4]RFM input'!$E$277:$E$326,0)) -> 0 | AE78: =INDEX('[4]RFM input'!K$277:K$326,MATCH($E78,'[4]RFM input'!$E$277:$E$326,0)) -> 0 | AF78: =INDEX('[4]RFM input'!L$277:L$326,MATCH($E78,'[4]RFM input'!$E$277:$E$326,0)) -> 0
E79: Switchgear | H79: 0 | I79: 0 | J79: 0 | K79: 0 | L79: 0 | M79: 0 | N79: 0 | O79: 0 | P79: 0 | Q79: 0 | R79: 0 | S79: 0 | T79: 0 | U79: 0 | V79: ='[2]RFM input'!G278 -> 0 | W79: ='[2]RFM input'!H278 -> 5.909091 | X79: ='[2]RFM input'!I278 -> 0 | Y79: ='[2]RFM input'!J278 -> 0 | Z79: ='[2]RFM input'!K278 -> 0 | AA79: =INDEX('[4]RFM input'!G$277:G$326,MATCH($E79,'[4]RFM input'!$E$277:$E$326,0)) -> 0 | AB79: =INDEX('[4]RFM input'!H$277:H$326,MATCH($E79,'[4]RFM input'!$E$277:$E$326,0)) -> 0 | AC79: =INDEX('[4]RFM input'!I$277:I$326,MATCH($E79,'[4]RFM input'!$E$277:$E$326,0)) -> 0 | AD79: =INDEX('[4]RFM input'!J$277:J$326,MATCH($E79,'[4]RFM input'!$E$277:$E$326,0)) -> 0 | AE79: =INDEX('[4]RFM input'!K$277:K$326,MATCH($E79,'[4]RFM input'!$E$277:$E$326,0)) -> 0 | AF79: =INDEX('[4]RFM input'!L$277:L$326,MATCH($E79,'[4]RFM input'!$E$277:$E$326,0)) -> 0
E80: Transformers | H80: 0 | I80: 0 | J80: 0 | K80: 0 | L80: 0 | M80: 0 | N80: 0 | O80: 0 | P80: 0 | Q80: 0 | R80: 0 | S80: 0 | T80: 0 | U80: 0 | V80: =0.25101078267533/(1+V16)^0.5 -> 0.2430487899 | W80: ='[2]RFM input'!H279 -> 0 | X80: ='[2]RFM input'!I279 -> 0.55 | Y80: ='[2]RFM input'!J279 -> 0 | Z80: ='[2]RFM input'!K279 -> 0 | AA80: =INDEX('[4]RFM input'!G$277:G$326,MATCH($E80,'[4]RFM input'!$E$277:$E$326,0)) -> 0 | AB80: =INDEX('[4]RFM input'!H$277:H$326,MATCH($E80,'[4]RFM input'!$E$277:$E$326,0)) -> 0 | AC80: =INDEX('[4]RFM input'!I$277:I$326,MATCH($E80,'[4]RFM input'!$E$277:$E$326,0)) -> 0.33417835 | AD80: =INDEX('[4]RFM input'!J$277:J$326,MATCH($E80,'[4]RFM input'!$E$277:$E$326,0)) -> 0 | AE80: =INDEX('[4]RFM input'!K$277:K$326,MATCH($E80,'[4]RFM input'!$E$277:$E$326,0)) -> 0 | AF80: =INDEX('[4]RFM input'!L$277:L$326,MATCH($E80,'[4]RFM input'!$E$277:$E$326,0)) -> 0
E81: Reactive | H81: 0 | I81: 0 | J81: 0 | K81: 0 | L81: 0 | M81: 0 | N81: 0 | O81: 0 | P81: 0 | Q81: 0 | R81: 0 | S81: 0 | T81: 0 | U81: 0 | V81: =11.3124257941115/(1+V16)^0.5 -> 10.95359877 | W81: ='[2]RFM input'!H280 -> 0 | X81: ='[2]RFM input'!I280 -> 0 | Y81: ='[2]RFM input'!J280 -> 0 | Z81: ='[2]RFM input'!K280 -> 0 | AA81: =INDEX('[4]RFM input'!G$277:G$326,MATCH($E81,'[4]RFM input'!$E$277:$E$326,0)) -> 0 | AB81: =INDEX('[4]RFM input'!H$277:H$326,MATCH($E81,'[4]RFM input'!$E$277:$E$326,0)) -> 0 | AC81: =INDEX('[4]RFM input'!I$277:I$326,MATCH($E81,'[4]RFM input'!$E$277:$E$326,0)) -> 0 | AD81: =INDEX('[4]RFM input'!J$277:J$326,MATCH($E81,'[4]RFM input'!$E$277:$E$326,0)) -> 0 | AE81: =INDEX('[4]RFM input'!K$277:K$326,MATCH($E81,'[4]RFM input'!$E$277:$E$326,0)) -> 0 | AF81: =INDEX('[4]RFM input'!L$277:L$326,MATCH($E81,'[4]RFM input'!$E$277:$E$326,0)) -> 0
E82: Towers and Conductor | H82: 0 | I82: 0 | J82: 0 | K82: 0 | L82: 0 | M82: 0 | N82: 0 | O82: 0 | P82: 0 | Q82: 0 | R82: 0 | S82: 0 | T82: 0 | U82: 0 | V82: ='[2]RFM input'!G281 -> 0 | W82: ='[2]RFM input'!H281 -> 0 | X82: ='[2]RFM input'!I281 -> 0 | Y82: ='[2]RFM input'!J281 -> 0 | Z82: ='[2]RFM input'!K281 -> 0 | AA82: =INDEX('[4]RFM input'!G$277:G$326,MATCH($E82,'[4]RFM input'!$E$277:$E$326,0)) -> 0 | AB82: =INDEX('[4]RFM input'!H$277:H$326,MATCH($E82,'[4]RFM input'!$E$277:$E$326,0)) -> 0 | AC82: =INDEX('[4]RFM input'!I$277:I$326,MATCH($E82,'[4]RFM input'!$E$277:$E$326,0)) -> 0 | AD82: =INDEX('[4]RFM input'!J$277:J$326,MATCH($E82,'[4]RFM input'!$E$277:$E$326,0)) -> 0 | AE82: =INDEX('[4]RFM input'!K$277:K$326,MATCH($E82,'[4]RFM input'!$E$277:$E$326,0)) -> 0 | AF82: =INDEX('[4]RFM input'!L$277:L$326,MATCH($E82,'[4]RFM input'!$E$277:$E$326,0)) -> 0
E83: Establishment | H83: 0 | I83: 0 | J83: 0 | K83: 0 | L83: 0 | M83: 0 | N83: 0 | O83: 0 | P83: 0 | Q83: 0 | R83: 0 | S83: 0 | T83: 0 | U83: 0 | V83: ='[2]RFM input'!G282 -> 0 | W83: ='[2]RFM input'!H282 -> 0 | X83: ='[2]RFM input'!I282 -> 0 | Y83: ='[2]RFM input'!J282 -> 0 | Z83: ='[2]RFM input'!K282 -> 0 | AA83: =INDEX('[4]RFM input'!G$277:G$326,MATCH($E83,'[4]RFM input'!$E$277:$E$326,0)) -> 0 | AB83: =INDEX('[4]RFM input'!H$277:H$326,MATCH($E83,'[4]RFM input'!$E$277:$E$326,0)) -> 0 | AC83: =INDEX('[4]RFM input'!I$277:I$326,MATCH($E83,'[4]RFM input'!$E$277:$E$326,0)) -> 0 | AD83: =INDEX('[4]RFM input'!J$277:J$326,MATCH($E83,'[4]RFM input'!$E$277:$E$326,0)) -> 0 | AE83: =INDEX('[4]RFM input'!K$277:K$326,MATCH($E83,'[4]RFM input'!$E$277:$E$326,0)) -> 0 | AF83: =INDEX('[4]RFM input'!L$277:L$326,MATCH($E83,'[4]RFM input'!$E$277:$E$326,0)) -> 0
E84: Communications | H84: 0 | I84: 0 | J84: 0 | K84: 0 | L84: 0 | M84: 0 | N84: 0 | O84: 0 | P84: 0 | Q84: 0 | R84: 0 | S84: 0 | T84: 0 | U84: 0 | V84: ='[2]RFM input'!G283 -> 0 | W84: ='[2]RFM input'!H283 -> 0 | X84: ='[2]RFM input'!I283 -> 0 | Y84: ='[2]RFM input'!J283 -> 0 | Z84: ='[2]RFM input'!K283 -> 0 | AA84: =INDEX('[4]RFM input'!G$277:G$326,MATCH($E84,'[4]RFM input'!$E$277:$E$326,0)) -> 0 | AB84: =INDEX('[4]RFM input'!H$277:H$326,MATCH($E84,'[4]RFM input'!$E$277:$E$326,0)) -> 0 | AC84: =INDEX('[4]RFM input'!I$277:I$326,MATCH($E84,'[4]RFM input'!$E$277:$E$326,0)) -> 0 | AD84: =INDEX('[4]RFM input'!J$277:J$326,MATCH($E84,'[4]RFM input'!$E$277:$E$326,0)) -> 0 | AE84: =INDEX('[4]RFM input'!K$277:K$326,MATCH($E84,'[4]RFM input'!$E$277:$E$326,0)) -> 0 | AF84: =INDEX('[4]RFM input'!L$277:L$326,MATCH($E84,'[4]RFM input'!$E$277:$E$326,0)) -> 0
E85: Inventory | H85: 0 | I85: 0 | J85: 0 | K85: 0 | L85: 0 | M85: 0 | N85: 0 | O85: 0 | P85: 0 | Q85: 0 | R85: 0 | S85: 0 | T85: 0 | U85: 0 | V85: ='[2]RFM input'!G284 -> 0 | W85: ='[2]RFM input'!H284 -> 0 | X85: ='[2]RFM input'!I284 -> 0 | Y85: ='[2]RFM input'!J284 -> 0 | Z85: ='[2]RFM input'!K284 -> 0 | AA85: =INDEX('[4]RFM input'!G$277:G$326,MATCH($E85,'[4]RFM input'!$E$277:$E$326,0)) -> 0 | AB85: =INDEX('[4]RFM input'!H$277:H$326,MATCH($E85,'[4]RFM input'!$E$277:$E$326,0)) -> 0 | AC85: =INDEX('[4]RFM input'!I$277:I$326,MATCH($E85,'[4]RFM input'!$E$277:$E$326,0)) -> 0 | AD85: =INDEX('[4]RFM input'!J$277:J$326,MATCH($E85,'[4]RFM input'!$E$277:$E$326,0)) -> 0 | AE85: =INDEX('[4]RFM input'!K$277:K$326,MATCH($E85,'[4]RFM input'!$E$277:$E$326,0)) -> 0 | AF85: =INDEX('[4]RFM input'!L$277:L$326,MATCH($E85,'[4]RFM input'!$E$277:$E$326,0)) -> 0
E86: IT | H86: 0 | I86: 0 | J86: 0 | K86: 0 | L86: 0 | M86: 0.0518 | N86: 0.194383 | O86: 0 | P86: 0.000754 | Q86: 0 | R86: 0 | S86: 0 | T86: 0 | U86: 0 | V86: ='[2]RFM input'!G285 -> 0 | W86: ='[2]RFM input'!H285 -> 0 | X86: ='[2]RFM input'!I285 -> 0 | Y86: ='[2]RFM input'!J285 -> 0 | Z86: ='[2]RFM input'!K285 -> 0 | AA86: =INDEX('[4]RFM input'!G$277:G$326,MATCH($E86,'[4]RFM input'!$E$277:$E$326,0)) -> 0 | AB86: =INDEX('[4]RFM input'!H$277:H$326,MATCH($E86,'[4]RFM input'!$E$277:$E$326,0)) -> 0 | AC86: =INDEX('[4]RFM input'!I$277:I$326,MATCH($E86,'[4]RFM input'!$E$277:$E$326,0)) -> 0 | AD86: =INDEX('[4]RFM input'!J$277:J$326,MATCH($E86,'[4]RFM input'!$E$277:$E$326,0)) -> 0 | AE86: =INDEX('[4]RFM input'!K$277:K$326,MATCH($E86,'[4]RFM input'!$E$277:$E$326,0)) -> 0 | AF86: =INDEX('[4]RFM input'!L$277:L$326,MATCH($E86,'[4]RFM input'!$E$277:$E$326,0)) -> 0
E87: Vehicles | H87: 0.656 | I87: 0.926 | J87: 0.542 | K87: 0.791 | L87: 0.19664683 | M87: 0.00222 | N87: 0.4769528951 | O87: 0.03129033188 | P87: 0.141208 | Q87: 0 | R87: 0 | S87: 0.18 | T87: 0.08 | U87: 0.11187912 | V87: ='[2]RFM input'!G286 -> 0.1165935 | W87: ='[2]RFM input'!H286 -> 0.08802307 | X87: ='[2]RFM input'!I286 -> 0.00874868 | Y87: ='[2]RFM input'!J286 -> 0.1506968271 | Z87: ='[2]RFM input'!K286 -> 0.11489252 | AA87: =INDEX('[4]RFM input'!G$277:G$326,MATCH($E87,'[4]RFM input'!$E$277:$E$326,0)) -> 0.57856596 | AB87: =INDEX('[4]RFM input'!H$277:H$326,MATCH($E87,'[4]RFM input'!$E$277:$E$326,0)) -> 0.04362342 | AC87: =INDEX('[4]RFM input'!I$277:I$326,MATCH($E87,'[4]RFM input'!$E$277:$E$326,0)) -> 0.05272281 | AD87: =INDEX('[4]RFM input'!J$277:J$326,MATCH($E87,'[4]RFM input'!$E$277:$E$326,0)) -> 0.09444754 | AE87: =INDEX('[4]RFM input'!K$277:K$326,MATCH($E87,'[4]RFM input'!$E$277:$E$326,0)) -> 0.365988997 | AF87: =INDEX('[4]RFM input'!L$277:L$326,MATCH($E87,'[4]RFM input'!$E$277:$E$326,0)) -> 0.3854925189
E88: Other (non-network) | H88: 0 | I88: 0 | J88: 0 | K88: 0 | L88: 0 | M88: 0.01702 | N88: 0.01165523842 | O88: 0 | P88: 0.008167 | Q88: 0 | R88: 0 | S88: 0.19 | T88: 0 | U88: 0 | V88: ='[2]RFM input'!G287 -> 0 | W88: ='[2]RFM input'!H287 -> 0 | X88: ='[2]RFM input'!I287 -> 0.06498025 | Y88: ='[2]RFM input'!J287 -> 0 | Z88: ='[2]RFM input'!K287 -> 0 | AA88: =INDEX('[4]RFM input'!G$277:G$326,MATCH($E88,'[4]RFM input'!$E$277:$E$326,0)) -> 0 | AB88: =INDEX('[4]RFM input'!H$277:H$326,MATCH($E88,'[4]RFM input'!$E$277:$E$326,0)) -> 1.09213074 | AC88: =INDEX('[4]RFM input'!I$277:I$326,MATCH($E88,'[4]RFM input'!$E$277:$E$326,0)) -> 0.03908665 | AD88: =INDEX('[4]RFM input'!J$277:J$326,MATCH($E88,'[4]RFM input'!$E$277:$E$326,0)) -> 0 | AE88: =INDEX('[4]RFM input'!K$277:K$326,MATCH($E88,'[4]RFM input'!$E$277:$E$326,0)) -> 0 | AF88: =INDEX('[4]RFM input'!L$277:L$326,MATCH($E88,'[4]RFM input'!$E$277:$E$326,0)) -> 0
E89: Premises | H89: 0 | I89: 0 | J89: 0 | K89: 0 | L89: 0 | M89: 0.00296 | N89: 0 | O89: 0 | P89: 0 | Q89: 0 | R89: 0 | S89: 0 | T89: 0 | U89: 0 | V89: ='[2]RFM input'!G288 -> 0 | W89: ='[2]RFM input'!H288 -> 0 | X89: ='[2]RFM input'!I288 -> 0 | Y89: ='[2]RFM input'!J288 -> 0 | Z89: ='[2]RFM input'!K288 -> 0 | AA89: =INDEX('[4]RFM input'!G$277:G$326,MATCH($E89,'[4]RFM input'!$E$277:$E$326,0)) -> 0 | AB89: =INDEX('[4]RFM input'!H$277:H$326,MATCH($E89,'[4]RFM input'!$E$277:$E$326,0)) -> 0 | AC89: =INDEX('[4]RFM input'!I$277:I$326,MATCH($E89,'[4]RFM input'!$E$277:$E$326,0)) -> 0 | AD89: =INDEX('[4]RFM input'!J$277:J$326,MATCH($E89,'[4]RFM input'!$E$277:$E$326,0)) -> 0 | AE89: =INDEX('[4]RFM input'!K$277:K$326,MATCH($E89,'[4]RFM input'!$E$277:$E$326,0)) -> 0 | AF89: =INDEX('[4]RFM input'!L$277:L$326,MATCH($E89,'[4]RFM input'!$E$277:$E$326,0)) -> 0
E90: Land | H90: 0.061 | I90: 0 | J90: 1.522 | K90: 0.786 | L90: 0 | M90: 0 | N90: 0 | O90: 0 | P90: 0.474 | Q90: 0.968 | R90: 2.110271713 | S90: 0.04 | T90: 7.34 | U90: 0 | V90: ='[2]RFM input'!G289 -> 0 | W90: ='[2]RFM input'!H289 -> 0.00079286 | X90: ='[2]RFM input'!I289 -> 9.92e-05 | Y90: ='[2]RFM input'!J289 -> 2.45111261 | Z90: ='[2]RFM input'!K289 -> 0 | AA90: =INDEX('[4]RFM input'!G$277:G$326,MATCH($E90,'[4]RFM input'!$E$277:$E$326,0)) -> 0 | AB90: =INDEX('[4]RFM input'!H$277:H$326,MATCH($E90,'[4]RFM input'!$E$277:$E$326,0)) -> 0 | AC90: =INDEX('[4]RFM input'!I$277:I$326,MATCH($E90,'[4]RFM input'!$E$277:$E$326,0)) -> 0 | AD90: =INDEX('[4]RFM input'!J$277:J$326,MATCH($E90,'[4]RFM input'!$E$277:$E$326,0)) -> 0 | AE90: =INDEX('[4]RFM input'!K$277:K$326,MATCH($E90,'[4]RFM input'!$E$277:$E$326,0)) -> 0 | AF90: =INDEX('[4]RFM input'!L$277:L$326,MATCH($E90,'[4]RFM input'!$E$277:$E$326,0)) -> 0
E91: Easements | H91: 0 | I91: 0 | J91: 0 | K91: 0 | L91: 0 | M91: 0 | N91: 0 | O91: 0 | P91: 0 | Q91: 0 | R91: 0 | S91: 0.01 | T91: 0 | U91: 0 | V91: ='[2]RFM input'!G290 -> 0.00454545 | W91: ='[2]RFM input'!H290 -> 0 | X91: ='[2]RFM input'!I290 -> 0 | Y91: ='[2]RFM input'!J290 -> 0 | Z91: ='[2]RFM input'!K290 -> 0 | AA91: =INDEX('[4]RFM input'!G$277:G$326,MATCH($E91,'[4]RFM input'!$E$277:$E$326,0)) -> 0 | AB91: =INDEX('[4]RFM input'!H$277:H$326,MATCH($E91,'[4]RFM input'!$E$277:$E$326,0)) -> 0 | AC91: =INDEX('[4]RFM input'!I$277:I$326,MATCH($E91,'[4]RFM input'!$E$277:$E$326,0)) -> 0 | AD91: =INDEX('[4]RFM input'!J$277:J$326,MATCH($E91,'[4]RFM input'!$E$277:$E$326,0)) -> 0 | AE91: =INDEX('[4]RFM input'!K$277:K$326,MATCH($E91,'[4]RFM input'!$E$277:$E$326,0)) -> 0 | AF91: =INDEX('[4]RFM input'!L$277:L$326,MATCH($E91,'[4]RFM input'!$E$277:$E$326,0)) -> 0
E92: Equity raising costs (2003-08) | H92: 0 | I92: 0 | J92: 0 | K92: 0 | L92: 0 | M92: 0 | N92: 0 | O92: 0 | P92: 0 | Q92: 0 | R92: 0 | S92: 0 | T92: 0 | U92: 0 | V92: ='[2]RFM input'!G291 -> 0 | W92: ='[2]RFM input'!H291 -> 0 | X92: ='[2]RFM input'!I291 -> 0 | Y92: ='[2]RFM input'!J291 -> 0 | Z92: ='[2]RFM input'!K291 -> 0 | AA92: =INDEX('[4]RFM input'!G$277:G$326,MATCH($E92,'[4]RFM input'!$E$277:$E$326,0)) -> 0 | AB92: =INDEX('[4]RFM input'!H$277:H$326,MATCH($E92,'[4]RFM input'!$E$277:$E$326,0)) -> 0 | AC92: =INDEX('[4]RFM input'!I$277:I$326,MATCH($E92,'[4]RFM input'!$E$277:$E$326,0)) -> 0 | AD92: =INDEX('[4]RFM input'!J$277:J$326,MATCH($E92,'[4]RFM input'!$E$277:$E$326,0)) -> 0 | AE92: =INDEX('[4]RFM input'!K$277:K$326,MATCH($E92,'[4]RFM input'!$E$277:$E$326,0)) -> 0 | AF92: =INDEX('[4]RFM input'!L$277:L$326,MATCH($E92,'[4]RFM input'!$E$277:$E$326,0)) -> 0
E93: Inventory Adjustment (Other non-network) | H93: 0 | I93: 0 | J93: 0 | K93: 0 | L93: 0 | M93: 0 | N93: 0 | O93: 0 | P93: 0 | Q93: 0 | R93: 0 | S93: 0 | T93: 0 | U93: 0 | V93: ='[2]RFM input'!G292 -> 0 | W93: ='[2]RFM input'!H292 -> 0 | X93: ='[2]RFM input'!I292 -> 0 | Y93: ='[2]RFM input'!J292 -> 0 | Z93: ='[2]RFM input'!K292 -> 0 | AA93: =INDEX('[4]RFM input'!G$277:G$326,MATCH($E93,'[4]RFM input'!$E$277:$E$326,0)) -> 0 | AB93: =INDEX('[4]RFM input'!H$277:H$326,MATCH($E93,'[4]RFM input'!$E$277:$E$326,0)) -> 0 | AC93: =INDEX('[4]RFM input'!I$277:I$326,MATCH($E93,'[4]RFM input'!$E$277:$E$326,0)) -> 0 | AD93: =INDEX('[4]RFM input'!J$277:J$326,MATCH($E93,'[4]RFM input'!$E$277:$E$326,0)) -> 0 | AE93: =INDEX('[4]RFM input'!K$277:K$326,MATCH($E93,'[4]RFM input'!$E$277:$E$326,0)) -> 0 | AF93: =INDEX('[4]RFM input'!L$277:L$326,MATCH($E93,'[4]RFM input'!$E$277:$E$326,0)) -> 0
E94: Accelerated Depr | AA94: =INDEX('[4]RFM input'!G$277:G$326,MATCH($E94,'[4]RFM input'!$E$277:$E$326,0)) -> 0 | AB94: =INDEX('[4]RFM input'!H$277:H$326,MATCH($E94,'[4]RFM input'!$E$277:$E$326,0)) -> 0 | AC94: =INDEX('[4]RFM input'!I$277:I$326,MATCH($E94,'[4]RFM input'!$E$277:$E$326,0)) -> 0 | AD94: =INDEX('[4]RFM input'!J$277:J$326,MATCH($E94,'[4]RFM input'!$E$277:$E$326,0)) -> 0 | AE94: =INDEX('[4]RFM input'!K$277:K$326,MATCH($E94,'[4]RFM input'!$E$277:$E$326,0)) -> 0 | AF94: =INDEX('[4]RFM input'!L$277:L$326,MATCH($E94,'[4]RFM input'!$E$277:$E$326,0)) -> 0
E95: Insulators - Already Decommissioned | AA95: =INDEX('[4]RFM input'!G$277:G$326,MATCH($E95,'[4]RFM input'!$E$277:$E$326,0)) -> 0 | AB95: =INDEX('[4]RFM input'!H$277:H$326,MATCH($E95,'[4]RFM input'!$E$277:$E$326,0)) -> 0 | AC95: =INDEX('[4]RFM input'!I$277:I$326,MATCH($E95,'[4]RFM input'!$E$277:$E$326,0)) -> 0 | AD95: =INDEX('[4]RFM input'!J$277:J$326,MATCH($E95,'[4]RFM input'!$E$277:$E$326,0)) -> 0 | AE95: =INDEX('[4]RFM input'!K$277:K$326,MATCH($E95,'[4]RFM input'!$E$277:$E$326,0)) -> 0 | AF95: =INDEX('[4]RFM input'!L$277:L$326,MATCH($E95,'[4]RFM input'!$E$277:$E$326,0)) -> 0
E96: Insulators - Decommission 2022-2027 | AA96: =INDEX('[4]RFM input'!G$277:G$326,MATCH($E96,'[4]RFM input'!$E$277:$E$326,0)) -> 0 | AB96: =INDEX('[4]RFM input'!H$277:H$326,MATCH($E96,'[4]RFM input'!$E$277:$E$326,0)) -> 0 | AC96: =INDEX('[4]RFM input'!I$277:I$326,MATCH($E96,'[4]RFM input'!$E$277:$E$326,0)) -> 0 | AD96: =INDEX('[4]RFM input'!J$277:J$326,MATCH($E96,'[4]RFM input'!$E$277:$E$326,0)) -> 0 | AE96: =INDEX('[4]RFM input'!K$277:K$326,MATCH($E96,'[4]RFM input'!$E$277:$E$326,0)) -> 0 | AF96: =INDEX('[4]RFM input'!L$277:L$326,MATCH($E96,'[4]RFM input'!$E$277:$E$326,0)) -> 0
E97: Polymeric Insulators | AA97: =INDEX('[4]RFM input'!G$277:G$326,MATCH($E97,'[4]RFM input'!$E$277:$E$326,0)) -> 0 | AB97: =INDEX('[4]RFM input'!H$277:H$326,MATCH($E97,'[4]RFM input'!$E$277:$E$326,0)) -> 0 | AC97: =INDEX('[4]RFM input'!I$277:I$326,MATCH($E97,'[4]RFM input'!$E$277:$E$326,0)) -> 0 | AD97: =INDEX('[4]RFM input'!J$277:J$326,MATCH($E97,'[4]RFM input'!$E$277:$E$326,0)) -> 0 | AE97: =INDEX('[4]RFM input'!K$277:K$326,MATCH($E97,'[4]RFM input'!$E$277:$E$326,0)) -> 0 | AF97: =INDEX('[4]RFM input'!L$277:L$326,MATCH($E97,'[4]RFM input'!$E$277:$E$326,0)) -> 0
E98: Instrument Transformers - Already Decommissioned | AA98: =INDEX('[4]RFM input'!G$277:G$326,MATCH($E98,'[4]RFM input'!$E$277:$E$326,0)) -> 0 | AB98: =INDEX('[4]RFM input'!H$277:H$326,MATCH($E98,'[4]RFM input'!$E$277:$E$326,0)) -> 0 | AC98: =INDEX('[4]RFM input'!I$277:I$326,MATCH($E98,'[4]RFM input'!$E$277:$E$326,0)) -> 0 | AD98: =INDEX('[4]RFM input'!J$277:J$326,MATCH($E98,'[4]RFM input'!$E$277:$E$326,0)) -> 0 | AE98: =INDEX('[4]RFM input'!K$277:K$326,MATCH($E98,'[4]RFM input'!$E$277:$E$326,0)) -> 0 | AF98: =INDEX('[4]RFM input'!L$277:L$326,MATCH($E98,'[4]RFM input'!$E$277:$E$326,0)) -> 0
E99: Instrument Transformers - Decommission 2022-2027 | AA99: =INDEX('[4]RFM input'!G$277:G$326,MATCH($E99,'[4]RFM input'!$E$277:$E$326,0)) -> 0 | AB99: =INDEX('[4]RFM input'!H$277:H$326,MATCH($E99,'[4]RFM input'!$E$277:$E$326,0)) -> 0 | AC99: =INDEX('[4]RFM input'!I$277:I$326,MATCH($E99,'[4]RFM input'!$E$277:$E$326,0)) -> 0 | AD99: =INDEX('[4]RFM input'!J$277:J$326,MATCH($E99,'[4]RFM input'!$E$277:$E$326,0)) -> 0 | AE99: =INDEX('[4]RFM input'!K$277:K$326,MATCH($E99,'[4]RFM input'!$E$277:$E$326,0)) -> 0 | AF99: =INDEX('[4]RFM input'!L$277:L$326,MATCH($E99,'[4]RFM input'!$E$277:$E$326,0)) -> 0
E100: 0 | AA100: =INDEX('[4]RFM input'!G$277:G$326,MATCH($E100,'[4]RFM input'!$E$277:$E$326,0)) -> 0 | AB100: =INDEX('[4]RFM input'!H$277:H$326,MATCH($E100,'[4]RFM input'!$E$277:$E$326,0)) -> 0 | AC100: =INDEX('[4]RFM input'!I$277:I$326,MATCH($E100,'[4]RFM input'!$E$277:$E$326,0)) -> 0 | AD100: =INDEX('[4]RFM input'!J$277:J$326,MATCH($E100,'[4]RFM input'!$E$277:$E$326,0)) -> 0 | AE100: =INDEX('[4]RFM input'!K$277:K$326,MATCH($E100,'[4]RFM input'!$E$277:$E$326,0)) -> 0 | AF100: =INDEX('[4]RFM input'!L$277:L$326,MATCH($E100,'[4]RFM input'!$E$277:$E$326,0)) -> 0
E101: Lease L&B 2019-20 < 20 years rem life | AA101: =INDEX('[4]RFM input'!G$277:G$326,MATCH($E101,'[4]RFM input'!$E$277:$E$326,0)) -> 0 | AB101: =INDEX('[4]RFM input'!H$277:H$326,MATCH($E101,'[4]RFM input'!$E$277:$E$326,0)) -> 0 | AC101: =INDEX('[4]RFM input'!I$277:I$326,MATCH($E101,'[4]RFM input'!$E$277:$E$326,0)) -> 0 | AD101: =INDEX('[4]RFM input'!J$277:J$326,MATCH($E101,'[4]RFM input'!$E$277:$E$326,0)) -> 0 | AE101: =INDEX('[4]RFM input'!K$277:K$326,MATCH($E101,'[4]RFM input'!$E$277:$E$326,0)) -> 0 | AF101: =INDEX('[4]RFM input'!L$277:L$326,MATCH($E101,'[4]RFM input'!$E$277:$E$326,0)) -> 0
E102: Lease L&B 2019-20 > 20 years rem life | AA102: =INDEX('[4]RFM input'!G$277:G$326,MATCH($E102,'[4]RFM input'!$E$277:$E$326,0)) -> 0 | AB102: =INDEX('[4]RFM input'!H$277:H$326,MATCH($E102,'[4]RFM input'!$E$277:$E$326,0)) -> 0 | AC102: =INDEX('[4]RFM input'!I$277:I$326,MATCH($E102,'[4]RFM input'!$E$277:$E$326,0)) -> 0 | AD102: =INDEX('[4]RFM input'!J$277:J$326,MATCH($E102,'[4]RFM input'!$E$277:$E$326,0)) -> 0 | AE102: =INDEX('[4]RFM input'!K$277:K$326,MATCH($E102,'[4]RFM input'!$E$277:$E$326,0)) -> 0 | AF102: =INDEX('[4]RFM input'!L$277:L$326,MATCH($E102,'[4]RFM input'!$E$277:$E$326,0)) -> 0
E103: Lease L&B 2020-21 | AA103: =INDEX('[4]RFM input'!G$277:G$326,MATCH($E103,'[4]RFM input'!$E$277:$E$326,0)) -> 0 | AB103: =INDEX('[4]RFM input'!H$277:H$326,MATCH($E103,'[4]RFM input'!$E$277:$E$326,0)) -> 0 | AC103: =INDEX('[4]RFM input'!I$277:I$326,MATCH($E103,'[4]RFM input'!$E$277:$E$326,0)) -> 0 | AD103: =INDEX('[4]RFM input'!J$277:J$326,MATCH($E103,'[4]RFM input'!$E$277:$E$326,0)) -> 0 | AE103: =INDEX('[4]RFM input'!K$277:K$326,MATCH($E103,'[4]RFM input'!$E$277:$E$326,0)) -> 0 | AF103: =INDEX('[4]RFM input'!L$277:L$326,MATCH($E103,'[4]RFM input'!$E$277:$E$326,0)) -> 0
E104: Lease L&B 2021-22 | AA104: =INDEX('[4]RFM input'!G$277:G$326,MATCH($E104,'[4]RFM input'!$E$277:$E$326,0)) -> 0 | AB104: =INDEX('[4]RFM input'!H$277:H$326,MATCH($E104,'[4]RFM input'!$E$277:$E$326,0)) -> 0 | AC104: =INDEX('[4]RFM input'!I$277:I$326,MATCH($E104,'[4]RFM input'!$E$277:$E$326,0)) -> 0 | AD104: =INDEX('[4]RFM input'!J$277:J$326,MATCH($E104,'[4]RFM input'!$E$277:$E$326,0)) -> 0 | AE104: =INDEX('[4]RFM input'!K$277:K$326,MATCH($E104,'[4]RFM input'!$E$277:$E$326,0)) -> 0 | AF104: =INDEX('[4]RFM input'!L$277:L$326,MATCH($E104,'[4]RFM input'!$E$277:$E$326,0)) -> 0
E105: Lease L&B 2022-23 | AA105: =INDEX('[4]RFM input'!G$277:G$326,MATCH($E105,'[4]RFM input'!$E$277:$E$326,0)) -> 0 | AB105: =INDEX('[4]RFM input'!H$277:H$326,MATCH($E105,'[4]RFM input'!$E$277:$E$326,0)) -> 0 | AC105: =INDEX('[4]RFM input'!I$277:I$326,MATCH($E105,'[4]RFM input'!$E$277:$E$326,0)) -> 0 | AD105: =INDEX('[4]RFM input'!J$277:J$326,MATCH($E105,'[4]RFM input'!$E$277:$E$326,0)) -> 0 | AE105: =INDEX('[4]RFM input'!K$277:K$326,MATCH($E105,'[4]RFM input'!$E$277:$E$326,0)) -> 0 | AF105: =INDEX('[4]RFM input'!L$277:L$326,MATCH($E105,'[4]RFM input'!$E$277:$E$326,0)) -> 0
E106: Lease L&B 2023-24 | AA106: =INDEX('[4]RFM input'!G$277:G$326,MATCH($E106,'[4]RFM input'!$E$277:$E$326,0)) -> 0 | AB106: =INDEX('[4]RFM input'!H$277:H$326,MATCH($E106,'[4]RFM input'!$E$277:$E$326,0)) -> 0 | AC106: =INDEX('[4]RFM input'!I$277:I$326,MATCH($E106,'[4]RFM input'!$E$277:$E$326,0)) -> 0 | AD106: =INDEX('[4]RFM input'!J$277:J$326,MATCH($E106,'[4]RFM input'!$E$277:$E$326,0)) -> 0 | AE106: =INDEX('[4]RFM input'!K$277:K$326,MATCH($E106,'[4]RFM input'!$E$277:$E$326,0)) -> 0 | AF106: =INDEX('[4]RFM input'!L$277:L$326,MATCH($E106,'[4]RFM input'!$E$277:$E$326,0)) -> 0
E107: 0 | AA107: =INDEX('[4]RFM input'!G$277:G$326,MATCH($E107,'[4]RFM input'!$E$277:$E$326,0)) -> 0 | AB107: =INDEX('[4]RFM input'!H$277:H$326,MATCH($E107,'[4]RFM input'!$E$277:$E$326,0)) -> 0 | AC107: =INDEX('[4]RFM input'!I$277:I$326,MATCH($E107,'[4]RFM input'!$E$277:$E$326,0)) -> 0 | AD107: =INDEX('[4]RFM input'!J$277:J$326,MATCH($E107,'[4]RFM input'!$E$277:$E$326,0)) -> 0 | AE107: =INDEX('[4]RFM input'!K$277:K$326,MATCH($E107,'[4]RFM input'!$E$277:$E$326,0)) -> 0 | AF107: =INDEX('[4]RFM input'!L$277:L$326,MATCH($E107,'[4]RFM input'!$E$277:$E$326,0)) -> 0
E108: Lease L&B 2025-26 | AA108: =INDEX('[4]RFM input'!G$277:G$326,MATCH($E108,'[4]RFM input'!$E$277:$E$326,0)) -> 0 | AB108: =INDEX('[4]RFM input'!H$277:H$326,MATCH($E108,'[4]RFM input'!$E$277:$E$326,0)) -> 0 | AC108: =INDEX('[4]RFM input'!I$277:I$326,MATCH($E108,'[4]RFM input'!$E$277:$E$326,0)) -> 0 | AD108: =INDEX('[4]RFM input'!J$277:J$326,MATCH($E108,'[4]RFM input'!$E$277:$E$326,0)) -> 0 | AE108: =INDEX('[4]RFM input'!K$277:K$326,MATCH($E108,'[4]RFM input'!$E$277:$E$326,0)) -> 0 | AF108: =INDEX('[4]RFM input'!L$277:L$326,MATCH($E108,'[4]RFM input'!$E$277:$E$326,0)) -> 0
E109: Lease L&B 2026-27 | AA109: =INDEX('[4]RFM input'!G$277:G$326,MATCH($E109,'[4]RFM input'!$E$277:$E$326,0)) -> 0 | AB109: =INDEX('[4]RFM input'!H$277:H$326,MATCH($E109,'[4]RFM input'!$E$277:$E$326,0)) -> 0 | AC109: =INDEX('[4]RFM input'!I$277:I$326,MATCH($E109,'[4]RFM input'!$E$277:$E$326,0)) -> 0 | AD109: =INDEX('[4]RFM input'!J$277:J$326,MATCH($E109,'[4]RFM input'!$E$277:$E$326,0)) -> 0 | AE109: =INDEX('[4]RFM input'!K$277:K$326,MATCH($E109,'[4]RFM input'!$E$277:$E$326,0)) -> 0 | AF109: =INDEX('[4]RFM input'!L$277:L$326,MATCH($E109,'[4]RFM input'!$E$277:$E$326,0)) -> 0
E110: =E56 -> 0 | AA110: =INDEX('[4]RFM input'!G$277:G$326,MATCH($E110,'[4]RFM input'!$E$277:$E$326,0)) -> 0 | AB110: =INDEX('[4]RFM input'!H$277:H$326,MATCH($E110,'[4]RFM input'!$E$277:$E$326,0)) -> 0 | AC110: =INDEX('[4]RFM input'!I$277:I$326,MATCH($E110,'[4]RFM input'!$E$277:$E$326,0)) -> 0 | AD110: =INDEX('[4]RFM input'!J$277:J$326,MATCH($E110,'[4]RFM input'!$E$277:$E$326,0)) -> 0 | AE110: =INDEX('[4]RFM input'!K$277:K$326,MATCH($E110,'[4]RFM input'!$E$277:$E$326,0)) -> 0 | AF110: =INDEX('[4]RFM input'!L$277:L$326,MATCH($E110,'[4]RFM input'!$E$277:$E$326,0)) -> 0
E111: 0 | AA111: =INDEX('[4]RFM input'!G$277:G$326,MATCH($E111,'[4]RFM input'!$E$277:$E$326,0)) -> 0 | AB111: =INDEX('[4]RFM input'!H$277:H$326,MATCH($E111,'[4]RFM input'!$E$277:$E$326,0)) -> 0 | AC111: =INDEX('[4]RFM input'!I$277:I$326,MATCH($E111,'[4]RFM input'!$E$277:$E$326,0)) -> 0 | AD111: =INDEX('[4]RFM input'!J$277:J$326,MATCH($E111,'[4]RFM input'!$E$277:$E$326,0)) -> 0 | AE111: =INDEX('[4]RFM input'!K$277:K$326,MATCH($E111,'[4]RFM input'!$E$277:$E$326,0)) -> 0 | AF111: =INDEX('[4]RFM input'!L$277:L$326,MATCH($E111,'[4]RFM input'!$E$277:$E$326,0)) -> 0
E112: 0 | AA112: =INDEX('[4]RFM input'!G$277:G$326,MATCH($E112,'[4]RFM input'!$E$277:$E$326,0)) -> 0 | AB112: =INDEX('[4]RFM input'!H$277:H$326,MATCH($E112,'[4]RFM input'!$E$277:$E$326,0)) -> 0 | AC112: =INDEX('[4]RFM input'!I$277:I$326,MATCH($E112,'[4]RFM input'!$E$277:$E$326,0)) -> 0 | AD112: =INDEX('[4]RFM input'!J$277:J$326,MATCH($E112,'[4]RFM input'!$E$277:$E$326,0)) -> 0 | AE112: =INDEX('[4]RFM input'!K$277:K$326,MATCH($E112,'[4]RFM input'!$E$277:$E$326,0)) -> 0 | AF112: =INDEX('[4]RFM input'!L$277:L$326,MATCH($E112,'[4]RFM input'!$E$277:$E$326,0)) -> 0
E113: 0 | AA113: =INDEX('[4]RFM input'!G$277:G$326,MATCH($E113,'[4]RFM input'!$E$277:$E$326,0)) -> 0 | AB113: =INDEX('[4]RFM input'!H$277:H$326,MATCH($E113,'[4]RFM input'!$E$277:$E$326,0)) -> 0 | AC113: =INDEX('[4]RFM input'!I$277:I$326,MATCH($E113,'[4]RFM input'!$E$277:$E$326,0)) -> 0 | AD113: =INDEX('[4]RFM input'!J$277:J$326,MATCH($E113,'[4]RFM input'!$E$277:$E$326,0)) -> 0 | AE113: =INDEX('[4]RFM input'!K$277:K$326,MATCH($E113,'[4]RFM input'!$E$277:$E$326,0)) -> 0 | AF113: =INDEX('[4]RFM input'!L$277:L$326,MATCH($E113,'[4]RFM input'!$E$277:$E$326,0)) -> 0
E114: 0 | AA114: =INDEX('[4]RFM input'!G$277:G$326,MATCH($E114,'[4]RFM input'!$E$277:$E$326,0)) -> 0 | AB114: =INDEX('[4]RFM input'!H$277:H$326,MATCH($E114,'[4]RFM input'!$E$277:$E$326,0)) -> 0 | AC114: =INDEX('[4]RFM input'!I$277:I$326,MATCH($E114,'[4]RFM input'!$E$277:$E$326,0)) -> 0 | AD114: =INDEX('[4]RFM input'!J$277:J$326,MATCH($E114,'[4]RFM input'!$E$277:$E$326,0)) -> 0 | AE114: =INDEX('[4]RFM input'!K$277:K$326,MATCH($E114,'[4]RFM input'!$E$277:$E$326,0)) -> 0 | AF114: =INDEX('[4]RFM input'!L$277:L$326,MATCH($E114,'[4]RFM input'!$E$277:$E$326,0)) -> 0
E115: 0 | AA115: =INDEX('[4]RFM input'!G$277:G$326,MATCH($E115,'[4]RFM input'!$E$277:$E$326,0)) -> 0 | AB115: =INDEX('[4]RFM input'!H$277:H$326,MATCH($E115,'[4]RFM input'!$E$277:$E$326,0)) -> 0 | AC115: =INDEX('[4]RFM input'!I$277:I$326,MATCH($E115,'[4]RFM input'!$E$277:$E$326,0)) -> 0 | AD115: =INDEX('[4]RFM input'!J$277:J$326,MATCH($E115,'[4]RFM input'!$E$277:$E$326,0)) -> 0 | AE115: =INDEX('[4]RFM input'!K$277:K$326,MATCH($E115,'[4]RFM input'!$E$277:$E$326,0)) -> 0 | AF115: =INDEX('[4]RFM input'!L$277:L$326,MATCH($E115,'[4]RFM input'!$E$277:$E$326,0)) -> 0
E116: 0 | AA116: =INDEX('[4]RFM input'!G$277:G$326,MATCH($E116,'[4]RFM input'!$E$277:$E$326,0)) -> 0 | AB116: =INDEX('[4]RFM input'!H$277:H$326,MATCH($E116,'[4]RFM input'!$E$277:$E$326,0)) -> 0 | AC116: =INDEX('[4]RFM input'!I$277:I$326,MATCH($E116,'[4]RFM input'!$E$277:$E$326,0)) -> 0 | AD116: =INDEX('[4]RFM input'!J$277:J$326,MATCH($E116,'[4]RFM input'!$E$277:$E$326,0)) -> 0 | AE116: =INDEX('[4]RFM input'!K$277:K$326,MATCH($E116,'[4]RFM input'!$E$277:$E$326,0)) -> 0 | AF116: =INDEX('[4]RFM input'!L$277:L$326,MATCH($E116,'[4]RFM input'!$E$277:$E$326,0)) -> 0
E117: 0 | AA117: =INDEX('[4]RFM input'!G$277:G$326,MATCH($E117,'[4]RFM input'!$E$277:$E$326,0)) -> 0 | AB117: =INDEX('[4]RFM input'!H$277:H$326,MATCH($E117,'[4]RFM input'!$E$277:$E$326,0)) -> 0 | AC117: =INDEX('[4]RFM input'!I$277:I$326,MATCH($E117,'[4]RFM input'!$E$277:$E$326,0)) -> 0 | AD117: =INDEX('[4]RFM input'!J$277:J$326,MATCH($E117,'[4]RFM input'!$E$277:$E$326,0)) -> 0 | AE117: =INDEX('[4]RFM input'!K$277:K$326,MATCH($E117,'[4]RFM input'!$E$277:$E$326,0)) -> 0 | AF117: =INDEX('[4]RFM input'!L$277:L$326,MATCH($E117,'[4]RFM input'!$E$277:$E$326,0)) -> 0
E118: 0 | AA118: =INDEX('[4]RFM input'!G$277:G$326,MATCH($E118,'[4]RFM input'!$E$277:$E$326,0)) -> 0 | AB118: =INDEX('[4]RFM input'!H$277:H$326,MATCH($E118,'[4]RFM input'!$E$277:$E$326,0)) -> 0 | AC118: =INDEX('[4]RFM input'!I$277:I$326,MATCH($E118,'[4]RFM input'!$E$277:$E$326,0)) -> 0 | AD118: =INDEX('[4]RFM input'!J$277:J$326,MATCH($E118,'[4]RFM input'!$E$277:$E$326,0)) -> 0 | AE118: =INDEX('[4]RFM input'!K$277:K$326,MATCH($E118,'[4]RFM input'!$E$277:$E$326,0)) -> 0 | AF118: =INDEX('[4]RFM input'!L$277:L$326,MATCH($E118,'[4]RFM input'!$E$277:$E$326,0)) -> 0
E119: 0 | AA119: =INDEX('[4]RFM input'!G$277:G$326,MATCH($E119,'[4]RFM input'!$E$277:$E$326,0)) -> 0 | AB119: =INDEX('[4]RFM input'!H$277:H$326,MATCH($E119,'[4]RFM input'!$E$277:$E$326,0)) -> 0 | AC119: =INDEX('[4]RFM input'!I$277:I$326,MATCH($E119,'[4]RFM input'!$E$277:$E$326,0)) -> 0 | AD119: =INDEX('[4]RFM input'!J$277:J$326,MATCH($E119,'[4]RFM input'!$E$277:$E$326,0)) -> 0 | AE119: =INDEX('[4]RFM input'!K$277:K$326,MATCH($E119,'[4]RFM input'!$E$277:$E$326,0)) -> 0 | AF119: =INDEX('[4]RFM input'!L$277:L$326,MATCH($E119,'[4]RFM input'!$E$277:$E$326,0)) -> 0
E120: 0 | AA120: =INDEX('[4]RFM input'!G$277:G$326,MATCH($E120,'[4]RFM input'!$E$277:$E$326,0)) -> 0 | AB120: =INDEX('[4]RFM input'!H$277:H$326,MATCH($E120,'[4]RFM input'!$E$277:$E$326,0)) -> 0 | AC120: =INDEX('[4]RFM input'!I$277:I$326,MATCH($E120,'[4]RFM input'!$E$277:$E$326,0)) -> 0 | AD120: =INDEX('[4]RFM input'!J$277:J$326,MATCH($E120,'[4]RFM input'!$E$277:$E$326,0)) -> 0 | AE120: =INDEX('[4]RFM input'!K$277:K$326,MATCH($E120,'[4]RFM input'!$E$277:$E$326,0)) -> 0 | AF120: =INDEX('[4]RFM input'!L$277:L$326,MATCH($E120,'[4]RFM input'!$E$277:$E$326,0)) -> 0
E121: 0 | AA121: =INDEX('[4]RFM input'!G$277:G$326,MATCH($E121,'[4]RFM input'!$E$277:$E$326,0)) -> 0 | AB121: =INDEX('[4]RFM input'!H$277:H$326,MATCH($E121,'[4]RFM input'!$E$277:$E$326,0)) -> 0 | AC121: =INDEX('[4]RFM input'!I$277:I$326,MATCH($E121,'[4]RFM input'!$E$277:$E$326,0)) -> 0 | AD121: =INDEX('[4]RFM input'!J$277:J$326,MATCH($E121,'[4]RFM input'!$E$277:$E$326,0)) -> 0 | AE121: =INDEX('[4]RFM input'!K$277:K$326,MATCH($E121,'[4]RFM input'!$E$277:$E$326,0)) -> 0 | AF121: =INDEX('[4]RFM input'!L$277:L$326,MATCH($E121,'[4]RFM input'!$E$277:$E$326,0)) -> 0
E122: 0 | AA122: =INDEX('[4]RFM input'!G$277:G$326,MATCH($E122,'[4]RFM input'!$E$277:$E$326,0)) -> 0 | AB122: =INDEX('[4]RFM input'!H$277:H$326,MATCH($E122,'[4]RFM input'!$E$277:$E$326,0)) -> 0 | AC122: =INDEX('[4]RFM input'!I$277:I$326,MATCH($E122,'[4]RFM input'!$E$277:$E$326,0)) -> 0 | AD122: =INDEX('[4]RFM input'!J$277:J$326,MATCH($E122,'[4]RFM input'!$E$277:$E$326,0)) -> 0 | AE122: =INDEX('[4]RFM input'!K$277:K$326,MATCH($E122,'[4]RFM input'!$E$277:$E$326,0)) -> 0 | AF122: =INDEX('[4]RFM input'!L$277:L$326,MATCH($E122,'[4]RFM input'!$E$277:$E$326,0)) -> 0
E123: 0 | AA123: =INDEX('[4]RFM input'!G$277:G$326,MATCH($E123,'[4]RFM input'!$E$277:$E$326,0)) -> 0 | AB123: =INDEX('[4]RFM input'!H$277:H$326,MATCH($E123,'[4]RFM input'!$E$277:$E$326,0)) -> 0 | AC123: =INDEX('[4]RFM input'!I$277:I$326,MATCH($E123,'[4]RFM input'!$E$277:$E$326,0)) -> 0 | AD123: =INDEX('[4]RFM input'!J$277:J$326,MATCH($E123,'[4]RFM input'!$E$277:$E$326,0)) -> 0 | AE123: =INDEX('[4]RFM input'!K$277:K$326,MATCH($E123,'[4]RFM input'!$E$277:$E$326,0)) -> 0 | AF123: =INDEX('[4]RFM input'!L$277:L$326,MATCH($E123,'[4]RFM input'!$E$277:$E$326,0)) -> 0
E124: 0 | AA124: =INDEX('[4]RFM input'!G$277:G$326,MATCH($E124,'[4]RFM input'!$E$277:$E$326,0)) -> 0 | AB124: =INDEX('[4]RFM input'!H$277:H$326,MATCH($E124,'[4]RFM input'!$E$277:$E$326,0)) -> 0 | AC124: =INDEX('[4]RFM input'!I$277:I$326,MATCH($E124,'[4]RFM input'!$E$277:$E$326,0)) -> 0 | AD124: =INDEX('[4]RFM input'!J$277:J$326,MATCH($E124,'[4]RFM input'!$E$277:$E$326,0)) -> 0 | AE124: =INDEX('[4]RFM input'!K$277:K$326,MATCH($E124,'[4]RFM input'!$E$277:$E$326,0)) -> 0 | AF124: =INDEX('[4]RFM input'!L$277:L$326,MATCH($E124,'[4]RFM input'!$E$277:$E$326,0)) -> 0
E125: Buildings - capital works | AA125: =INDEX('[4]RFM input'!G$277:G$326,MATCH($E125,'[4]RFM input'!$E$277:$E$326,0)) -> 0 | AB125: =INDEX('[4]RFM input'!H$277:H$326,MATCH($E125,'[4]RFM input'!$E$277:$E$326,0)) -> 0 | AC125: =INDEX('[4]RFM input'!I$277:I$326,MATCH($E125,'[4]RFM input'!$E$277:$E$326,0)) -> 0 | AD125: =INDEX('[4]RFM input'!J$277:J$326,MATCH($E125,'[4]RFM input'!$E$277:$E$326,0)) -> 0 | AE125: =INDEX('[4]RFM input'!K$277:K$326,MATCH($E125,'[4]RFM input'!$E$277:$E$326,0)) -> 0 | AF125: =INDEX('[4]RFM input'!L$277:L$326,MATCH($E125,'[4]RFM input'!$E$277:$E$326,0)) -> 0
... 153 more rows

Sheet TAB input
E2: =IF('RAB input'!$F$8=$F$8, 'RAB input'!$F$8, $F$8)&" - TAB input - Elec TNSP "&Intro!$I$3&" - version "&Intro!$M$4 -> AusNet - TAB input - Elec TNSP RFM - Depreciation tracking module - version 1 | J2: Input cells in blue
E4: Year | F4: =IF(LEN($H$9)>4, CONCATENATE(LEFT($H$9, 4)-2 & "-" & IF(AND(RIGHT($H$9, 2)<"12", RIGHT($H$9, 2)>"01"), "0", "") & IF(RIGHT($H$9, 2)="00", "98", IF(RIGHT($H$9, 2)="01", "99", RIGHT($H$9, 2)-2))), $H$9-2) -> 2020-21 | G4: =IF(LEN(F4)>4,CONCATENATE(LEFT(F4,4)+1&"-"&IF(RIGHT(F4, 2)<"09", "0","")&IF(RIGHT(F4, 2)="99", "00", RIGHT(F4,2)+1)),F4+1) -> 2021-22 | H4: =IF(LEN(G4)>4,CONCATENATE(LEFT(G4,4)+1&"-"&IF(RIGHT(G4, 2)<"09", "0","")&IF(RIGHT(G4, 2)="99", "00", RIGHT(G4,2)+1)),G4+1) -> 2022-23 | I4: 2023-24 | J4: 2024-25 | K4: 2025-26 | L4: 2026-27 | M4: 2027-28 | N4: 2028-29 | O4: 2029-30 | P4: 2030-31 | Q4: 2031-32 | R4: 2032-33 | S4: 2033-34 | T4: 2034-35 | U4: 2035-36 | V4: 2036-37 | W4: 2037-38 | X4: 2038-39 | Y4: 2039-40 | Z4: 2040-41 | AA4: 2041-42 | AB4: 2042-43 | AC4: 2043-44 | AD4: 2044-45 | AE4: 2045-46 | AF4: 2046-47 | AG4: 2047-48 | AH4: 2048-49 | AI4: 2049-50 | AJ4: 2050-51 | AK4: 2051-52 | AL4: 2052-53 | AM4: 2053-54 | AN4: 2054-55 | AO4: 2055-56 | AP4: 2056-57 | AQ4: 2057-58 | AR4: 2058-59 | AS4: 2059-60 | AT4: 2060-61 | AU4: 2061-62 | AV4: 2062-63 | AW4: 2063-64 | AX4: 2064-65 | AY4: 2065-66 | AZ4: 2066-67 | BA4: 2067-68 | BB4: 2068-69 | BC4: 2069-70 | BD4: 2070-71 | BE4: 2071-72 | BF4: 2072-73 | BG4: 2073-74 | BH4: 2074-75 | BI4: 2075-76 | BJ4: 2076-77 | BK4: 2077-78 | BL4: 2078-79 | BM4: 2079-80 | BN4: 2080-81 | BO4: 2081-82 | BP4: 2082-83 | BQ4: 2083-84 | BR4: 2084-85 | BS4: 2085-86 | BT4: =IF(LEN(BS4)>4,CONCATENATE(LEFT(BS4,4)+1&"-"&IF(RIGHT(BS4, 2)<"09", "0","")&IF(RIGHT(BS4, 2)="99", "00", RIGHT(BS4,2)+1)),BS4+1) -> 2086-87 | BU4: 2087-88 | BV4: 2088-89 | BW4: 2089-90 | BX4: 2090-91 | BY4: 2091-92 | BZ4: 2092-93 | CA4: 2093-94 | CB4: 2094-95 | CC4: 2095-96 | CD4: 2096-97 | CE4: 2097-98 | CF4: 2098-99 | CG4: 2099-00 | CH4: 2100-01 | CI4: 2101-02 | CJ4: 2102-03
D6: General information
E8: Business name | F8: ='RAB input'!$F$8 -> AusNet
E9: First regulatory year for tracking | H9: 2022-23 | I9: =IF(SUM($11:$11)=COUNTA($H$9:H$9), "Input for next period", "") ->  | J9: =IF(SUM($11:$11)=COUNTA($H$9:I$9), "Input for next period", "") ->  | K9: =IF(SUM($11:$11)=COUNTA($H$9:J$9), "Input for next period", "") ->  | L9: =IF(SUM($11:$11)=COUNTA($H$9:K$9), "Input for next period", "") ->  | M9: =IF(SUM($11:$11)=COUNTA($H$9:L$9), "Input for next period", "") -> Input for next period | N9: =IF(SUM($11:$11)=COUNTA($H$9:M$9), "Input for next period", "") ->  | O9: =IF(SUM($11:$11)=COUNTA($H$9:N$9), "Input for next period", "") ->  | P9: =IF(SUM($11:$11)=COUNTA($H$9:O$9), "Input for next period", "") ->  | Q9: =IF(SUM($11:$11)=COUNTA($H$9:P$9), "Input for next period", "") ->  | R9: =IF(SUM($11:$11)=COUNTA($H$9:Q$9), "Input for next period", "") ->  | S9: =IF(SUM($11:$11)=COUNTA($H$9:R$9), "Input for next period", "") ->  | T9: =IF(SUM($11:$11)=COUNTA($H$9:S$9), "Input for next period", "") ->  | U9: =IF(SUM($11:$11)=COUNTA($H$9:T$9), "Input for next period", "") ->  | V9: =IF(SUM($11:$11)=COUNTA($H$9:U$9), "Input for next period", "") ->  | W9: =IF(SUM($11:$11)=COUNTA($H$9:V$9), "Input for next period", "") ->  | X9: =IF(SUM($11:$11)=COUNTA($H$9:W$9), "Input for next period", "") ->  | Y9: =IF(SUM($11:$11)=COUNTA($H$9:X$9), "Input for next period", "") ->  | Z9: =IF(SUM($11:$11)=COUNTA($H$9:Y$9), "Input for next period", "") ->  | AA9: =IF(SUM($11:$11)=COUNTA($H$9:Z$9), "Input for next period", "") ->  | AB9: =IF(SUM($11:$11)=COUNTA($H$9:AA$9), "Input for next period", "") ->  | AC9: =IF(SUM($11:$11)=COUNTA($H$9:AB$9), "Input for next period", "") ->  | AD9: =IF(SUM($11:$11)=COUNTA($H$9:AC$9), "Input for next period", "") ->  | AE9: =IF(SUM($11:$11)=COUNTA($H$9:AD$9), "Input for next period", "") ->  | AF9: =IF(SUM($11:$11)=COUNTA($H$9:AE$9), "Input for next period", "") ->  | AG9: =IF(SUM($11:$11)=COUNTA($H$9:AF$9), "Input for next period", "") ->  | AH9: =IF(SUM($11:$11)=COUNTA($H$9:AG$9), "Input for next period", "") ->  | AI9: =IF(SUM($11:$11)=COUNTA($H$9:AH$9), "Input for next period", "") ->  | AJ9: =IF(SUM($11:$11)=COUNTA($H$9:AI$9), "Input for next period", "") ->  | AK9: =IF(SUM($11:$11)=COUNTA($H$9:AJ$9), "Input for next period", "") ->  | AL9: =IF(SUM($11:$11)=COUNTA($H$9:AK$9), "Input for next period", "") ->  | AM9: =IF(SUM($11:$11)=COUNTA($H$9:AL$9), "Input for next period", "") ->  | AN9: =IF(SUM($11:$11)=COUNTA($H$9:AM$9), "Input for next period", "") ->  | AO9: =IF(SUM($11:$11)=COUNTA($H$9:AN$9), "Input for next period", "") ->  | AP9: =IF(SUM($11:$11)=COUNTA($H$9:AO$9), "Input for next period", "") ->  | AQ9: =IF(SUM($11:$11)=COUNTA($H$9:AP$9), "Input for next period", "") ->  | AR9: =IF(SUM($11:$11)=COUNTA($H$9:AQ$9), "Input for next period", "") ->  | AS9: =IF(SUM($11:$11)=COUNTA($H$9:AR$9), "Input for next period", "") ->  | AT9: =IF(SUM($11:$11)=COUNTA($H$9:AS$9), "Input for next period", "") ->  | AU9: =IF(SUM($11:$11)=COUNTA($H$9:AT$9), "Input for next period", "") ->  | AV9: =IF(SUM($11:$11)=COUNTA($H$9:AU$9), "Input for next period", "") ->  | AW9: =IF(SUM($11:$11)=COUNTA($H$9:AV$9), "Input for next period", "") ->  | AX9: =IF(SUM($11:$11)=COUNTA($H$9:AW$9), "Input for next period", "") ->  | AY9: =IF(SUM($11:$11)=COUNTA($H$9:AX$9), "Input for next period", "") ->  | AZ9: =IF(SUM($11:$11)=COUNTA($H$9:AY$9), "Input for next period", "") ->  | BA9: =IF(SUM($11:$11)=COUNTA($H$9:AZ$9), "Input for next period", "") ->  | BB9: =IF(SUM($11:$11)=COUNTA($H$9:BA$9), "Input for next period", "") ->  | BC9: =IF(SUM($11:$11)=COUNTA($H$9:BB$9), "Input for next period", "") ->  | BD9: =IF(SUM($11:$11)=COUNTA($H$9:BC$9), "Input for next period", "") ->  | BE9: =IF(SUM($11:$11)=COUNTA($H$9:BD$9), "Input for next period", "") ->  | BF9: =IF(SUM($11:$11)=COUNTA($H$9:BE$9), "Input for next period", "") ->  | BG9: =IF(SUM($11:$11)=COUNTA($H$9:BF$9), "Input for next period", "") ->  | BH9: =IF(SUM($11:$11)=COUNTA($H$9:BG$9), "Input for next period", "") ->  | BI9: =IF(SUM($11:$11)=COUNTA($H$9:BH$9), "Input for next period", "") ->  | BJ9: =IF(SUM($11:$11)=COUNTA($H$9:BI$9), "Input for next period", "") ->  | BK9: =IF(SUM($11:$11)=COUNTA($H$9:BJ$9), "Input for next period", "") ->  | BL9: =IF(SUM($11:$11)=COUNTA($H$9:BK$9), "Input for next period", "") ->  | BM9: =IF(SUM($11:$11)=COUNTA($H$9:BL$9), "Input for next period", "") ->  | BN9: =IF(SUM($11:$11)=COUNTA($H$9:BM$9), "Input for next period", "") ->  | BO9: =IF(SUM($11:$11)=COUNTA($H$9:BN$9), "Input for next period", "") ->  | BP9: =IF(SUM($11:$11)=COUNTA($H$9:BO$9), "Input for next period", "") ->  | BQ9: =IF(SUM($11:$11)=COUNTA($H$9:BP$9), "Input for next period", "") ->  | BR9: =IF(SUM($11:$11)=COUNTA($H$9:BQ$9), "Input for next period", "") ->  | BS9: =IF(SUM($11:$11)=COUNTA($H$9:BR$9), "Input for next period", "") ->  | BT9: =IF(SUM($11:$11)=COUNTA($H$9:BS$9), "Input for next period", "") ->  | BU9: =IF(SUM($11:$11)=COUNTA($H$9:BT$9), "Input for next period", "") ->  | BV9: =IF(SUM($11:$11)=COUNTA($H$9:BU$9), "Input for next period", "") ->  | BW9: =IF(SUM($11:$11)=COUNTA($H$9:BV$9), "Input for next period", "") ->  | BX9: =IF(SUM($11:$11)=COUNTA($H$9:BW$9), "Input for next period", "") ->  | BY9: =IF(SUM($11:$11)=COUNTA($H$9:BX$9), "Input for next period", "") ->  | BZ9: =IF(SUM($11:$11)=COUNTA($H$9:BY$9), "Input for next period", "") ->  | CA9: =IF(SUM($11:$11)=COUNTA($H$9:BZ$9), "Input for next period", "") ->  | CB9: =IF(SUM($11:$11)=COUNTA($H$9:CA$9), "Input for next period", "") ->  | CC9: =IF(SUM($11:$11)=COUNTA($H$9:CB$9), "Input for next period", "") ->  | CD9: =IF(SUM($11:$11)=COUNTA($H$9:CC$9), "Input for next period", "") ->  | CE9: =IF(SUM($11:$11)=COUNTA($H$9:CD$9), "Input for next period", "") ->  | CF9: =IF(SUM($11:$11)=COUNTA($H$9:CE$9), "Input for next period", "") ->  | CG9: =IF(SUM($11:$11)=COUNTA($H$9:CF$9), "Input for next period", "") ->  | CH9: =IF(SUM($11:$11)=COUNTA($H$9:CG$9), "Input for next period", "") ->  | CI9: =IF(SUM($11:$11)=COUNTA($H$9:CH$9), "Input for next period", "") ->  | CJ9: =IF(SUM($11:$11)=COUNTA($H$9:CI$9), "Input for next period", "") -> 
E10: Regulatory period | H10: =IFERROR(IF(INDEX('RAB input'!10:10, MATCH(H$4, 'RAB input'!$4:$4, 0))="", "", INDEX('RAB input'!10:10, MATCH(H$4, 'RAB input'!$4:$4, 0))), "") -> 2023-27 | I10: =IFERROR(IF(INDEX('RAB input'!10:10, MATCH(I$4, 'RAB input'!$4:$4, 0))="", "", INDEX('RAB input'!10:10, MATCH(I$4, 'RAB input'!$4:$4, 0))), "") ->  | J10: =IFERROR(IF(INDEX('RAB input'!10:10, MATCH(J$4, 'RAB input'!$4:$4, 0))="", "", INDEX('RAB input'!10:10, MATCH(J$4, 'RAB input'!$4:$4, 0))), "") ->  | K10: =IFERROR(IF(INDEX('RAB input'!10:10, MATCH(K$4, 'RAB input'!$4:$4, 0))="", "", INDEX('RAB input'!10:10, MATCH(K$4, 'RAB input'!$4:$4, 0))), "") ->  | L10: =IFERROR(IF(INDEX('RAB input'!10:10, MATCH(L$4, 'RAB input'!$4:$4, 0))="", "", INDEX('RAB input'!10:10, MATCH(L$4, 'RAB input'!$4:$4, 0))), "") ->  | M10: =IFERROR(IF(INDEX('RAB input'!10:10, MATCH(M$4, 'RAB input'!$4:$4, 0))="", "", INDEX('RAB input'!10:10, MATCH(M$4, 'RAB input'!$4:$4, 0))), "") ->  | N10: =IFERROR(IF(INDEX('RAB input'!10:10, MATCH(N$4, 'RAB input'!$4:$4, 0))="", "", INDEX('RAB input'!10:10, MATCH(N$4, 'RAB input'!$4:$4, 0))), "") ->  | O10: =IFERROR(IF(INDEX('RAB input'!10:10, MATCH(O$4, 'RAB input'!$4:$4, 0))="", "", INDEX('RAB input'!10:10, MATCH(O$4, 'RAB input'!$4:$4, 0))), "") ->  | P10: =IFERROR(IF(INDEX('RAB input'!10:10, MATCH(P$4, 'RAB input'!$4:$4, 0))="", "", INDEX('RAB input'!10:10, MATCH(P$4, 'RAB input'!$4:$4, 0))), "") ->  | Q10: =IFERROR(IF(INDEX('RAB input'!10:10, MATCH(Q$4, 'RAB input'!$4:$4, 0))="", "", INDEX('RAB input'!10:10, MATCH(Q$4, 'RAB input'!$4:$4, 0))), "") ->  | R10: =IFERROR(IF(INDEX('RAB input'!10:10, MATCH(R$4, 'RAB input'!$4:$4, 0))="", "", INDEX('RAB input'!10:10, MATCH(R$4, 'RAB input'!$4:$4, 0))), "") ->  | S10: =IFERROR(IF(INDEX('RAB input'!10:10, MATCH(S$4, 'RAB input'!$4:$4, 0))="", "", INDEX('RAB input'!10:10, MATCH(S$4, 'RAB input'!$4:$4, 0))), "") ->  | T10: =IFERROR(IF(INDEX('RAB input'!10:10, MATCH(T$4, 'RAB input'!$4:$4, 0))="", "", INDEX('RAB input'!10:10, MATCH(T$4, 'RAB input'!$4:$4, 0))), "") ->  | U10: =IFERROR(IF(INDEX('RAB input'!10:10, MATCH(U$4, 'RAB input'!$4:$4, 0))="", "", INDEX('RAB input'!10:10, MATCH(U$4, 'RAB input'!$4:$4, 0))), "") ->  | V10: =IFERROR(IF(INDEX('RAB input'!10:10, MATCH(V$4, 'RAB input'!$4:$4, 0))="", "", INDEX('RAB input'!10:10, MATCH(V$4, 'RAB input'!$4:$4, 0))), "") ->  | W10: =IFERROR(IF(INDEX('RAB input'!10:10, MATCH(W$4, 'RAB input'!$4:$4, 0))="", "", INDEX('RAB input'!10:10, MATCH(W$4, 'RAB input'!$4:$4, 0))), "") ->  | X10: =IFERROR(IF(INDEX('RAB input'!10:10, MATCH(X$4, 'RAB input'!$4:$4, 0))="", "", INDEX('RAB input'!10:10, MATCH(X$4, 'RAB input'!$4:$4, 0))), "") ->  | Y10: =IFERROR(IF(INDEX('RAB input'!10:10, MATCH(Y$4, 'RAB input'!$4:$4, 0))="", "", INDEX('RAB input'!10:10, MATCH(Y$4, 'RAB input'!$4:$4, 0))), "") ->  | Z10: =IFERROR(IF(INDEX('RAB input'!10:10, MATCH(Z$4, 'RAB input'!$4:$4, 0))="", "", INDEX('RAB input'!10:10, MATCH(Z$4, 'RAB input'!$4:$4, 0))), "") ->  | AA10: =IFERROR(IF(INDEX('RAB input'!10:10, MATCH(AA$4, 'RAB input'!$4:$4, 0))="", "", INDEX('RAB input'!10:10, MATCH(AA$4, 'RAB input'!$4:$4, 0))), "") ->  | AB10: =IFERROR(IF(INDEX('RAB input'!10:10, MATCH(AB$4, 'RAB input'!$4:$4, 0))="", "", INDEX('RAB input'!10:10, MATCH(AB$4, 'RAB input'!$4:$4, 0))), "") ->  | AC10: =IFERROR(IF(INDEX('RAB input'!10:10, MATCH(AC$4, 'RAB input'!$4:$4, 0))="", "", INDEX('RAB input'!10:10, MATCH(AC$4, 'RAB input'!$4:$4, 0))), "") ->  | AD10: =IFERROR(IF(INDEX('RAB input'!10:10, MATCH(AD$4, 'RAB input'!$4:$4, 0))="", "", INDEX('RAB input'!10:10, MATCH(AD$4, 'RAB input'!$4:$4, 0))), "") ->  | AE10: =IFERROR(IF(INDEX('RAB input'!10:10, MATCH(AE$4, 'RAB input'!$4:$4, 0))="", "", INDEX('RAB input'!10:10, MATCH(AE$4, 'RAB input'!$4:$4, 0))), "") ->  | AF10: =IFERROR(IF(INDEX('RAB input'!10:10, MATCH(AF$4, 'RAB input'!$4:$4, 0))="", "", INDEX('RAB input'!10:10, MATCH(AF$4, 'RAB input'!$4:$4, 0))), "") ->  | AG10: =IFERROR(IF(INDEX('RAB input'!10:10, MATCH(AG$4, 'RAB input'!$4:$4, 0))="", "", INDEX('RAB input'!10:10, MATCH(AG$4, 'RAB input'!$4:$4, 0))), "") ->  | AH10: =IFERROR(IF(INDEX('RAB input'!10:10, MATCH(AH$4, 'RAB input'!$4:$4, 0))="", "", INDEX('RAB input'!10:10, MATCH(AH$4, 'RAB input'!$4:$4, 0))), "") ->  | AI10: =IFERROR(IF(INDEX('RAB input'!10:10, MATCH(AI$4, 'RAB input'!$4:$4, 0))="", "", INDEX('RAB input'!10:10, MATCH(AI$4, 'RAB input'!$4:$4, 0))), "") ->  | AJ10: =IFERROR(IF(INDEX('RAB input'!10:10, MATCH(AJ$4, 'RAB input'!$4:$4, 0))="", "", INDEX('RAB input'!10:10, MATCH(AJ$4, 'RAB input'!$4:$4, 0))), "") ->  | AK10: =IFERROR(IF(INDEX('RAB input'!10:10, MATCH(AK$4, 'RAB input'!$4:$4, 0))="", "", INDEX('RAB input'!10:10, MATCH(AK$4, 'RAB input'!$4:$4, 0))), "") ->  | AL10: =IFERROR(IF(INDEX('RAB input'!10:10, MATCH(AL$4, 'RAB input'!$4:$4, 0))="", "", INDEX('RAB input'!10:10, MATCH(AL$4, 'RAB input'!$4:$4, 0))), "") ->  | AM10: =IFERROR(IF(INDEX('RAB input'!10:10, MATCH(AM$4, 'RAB input'!$4:$4, 0))="", "", INDEX('RAB input'!10:10, MATCH(AM$4, 'RAB input'!$4:$4, 0))), "") ->  | AN10: =IFERROR(IF(INDEX('RAB input'!10:10, MATCH(AN$4, 'RAB input'!$4:$4, 0))="", "", INDEX('RAB input'!10:10, MATCH(AN$4, 'RAB input'!$4:$4, 0))), "") ->  | AO10: =IFERROR(IF(INDEX('RAB input'!10:10, MATCH(AO$4, 'RAB input'!$4:$4, 0))="", "", INDEX('RAB input'!10:10, MATCH(AO$4, 'RAB input'!$4:$4, 0))), "") ->  | AP10: =IFERROR(IF(INDEX('RAB input'!10:10, MATCH(AP$4, 'RAB input'!$4:$4, 0))="", "", INDEX('RAB input'!10:10, MATCH(AP$4, 'RAB input'!$4:$4, 0))), "") ->  | AQ10: =IFERROR(IF(INDEX('RAB input'!10:10, MATCH(AQ$4, 'RAB input'!$4:$4, 0))="", "", INDEX('RAB input'!10:10, MATCH(AQ$4, 'RAB input'!$4:$4, 0))), "") ->  | AR10: =IFERROR(IF(INDEX('RAB input'!10:10, MATCH(AR$4, 'RAB input'!$4:$4, 0))="", "", INDEX('RAB input'!10:10, MATCH(AR$4, 'RAB input'!$4:$4, 0))), "") ->  | AS10: =IFERROR(IF(INDEX('RAB input'!10:10, MATCH(AS$4, 'RAB input'!$4:$4, 0))="", "", INDEX('RAB input'!10:10, MATCH(AS$4, 'RAB input'!$4:$4, 0))), "") ->  | AT10: =IFERROR(IF(INDEX('RAB input'!10:10, MATCH(AT$4, 'RAB input'!$4:$4, 0))="", "", INDEX('RAB input'!10:10, MATCH(AT$4, 'RAB input'!$4:$4, 0))), "") ->  | AU10: =IFERROR(IF(INDEX('RAB input'!10:10, MATCH(AU$4, 'RAB input'!$4:$4, 0))="", "", INDEX('RAB input'!10:10, MATCH(AU$4, 'RAB input'!$4:$4, 0))), "") ->  | AV10: =IFERROR(IF(INDEX('RAB input'!10:10, MATCH(AV$4, 'RAB input'!$4:$4, 0))="", "", INDEX('RAB input'!10:10, MATCH(AV$4, 'RAB input'!$4:$4, 0))), "") ->  | AW10: =IFERROR(IF(INDEX('RAB input'!10:10, MATCH(AW$4, 'RAB input'!$4:$4, 0))="", "", INDEX('RAB input'!10:10, MATCH(AW$4, 'RAB input'!$4:$4, 0))), "") ->  | AX10: =IFERROR(IF(INDEX('RAB input'!10:10, MATCH(AX$4, 'RAB input'!$4:$4, 0))="", "", INDEX('RAB input'!10:10, MATCH(AX$4, 'RAB input'!$4:$4, 0))), "") ->  | AY10: =IFERROR(IF(INDEX('RAB input'!10:10, MATCH(AY$4, 'RAB input'!$4:$4, 0))="", "", INDEX('RAB input'!10:10, MATCH(AY$4, 'RAB input'!$4:$4, 0))), "") ->  | AZ10: =IFERROR(IF(INDEX('RAB input'!10:10, MATCH(AZ$4, 'RAB input'!$4:$4, 0))="", "", INDEX('RAB input'!10:10, MATCH(AZ$4, 'RAB input'!$4:$4, 0))), "") ->  | BA10: =IFERROR(IF(INDEX('RAB input'!10:10, MATCH(BA$4, 'RAB input'!$4:$4, 0))="", "", INDEX('RAB input'!10:10, MATCH(BA$4, 'RAB input'!$4:$4, 0))), "") ->  | BB10: =IFERROR(IF(INDEX('RAB input'!10:10, MATCH(BB$4, 'RAB input'!$4:$4, 0))="", "", INDEX('RAB input'!10:10, MATCH(BB$4, 'RAB input'!$4:$4, 0))), "") ->  | BC10: =IFERROR(IF(INDEX('RAB input'!10:10, MATCH(BC$4, 'RAB input'!$4:$4, 0))="", "", INDEX('RAB input'!10:10, MATCH(BC$4, 'RAB input'!$4:$4, 0))), "") ->  | BD10: =IFERROR(IF(INDEX('RAB input'!10:10, MATCH(BD$4, 'RAB input'!$4:$4, 0))="", "", INDEX('RAB input'!10:10, MATCH(BD$4, 'RAB input'!$4:$4, 0))), "") ->  | BE10: =IFERROR(IF(INDEX('RAB input'!10:10, MATCH(BE$4, 'RAB input'!$4:$4, 0))="", "", INDEX('RAB input'!10:10, MATCH(BE$4, 'RAB input'!$4:$4, 0))), "") ->  | BF10: =IFERROR(IF(INDEX('RAB input'!10:10, MATCH(BF$4, 'RAB input'!$4:$4, 0))="", "", INDEX('RAB input'!10:10, MATCH(BF$4, 'RAB input'!$4:$4, 0))), "") ->  | BG10: =IFERROR(IF(INDEX('RAB input'!10:10, MATCH(BG$4, 'RAB input'!$4:$4, 0))="", "", INDEX('RAB input'!10:10, MATCH(BG$4, 'RAB input'!$4:$4, 0))), "") ->  | BH10: =IFERROR(IF(INDEX('RAB input'!10:10, MATCH(BH$4, 'RAB input'!$4:$4, 0))="", "", INDEX('RAB input'!10:10, MATCH(BH$4, 'RAB input'!$4:$4, 0))), "") ->  | BI10: =IFERROR(IF(INDEX('RAB input'!10:10, MATCH(BI$4, 'RAB input'!$4:$4, 0))="", "", INDEX('RAB input'!10:10, MATCH(BI$4, 'RAB input'!$4:$4, 0))), "") ->  | BJ10: =IFERROR(IF(INDEX('RAB input'!10:10, MATCH(BJ$4, 'RAB input'!$4:$4, 0))="", "", INDEX('RAB input'!10:10, MATCH(BJ$4, 'RAB input'!$4:$4, 0))), "") ->  | BK10: =IFERROR(IF(INDEX('RAB input'!10:10, MATCH(BK$4, 'RAB input'!$4:$4, 0))="", "", INDEX('RAB input'!10:10, MATCH(BK$4, 'RAB input'!$4:$4, 0))), "") ->  | BL10: =IFERROR(IF(INDEX('RAB input'!10:10, MATCH(BL$4, 'RAB input'!$4:$4, 0))="", "", INDEX('RAB input'!10:10, MATCH(BL$4, 'RAB input'!$4:$4, 0))), "") ->  | BM10: =IFERROR(IF(INDEX('RAB input'!10:10, MATCH(BM$4, 'RAB input'!$4:$4, 0))="", "", INDEX('RAB input'!10:10, MATCH(BM$4, 'RAB input'!$4:$4, 0))), "") ->  | BN10: =IFERROR(IF(INDEX('RAB input'!10:10, MATCH(BN$4, 'RAB input'!$4:$4, 0))="", "", INDEX('RAB input'!10:10, MATCH(BN$4, 'RAB input'!$4:$4, 0))), "") ->  | BO10: =IFERROR(IF(INDEX('RAB input'!10:10, MATCH(BO$4, 'RAB input'!$4:$4, 0))="", "", INDEX('RAB input'!10:10, MATCH(BO$4, 'RAB input'!$4:$4, 0))), "") ->  | BP10: =IFERROR(IF(INDEX('RAB input'!10:10, MATCH(BP$4, 'RAB input'!$4:$4, 0))="", "", INDEX('RAB input'!10:10, MATCH(BP$4, 'RAB input'!$4:$4, 0))), "") ->  | BQ10: =IFERROR(IF(INDEX('RAB input'!10:10, MATCH(BQ$4, 'RAB input'!$4:$4, 0))="", "", INDEX('RAB input'!10:10, MATCH(BQ$4, 'RAB input'!$4:$4, 0))), "") ->  | BR10: =IFERROR(IF(INDEX('RAB input'!10:10, MATCH(BR$4, 'RAB input'!$4:$4, 0))="", "", INDEX('RAB input'!10:10, MATCH(BR$4, 'RAB input'!$4:$4, 0))), "") ->  | BS10: =IFERROR(IF(INDEX('RAB input'!10:10, MATCH(BS$4, 'RAB input'!$4:$4, 0))="", "", INDEX('RAB input'!10:10, MATCH(BS$4, 'RAB input'!$4:$4, 0))), "") ->  | BT10: =IFERROR(IF(INDEX('RAB input'!10:10, MATCH(BT$4, 'RAB input'!$4:$4, 0))="", "", INDEX('RAB input'!10:10, MATCH(BT$4, 'RAB input'!$4:$4, 0))), "") ->  | BU10: =IFERROR(IF(INDEX('RAB input'!10:10, MATCH(BU$4, 'RAB input'!$4:$4, 0))="", "", INDEX('RAB input'!10:10, MATCH(BU$4, 'RAB input'!$4:$4, 0))), "") ->  | BV10: =IFERROR(IF(INDEX('RAB input'!10:10, MATCH(BV$4, 'RAB input'!$4:$4, 0))="", "", INDEX('RAB input'!10:10, MATCH(BV$4, 'RAB input'!$4:$4, 0))), "") ->  | BW10: =IFERROR(IF(INDEX('RAB input'!10:10, MATCH(BW$4, 'RAB input'!$4:$4, 0))="", "", INDEX('RAB input'!10:10, MATCH(BW$4, 'RAB input'!$4:$4, 0))), "") ->  | BX10: =IFERROR(IF(INDEX('RAB input'!10:10, MATCH(BX$4, 'RAB input'!$4:$4, 0))="", "", INDEX('RAB input'!10:10, MATCH(BX$4, 'RAB input'!$4:$4, 0))), "") ->  | BY10: =IFERROR(IF(INDEX('RAB input'!10:10, MATCH(BY$4, 'RAB input'!$4:$4, 0))="", "", INDEX('RAB input'!10:10, MATCH(BY$4, 'RAB input'!$4:$4, 0))), "") ->  | BZ10: =IFERROR(IF(INDEX('RAB input'!10:10, MATCH(BZ$4, 'RAB input'!$4:$4, 0))="", "", INDEX('RAB input'!10:10, MATCH(BZ$4, 'RAB input'!$4:$4, 0))), "") ->  | CA10: =IFERROR(IF(INDEX('RAB input'!10:10, MATCH(CA$4, 'RAB input'!$4:$4, 0))="", "", INDEX('RAB input'!10:10, MATCH(CA$4, 'RAB input'!$4:$4, 0))), "") ->  | CB10: =IFERROR(IF(INDEX('RAB input'!10:10, MATCH(CB$4, 'RAB input'!$4:$4, 0))="", "", INDEX('RAB input'!10:10, MATCH(CB$4, 'RAB input'!$4:$4, 0))), "") ->  | CC10: =IFERROR(IF(INDEX('RAB input'!10:10, MATCH(CC$4, 'RAB input'!$4:$4, 0))="", "", INDEX('RAB input'!10:10, MATCH(CC$4, 'RAB input'!$4:$4, 0))), "") ->  | CD10: =IFERROR(IF(INDEX('RAB input'!10:10, MATCH(CD$4, 'RAB input'!$4:$4, 0))="", "", INDEX('RAB input'!10:10, MATCH(CD$4, 'RAB input'!$4:$4, 0))), "") ->  | CE10: =IFERROR(IF(INDEX('RAB input'!10:10, MATCH(CE$4, 'RAB input'!$4:$4, 0))="", "", INDEX('RAB input'!10:10, MATCH(CE$4, 'RAB input'!$4:$4, 0))), "") ->  | CF10: =IFERROR(IF(INDEX('RAB input'!10:10, MATCH(CF$4, 'RAB input'!$4:$4, 0))="", "", INDEX('RAB input'!10:10, MATCH(CF$4, 'RAB input'!$4:$4, 0))), "") ->  | CG10: =IFERROR(IF(INDEX('RAB input'!10:10, MATCH(CG$4, 'RAB input'!$4:$4, 0))="", "", INDEX('RAB input'!10:10, MATCH(CG$4, 'RAB input'!$4:$4, 0))), "") ->  | CH10: =IFERROR(IF(INDEX('RAB input'!10:10, MATCH(CH$4, 'RAB input'!$4:$4, 0))="", "", INDEX('RAB input'!10:10, MATCH(CH$4, 'RAB input'!$4:$4, 0))), "") ->  | CI10: =IFERROR(IF(INDEX('RAB input'!10:10, MATCH(CI$4, 'RAB input'!$4:$4, 0))="", "", INDEX('RAB input'!10:10, MATCH(CI$4, 'RAB input'!$4:$4, 0))), "") ->  | CJ10: =IFERROR(IF(INDEX('RAB input'!10:10, MATCH(CJ$4, 'RAB input'!$4:$4, 0))="", "", INDEX('RAB input'!10:10, MATCH(CJ$4, 'RAB input'!$4:$4, 0))), "") -> 
E11: Years in regulatory period | H11: =IFERROR(IF(INDEX('RAB input'!11:11, MATCH(H$4, 'RAB input'!$4:$4, 0))="", "", INDEX('RAB input'!11:11, MATCH(H$4, 'RAB input'!$4:$4, 0))), "") -> 5 | I11: =IFERROR(IF(INDEX('RAB input'!11:11, MATCH(I$4, 'RAB input'!$4:$4, 0))="", "", INDEX('RAB input'!11:11, MATCH(I$4, 'RAB input'!$4:$4, 0))), "") ->  | J11: =IFERROR(IF(INDEX('RAB input'!11:11, MATCH(J$4, 'RAB input'!$4:$4, 0))="", "", INDEX('RAB input'!11:11, MATCH(J$4, 'RAB input'!$4:$4, 0))), "") ->  | K11: =IFERROR(IF(INDEX('RAB input'!11:11, MATCH(K$4, 'RAB input'!$4:$4, 0))="", "", INDEX('RAB input'!11:11, MATCH(K$4, 'RAB input'!$4:$4, 0))), "") ->  | L11: =IFERROR(IF(INDEX('RAB input'!11:11, MATCH(L$4, 'RAB input'!$4:$4, 0))="", "", INDEX('RAB input'!11:11, MATCH(L$4, 'RAB input'!$4:$4, 0))), "") ->  | M11: =IFERROR(IF(INDEX('RAB input'!11:11, MATCH(M$4, 'RAB input'!$4:$4, 0))="", "", INDEX('RAB input'!11:11, MATCH(M$4, 'RAB input'!$4:$4, 0))), "") ->  | N11: =IFERROR(IF(INDEX('RAB input'!11:11, MATCH(N$4, 'RAB input'!$4:$4, 0))="", "", INDEX('RAB input'!11:11, MATCH(N$4, 'RAB input'!$4:$4, 0))), "") ->  | O11: =IFERROR(IF(INDEX('RAB input'!11:11, MATCH(O$4, 'RAB input'!$4:$4, 0))="", "", INDEX('RAB input'!11:11, MATCH(O$4, 'RAB input'!$4:$4, 0))), "") ->  | P11: =IFERROR(IF(INDEX('RAB input'!11:11, MATCH(P$4, 'RAB input'!$4:$4, 0))="", "", INDEX('RAB input'!11:11, MATCH(P$4, 'RAB input'!$4:$4, 0))), "") ->  | Q11: =IFERROR(IF(INDEX('RAB input'!11:11, MATCH(Q$4, 'RAB input'!$4:$4, 0))="", "", INDEX('RAB input'!11:11, MATCH(Q$4, 'RAB input'!$4:$4, 0))), "") ->  | R11: =IFERROR(IF(INDEX('RAB input'!11:11, MATCH(R$4, 'RAB input'!$4:$4, 0))="", "", INDEX('RAB input'!11:11, MATCH(R$4, 'RAB input'!$4:$4, 0))), "") ->  | S11: =IFERROR(IF(INDEX('RAB input'!11:11, MATCH(S$4, 'RAB input'!$4:$4, 0))="", "", INDEX('RAB input'!11:11, MATCH(S$4, 'RAB input'!$4:$4, 0))), "") ->  | T11: =IFERROR(IF(INDEX('RAB input'!11:11, MATCH(T$4, 'RAB input'!$4:$4, 0))="", "", INDEX('RAB input'!11:11, MATCH(T$4, 'RAB input'!$4:$4, 0))), "") ->  | U11: =IFERROR(IF(INDEX('RAB input'!11:11, MATCH(U$4, 'RAB input'!$4:$4, 0))="", "", INDEX('RAB input'!11:11, MATCH(U$4, 'RAB input'!$4:$4, 0))), "") ->  | V11: =IFERROR(IF(INDEX('RAB input'!11:11, MATCH(V$4, 'RAB input'!$4:$4, 0))="", "", INDEX('RAB input'!11:11, MATCH(V$4, 'RAB input'!$4:$4, 0))), "") ->  | W11: =IFERROR(IF(INDEX('RAB input'!11:11, MATCH(W$4, 'RAB input'!$4:$4, 0))="", "", INDEX('RAB input'!11:11, MATCH(W$4, 'RAB input'!$4:$4, 0))), "") ->  | X11: =IFERROR(IF(INDEX('RAB input'!11:11, MATCH(X$4, 'RAB input'!$4:$4, 0))="", "", INDEX('RAB input'!11:11, MATCH(X$4, 'RAB input'!$4:$4, 0))), "") ->  | Y11: =IFERROR(IF(INDEX('RAB input'!11:11, MATCH(Y$4, 'RAB input'!$4:$4, 0))="", "", INDEX('RAB input'!11:11, MATCH(Y$4, 'RAB input'!$4:$4, 0))), "") ->  | Z11: =IFERROR(IF(INDEX('RAB input'!11:11, MATCH(Z$4, 'RAB input'!$4:$4, 0))="", "", INDEX('RAB input'!11:11, MATCH(Z$4, 'RAB input'!$4:$4, 0))), "") ->  | AA11: =IFERROR(IF(INDEX('RAB input'!11:11, MATCH(AA$4, 'RAB input'!$4:$4, 0))="", "", INDEX('RAB input'!11:11, MATCH(AA$4, 'RAB input'!$4:$4, 0))), "") ->  | AB11: =IFERROR(IF(INDEX('RAB input'!11:11, MATCH(AB$4, 'RAB input'!$4:$4, 0))="", "", INDEX('RAB input'!11:11, MATCH(AB$4, 'RAB input'!$4:$4, 0))), "") ->  | AC11: =IFERROR(IF(INDEX('RAB input'!11:11, MATCH(AC$4, 'RAB input'!$4:$4, 0))="", "", INDEX('RAB input'!11:11, MATCH(AC$4, 'RAB input'!$4:$4, 0))), "") ->  | AD11: =IFERROR(IF(INDEX('RAB input'!11:11, MATCH(AD$4, 'RAB input'!$4:$4, 0))="", "", INDEX('RAB input'!11:11, MATCH(AD$4, 'RAB input'!$4:$4, 0))), "") ->  | AE11: =IFERROR(IF(INDEX('RAB input'!11:11, MATCH(AE$4, 'RAB input'!$4:$4, 0))="", "", INDEX('RAB input'!11:11, MATCH(AE$4, 'RAB input'!$4:$4, 0))), "") ->  | AF11: =IFERROR(IF(INDEX('RAB input'!11:11, MATCH(AF$4, 'RAB input'!$4:$4, 0))="", "", INDEX('RAB input'!11:11, MATCH(AF$4, 'RAB input'!$4:$4, 0))), "") ->  | AG11: =IFERROR(IF(INDEX('RAB input'!11:11, MATCH(AG$4, 'RAB input'!$4:$4, 0))="", "", INDEX('RAB input'!11:11, MATCH(AG$4, 'RAB input'!$4:$4, 0))), "") ->  | AH11: =IFERROR(IF(INDEX('RAB input'!11:11, MATCH(AH$4, 'RAB input'!$4:$4, 0))="", "", INDEX('RAB input'!11:11, MATCH(AH$4, 'RAB input'!$4:$4, 0))), "") ->  | AI11: =IFERROR(IF(INDEX('RAB input'!11:11, MATCH(AI$4, 'RAB input'!$4:$4, 0))="", "", INDEX('RAB input'!11:11, MATCH(AI$4, 'RAB input'!$4:$4, 0))), "") ->  | AJ11: =IFERROR(IF(INDEX('RAB input'!11:11, MATCH(AJ$4, 'RAB input'!$4:$4, 0))="", "", INDEX('RAB input'!11:11, MATCH(AJ$4, 'RAB input'!$4:$4, 0))), "") ->  | AK11: =IFERROR(IF(INDEX('RAB input'!11:11, MATCH(AK$4, 'RAB input'!$4:$4, 0))="", "", INDEX('RAB input'!11:11, MATCH(AK$4, 'RAB input'!$4:$4, 0))), "") ->  | AL11: =IFERROR(IF(INDEX('RAB input'!11:11, MATCH(AL$4, 'RAB input'!$4:$4, 0))="", "", INDEX('RAB input'!11:11, MATCH(AL$4, 'RAB input'!$4:$4, 0))), "") ->  | AM11: =IFERROR(IF(INDEX('RAB input'!11:11, MATCH(AM$4, 'RAB input'!$4:$4, 0))="", "", INDEX('RAB input'!11:11, MATCH(AM$4, 'RAB input'!$4:$4, 0))), "") ->  | AN11: =IFERROR(IF(INDEX('RAB input'!11:11, MATCH(AN$4, 'RAB input'!$4:$4, 0))="", "", INDEX('RAB input'!11:11, MATCH(AN$4, 'RAB input'!$4:$4, 0))), "") ->  | AO11: =IFERROR(IF(INDEX('RAB input'!11:11, MATCH(AO$4, 'RAB input'!$4:$4, 0))="", "", INDEX('RAB input'!11:11, MATCH(AO$4, 'RAB input'!$4:$4, 0))), "") ->  | AP11: =IFERROR(IF(INDEX('RAB input'!11:11, MATCH(AP$4, 'RAB input'!$4:$4, 0))="", "", INDEX('RAB input'!11:11, MATCH(AP$4, 'RAB input'!$4:$4, 0))), "") ->  | AQ11: =IFERROR(IF(INDEX('RAB input'!11:11, MATCH(AQ$4, 'RAB input'!$4:$4, 0))="", "", INDEX('RAB input'!11:11, MATCH(AQ$4, 'RAB input'!$4:$4, 0))), "") ->  | AR11: =IFERROR(IF(INDEX('RAB input'!11:11, MATCH(AR$4, 'RAB input'!$4:$4, 0))="", "", INDEX('RAB input'!11:11, MATCH(AR$4, 'RAB input'!$4:$4, 0))), "") ->  | AS11: =IFERROR(IF(INDEX('RAB input'!11:11, MATCH(AS$4, 'RAB input'!$4:$4, 0))="", "", INDEX('RAB input'!11:11, MATCH(AS$4, 'RAB input'!$4:$4, 0))), "") ->  | AT11: =IFERROR(IF(INDEX('RAB input'!11:11, MATCH(AT$4, 'RAB input'!$4:$4, 0))="", "", INDEX('RAB input'!11:11, MATCH(AT$4, 'RAB input'!$4:$4, 0))), "") ->  | AU11: =IFERROR(IF(INDEX('RAB input'!11:11, MATCH(AU$4, 'RAB input'!$4:$4, 0))="", "", INDEX('RAB input'!11:11, MATCH(AU$4, 'RAB input'!$4:$4, 0))), "") ->  | AV11: =IFERROR(IF(INDEX('RAB input'!11:11, MATCH(AV$4, 'RAB input'!$4:$4, 0))="", "", INDEX('RAB input'!11:11, MATCH(AV$4, 'RAB input'!$4:$4, 0))), "") ->  | AW11: =IFERROR(IF(INDEX('RAB input'!11:11, MATCH(AW$4, 'RAB input'!$4:$4, 0))="", "", INDEX('RAB input'!11:11, MATCH(AW$4, 'RAB input'!$4:$4, 0))), "") ->  | AX11: =IFERROR(IF(INDEX('RAB input'!11:11, MATCH(AX$4, 'RAB input'!$4:$4, 0))="", "", INDEX('RAB input'!11:11, MATCH(AX$4, 'RAB input'!$4:$4, 0))), "") ->  | AY11: =IFERROR(IF(INDEX('RAB input'!11:11, MATCH(AY$4, 'RAB input'!$4:$4, 0))="", "", INDEX('RAB input'!11:11, MATCH(AY$4, 'RAB input'!$4:$4, 0))), "") ->  | AZ11: =IFERROR(IF(INDEX('RAB input'!11:11, MATCH(AZ$4, 'RAB input'!$4:$4, 0))="", "", INDEX('RAB input'!11:11, MATCH(AZ$4, 'RAB input'!$4:$4, 0))), "") ->  | BA11: =IFERROR(IF(INDEX('RAB input'!11:11, MATCH(BA$4, 'RAB input'!$4:$4, 0))="", "", INDEX('RAB input'!11:11, MATCH(BA$4, 'RAB input'!$4:$4, 0))), "") ->  | BB11: =IFERROR(IF(INDEX('RAB input'!11:11, MATCH(BB$4, 'RAB input'!$4:$4, 0))="", "", INDEX('RAB input'!11:11, MATCH(BB$4, 'RAB input'!$4:$4, 0))), "") ->  | BC11: =IFERROR(IF(INDEX('RAB input'!11:11, MATCH(BC$4, 'RAB input'!$4:$4, 0))="", "", INDEX('RAB input'!11:11, MATCH(BC$4, 'RAB input'!$4:$4, 0))), "") ->  | BD11: =IFERROR(IF(INDEX('RAB input'!11:11, MATCH(BD$4, 'RAB input'!$4:$4, 0))="", "", INDEX('RAB input'!11:11, MATCH(BD$4, 'RAB input'!$4:$4, 0))), "") ->  | BE11: =IFERROR(IF(INDEX('RAB input'!11:11, MATCH(BE$4, 'RAB input'!$4:$4, 0))="", "", INDEX('RAB input'!11:11, MATCH(BE$4, 'RAB input'!$4:$4, 0))), "") ->  | BF11: =IFERROR(IF(INDEX('RAB input'!11:11, MATCH(BF$4, 'RAB input'!$4:$4, 0))="", "", INDEX('RAB input'!11:11, MATCH(BF$4, 'RAB input'!$4:$4, 0))), "") ->  | BG11: =IFERROR(IF(INDEX('RAB input'!11:11, MATCH(BG$4, 'RAB input'!$4:$4, 0))="", "", INDEX('RAB input'!11:11, MATCH(BG$4, 'RAB input'!$4:$4, 0))), "") ->  | BH11: =IFERROR(IF(INDEX('RAB input'!11:11, MATCH(BH$4, 'RAB input'!$4:$4, 0))="", "", INDEX('RAB input'!11:11, MATCH(BH$4, 'RAB input'!$4:$4, 0))), "") ->  | BI11: =IFERROR(IF(INDEX('RAB input'!11:11, MATCH(BI$4, 'RAB input'!$4:$4, 0))="", "", INDEX('RAB input'!11:11, MATCH(BI$4, 'RAB input'!$4:$4, 0))), "") ->  | BJ11: =IFERROR(IF(INDEX('RAB input'!11:11, MATCH(BJ$4, 'RAB input'!$4:$4, 0))="", "", INDEX('RAB input'!11:11, MATCH(BJ$4, 'RAB input'!$4:$4, 0))), "") ->  | BK11: =IFERROR(IF(INDEX('RAB input'!11:11, MATCH(BK$4, 'RAB input'!$4:$4, 0))="", "", INDEX('RAB input'!11:11, MATCH(BK$4, 'RAB input'!$4:$4, 0))), "") ->  | BL11: =IFERROR(IF(INDEX('RAB input'!11:11, MATCH(BL$4, 'RAB input'!$4:$4, 0))="", "", INDEX('RAB input'!11:11, MATCH(BL$4, 'RAB input'!$4:$4, 0))), "") ->  | BM11: =IFERROR(IF(INDEX('RAB input'!11:11, MATCH(BM$4, 'RAB input'!$4:$4, 0))="", "", INDEX('RAB input'!11:11, MATCH(BM$4, 'RAB input'!$4:$4, 0))), "") ->  | BN11: =IFERROR(IF(INDEX('RAB input'!11:11, MATCH(BN$4, 'RAB input'!$4:$4, 0))="", "", INDEX('RAB input'!11:11, MATCH(BN$4, 'RAB input'!$4:$4, 0))), "") ->  | BO11: =IFERROR(IF(INDEX('RAB input'!11:11, MATCH(BO$4, 'RAB input'!$4:$4, 0))="", "", INDEX('RAB input'!11:11, MATCH(BO$4, 'RAB input'!$4:$4, 0))), "") ->  | BP11: =IFERROR(IF(INDEX('RAB input'!11:11, MATCH(BP$4, 'RAB input'!$4:$4, 0))="", "", INDEX('RAB input'!11:11, MATCH(BP$4, 'RAB input'!$4:$4, 0))), "") ->  | BQ11: =IFERROR(IF(INDEX('RAB input'!11:11, MATCH(BQ$4, 'RAB input'!$4:$4, 0))="", "", INDEX('RAB input'!11:11, MATCH(BQ$4, 'RAB input'!$4:$4, 0))), "") ->  | BR11: =IFERROR(IF(INDEX('RAB input'!11:11, MATCH(BR$4, 'RAB input'!$4:$4, 0))="", "", INDEX('RAB input'!11:11, MATCH(BR$4, 'RAB input'!$4:$4, 0))), "") ->  | BS11: =IFERROR(IF(INDEX('RAB input'!11:11, MATCH(BS$4, 'RAB input'!$4:$4, 0))="", "", INDEX('RAB input'!11:11, MATCH(BS$4, 'RAB input'!$4:$4, 0))), "") ->  | BT11: =IFERROR(IF(INDEX('RAB input'!11:11, MATCH(BT$4, 'RAB input'!$4:$4, 0))="", "", INDEX('RAB input'!11:11, MATCH(BT$4, 'RAB input'!$4:$4, 0))), "") ->  | BU11: =IFERROR(IF(INDEX('RAB input'!11:11, MATCH(BU$4, 'RAB input'!$4:$4, 0))="", "", INDEX('RAB input'!11:11, MATCH(BU$4, 'RAB input'!$4:$4, 0))), "") ->  | BV11: =IFERROR(IF(INDEX('RAB input'!11:11, MATCH(BV$4, 'RAB input'!$4:$4, 0))="", "", INDEX('RAB input'!11:11, MATCH(BV$4, 'RAB input'!$4:$4, 0))), "") ->  | BW11: =IFERROR(IF(INDEX('RAB input'!11:11, MATCH(BW$4, 'RAB input'!$4:$4, 0))="", "", INDEX('RAB input'!11:11, MATCH(BW$4, 'RAB input'!$4:$4, 0))), "") ->  | BX11: =IFERROR(IF(INDEX('RAB input'!11:11, MATCH(BX$4, 'RAB input'!$4:$4, 0))="", "", INDEX('RAB input'!11:11, MATCH(BX$4, 'RAB input'!$4:$4, 0))), "") ->  | BY11: =IFERROR(IF(INDEX('RAB input'!11:11, MATCH(BY$4, 'RAB input'!$4:$4, 0))="", "", INDEX('RAB input'!11:11, MATCH(BY$4, 'RAB input'!$4:$4, 0))), "") ->  | BZ11: =IFERROR(IF(INDEX('RAB input'!11:11, MATCH(BZ$4, 'RAB input'!$4:$4, 0))="", "", INDEX('RAB input'!11:11, MATCH(BZ$4, 'RAB input'!$4:$4, 0))), "") ->  | CA11: =IFERROR(IF(INDEX('RAB input'!11:11, MATCH(CA$4, 'RAB input'!$4:$4, 0))="", "", INDEX('RAB input'!11:11, MATCH(CA$4, 'RAB input'!$4:$4, 0))), "") ->  | CB11: =IFERROR(IF(INDEX('RAB input'!11:11, MATCH(CB$4, 'RAB input'!$4:$4, 0))="", "", INDEX('RAB input'!11:11, MATCH(CB$4, 'RAB input'!$4:$4, 0))), "") ->  | CC11: =IFERROR(IF(INDEX('RAB input'!11:11, MATCH(CC$4, 'RAB input'!$4:$4, 0))="", "", INDEX('RAB input'!11:11, MATCH(CC$4, 'RAB input'!$4:$4, 0))), "") ->  | CD11: =IFERROR(IF(INDEX('RAB input'!11:11, MATCH(CD$4, 'RAB input'!$4:$4, 0))="", "", INDEX('RAB input'!11:11, MATCH(CD$4, 'RAB input'!$4:$4, 0))), "") ->  | CE11: =IFERROR(IF(INDEX('RAB input'!11:11, MATCH(CE$4, 'RAB input'!$4:$4, 0))="", "", INDEX('RAB input'!11:11, MATCH(CE$4, 'RAB input'!$4:$4, 0))), "") ->  | CF11: =IFERROR(IF(INDEX('RAB input'!11:11, MATCH(CF$4, 'RAB input'!$4:$4, 0))="", "", INDEX('RAB input'!11:11, MATCH(CF$4, 'RAB input'!$4:$4, 0))), "") ->  | CG11: =IFERROR(IF(INDEX('RAB input'!11:11, MATCH(CG$4, 'RAB input'!$4:$4, 0))="", "", INDEX('RAB input'!11:11, MATCH(CG$4, 'RAB input'!$4:$4, 0))), "") ->  | CH11: =IFERROR(IF(INDEX('RAB input'!11:11, MATCH(CH$4, 'RAB input'!$4:$4, 0))="", "", INDEX('RAB input'!11:11, MATCH(CH$4, 'RAB input'!$4:$4, 0))), "") ->  | CI11: =IFERROR(IF(INDEX('RAB input'!11:11, MATCH(CI$4, 'RAB input'!$4:$4, 0))="", "", INDEX('RAB input'!11:11, MATCH(CI$4, 'RAB input'!$4:$4, 0))), "") ->  | CJ11: =IFERROR(IF(INDEX('RAB input'!11:11, MATCH(CJ$4, 'RAB input'!$4:$4, 0))="", "", INDEX('RAB input'!11:11, MATCH(CJ$4, 'RAB input'!$4:$4, 0))), "") -> 
G12: =IF(OR(G$446:G$495="DV"), "DV input required", "") ->  | H12: =IF(AND(OR(H$446:H$495="DV"), H$13=""), "DV input required", "") ->  | I12: =IF(COUNTA($H$12:H$12)<SUM($11:$11), IF(AND(I$446:I$495=""), IF(AND(H$13<>"", I$13=""), "DV input required", H$12), IF(AND(OR(I$446:I$495="DV"), I$13=""), "DV input required", "")), "") ->  | J12: =IF(COUNTA($H$12:I$12)<SUM($11:$11), IF(AND(J$446:J$495=""), IF(AND(I$13<>"", J$13=""), "DV input required", I$12), IF(AND(OR(J$446:J$495="DV"), J$13=""), "DV input required", "")), "") ->  | K12: =IF(COUNTA($H$12:J$12)<SUM($11:$11), IF(AND(K$446:K$495=""), IF(AND(J$13<>"", K$13=""), "DV input required", J$12), IF(AND(OR(K$446:K$495="DV"), K$13=""), "DV input required", "")), "") ->  | L12: =IF(COUNTA($H$12:K$12)<SUM($11:$11), IF(AND(L$446:L$495=""), IF(AND(K$13<>"", L$13=""), "DV input required", K$12), IF(AND(OR(L$446:L$495="DV"), L$13=""), "DV input required", "")), "") ->  | M12: =IF(COUNTA($H$12:L$12)<SUM($11:$11), IF(AND(M$446:M$495=""), IF(AND(L$13<>"", M$13=""), "DV input required", L$12), IF(AND(OR(M$446:M$495="DV"), M$13=""), "DV input required", "")), "") ->  | N12: =IF(COUNTA($H$12:M$12)<SUM($11:$11), IF(AND(N$446:N$495=""), IF(AND(M$13<>"", N$13=""), "DV input required", M$12), IF(AND(OR(N$446:N$495="DV"), N$13=""), "DV input required", "")), "") ->  | O12: =IF(COUNTA($H$12:N$12)<SUM($11:$11), IF(AND(O$446:O$495=""), IF(AND(N$13<>"", O$13=""), "DV input required", N$12), IF(AND(OR(O$446:O$495="DV"), O$13=""), "DV input required", "")), "") ->  | P12: =IF(COUNTA($H$12:O$12)<SUM($11:$11), IF(AND(P$446:P$495=""), IF(AND(O$13<>"", P$13=""), "DV input required", O$12), IF(AND(OR(P$446:P$495="DV"), P$13=""), "DV input required", "")), "") ->  | Q12: =IF(COUNTA($H$12:P$12)<SUM($11:$11), IF(AND(Q$446:Q$495=""), IF(AND(P$13<>"", Q$13=""), "DV input required", P$12), IF(AND(OR(Q$446:Q$495="DV"), Q$13=""), "DV input required", "")), "") ->  | R12: =IF(COUNTA($H$12:Q$12)<SUM($11:$11), IF(AND(R$446:R$495=""), IF(AND(Q$13<>"", R$13=""), "DV input required", Q$12), IF(AND(OR(R$446:R$495="DV"), R$13=""), "DV input required", "")), "") ->  | S12: =IF(COUNTA($H$12:R$12)<SUM($11:$11), IF(AND(S$446:S$495=""), IF(AND(R$13<>"", S$13=""), "DV input required", R$12), IF(AND(OR(S$446:S$495="DV"), S$13=""), "DV input required", "")), "") ->  | T12: =IF(COUNTA($H$12:S$12)<SUM($11:$11), IF(AND(T$446:T$495=""), IF(AND(S$13<>"", T$13=""), "DV input required", S$12), IF(AND(OR(T$446:T$495="DV"), T$13=""), "DV input required", "")), "") ->  | U12: =IF(COUNTA($H$12:T$12)<SUM($11:$11), IF(AND(U$446:U$495=""), IF(AND(T$13<>"", U$13=""), "DV input required", T$12), IF(AND(OR(U$446:U$495="DV"), U$13=""), "DV input required", "")), "") ->  | V12: =IF(COUNTA($H$12:U$12)<SUM($11:$11), IF(AND(V$446:V$495=""), IF(AND(U$13<>"", V$13=""), "DV input required", U$12), IF(AND(OR(V$446:V$495="DV"), V$13=""), "DV input required", "")), "") ->  | W12: =IF(COUNTA($H$12:V$12)<SUM($11:$11), IF(AND(W$446:W$495=""), IF(AND(V$13<>"", W$13=""), "DV input required", V$12), IF(AND(OR(W$446:W$495="DV"), W$13=""), "DV input required", "")), "") ->  | X12: =IF(COUNTA($H$12:W$12)<SUM($11:$11), IF(AND(X$446:X$495=""), IF(AND(W$13<>"", X$13=""), "DV input required", W$12), IF(AND(OR(X$446:X$495="DV"), X$13=""), "DV input required", "")), "") ->  | Y12: =IF(COUNTA($H$12:X$12)<SUM($11:$11), IF(AND(Y$446:Y$495=""), IF(AND(X$13<>"", Y$13=""), "DV input required", X$12), IF(AND(OR(Y$446:Y$495="DV"), Y$13=""), "DV input required", "")), "") ->  | Z12: =IF(COUNTA($H$12:Y$12)<SUM($11:$11), IF(AND(Z$446:Z$495=""), IF(AND(Y$13<>"", Z$13=""), "DV input required", Y$12), IF(AND(OR(Z$446:Z$495="DV"), Z$13=""), "DV input required", "")), "") ->  | AA12: =IF(COUNTA($H$12:Z$12)<SUM($11:$11), IF(AND(AA$446:AA$495=""), IF(AND(Z$13<>"", AA$13=""), "DV input required", Z$12), IF(AND(OR(AA$446:AA$495="DV"), AA$13=""), "DV input required", "")), "") ->  | AB12: =IF(COUNTA($H$12:AA$12)<SUM($11:$11), IF(AND(AB$446:AB$495=""), IF(AND(AA$13<>"", AB$13=""), "DV input required", AA$12), IF(AND(OR(AB$446:AB$495="DV"), AB$13=""), "DV input required", "")), "") ->  | AC12: =IF(COUNTA($H$12:AB$12)<SUM($11:$11), IF(AND(AC$446:AC$495=""), IF(AND(AB$13<>"", AC$13=""), "DV input required", AB$12), IF(AND(OR(AC$446:AC$495="DV"), AC$13=""), "DV input required", "")), "") ->  | AD12: =IF(COUNTA($H$12:AC$12)<SUM($11:$11), IF(AND(AD$446:AD$495=""), IF(AND(AC$13<>"", AD$13=""), "DV input required", AC$12), IF(AND(OR(AD$446:AD$495="DV"), AD$13=""), "DV input required", "")), "") ->  | AE12: =IF(COUNTA($H$12:AD$12)<SUM($11:$11), IF(AND(AE$446:AE$495=""), IF(AND(AD$13<>"", AE$13=""), "DV input required", AD$12), IF(AND(OR(AE$446:AE$495="DV"), AE$13=""), "DV input required", "")), "") ->  | AF12: =IF(COUNTA($H$12:AE$12)<SUM($11:$11), IF(AND(AF$446:AF$495=""), IF(AND(AE$13<>"", AF$13=""), "DV input required", AE$12), IF(AND(OR(AF$446:AF$495="DV"), AF$13=""), "DV input required", "")), "") ->  | AG12: =IF(COUNTA($H$12:AF$12)<SUM($11:$11), IF(AND(AG$446:AG$495=""), IF(AND(AF$13<>"", AG$13=""), "DV input required", AF$12), IF(AND(OR(AG$446:AG$495="DV"), AG$13=""), "DV input required", "")), "") ->  | AH12: =IF(COUNTA($H$12:AG$12)<SUM($11:$11), IF(AND(AH$446:AH$495=""), IF(AND(AG$13<>"", AH$13=""), "DV input required", AG$12), IF(AND(OR(AH$446:AH$495="DV"), AH$13=""), "DV input required", "")), "") ->  | AI12: =IF(COUNTA($H$12:AH$12)<SUM($11:$11), IF(AND(AI$446:AI$495=""), IF(AND(AH$13<>"", AI$13=""), "DV input required", AH$12), IF(AND(OR(AI$446:AI$495="DV"), AI$13=""), "DV input required", "")), "") ->  | AJ12: =IF(COUNTA($H$12:AI$12)<SUM($11:$11), IF(AND(AJ$446:AJ$495=""), IF(AND(AI$13<>"", AJ$13=""), "DV input required", AI$12), IF(AND(OR(AJ$446:AJ$495="DV"), AJ$13=""), "DV input required", "")), "") ->  | AK12: =IF(COUNTA($H$12:AJ$12)<SUM($11:$11), IF(AND(AK$446:AK$495=""), IF(AND(AJ$13<>"", AK$13=""), "DV input required", AJ$12), IF(AND(OR(AK$446:AK$495="DV"), AK$13=""), "DV input required", "")), "") ->  | AL12: =IF(COUNTA($H$12:AK$12)<SUM($11:$11), IF(AND(AL$446:AL$495=""), IF(AND(AK$13<>"", AL$13=""), "DV input required", AK$12), IF(AND(OR(AL$446:AL$495="DV"), AL$13=""), "DV input required", "")), "") ->  | AM12: =IF(COUNTA($H$12:AL$12)<SUM($11:$11), IF(AND(AM$446:AM$495=""), IF(AND(AL$13<>"", AM$13=""), "DV input required", AL$12), IF(AND(OR(AM$446:AM$495="DV"), AM$13=""), "DV input required", "")), "") ->  | AN12: =IF(COUNTA($H$12:AM$12)<SUM($11:$11), IF(AND(AN$446:AN$495=""), IF(AND(AM$13<>"", AN$13=""), "DV input required", AM$12), IF(AND(OR(AN$446:AN$495="DV"), AN$13=""), "DV input required", "")), "") ->  | AO12: =IF(COUNTA($H$12:AN$12)<SUM($11:$11), IF(AND(AO$446:AO$495=""), IF(AND(AN$13<>"", AO$13=""), "DV input required", AN$12), IF(AND(OR(AO$446:AO$495="DV"), AO$13=""), "DV input required", "")), "") ->  | AP12: =IF(COUNTA($H$12:AO$12)<SUM($11:$11), IF(AND(AP$446:AP$495=""), IF(AND(AO$13<>"", AP$13=""), "DV input required", AO$12), IF(AND(OR(AP$446:AP$495="DV"), AP$13=""), "DV input required", "")), "") ->  | AQ12: =IF(COUNTA($H$12:AP$12)<SUM($11:$11), IF(AND(AQ$446:AQ$495=""), IF(AND(AP$13<>"", AQ$13=""), "DV input required", AP$12), IF(AND(OR(AQ$446:AQ$495="DV"), AQ$13=""), "DV input required", "")), "") ->  | AR12: =IF(COUNTA($H$12:AQ$12)<SUM($11:$11), IF(AND(AR$446:AR$495=""), IF(AND(AQ$13<>"", AR$13=""), "DV input required", AQ$12), IF(AND(OR(AR$446:AR$495="DV"), AR$13=""), "DV input required", "")), "") ->  | AS12: =IF(COUNTA($H$12:AR$12)<SUM($11:$11), IF(AND(AS$446:AS$495=""), IF(AND(AR$13<>"", AS$13=""), "DV input required", AR$12), IF(AND(OR(AS$446:AS$495="DV"), AS$13=""), "DV input required", "")), "") ->  | AT12: =IF(COUNTA($H$12:AS$12)<SUM($11:$11), IF(AND(AT$446:AT$495=""), IF(AND(AS$13<>"", AT$13=""), "DV input required", AS$12), IF(AND(OR(AT$446:AT$495="DV"), AT$13=""), "DV input required", "")), "") ->  | AU12: =IF(COUNTA($H$12:AT$12)<SUM($11:$11), IF(AND(AU$446:AU$495=""), IF(AND(AT$13<>"", AU$13=""), "DV input required", AT$12), IF(AND(OR(AU$446:AU$495="DV"), AU$13=""), "DV input required", "")), "") ->  | AV12: =IF(COUNTA($H$12:AU$12)<SUM($11:$11), IF(AND(AV$446:AV$495=""), IF(AND(AU$13<>"", AV$13=""), "DV input required", AU$12), IF(AND(OR(AV$446:AV$495="DV"), AV$13=""), "DV input required", "")), "") ->  | AW12: =IF(COUNTA($H$12:AV$12)<SUM($11:$11), IF(AND(AW$446:AW$495=""), IF(AND(AV$13<>"", AW$13=""), "DV input required", AV$12), IF(AND(OR(AW$446:AW$495="DV"), AW$13=""), "DV input required", "")), "") ->  | AX12: =IF(COUNTA($H$12:AW$12)<SUM($11:$11), IF(AND(AX$446:AX$495=""), IF(AND(AW$13<>"", AX$13=""), "DV input required", AW$12), IF(AND(OR(AX$446:AX$495="DV"), AX$13=""), "DV input required", "")), "") ->  | AY12: =IF(COUNTA($H$12:AX$12)<SUM($11:$11), IF(AND(AY$446:AY$495=""), IF(AND(AX$13<>"", AY$13=""), "DV input required", AX$12), IF(AND(OR(AY$446:AY$495="DV"), AY$13=""), "DV input required", "")), "") ->  | AZ12: =IF(COUNTA($H$12:AY$12)<SUM($11:$11), IF(AND(AZ$446:AZ$495=""), IF(AND(AY$13<>"", AZ$13=""), "DV input required", AY$12), IF(AND(OR(AZ$446:AZ$495="DV"), AZ$13=""), "DV input required", "")), "") ->  | BA12: =IF(COUNTA($H$12:AZ$12)<SUM($11:$11), IF(AND(BA$446:BA$495=""), IF(AND(AZ$13<>"", BA$13=""), "DV input required", AZ$12), IF(AND(OR(BA$446:BA$495="DV"), BA$13=""), "DV input required", "")), "") ->  | BB12: =IF(COUNTA($H$12:BA$12)<SUM($11:$11), IF(AND(BB$446:BB$495=""), IF(AND(BA$13<>"", BB$13=""), "DV input required", BA$12), IF(AND(OR(BB$446:BB$495="DV"), BB$13=""), "DV input required", "")), "") ->  | BC12: =IF(COUNTA($H$12:BB$12)<SUM($11:$11), IF(AND(BC$446:BC$495=""), IF(AND(BB$13<>"", BC$13=""), "DV input required", BB$12), IF(AND(OR(BC$446:BC$495="DV"), BC$13=""), "DV input required", "")), "") ->  | BD12: =IF(COUNTA($H$12:BC$12)<SUM($11:$11), IF(AND(BD$446:BD$495=""), IF(AND(BC$13<>"", BD$13=""), "DV input required", BC$12), IF(AND(OR(BD$446:BD$495="DV"), BD$13=""), "DV input required", "")), "") ->  | BE12: =IF(COUNTA($H$12:BD$12)<SUM($11:$11), IF(AND(BE$446:BE$495=""), IF(AND(BD$13<>"", BE$13=""), "DV input required", BD$12), IF(AND(OR(BE$446:BE$495="DV"), BE$13=""), "DV input required", "")), "") ->  | BF12: =IF(COUNTA($H$12:BE$12)<SUM($11:$11), IF(AND(BF$446:BF$495=""), IF(AND(BE$13<>"", BF$13=""), "DV input required", BE$12), IF(AND(OR(BF$446:BF$495="DV"), BF$13=""), "DV input required", "")), "") ->  | BG12: =IF(COUNTA($H$12:BF$12)<SUM($11:$11), IF(AND(BG$446:BG$495=""), IF(AND(BF$13<>"", BG$13=""), "DV input required", BF$12), IF(AND(OR(BG$446:BG$495="DV"), BG$13=""), "DV input required", "")), "") ->  | BH12: =IF(COUNTA($H$12:BG$12)<SUM($11:$11), IF(AND(BH$446:BH$495=""), IF(AND(BG$13<>"", BH$13=""), "DV input required", BG$12), IF(AND(OR(BH$446:BH$495="DV"), BH$13=""), "DV input required", "")), "") ->  | BI12: =IF(COUNTA($H$12:BH$12)<SUM($11:$11), IF(AND(BI$446:BI$495=""), IF(AND(BH$13<>"", BI$13=""), "DV input required", BH$12), IF(AND(OR(BI$446:BI$495="DV"), BI$13=""), "DV input required", "")), "") ->  | BJ12: =IF(COUNTA($H$12:BI$12)<SUM($11:$11), IF(AND(BJ$446:BJ$495=""), IF(AND(BI$13<>"", BJ$13=""), "DV input required", BI$12), IF(AND(OR(BJ$446:BJ$495="DV"), BJ$13=""), "DV input required", "")), "") ->  | BK12: =IF(COUNTA($H$12:BJ$12)<SUM($11:$11), IF(AND(BK$446:BK$495=""), IF(AND(BJ$13<>"", BK$13=""), "DV input required", BJ$12), IF(AND(OR(BK$446:BK$495="DV"), BK$13=""), "DV input required", "")), "") ->  | BL12: =IF(COUNTA($H$12:BK$12)<SUM($11:$11), IF(AND(BL$446:BL$495=""), IF(AND(BK$13<>"", BL$13=""), "DV input required", BK$12), IF(AND(OR(BL$446:BL$495="DV"), BL$13=""), "DV input required", "")), "") ->  | BM12: =IF(COUNTA($H$12:BL$12)<SUM($11:$11), IF(AND(BM$446:BM$495=""), IF(AND(BL$13<>"", BM$13=""), "DV input required", BL$12), IF(AND(OR(BM$446:BM$495="DV"), BM$13=""), "DV input required", "")), "") ->  | BN12: =IF(COUNTA($H$12:BM$12)<SUM($11:$11), IF(AND(BN$446:BN$495=""), IF(AND(BM$13<>"", BN$13=""), "DV input required", BM$12), IF(AND(OR(BN$446:BN$495="DV"), BN$13=""), "DV input required", "")), "") ->  | BO12: =IF(COUNTA($H$12:BN$12)<SUM($11:$11), IF(AND(BO$446:BO$495=""), IF(AND(BN$13<>"", BO$13=""), "DV input required", BN$12), IF(AND(OR(BO$446:BO$495="DV"), BO$13=""), "DV input required", "")), "") ->  | BP12: =IF(COUNTA($H$12:BO$12)<SUM($11:$11), IF(AND(BP$446:BP$495=""), IF(AND(BO$13<>"", BP$13=""), "DV input required", BO$12), IF(AND(OR(BP$446:BP$495="DV"), BP$13=""), "DV input required", "")), "") ->  | BQ12: =IF(COUNTA($H$12:BP$12)<SUM($11:$11), IF(AND(BQ$446:BQ$495=""), IF(AND(BP$13<>"", BQ$13=""), "DV input required", BP$12), IF(AND(OR(BQ$446:BQ$495="DV"), BQ$13=""), "DV input required", "")), "") ->  | BR12: =IF(COUNTA($H$12:BQ$12)<SUM($11:$11), IF(AND(BR$446:BR$495=""), IF(AND(BQ$13<>"", BR$13=""), "DV input required", BQ$12), IF(AND(OR(BR$446:BR$495="DV"), BR$13=""), "DV input required", "")), "") ->  | BS12: =IF(COUNTA($H$12:BR$12)<SUM($11:$11), IF(AND(BS$446:BS$495=""), IF(AND(BR$13<>"", BS$13=""), "DV input required", BR$12), IF(AND(OR(BS$446:BS$495="DV"), BS$13=""), "DV input required", "")), "") ->  | BT12: =IF(COUNTA($H$12:BS$12)<SUM($11:$11), IF(AND(BT$446:BT$495=""), IF(AND(BS$13<>"", BT$13=""), "DV input required", BS$12), IF(AND(OR(BT$446:BT$495="DV"), BT$13=""), "DV input required", "")), "") ->  | BU12: =IF(COUNTA($H$12:BT$12)<SUM($11:$11), IF(AND(BU$446:BU$495=""), IF(AND(BT$13<>"", BU$13=""), "DV input required", BT$12), IF(AND(OR(BU$446:BU$495="DV"), BU$13=""), "DV input required", "")), "") ->  | BV12: =IF(COUNTA($H$12:BU$12)<SUM($11:$11), IF(AND(BV$446:BV$495=""), IF(AND(BU$13<>"", BV$13=""), "DV input required", BU$12), IF(AND(OR(BV$446:BV$495="DV"), BV$13=""), "DV input required", "")), "") ->  | BW12: =IF(COUNTA($H$12:BV$12)<SUM($11:$11), IF(AND(BW$446:BW$495=""), IF(AND(BV$13<>"", BW$13=""), "DV input required", BV$12), IF(AND(OR(BW$446:BW$495="DV"), BW$13=""), "DV input required", "")), "") ->  | BX12: =IF(COUNTA($H$12:BW$12)<SUM($11:$11), IF(AND(BX$446:BX$495=""), IF(AND(BW$13<>"", BX$13=""), "DV input required", BW$12), IF(AND(OR(BX$446:BX$495="DV"), BX$13=""), "DV input required", "")), "") ->  | BY12: =IF(COUNTA($H$12:BX$12)<SUM($11:$11), IF(AND(BY$446:BY$495=""), IF(AND(BX$13<>"", BY$13=""), "DV input required", BX$12), IF(AND(OR(BY$446:BY$495="DV"), BY$13=""), "DV input required", "")), "") ->  | BZ12: =IF(COUNTA($H$12:BY$12)<SUM($11:$11), IF(AND(BZ$446:BZ$495=""), IF(AND(BY$13<>"", BZ$13=""), "DV input required", BY$12), IF(AND(OR(BZ$446:BZ$495="DV"), BZ$13=""), "DV input required", "")), "") ->  | CA12: =IF(COUNTA($H$12:BZ$12)<SUM($11:$11), IF(AND(CA$446:CA$495=""), IF(AND(BZ$13<>"", CA$13=""), "DV input required", BZ$12), IF(AND(OR(CA$446:CA$495="DV"), CA$13=""), "DV input required", "")), "") ->  | CB12: =IF(COUNTA($H$12:CA$12)<SUM($11:$11), IF(AND(CB$446:CB$495=""), IF(AND(CA$13<>"", CB$13=""), "DV input required", CA$12), IF(AND(OR(CB$446:CB$495="DV"), CB$13=""), "DV input required", "")), "") ->  | CC12: =IF(COUNTA($H$12:CB$12)<SUM($11:$11), IF(AND(CC$446:CC$495=""), IF(AND(CB$13<>"", CC$13=""), "DV input required", CB$12), IF(AND(OR(CC$446:CC$495="DV"), CC$13=""), "DV input required", "")), "") ->  | CD12: =IF(COUNTA($H$12:CC$12)<SUM($11:$11), IF(AND(CD$446:CD$495=""), IF(AND(CC$13<>"", CD$13=""), "DV input required", CC$12), IF(AND(OR(CD$446:CD$495="DV"), CD$13=""), "DV input required", "")), "") ->  | CE12: =IF(COUNTA($H$12:CD$12)<SUM($11:$11), IF(AND(CE$446:CE$495=""), IF(AND(CD$13<>"", CE$13=""), "DV input required", CD$12), IF(AND(OR(CE$446:CE$495="DV"), CE$13=""), "DV input required", "")), "") ->  | CF12: =IF(COUNTA($H$12:CE$12)<SUM($11:$11), IF(AND(CF$446:CF$495=""), IF(AND(CE$13<>"", CF$13=""), "DV input required", CE$12), IF(AND(OR(CF$446:CF$495="DV"), CF$13=""), "DV input required", "")), "") ->  | CG12: =IF(COUNTA($H$12:CF$12)<SUM($11:$11), IF(AND(CG$446:CG$495=""), IF(AND(CF$13<>"", CG$13=""), "DV input required", CF$12), IF(AND(OR(CG$446:CG$495="DV"), CG$13=""), "DV input required", "")), "") ->  | CH12: =IF(COUNTA($H$12:CG$12)<SUM($11:$11), IF(AND(CH$446:CH$495=""), IF(AND(CG$13<>"", CH$13=""), "DV input required", CG$12), IF(AND(OR(CH$446:CH$495="DV"), CH$13=""), "DV input required", "")), "") ->  | CI12: =IF(COUNTA($H$12:CH$12)<SUM($11:$11), IF(AND(CI$446:CI$495=""), IF(AND(CH$13<>"", CI$13=""), "DV input required", CH$12), IF(AND(OR(CI$446:CI$495="DV"), CI$13=""), "DV input required", "")), "") ->  | CJ12: =IF(COUNTA($H$12:CI$12)<SUM($11:$11), IF(AND(CJ$446:CJ$495=""), IF(AND(CI$13<>"", CJ$13=""), "DV input required", CI$12), IF(AND(OR(CJ$446:CJ$495="DV"), CJ$13=""), "DV input required", "")), "") -> 
E13: Diminishing value multiplier | H13: 2 | I13: 2 | J13: 2 | K13: 2 | L13: 2
D15: Starting TAB and actual gross capex - As commissioned ($m, nominal)
E16: Asset Class | G16: ="TAB (opening as at "&$H$4&")" -> TAB (opening as at 2022-23) | H16: ="Actual gross capex ("&H$4&")" -> Actual gross capex (2022-23) | I16: =IF(COUNTA($H$16:H$16)<SUM($11:$11), "Actual gross capex ("&I$4&")", "") -> Actual gross capex (2023-24) | J16: =IF(COUNTA($H$16:I$16)<SUM($11:$11), "Actual gross capex ("&J$4&")", "") -> Actual gross capex (2024-25) | K16: =IF(COUNTA($H$16:J$16)<SUM($11:$11), "Actual gross capex ("&K$4&")", "") -> Actual gross capex (2025-26) | L16: =IF(COUNTA($H$16:K$16)<SUM($11:$11), "Actual gross capex ("&L$4&")", "") -> Actual gross capex (2026-27) | M16: =IF(COUNTA($H$16:L$16)<SUM($11:$11), "Actual gross capex ("&M$4&")", "") ->  | N16: =IF(COUNTA($H$16:M$16)<SUM($11:$11), "Actual gross capex ("&N$4&")", "") ->  | O16: =IF(COUNTA($H$16:N$16)<SUM($11:$11), "Actual gross capex ("&O$4&")", "") ->  | P16: =IF(COUNTA($H$16:O$16)<SUM($11:$11), "Actual gross capex ("&P$4&")", "") ->  | Q16: =IF(COUNTA($H$16:P$16)<SUM($11:$11), "Actual gross capex ("&Q$4&")", "") ->  | R16: =IF(COUNTA($H$16:Q$16)<SUM($11:$11), "Actual gross capex ("&R$4&")", "") ->  | S16: =IF(COUNTA($H$16:R$16)<SUM($11:$11), "Actual gross capex ("&S$4&")", "") ->  | T16: =IF(COUNTA($H$16:S$16)<SUM($11:$11), "Actual gross capex ("&T$4&")", "") ->  | U16: =IF(COUNTA($H$16:T$16)<SUM($11:$11), "Actual gross capex ("&U$4&")", "") ->  | V16: =IF(COUNTA($H$16:U$16)<SUM($11:$11), "Actual gross capex ("&V$4&")", "") ->  | W16: =IF(COUNTA($H$16:V$16)<SUM($11:$11), "Actual gross capex ("&W$4&")", "") ->  | X16: =IF(COUNTA($H$16:W$16)<SUM($11:$11), "Actual gross capex ("&X$4&")", "") ->  | Y16: =IF(COUNTA($H$16:X$16)<SUM($11:$11), "Actual gross capex ("&Y$4&")", "") ->  | Z16: =IF(COUNTA($H$16:Y$16)<SUM($11:$11), "Actual gross capex ("&Z$4&")", "") ->  | AA16: =IF(COUNTA($H$16:Z$16)<SUM($11:$11), "Actual gross capex ("&AA$4&")", "") ->  | AB16: =IF(COUNTA($H$16:AA$16)<SUM($11:$11), "Actual gross capex ("&AB$4&")", "") ->  | AC16: =IF(COUNTA($H$16:AB$16)<SUM($11:$11), "Actual gross capex ("&AC$4&")", "") ->  | AD16: =IF(COUNTA($H$16:AC$16)<SUM($11:$11), "Actual gross capex ("&AD$4&")", "") ->  | AE16: =IF(COUNTA($H$16:AD$16)<SUM($11:$11), "Actual gross capex ("&AE$4&")", "") ->  | AF16: =IF(COUNTA($H$16:AE$16)<SUM($11:$11), "Actual gross capex ("&AF$4&")", "") ->  | AG16: =IF(COUNTA($H$16:AF$16)<SUM($11:$11), "Actual gross capex ("&AG$4&")", "") ->  | AH16: =IF(COUNTA($H$16:AG$16)<SUM($11:$11), "Actual gross capex ("&AH$4&")", "") ->  | AI16: =IF(COUNTA($H$16:AH$16)<SUM($11:$11), "Actual gross capex ("&AI$4&")", "") ->  | AJ16: =IF(COUNTA($H$16:AI$16)<SUM($11:$11), "Actual gross capex ("&AJ$4&")", "") ->  | AK16: =IF(COUNTA($H$16:AJ$16)<SUM($11:$11), "Actual gross capex ("&AK$4&")", "") ->  | AL16: =IF(COUNTA($H$16:AK$16)<SUM($11:$11), "Actual gross capex ("&AL$4&")", "") ->  | AM16: =IF(COUNTA($H$16:AL$16)<SUM($11:$11), "Actual gross capex ("&AM$4&")", "") ->  | AN16: =IF(COUNTA($H$16:AM$16)<SUM($11:$11), "Actual gross capex ("&AN$4&")", "") ->  | AO16: =IF(COUNTA($H$16:AN$16)<SUM($11:$11), "Actual gross capex ("&AO$4&")", "") ->  | AP16: =IF(COUNTA($H$16:AO$16)<SUM($11:$11), "Actual gross capex ("&AP$4&")", "") ->  | AQ16: =IF(COUNTA($H$16:AP$16)<SUM($11:$11), "Actual gross capex ("&AQ$4&")", "") ->  | AR16: =IF(COUNTA($H$16:AQ$16)<SUM($11:$11), "Actual gross capex ("&AR$4&")", "") ->  | AS16: =IF(COUNTA($H$16:AR$16)<SUM($11:$11), "Actual gross capex ("&AS$4&")", "") ->  | AT16: =IF(COUNTA($H$16:AS$16)<SUM($11:$11), "Actual gross capex ("&AT$4&")", "") ->  | AU16: =IF(COUNTA($H$16:AT$16)<SUM($11:$11), "Actual gross capex ("&AU$4&")", "") ->  | AV16: =IF(COUNTA($H$16:AU$16)<SUM($11:$11), "Actual gross capex ("&AV$4&")", "") ->  | AW16: =IF(COUNTA($H$16:AV$16)<SUM($11:$11), "Actual gross capex ("&AW$4&")", "") ->  | AX16: =IF(COUNTA($H$16:AW$16)<SUM($11:$11), "Actual gross capex ("&AX$4&")", "") ->  | AY16: =IF(COUNTA($H$16:AX$16)<SUM($11:$11), "Actual gross capex ("&AY$4&")", "") ->  | AZ16: =IF(COUNTA($H$16:AY$16)<SUM($11:$11), "Actual gross capex ("&AZ$4&")", "") ->  | BA16: =IF(COUNTA($H$16:AZ$16)<SUM($11:$11), "Actual gross capex ("&BA$4&")", "") ->  | BB16: =IF(COUNTA($H$16:BA$16)<SUM($11:$11), "Actual gross capex ("&BB$4&")", "") ->  | BC16: =IF(COUNTA($H$16:BB$16)<SUM($11:$11), "Actual gross capex ("&BC$4&")", "") ->  | BD16: =IF(COUNTA($H$16:BC$16)<SUM($11:$11), "Actual gross capex ("&BD$4&")", "") ->  | BE16: =IF(COUNTA($H$16:BD$16)<SUM($11:$11), "Actual gross capex ("&BE$4&")", "") ->  | BF16: =IF(COUNTA($H$16:BE$16)<SUM($11:$11), "Actual gross capex ("&BF$4&")", "") ->  | BG16: =IF(COUNTA($H$16:BF$16)<SUM($11:$11), "Actual gross capex ("&BG$4&")", "") ->  | BH16: =IF(COUNTA($H$16:BG$16)<SUM($11:$11), "Actual gross capex ("&BH$4&")", "") ->  | BI16: =IF(COUNTA($H$16:BH$16)<SUM($11:$11), "Actual gross capex ("&BI$4&")", "") ->  | BJ16: =IF(COUNTA($H$16:BI$16)<SUM($11:$11), "Actual gross capex ("&BJ$4&")", "") ->  | BK16: =IF(COUNTA($H$16:BJ$16)<SUM($11:$11), "Actual gross capex ("&BK$4&")", "") ->  | BL16: =IF(COUNTA($H$16:BK$16)<SUM($11:$11), "Actual gross capex ("&BL$4&")", "") ->  | BM16: =IF(COUNTA($H$16:BL$16)<SUM($11:$11), "Actual gross capex ("&BM$4&")", "") ->  | BN16: =IF(COUNTA($H$16:BM$16)<SUM($11:$11), "Actual gross capex ("&BN$4&")", "") ->  | BO16: =IF(COUNTA($H$16:BN$16)<SUM($11:$11), "Actual gross capex ("&BO$4&")", "") ->  | BP16: =IF(COUNTA($H$16:BO$16)<SUM($11:$11), "Actual gross capex ("&BP$4&")", "") ->  | BQ16: =IF(COUNTA($H$16:BP$16)<SUM($11:$11), "Actual gross capex ("&BQ$4&")", "") ->  | BR16: =IF(COUNTA($H$16:BQ$16)<SUM($11:$11), "Actual gross capex ("&BR$4&")", "") ->  | BS16: =IF(COUNTA($H$16:BR$16)<SUM($11:$11), "Actual gross capex ("&BS$4&")", "") ->  | BT16: =IF(COUNTA($H$16:BS$16)<SUM($11:$11), "Actual gross capex ("&BT$4&")", "") ->  | BU16: =IF(COUNTA($H$16:BT$16)<SUM($11:$11), "Actual gross capex ("&BU$4&")", "") ->  | BV16: =IF(COUNTA($H$16:BU$16)<SUM($11:$11), "Actual gross capex ("&BV$4&")", "") ->  | BW16: =IF(COUNTA($H$16:BV$16)<SUM($11:$11), "Actual gross capex ("&BW$4&")", "") ->  | BX16: =IF(COUNTA($H$16:BW$16)<SUM($11:$11), "Actual gross capex ("&BX$4&")", "") ->  | BY16: =IF(COUNTA($H$16:BX$16)<SUM($11:$11), "Actual gross capex ("&BY$4&")", "") ->  | BZ16: =IF(COUNTA($H$16:BY$16)<SUM($11:$11), "Actual gross capex ("&BZ$4&")", "") ->  | CA16: =IF(COUNTA($H$16:BZ$16)<SUM($11:$11), "Actual gross capex ("&CA$4&")", "") ->  | CB16: =IF(COUNTA($H$16:CA$16)<SUM($11:$11), "Actual gross capex ("&CB$4&")", "") ->  | CC16: =IF(COUNTA($H$16:CB$16)<SUM($11:$11), "Actual gross capex ("&CC$4&")", "") ->  | CD16: =IF(COUNTA($H$16:CC$16)<SUM($11:$11), "Actual gross capex ("&CD$4&")", "") ->  | CE16: =IF(COUNTA($H$16:CD$16)<SUM($11:$11), "Actual gross capex ("&CE$4&")", "") ->  | CF16: =IF(COUNTA($H$16:CE$16)<SUM($11:$11), "Actual gross capex ("&CF$4&")", "") ->  | CG16: =IF(COUNTA($H$16:CF$16)<SUM($11:$11), "Actual gross capex ("&CG$4&")", "") ->  | CH16: =IF(COUNTA($H$16:CG$16)<SUM($11:$11), "Actual gross capex ("&CH$4&")", "") ->  | CI16: =IF(COUNTA($H$16:CH$16)<SUM($11:$11), "Actual gross capex ("&CI$4&")", "") ->  | CJ16: =IF(COUNTA($H$16:CI$16)<SUM($11:$11), "Actual gross capex ("&CJ$4&")", "") -> 
D18: 1 | E18: ='RAB input'!E24 -> Secondary | G18: =INDEX('[4]TAB roll forward'!$H$8:$H$57,MATCH($E18,'[4]TAB roll forward'!$C$8:$C$57,0)) -> 240.9559319 | H18: =INDEX('RAB input'!$H$24:$XFD$73, MATCH($E18, 'RAB input'!$E$24:$E$73, 0), MATCH(H$4, RAB_years, 0)) -> 14.84815086 | I18: =INDEX('RAB input'!$H$24:$XFD$73, MATCH($E18, 'RAB input'!$E$24:$E$73, 0), MATCH(I$4, RAB_years, 0)) -> 19.15547679 | J18: =INDEX('RAB input'!$H$24:$XFD$73, MATCH($E18, 'RAB input'!$E$24:$E$73, 0), MATCH(J$4, RAB_years, 0)) -> 21.41099645 | K18: =INDEX('RAB input'!$H$24:$XFD$73, MATCH($E18, 'RAB input'!$E$24:$E$73, 0), MATCH(K$4, RAB_years, 0)) -> 27.839941 | L18: =INDEX('RAB input'!$H$24:$XFD$73, MATCH($E18, 'RAB input'!$E$24:$E$73, 0), MATCH(L$4, RAB_years, 0)) -> 34.673409 | M18: =INDEX('RAB input'!$H$24:$XFD$73, MATCH($E18, 'RAB input'!$E$24:$E$73, 0), MATCH(M$4, RAB_years, 0)) -> 0 | N18: =INDEX('RAB input'!$H$24:$XFD$73, MATCH($E18, 'RAB input'!$E$24:$E$73, 0), MATCH(N$4, RAB_years, 0)) -> 0 | O18: =INDEX('RAB input'!$H$24:$XFD$73, MATCH($E18, 'RAB input'!$E$24:$E$73, 0), MATCH(O$4, RAB_years, 0)) -> 0 | P18: =INDEX('RAB input'!$H$24:$XFD$73, MATCH($E18, 'RAB input'!$E$24:$E$73, 0), MATCH(P$4, RAB_years, 0)) -> 0 | Q18: =INDEX('RAB input'!$H$24:$XFD$73, MATCH($E18, 'RAB input'!$E$24:$E$73, 0), MATCH(Q$4, RAB_years, 0)) -> 0 | R18: =INDEX('RAB input'!$H$24:$XFD$73, MATCH($E18, 'RAB input'!$E$24:$E$73, 0), MATCH(R$4, RAB_years, 0)) -> 0 | S18: =INDEX('RAB input'!$H$24:$XFD$73, MATCH($E18, 'RAB input'!$E$24:$E$73, 0), MATCH(S$4, RAB_years, 0)) -> 0 | T18: =INDEX('RAB input'!$H$24:$XFD$73, MATCH($E18, 'RAB input'!$E$24:$E$73, 0), MATCH(T$4, RAB_years, 0)) -> 0 | U18: =INDEX('RAB input'!$H$24:$XFD$73, MATCH($E18, 'RAB input'!$E$24:$E$73, 0), MATCH(U$4, RAB_years, 0)) -> 0 | V18: =INDEX('RAB input'!$H$24:$XFD$73, MATCH($E18, 'RAB input'!$E$24:$E$73, 0), MATCH(V$4, RAB_years, 0)) -> 0 | W18: =INDEX('RAB input'!$H$24:$XFD$73, MATCH($E18, 'RAB input'!$E$24:$E$73, 0), MATCH(W$4, RAB_years, 0)) -> 0 | X18: =INDEX('RAB input'!$H$24:$XFD$73, MATCH($E18, 'RAB input'!$E$24:$E$73, 0), MATCH(X$4, RAB_years, 0)) -> 0 | Y18: =INDEX('RAB input'!$H$24:$XFD$73, MATCH($E18, 'RAB input'!$E$24:$E$73, 0), MATCH(Y$4, RAB_years, 0)) -> 0 | Z18: =INDEX('RAB input'!$H$24:$XFD$73, MATCH($E18, 'RAB input'!$E$24:$E$73, 0), MATCH(Z$4, RAB_years, 0)) -> 0 | AA18: =INDEX('RAB input'!$H$24:$XFD$73, MATCH($E18, 'RAB input'!$E$24:$E$73, 0), MATCH(AA$4, RAB_years, 0)) -> 0 | AB18: =INDEX('RAB input'!$H$24:$XFD$73, MATCH($E18, 'RAB input'!$E$24:$E$73, 0), MATCH(AB$4, RAB_years, 0)) -> 0 | AC18: =INDEX('RAB input'!$H$24:$XFD$73, MATCH($E18, 'RAB input'!$E$24:$E$73, 0), MATCH(AC$4, RAB_years, 0)) -> 0 | AD18: =INDEX('RAB input'!$H$24:$XFD$73, MATCH($E18, 'RAB input'!$E$24:$E$73, 0), MATCH(AD$4, RAB_years, 0)) -> 0 | AE18: =INDEX('RAB input'!$H$24:$XFD$73, MATCH($E18, 'RAB input'!$E$24:$E$73, 0), MATCH(AE$4, RAB_years, 0)) -> 0 | AF18: =INDEX('RAB input'!$H$24:$XFD$73, MATCH($E18, 'RAB input'!$E$24:$E$73, 0), MATCH(AF$4, RAB_years, 0)) -> 0 | AG18: =INDEX('RAB input'!$H$24:$XFD$73, MATCH($E18, 'RAB input'!$E$24:$E$73, 0), MATCH(AG$4, RAB_years, 0)) -> 0 | AH18: =INDEX('RAB input'!$H$24:$XFD$73, MATCH($E18, 'RAB input'!$E$24:$E$73, 0), MATCH(AH$4, RAB_years, 0)) -> 0 | AI18: =INDEX('RAB input'!$H$24:$XFD$73, MATCH($E18, 'RAB input'!$E$24:$E$73, 0), MATCH(AI$4, RAB_years, 0)) -> 0 | AJ18: =INDEX('RAB input'!$H$24:$XFD$73, MATCH($E18, 'RAB input'!$E$24:$E$73, 0), MATCH(AJ$4, RAB_years, 0)) -> 0 | AK18: =INDEX('RAB input'!$H$24:$XFD$73, MATCH($E18, 'RAB input'!$E$24:$E$73, 0), MATCH(AK$4, RAB_years, 0)) -> 0 | AL18: =INDEX('RAB input'!$H$24:$XFD$73, MATCH($E18, 'RAB input'!$E$24:$E$73, 0), MATCH(AL$4, RAB_years, 0)) -> 0 | AM18: =INDEX('RAB input'!$H$24:$XFD$73, MATCH($E18, 'RAB input'!$E$24:$E$73, 0), MATCH(AM$4, RAB_years, 0)) -> 0 | AN18: =INDEX('RAB input'!$H$24:$XFD$73, MATCH($E18, 'RAB input'!$E$24:$E$73, 0), MATCH(AN$4, RAB_years, 0)) -> 0 | AO18: =INDEX('RAB input'!$H$24:$XFD$73, MATCH($E18, 'RAB input'!$E$24:$E$73, 0), MATCH(AO$4, RAB_years, 0)) -> 0 | AP18: =INDEX('RAB input'!$H$24:$XFD$73, MATCH($E18, 'RAB input'!$E$24:$E$73, 0), MATCH(AP$4, RAB_years, 0)) -> 0 | AQ18: =INDEX('RAB input'!$H$24:$XFD$73, MATCH($E18, 'RAB input'!$E$24:$E$73, 0), MATCH(AQ$4, RAB_years, 0)) -> 0 | AR18: =INDEX('RAB input'!$H$24:$XFD$73, MATCH($E18, 'RAB input'!$E$24:$E$73, 0), MATCH(AR$4, RAB_years, 0)) -> 0 | AS18: =INDEX('RAB input'!$H$24:$XFD$73, MATCH($E18, 'RAB input'!$E$24:$E$73, 0), MATCH(AS$4, RAB_years, 0)) -> 0 | AT18: =INDEX('RAB input'!$H$24:$XFD$73, MATCH($E18, 'RAB input'!$E$24:$E$73, 0), MATCH(AT$4, RAB_years, 0)) -> 0 | AU18: =INDEX('RAB input'!$H$24:$XFD$73, MATCH($E18, 'RAB input'!$E$24:$E$73, 0), MATCH(AU$4, RAB_years, 0)) -> 0 | AV18: =INDEX('RAB input'!$H$24:$XFD$73, MATCH($E18, 'RAB input'!$E$24:$E$73, 0), MATCH(AV$4, RAB_years, 0)) -> 0 | AW18: =INDEX('RAB input'!$H$24:$XFD$73, MATCH($E18, 'RAB input'!$E$24:$E$73, 0), MATCH(AW$4, RAB_years, 0)) -> 0 | AX18: =INDEX('RAB input'!$H$24:$XFD$73, MATCH($E18, 'RAB input'!$E$24:$E$73, 0), MATCH(AX$4, RAB_years, 0)) -> 0 | AY18: =INDEX('RAB input'!$H$24:$XFD$73, MATCH($E18, 'RAB input'!$E$24:$E$73, 0), MATCH(AY$4, RAB_years, 0)) -> 0 | AZ18: =INDEX('RAB input'!$H$24:$XFD$73, MATCH($E18, 'RAB input'!$E$24:$E$73, 0), MATCH(AZ$4, RAB_years, 0)) -> 0 | BA18: =INDEX('RAB input'!$H$24:$XFD$73, MATCH($E18, 'RAB input'!$E$24:$E$73, 0), MATCH(BA$4, RAB_years, 0)) -> 0 | BB18: =INDEX('RAB input'!$H$24:$XFD$73, MATCH($E18, 'RAB input'!$E$24:$E$73, 0), MATCH(BB$4, RAB_years, 0)) -> 0 | BC18: =INDEX('RAB input'!$H$24:$XFD$73, MATCH($E18, 'RAB input'!$E$24:$E$73, 0), MATCH(BC$4, RAB_years, 0)) -> 0 | BD18: =INDEX('RAB input'!$H$24:$XFD$73, MATCH($E18, 'RAB input'!$E$24:$E$73, 0), MATCH(BD$4, RAB_years, 0)) -> 0 | BE18: =INDEX('RAB input'!$H$24:$XFD$73, MATCH($E18, 'RAB input'!$E$24:$E$73, 0), MATCH(BE$4, RAB_years, 0)) -> 0 | BF18: =INDEX('RAB input'!$H$24:$XFD$73, MATCH($E18, 'RAB input'!$E$24:$E$73, 0), MATCH(BF$4, RAB_years, 0)) -> 0 | BG18: =INDEX('RAB input'!$H$24:$XFD$73, MATCH($E18, 'RAB input'!$E$24:$E$73, 0), MATCH(BG$4, RAB_years, 0)) -> 0 | BH18: =INDEX('RAB input'!$H$24:$XFD$73, MATCH($E18, 'RAB input'!$E$24:$E$73, 0), MATCH(BH$4, RAB_years, 0)) -> 0 | BI18: =INDEX('RAB input'!$H$24:$XFD$73, MATCH($E18, 'RAB input'!$E$24:$E$73, 0), MATCH(BI$4, RAB_years, 0)) -> 0 | BJ18: =INDEX('RAB input'!$H$24:$XFD$73, MATCH($E18, 'RAB input'!$E$24:$E$73, 0), MATCH(BJ$4, RAB_years, 0)) -> 0 | BK18: =INDEX('RAB input'!$H$24:$XFD$73, MATCH($E18, 'RAB input'!$E$24:$E$73, 0), MATCH(BK$4, RAB_years, 0)) -> 0 | BL18: =INDEX('RAB input'!$H$24:$XFD$73, MATCH($E18, 'RAB input'!$E$24:$E$73, 0), MATCH(BL$4, RAB_years, 0)) -> 0 | BM18: =INDEX('RAB input'!$H$24:$XFD$73, MATCH($E18, 'RAB input'!$E$24:$E$73, 0), MATCH(BM$4, RAB_years, 0)) -> 0 | BN18: =INDEX('RAB input'!$H$24:$XFD$73, MATCH($E18, 'RAB input'!$E$24:$E$73, 0), MATCH(BN$4, RAB_years, 0)) -> 0 | BO18: =INDEX('RAB input'!$H$24:$XFD$73, MATCH($E18, 'RAB input'!$E$24:$E$73, 0), MATCH(BO$4, RAB_years, 0)) -> 0 | BP18: =INDEX('RAB input'!$H$24:$XFD$73, MATCH($E18, 'RAB input'!$E$24:$E$73, 0), MATCH(BP$4, RAB_years, 0)) -> 0 | BQ18: =INDEX('RAB input'!$H$24:$XFD$73, MATCH($E18, 'RAB input'!$E$24:$E$73, 0), MATCH(BQ$4, RAB_years, 0)) ->  | BR18: =INDEX('RAB input'!$H$24:$XFD$73, MATCH($E18, 'RAB input'!$E$24:$E$73, 0), MATCH(BR$4, RAB_years, 0)) ->  | BS18: =INDEX('RAB input'!$H$24:$XFD$73, MATCH($E18, 'RAB input'!$E$24:$E$73, 0), MATCH(BS$4, RAB_years, 0)) ->  | BT18: =INDEX('RAB input'!$H$24:$XFD$73, MATCH($E18, 'RAB input'!$E$24:$E$73, 0), MATCH(BT$4, RAB_years, 0)) ->  | BU18: =INDEX('RAB input'!$H$24:$XFD$73, MATCH($E18, 'RAB input'!$E$24:$E$73, 0), MATCH(BU$4, RAB_years, 0)) ->  | BV18: =INDEX('RAB input'!$H$24:$XFD$73, MATCH($E18, 'RAB input'!$E$24:$E$73, 0), MATCH(BV$4, RAB_years, 0)) ->  | BW18: =INDEX('RAB input'!$H$24:$XFD$73, MATCH($E18, 'RAB input'!$E$24:$E$73, 0), MATCH(BW$4, RAB_years, 0)) ->  | BX18: =INDEX('RAB input'!$H$24:$XFD$73, MATCH($E18, 'RAB input'!$E$24:$E$73, 0), MATCH(BX$4, RAB_years, 0)) ->  | BY18: =INDEX('RAB input'!$H$24:$XFD$73, MATCH($E18, 'RAB input'!$E$24:$E$73, 0), MATCH(BY$4, RAB_years, 0)) ->  | BZ18: =INDEX('RAB input'!$H$24:$XFD$73, MATCH($E18, 'RAB input'!$E$24:$E$73, 0), MATCH(BZ$4, RAB_years, 0)) ->  | CA18: =INDEX('RAB input'!$H$24:$XFD$73, MATCH($E18, 'RAB input'!$E$24:$E$73, 0), MATCH(CA$4, RAB_years, 0)) ->  | CB18: =INDEX('RAB input'!$H$24:$XFD$73, MATCH($E18, 'RAB input'!$E$24:$E$73, 0), MATCH(CB$4, RAB_years, 0)) ->  | CC18: =INDEX('RAB input'!$H$24:$XFD$73, MATCH($E18, 'RAB input'!$E$24:$E$73, 0), MATCH(CC$4, RAB_years, 0)) ->  | CD18: =INDEX('RAB input'!$H$24:$XFD$73, MATCH($E18, 'RAB input'!$E$24:$E$73, 0), MATCH(CD$4, RAB_years, 0)) ->  | CE18: =INDEX('RAB input'!$H$24:$XFD$73, MATCH($E18, 'RAB input'!$E$24:$E$73, 0), MATCH(CE$4, RAB_years, 0)) ->  | CF18: =INDEX('RAB input'!$H$24:$XFD$73, MATCH($E18, 'RAB input'!$E$24:$E$73, 0), MATCH(CF$4, RAB_years, 0)) ->  | CG18: =INDEX('RAB input'!$H$24:$XFD$73, MATCH($E18, 'RAB input'!$E$24:$E$73, 0), MATCH(CG$4, RAB_years, 0)) ->  | CH18: =INDEX('RAB input'!$H$24:$XFD$73, MATCH($E18, 'RAB input'!$E$24:$E$73, 0), MATCH(CH$4, RAB_years, 0)) ->  | CI18: =INDEX('RAB input'!$H$24:$XFD$73, MATCH($E18, 'RAB input'!$E$24:$E$73, 0), MATCH(CI$4, RAB_years, 0)) ->  | CJ18: =INDEX('RAB input'!$H$24:$XFD$73, MATCH($E18, 'RAB input'!$E$24:$E$73, 0), MATCH(CJ$4, RAB_years, 0)) -> 
D19: 2 | E19: ='RAB input'!E25 -> Switchgear | G19: =INDEX('[4]TAB roll forward'!$H$8:$H$57,MATCH($E19,'[4]TAB roll forward'!$C$8:$C$57,0)) -> 658.6917729 | H19: =INDEX('RAB input'!$H$24:$XFD$73, MATCH($E19, 'RAB input'!$E$24:$E$73, 0), MATCH(H$4, RAB_years, 0)) -> 52.69109824 | I19: =INDEX('RAB input'!$H$24:$XFD$73, MATCH($E19, 'RAB input'!$E$24:$E$73, 0), MATCH(I$4, RAB_years, 0)) -> 20.38934168 | J19: =INDEX('RAB input'!$H$24:$XFD$73, MATCH($E19, 'RAB input'!$E$24:$E$73, 0), MATCH(J$4, RAB_years, 0)) -> 10.1882988 | K19: =INDEX('RAB input'!$H$24:$XFD$73, MATCH($E19, 'RAB input'!$E$24:$E$73, 0), MATCH(K$4, RAB_years, 0)) -> 59.473421 | L19: =INDEX('RAB input'!$H$24:$XFD$73, MATCH($E19, 'RAB input'!$E$24:$E$73, 0), MATCH(L$4, RAB_years, 0)) -> 64.769189 | M19: =INDEX('RAB input'!$H$24:$XFD$73, MATCH($E19, 'RAB input'!$E$24:$E$73, 0), MATCH(M$4, RAB_years, 0)) -> 0 | N19: =INDEX('RAB input'!$H$24:$XFD$73, MATCH($E19, 'RAB input'!$E$24:$E$73, 0), MATCH(N$4, RAB_years, 0)) -> 0 | O19: =INDEX('RAB input'!$H$24:$XFD$73, MATCH($E19, 'RAB input'!$E$24:$E$73, 0), MATCH(O$4, RAB_years, 0)) -> 0 | P19: =INDEX('RAB input'!$H$24:$XFD$73, MATCH($E19, 'RAB input'!$E$24:$E$73, 0), MATCH(P$4, RAB_years, 0)) -> 0 | Q19: =INDEX('RAB input'!$H$24:$XFD$73, MATCH($E19, 'RAB input'!$E$24:$E$73, 0), MATCH(Q$4, RAB_years, 0)) -> 0 | R19: =INDEX('RAB input'!$H$24:$XFD$73, MATCH($E19, 'RAB input'!$E$24:$E$73, 0), MATCH(R$4, RAB_years, 0)) -> 0 | S19: =INDEX('RAB input'!$H$24:$XFD$73, MATCH($E19, 'RAB input'!$E$24:$E$73, 0), MATCH(S$4, RAB_years, 0)) -> 0 | T19: =INDEX('RAB input'!$H$24:$XFD$73, MATCH($E19, 'RAB input'!$E$24:$E$73, 0), MATCH(T$4, RAB_years, 0)) -> 0 | U19: =INDEX('RAB input'!$H$24:$XFD$73, MATCH($E19, 'RAB input'!$E$24:$E$73, 0), MATCH(U$4, RAB_years, 0)) -> 0 | V19: =INDEX('RAB input'!$H$24:$XFD$73, MATCH($E19, 'RAB input'!$E$24:$E$73, 0), MATCH(V$4, RAB_years, 0)) -> 0 | W19: =INDEX('RAB input'!$H$24:$XFD$73, MATCH($E19, 'RAB input'!$E$24:$E$73, 0), MATCH(W$4, RAB_years, 0)) -> 0 | X19: =INDEX('RAB input'!$H$24:$XFD$73, MATCH($E19, 'RAB input'!$E$24:$E$73, 0), MATCH(X$4, RAB_years, 0)) -> 0 | Y19: =INDEX('RAB input'!$H$24:$XFD$73, MATCH($E19, 'RAB input'!$E$24:$E$73, 0), MATCH(Y$4, RAB_years, 0)) -> 0 | Z19: =INDEX('RAB input'!$H$24:$XFD$73, MATCH($E19, 'RAB input'!$E$24:$E$73, 0), MATCH(Z$4, RAB_years, 0)) -> 0 | AA19: =INDEX('RAB input'!$H$24:$XFD$73, MATCH($E19, 'RAB input'!$E$24:$E$73, 0), MATCH(AA$4, RAB_years, 0)) -> 0 | AB19: =INDEX('RAB input'!$H$24:$XFD$73, MATCH($E19, 'RAB input'!$E$24:$E$73, 0), MATCH(AB$4, RAB_years, 0)) -> 0 | AC19: =INDEX('RAB input'!$H$24:$XFD$73, MATCH($E19, 'RAB input'!$E$24:$E$73, 0), MATCH(AC$4, RAB_years, 0)) -> 0 | AD19: =INDEX('RAB input'!$H$24:$XFD$73, MATCH($E19, 'RAB input'!$E$24:$E$73, 0), MATCH(AD$4, RAB_years, 0)) -> 0 | AE19: =INDEX('RAB input'!$H$24:$XFD$73, MATCH($E19, 'RAB input'!$E$24:$E$73, 0), MATCH(AE$4, RAB_years, 0)) -> 0 | AF19: =INDEX('RAB input'!$H$24:$XFD$73, MATCH($E19, 'RAB input'!$E$24:$E$73, 0), MATCH(AF$4, RAB_years, 0)) -> 0 | AG19: =INDEX('RAB input'!$H$24:$XFD$73, MATCH($E19, 'RAB input'!$E$24:$E$73, 0), MATCH(AG$4, RAB_years, 0)) -> 0 | AH19: =INDEX('RAB input'!$H$24:$XFD$73, MATCH($E19, 'RAB input'!$E$24:$E$73, 0), MATCH(AH$4, RAB_years, 0)) -> 0 | AI19: =INDEX('RAB input'!$H$24:$XFD$73, MATCH($E19, 'RAB input'!$E$24:$E$73, 0), MATCH(AI$4, RAB_years, 0)) -> 0 | AJ19: =INDEX('RAB input'!$H$24:$XFD$73, MATCH($E19, 'RAB input'!$E$24:$E$73, 0), MATCH(AJ$4, RAB_years, 0)) -> 0 | AK19: =INDEX('RAB input'!$H$24:$XFD$73, MATCH($E19, 'RAB input'!$E$24:$E$73, 0), MATCH(AK$4, RAB_years, 0)) -> 0 | AL19: =INDEX('RAB input'!$H$24:$XFD$73, MATCH($E19, 'RAB input'!$E$24:$E$73, 0), MATCH(AL$4, RAB_years, 0)) -> 0 | AM19: =INDEX('RAB input'!$H$24:$XFD$73, MATCH($E19, 'RAB input'!$E$24:$E$73, 0), MATCH(AM$4, RAB_years, 0)) -> 0 | AN19: =INDEX('RAB input'!$H$24:$XFD$73, MATCH($E19, 'RAB input'!$E$24:$E$73, 0), MATCH(AN$4, RAB_years, 0)) -> 0 | AO19: =INDEX('RAB input'!$H$24:$XFD$73, MATCH($E19, 'RAB input'!$E$24:$E$73, 0), MATCH(AO$4, RAB_years, 0)) -> 0 | AP19: =INDEX('RAB input'!$H$24:$XFD$73, MATCH($E19, 'RAB input'!$E$24:$E$73, 0), MATCH(AP$4, RAB_years, 0)) -> 0 | AQ19: =INDEX('RAB input'!$H$24:$XFD$73, MATCH($E19, 'RAB input'!$E$24:$E$73, 0), MATCH(AQ$4, RAB_years, 0)) -> 0 | AR19: =INDEX('RAB input'!$H$24:$XFD$73, MATCH($E19, 'RAB input'!$E$24:$E$73, 0), MATCH(AR$4, RAB_years, 0)) -> 0 | AS19: =INDEX('RAB input'!$H$24:$XFD$73, MATCH($E19, 'RAB input'!$E$24:$E$73, 0), MATCH(AS$4, RAB_years, 0)) -> 0 | AT19: =INDEX('RAB input'!$H$24:$XFD$73, MATCH($E19, 'RAB input'!$E$24:$E$73, 0), MATCH(AT$4, RAB_years, 0)) -> 0 | AU19: =INDEX('RAB input'!$H$24:$XFD$73, MATCH($E19, 'RAB input'!$E$24:$E$73, 0), MATCH(AU$4, RAB_years, 0)) -> 0 | AV19: =INDEX('RAB input'!$H$24:$XFD$73, MATCH($E19, 'RAB input'!$E$24:$E$73, 0), MATCH(AV$4, RAB_years, 0)) -> 0 | AW19: =INDEX('RAB input'!$H$24:$XFD$73, MATCH($E19, 'RAB input'!$E$24:$E$73, 0), MATCH(AW$4, RAB_years, 0)) -> 0 | AX19: =INDEX('RAB input'!$H$24:$XFD$73, MATCH($E19, 'RAB input'!$E$24:$E$73, 0), MATCH(AX$4, RAB_years, 0)) -> 0 | AY19: =INDEX('RAB input'!$H$24:$XFD$73, MATCH($E19, 'RAB input'!$E$24:$E$73, 0), MATCH(AY$4, RAB_years, 0)) -> 0 | AZ19: =INDEX('RAB input'!$H$24:$XFD$73, MATCH($E19, 'RAB input'!$E$24:$E$73, 0), MATCH(AZ$4, RAB_years, 0)) -> 0 | BA19: =INDEX('RAB input'!$H$24:$XFD$73, MATCH($E19, 'RAB input'!$E$24:$E$73, 0), MATCH(BA$4, RAB_years, 0)) -> 0 | BB19: =INDEX('RAB input'!$H$24:$XFD$73, MATCH($E19, 'RAB input'!$E$24:$E$73, 0), MATCH(BB$4, RAB_years, 0)) -> 0 | BC19: =INDEX('RAB input'!$H$24:$XFD$73, MATCH($E19, 'RAB input'!$E$24:$E$73, 0), MATCH(BC$4, RAB_years, 0)) -> 0 | BD19: =INDEX('RAB input'!$H$24:$XFD$73, MATCH($E19, 'RAB input'!$E$24:$E$73, 0), MATCH(BD$4, RAB_years, 0)) -> 0 | BE19: =INDEX('RAB input'!$H$24:$XFD$73, MATCH($E19, 'RAB input'!$E$24:$E$73, 0), MATCH(BE$4, RAB_years, 0)) -> 0 | BF19: =INDEX('RAB input'!$H$24:$XFD$73, MATCH($E19, 'RAB input'!$E$24:$E$73, 0), MATCH(BF$4, RAB_years, 0)) -> 0 | BG19: =INDEX('RAB input'!$H$24:$XFD$73, MATCH($E19, 'RAB input'!$E$24:$E$73, 0), MATCH(BG$4, RAB_years, 0)) -> 0 | BH19: =INDEX('RAB input'!$H$24:$XFD$73, MATCH($E19, 'RAB input'!$E$24:$E$73, 0), MATCH(BH$4, RAB_years, 0)) -> 0 | BI19: =INDEX('RAB input'!$H$24:$XFD$73, MATCH($E19, 'RAB input'!$E$24:$E$73, 0), MATCH(BI$4, RAB_years, 0)) -> 0 | BJ19: =INDEX('RAB input'!$H$24:$XFD$73, MATCH($E19, 'RAB input'!$E$24:$E$73, 0), MATCH(BJ$4, RAB_years, 0)) -> 0 | BK19: =INDEX('RAB input'!$H$24:$XFD$73, MATCH($E19, 'RAB input'!$E$24:$E$73, 0), MATCH(BK$4, RAB_years, 0)) -> 0 | BL19: =INDEX('RAB input'!$H$24:$XFD$73, MATCH($E19, 'RAB input'!$E$24:$E$73, 0), MATCH(BL$4, RAB_years, 0)) -> 0 | BM19: =INDEX('RAB input'!$H$24:$XFD$73, MATCH($E19, 'RAB input'!$E$24:$E$73, 0), MATCH(BM$4, RAB_years, 0)) -> 0 | BN19: =INDEX('RAB input'!$H$24:$XFD$73, MATCH($E19, 'RAB input'!$E$24:$E$73, 0), MATCH(BN$4, RAB_years, 0)) -> 0 | BO19: =INDEX('RAB input'!$H$24:$XFD$73, MATCH($E19, 'RAB input'!$E$24:$E$73, 0), MATCH(BO$4, RAB_years, 0)) -> 0 | BP19: =INDEX('RAB input'!$H$24:$XFD$73, MATCH($E19, 'RAB input'!$E$24:$E$73, 0), MATCH(BP$4, RAB_years, 0)) -> 0 | BQ19: =INDEX('RAB input'!$H$24:$XFD$73, MATCH($E19, 'RAB input'!$E$24:$E$73, 0), MATCH(BQ$4, RAB_years, 0)) ->  | BR19: =INDEX('RAB input'!$H$24:$XFD$73, MATCH($E19, 'RAB input'!$E$24:$E$73, 0), MATCH(BR$4, RAB_years, 0)) ->  | BS19: =INDEX('RAB input'!$H$24:$XFD$73, MATCH($E19, 'RAB input'!$E$24:$E$73, 0), MATCH(BS$4, RAB_years, 0)) ->  | BT19: =INDEX('RAB input'!$H$24:$XFD$73, MATCH($E19, 'RAB input'!$E$24:$E$73, 0), MATCH(BT$4, RAB_years, 0)) ->  | BU19: =INDEX('RAB input'!$H$24:$XFD$73, MATCH($E19, 'RAB input'!$E$24:$E$73, 0), MATCH(BU$4, RAB_years, 0)) ->  | BV19: =INDEX('RAB input'!$H$24:$XFD$73, MATCH($E19, 'RAB input'!$E$24:$E$73, 0), MATCH(BV$4, RAB_years, 0)) ->  | BW19: =INDEX('RAB input'!$H$24:$XFD$73, MATCH($E19, 'RAB input'!$E$24:$E$73, 0), MATCH(BW$4, RAB_years, 0)) ->  | BX19: =INDEX('RAB input'!$H$24:$XFD$73, MATCH($E19, 'RAB input'!$E$24:$E$73, 0), MATCH(BX$4, RAB_years, 0)) ->  | BY19: =INDEX('RAB input'!$H$24:$XFD$73, MATCH($E19, 'RAB input'!$E$24:$E$73, 0), MATCH(BY$4, RAB_years, 0)) ->  | BZ19: =INDEX('RAB input'!$H$24:$XFD$73, MATCH($E19, 'RAB input'!$E$24:$E$73, 0), MATCH(BZ$4, RAB_years, 0)) ->  | CA19: =INDEX('RAB input'!$H$24:$XFD$73, MATCH($E19, 'RAB input'!$E$24:$E$73, 0), MATCH(CA$4, RAB_years, 0)) ->  | CB19: =INDEX('RAB input'!$H$24:$XFD$73, MATCH($E19, 'RAB input'!$E$24:$E$73, 0), MATCH(CB$4, RAB_years, 0)) ->  | CC19: =INDEX('RAB input'!$H$24:$XFD$73, MATCH($E19, 'RAB input'!$E$24:$E$73, 0), MATCH(CC$4, RAB_years, 0)) ->  | CD19: =INDEX('RAB input'!$H$24:$XFD$73, MATCH($E19, 'RAB input'!$E$24:$E$73, 0), MATCH(CD$4, RAB_years, 0)) ->  | CE19: =INDEX('RAB input'!$H$24:$XFD$73, MATCH($E19, 'RAB input'!$E$24:$E$73, 0), MATCH(CE$4, RAB_years, 0)) ->  | CF19: =INDEX('RAB input'!$H$24:$XFD$73, MATCH($E19, 'RAB input'!$E$24:$E$73, 0), MATCH(CF$4, RAB_years, 0)) ->  | CG19: =INDEX('RAB input'!$H$24:$XFD$73, MATCH($E19, 'RAB input'!$E$24:$E$73, 0), MATCH(CG$4, RAB_years, 0)) ->  | CH19: =INDEX('RAB input'!$H$24:$XFD$73, MATCH($E19, 'RAB input'!$E$24:$E$73, 0), MATCH(CH$4, RAB_years, 0)) ->  | CI19: =INDEX('RAB input'!$H$24:$XFD$73, MATCH($E19, 'RAB input'!$E$24:$E$73, 0), MATCH(CI$4, RAB_years, 0)) ->  | CJ19: =INDEX('RAB input'!$H$24:$XFD$73, MATCH($E19, 'RAB input'!$E$24:$E$73, 0), MATCH(CJ$4, RAB_years, 0)) -> 
D20: 3 | E20: ='RAB input'!E26 -> Transformers | G20: =INDEX('[4]TAB roll forward'!$H$8:$H$57,MATCH($E20,'[4]TAB roll forward'!$C$8:$C$57,0)) -> 364.6586213 | H20: =INDEX('RAB input'!$H$24:$XFD$73, MATCH($E20, 'RAB input'!$E$24:$E$73, 0), MATCH(H$4, RAB_years, 0)) -> 3.383212244 | I20: =INDEX('RAB input'!$H$24:$XFD$73, MATCH($E20, 'RAB input'!$E$24:$E$73, 0), MATCH(I$4, RAB_years, 0)) -> 17.35992558 | J20: =INDEX('RAB input'!$H$24:$XFD$73, MATCH($E20, 'RAB input'!$E$24:$E$73, 0), MATCH(J$4, RAB_years, 0)) -> 10.81252073 | K20: =INDEX('RAB input'!$H$24:$XFD$73, MATCH($E20, 'RAB input'!$E$24:$E$73, 0), MATCH(K$4, RAB_years, 0)) -> 51.714159 | L20: =INDEX('RAB input'!$H$24:$XFD$73, MATCH($E20, 'RAB input'!$E$24:$E$73, 0), MATCH(L$4, RAB_years, 0)) -> 91.913066 | M20: =INDEX('RAB input'!$H$24:$XFD$73, MATCH($E20, 'RAB input'!$E$24:$E$73, 0), MATCH(M$4, RAB_years, 0)) -> 0 | N20: =INDEX('RAB input'!$H$24:$XFD$73, MATCH($E20, 'RAB input'!$E$24:$E$73, 0), MATCH(N$4, RAB_years, 0)) -> 0 | O20: =INDEX('RAB input'!$H$24:$XFD$73, MATCH($E20, 'RAB input'!$E$24:$E$73, 0), MATCH(O$4, RAB_years, 0)) -> 0 | P20: =INDEX('RAB input'!$H$24:$XFD$73, MATCH($E20, 'RAB input'!$E$24:$E$73, 0), MATCH(P$4, RAB_years, 0)) -> 0 | Q20: =INDEX('RAB input'!$H$24:$XFD$73, MATCH($E20, 'RAB input'!$E$24:$E$73, 0), MATCH(Q$4, RAB_years, 0)) -> 0 | R20: =INDEX('RAB input'!$H$24:$XFD$73, MATCH($E20, 'RAB input'!$E$24:$E$73, 0), MATCH(R$4, RAB_years, 0)) -> 0 | S20: =INDEX('RAB input'!$H$24:$XFD$73, MATCH($E20, 'RAB input'!$E$24:$E$73, 0), MATCH(S$4, RAB_years, 0)) -> 0 | T20: =INDEX('RAB input'!$H$24:$XFD$73, MATCH($E20, 'RAB input'!$E$24:$E$73, 0), MATCH(T$4, RAB_years, 0)) -> 0 | U20: =INDEX('RAB input'!$H$24:$XFD$73, MATCH($E20, 'RAB input'!$E$24:$E$73, 0), MATCH(U$4, RAB_years, 0)) -> 0 | V20: =INDEX('RAB input'!$H$24:$XFD$73, MATCH($E20, 'RAB input'!$E$24:$E$73, 0), MATCH(V$4, RAB_years, 0)) -> 0 | W20: =INDEX('RAB input'!$H$24:$XFD$73, MATCH($E20, 'RAB input'!$E$24:$E$73, 0), MATCH(W$4, RAB_years, 0)) -> 0 | X20: =INDEX('RAB input'!$H$24:$XFD$73, MATCH($E20, 'RAB input'!$E$24:$E$73, 0), MATCH(X$4, RAB_years, 0)) -> 0 | Y20: =INDEX('RAB input'!$H$24:$XFD$73, MATCH($E20, 'RAB input'!$E$24:$E$73, 0), MATCH(Y$4, RAB_years, 0)) -> 0 | Z20: =INDEX('RAB input'!$H$24:$XFD$73, MATCH($E20, 'RAB input'!$E$24:$E$73, 0), MATCH(Z$4, RAB_years, 0)) -> 0 | AA20: =INDEX('RAB input'!$H$24:$XFD$73, MATCH($E20, 'RAB input'!$E$24:$E$73, 0), MATCH(AA$4, RAB_years, 0)) -> 0 | AB20: =INDEX('RAB input'!$H$24:$XFD$73, MATCH($E20, 'RAB input'!$E$24:$E$73, 0), MATCH(AB$4, RAB_years, 0)) -> 0 | AC20: =INDEX('RAB input'!$H$24:$XFD$73, MATCH($E20, 'RAB input'!$E$24:$E$73, 0), MATCH(AC$4, RAB_years, 0)) -> 0 | AD20: =INDEX('RAB input'!$H$24:$XFD$73, MATCH($E20, 'RAB input'!$E$24:$E$73, 0), MATCH(AD$4, RAB_years, 0)) -> 0 | AE20: =INDEX('RAB input'!$H$24:$XFD$73, MATCH($E20, 'RAB input'!$E$24:$E$73, 0), MATCH(AE$4, RAB_years, 0)) -> 0 | AF20: =INDEX('RAB input'!$H$24:$XFD$73, MATCH($E20, 'RAB input'!$E$24:$E$73, 0), MATCH(AF$4, RAB_years, 0)) -> 0 | AG20: =INDEX('RAB input'!$H$24:$XFD$73, MATCH($E20, 'RAB input'!$E$24:$E$73, 0), MATCH(AG$4, RAB_years, 0)) -> 0 | AH20: =INDEX('RAB input'!$H$24:$XFD$73, MATCH($E20, 'RAB input'!$E$24:$E$73, 0), MATCH(AH$4, RAB_years, 0)) -> 0 | AI20: =INDEX('RAB input'!$H$24:$XFD$73, MATCH($E20, 'RAB input'!$E$24:$E$73, 0), MATCH(AI$4, RAB_years, 0)) -> 0 | AJ20: =INDEX('RAB input'!$H$24:$XFD$73, MATCH($E20, 'RAB input'!$E$24:$E$73, 0), MATCH(AJ$4, RAB_years, 0)) -> 0 | AK20: =INDEX('RAB input'!$H$24:$XFD$73, MATCH($E20, 'RAB input'!$E$24:$E$73, 0), MATCH(AK$4, RAB_years, 0)) -> 0 | AL20: =INDEX('RAB input'!$H$24:$XFD$73, MATCH($E20, 'RAB input'!$E$24:$E$73, 0), MATCH(AL$4, RAB_years, 0)) -> 0 | AM20: =INDEX('RAB input'!$H$24:$XFD$73, MATCH($E20, 'RAB input'!$E$24:$E$73, 0), MATCH(AM$4, RAB_years, 0)) -> 0 | AN20: =INDEX('RAB input'!$H$24:$XFD$73, MATCH($E20, 'RAB input'!$E$24:$E$73, 0), MATCH(AN$4, RAB_years, 0)) -> 0 | AO20: =INDEX('RAB input'!$H$24:$XFD$73, MATCH($E20, 'RAB input'!$E$24:$E$73, 0), MATCH(AO$4, RAB_years, 0)) -> 0 | AP20: =INDEX('RAB input'!$H$24:$XFD$73, MATCH($E20, 'RAB input'!$E$24:$E$73, 0), MATCH(AP$4, RAB_years, 0)) -> 0 | AQ20: =INDEX('RAB input'!$H$24:$XFD$73, MATCH($E20, 'RAB input'!$E$24:$E$73, 0), MATCH(AQ$4, RAB_years, 0)) -> 0 | AR20: =INDEX('RAB input'!$H$24:$XFD$73, MATCH($E20, 'RAB input'!$E$24:$E$73, 0), MATCH(AR$4, RAB_years, 0)) -> 0 | AS20: =INDEX('RAB input'!$H$24:$XFD$73, MATCH($E20, 'RAB input'!$E$24:$E$73, 0), MATCH(AS$4, RAB_years, 0)) -> 0 | AT20: =INDEX('RAB input'!$H$24:$XFD$73, MATCH($E20, 'RAB input'!$E$24:$E$73, 0), MATCH(AT$4, RAB_years, 0)) -> 0 | AU20: =INDEX('RAB input'!$H$24:$XFD$73, MATCH($E20, 'RAB input'!$E$24:$E$73, 0), MATCH(AU$4, RAB_years, 0)) -> 0 | AV20: =INDEX('RAB input'!$H$24:$XFD$73, MATCH($E20, 'RAB input'!$E$24:$E$73, 0), MATCH(AV$4, RAB_years, 0)) -> 0 | AW20: =INDEX('RAB input'!$H$24:$XFD$73, MATCH($E20, 'RAB input'!$E$24:$E$73, 0), MATCH(AW$4, RAB_years, 0)) -> 0 | AX20: =INDEX('RAB input'!$H$24:$XFD$73, MATCH($E20, 'RAB input'!$E$24:$E$73, 0), MATCH(AX$4, RAB_years, 0)) -> 0 | AY20: =INDEX('RAB input'!$H$24:$XFD$73, MATCH($E20, 'RAB input'!$E$24:$E$73, 0), MATCH(AY$4, RAB_years, 0)) -> 0 | AZ20: =INDEX('RAB input'!$H$24:$XFD$73, MATCH($E20, 'RAB input'!$E$24:$E$73, 0), MATCH(AZ$4, RAB_years, 0)) -> 0 | BA20: =INDEX('RAB input'!$H$24:$XFD$73, MATCH($E20, 'RAB input'!$E$24:$E$73, 0), MATCH(BA$4, RAB_years, 0)) -> 0 | BB20: =INDEX('RAB input'!$H$24:$XFD$73, MATCH($E20, 'RAB input'!$E$24:$E$73, 0), MATCH(BB$4, RAB_years, 0)) -> 0 | BC20: =INDEX('RAB input'!$H$24:$XFD$73, MATCH($E20, 'RAB input'!$E$24:$E$73, 0), MATCH(BC$4, RAB_years, 0)) -> 0 | BD20: =INDEX('RAB input'!$H$24:$XFD$73, MATCH($E20, 'RAB input'!$E$24:$E$73, 0), MATCH(BD$4, RAB_years, 0)) -> 0 | BE20: =INDEX('RAB input'!$H$24:$XFD$73, MATCH($E20, 'RAB input'!$E$24:$E$73, 0), MATCH(BE$4, RAB_years, 0)) -> 0 | BF20: =INDEX('RAB input'!$H$24:$XFD$73, MATCH($E20, 'RAB input'!$E$24:$E$73, 0), MATCH(BF$4, RAB_years, 0)) -> 0 | BG20: =INDEX('RAB input'!$H$24:$XFD$73, MATCH($E20, 'RAB input'!$E$24:$E$73, 0), MATCH(BG$4, RAB_years, 0)) -> 0 | BH20: =INDEX('RAB input'!$H$24:$XFD$73, MATCH($E20, 'RAB input'!$E$24:$E$73, 0), MATCH(BH$4, RAB_years, 0)) -> 0 | BI20: =INDEX('RAB input'!$H$24:$XFD$73, MATCH($E20, 'RAB input'!$E$24:$E$73, 0), MATCH(BI$4, RAB_years, 0)) -> 0 | BJ20: =INDEX('RAB input'!$H$24:$XFD$73, MATCH($E20, 'RAB input'!$E$24:$E$73, 0), MATCH(BJ$4, RAB_years, 0)) -> 0 | BK20: =INDEX('RAB input'!$H$24:$XFD$73, MATCH($E20, 'RAB input'!$E$24:$E$73, 0), MATCH(BK$4, RAB_years, 0)) -> 0 | BL20: =INDEX('RAB input'!$H$24:$XFD$73, MATCH($E20, 'RAB input'!$E$24:$E$73, 0), MATCH(BL$4, RAB_years, 0)) -> 0 | BM20: =INDEX('RAB input'!$H$24:$XFD$73, MATCH($E20, 'RAB input'!$E$24:$E$73, 0), MATCH(BM$4, RAB_years, 0)) -> 0 | BN20: =INDEX('RAB input'!$H$24:$XFD$73, MATCH($E20, 'RAB input'!$E$24:$E$73, 0), MATCH(BN$4, RAB_years, 0)) -> 0 | BO20: =INDEX('RAB input'!$H$24:$XFD$73, MATCH($E20, 'RAB input'!$E$24:$E$73, 0), MATCH(BO$4, RAB_years, 0)) -> 0 | BP20: =INDEX('RAB input'!$H$24:$XFD$73, MATCH($E20, 'RAB input'!$E$24:$E$73, 0), MATCH(BP$4, RAB_years, 0)) -> 0 | BQ20: =INDEX('RAB input'!$H$24:$XFD$73, MATCH($E20, 'RAB input'!$E$24:$E$73, 0), MATCH(BQ$4, RAB_years, 0)) ->  | BR20: =INDEX('RAB input'!$H$24:$XFD$73, MATCH($E20, 'RAB input'!$E$24:$E$73, 0), MATCH(BR$4, RAB_years, 0)) ->  | BS20: =INDEX('RAB input'!$H$24:$XFD$73, MATCH($E20, 'RAB input'!$E$24:$E$73, 0), MATCH(BS$4, RAB_years, 0)) ->  | BT20: =INDEX('RAB input'!$H$24:$XFD$73, MATCH($E20, 'RAB input'!$E$24:$E$73, 0), MATCH(BT$4, RAB_years, 0)) ->  | BU20: =INDEX('RAB input'!$H$24:$XFD$73, MATCH($E20, 'RAB input'!$E$24:$E$73, 0), MATCH(BU$4, RAB_years, 0)) ->  | BV20: =INDEX('RAB input'!$H$24:$XFD$73, MATCH($E20, 'RAB input'!$E$24:$E$73, 0), MATCH(BV$4, RAB_years, 0)) ->  | BW20: =INDEX('RAB input'!$H$24:$XFD$73, MATCH($E20, 'RAB input'!$E$24:$E$73, 0), MATCH(BW$4, RAB_years, 0)) ->  | BX20: =INDEX('RAB input'!$H$24:$XFD$73, MATCH($E20, 'RAB input'!$E$24:$E$73, 0), MATCH(BX$4, RAB_years, 0)) ->  | BY20: =INDEX('RAB input'!$H$24:$XFD$73, MATCH($E20, 'RAB input'!$E$24:$E$73, 0), MATCH(BY$4, RAB_years, 0)) ->  | BZ20: =INDEX('RAB input'!$H$24:$XFD$73, MATCH($E20, 'RAB input'!$E$24:$E$73, 0), MATCH(BZ$4, RAB_years, 0)) ->  | CA20: =INDEX('RAB input'!$H$24:$XFD$73, MATCH($E20, 'RAB input'!$E$24:$E$73, 0), MATCH(CA$4, RAB_years, 0)) ->  | CB20: =INDEX('RAB input'!$H$24:$XFD$73, MATCH($E20, 'RAB input'!$E$24:$E$73, 0), MATCH(CB$4, RAB_years, 0)) ->  | CC20: =INDEX('RAB input'!$H$24:$XFD$73, MATCH($E20, 'RAB input'!$E$24:$E$73, 0), MATCH(CC$4, RAB_years, 0)) ->  | CD20: =INDEX('RAB input'!$H$24:$XFD$73, MATCH($E20, 'RAB input'!$E$24:$E$73, 0), MATCH(CD$4, RAB_years, 0)) ->  | CE20: =INDEX('RAB input'!$H$24:$XFD$73, MATCH($E20, 'RAB input'!$E$24:$E$73, 0), MATCH(CE$4, RAB_years, 0)) ->  | CF20: =INDEX('RAB input'!$H$24:$XFD$73, MATCH($E20, 'RAB input'!$E$24:$E$73, 0), MATCH(CF$4, RAB_years, 0)) ->  | CG20: =INDEX('RAB input'!$H$24:$XFD$73, MATCH($E20, 'RAB input'!$E$24:$E$73, 0), MATCH(CG$4, RAB_years, 0)) ->  | CH20: =INDEX('RAB input'!$H$24:$XFD$73, MATCH($E20, 'RAB input'!$E$24:$E$73, 0), MATCH(CH$4, RAB_years, 0)) ->  | CI20: =INDEX('RAB input'!$H$24:$XFD$73, MATCH($E20, 'RAB input'!$E$24:$E$73, 0), MATCH(CI$4, RAB_years, 0)) ->  | CJ20: =INDEX('RAB input'!$H$24:$XFD$73, MATCH($E20, 'RAB input'!$E$24:$E$73, 0), MATCH(CJ$4, RAB_years, 0)) -> 
D21: 4 | E21: ='RAB input'!E27 -> Reactive | G21: =INDEX('[4]TAB roll forward'!$H$8:$H$57,MATCH($E21,'[4]TAB roll forward'!$C$8:$C$57,0)) -> 68.13780406 | H21: =INDEX('RAB input'!$H$24:$XFD$73, MATCH($E21, 'RAB input'!$E$24:$E$73, 0), MATCH(H$4, RAB_years, 0)) -> 2.533866639 | I21: =INDEX('RAB input'!$H$24:$XFD$73, MATCH($E21, 'RAB input'!$E$24:$E$73, 0), MATCH(I$4, RAB_years, 0)) -> 1.707435867 | J21: =INDEX('RAB input'!$H$24:$XFD$73, MATCH($E21, 'RAB input'!$E$24:$E$73, 0), MATCH(J$4, RAB_years, 0)) -> 0.9116992189 | K21: =INDEX('RAB input'!$H$24:$XFD$73, MATCH($E21, 'RAB input'!$E$24:$E$73, 0), MATCH(K$4, RAB_years, 0)) -> 0.875178 | L21: =INDEX('RAB input'!$H$24:$XFD$73, MATCH($E21, 'RAB input'!$E$24:$E$73, 0), MATCH(L$4, RAB_years, 0)) -> 1.321201 | M21: =INDEX('RAB input'!$H$24:$XFD$73, MATCH($E21, 'RAB input'!$E$24:$E$73, 0), MATCH(M$4, RAB_years, 0)) -> 0 | N21: =INDEX('RAB input'!$H$24:$XFD$73, MATCH($E21, 'RAB input'!$E$24:$E$73, 0), MATCH(N$4, RAB_years, 0)) -> 0 | O21: =INDEX('RAB input'!$H$24:$XFD$73, MATCH($E21, 'RAB input'!$E$24:$E$73, 0), MATCH(O$4, RAB_years, 0)) -> 0 | P21: =INDEX('RAB input'!$H$24:$XFD$73, MATCH($E21, 'RAB input'!$E$24:$E$73, 0), MATCH(P$4, RAB_years, 0)) -> 0 | Q21: =INDEX('RAB input'!$H$24:$XFD$73, MATCH($E21, 'RAB input'!$E$24:$E$73, 0), MATCH(Q$4, RAB_years, 0)) -> 0 | R21: =INDEX('RAB input'!$H$24:$XFD$73, MATCH($E21, 'RAB input'!$E$24:$E$73, 0), MATCH(R$4, RAB_years, 0)) -> 0 | S21: =INDEX('RAB input'!$H$24:$XFD$73, MATCH($E21, 'RAB input'!$E$24:$E$73, 0), MATCH(S$4, RAB_years, 0)) -> 0 | T21: =INDEX('RAB input'!$H$24:$XFD$73, MATCH($E21, 'RAB input'!$E$24:$E$73, 0), MATCH(T$4, RAB_years, 0)) -> 0 | U21: =INDEX('RAB input'!$H$24:$XFD$73, MATCH($E21, 'RAB input'!$E$24:$E$73, 0), MATCH(U$4, RAB_years, 0)) -> 0 | V21: =INDEX('RAB input'!$H$24:$XFD$73, MATCH($E21, 'RAB input'!$E$24:$E$73, 0), MATCH(V$4, RAB_years, 0)) -> 0 | W21: =INDEX('RAB input'!$H$24:$XFD$73, MATCH($E21, 'RAB input'!$E$24:$E$73, 0), MATCH(W$4, RAB_years, 0)) -> 0 | X21: =INDEX('RAB input'!$H$24:$XFD$73, MATCH($E21, 'RAB input'!$E$24:$E$73, 0), MATCH(X$4, RAB_years, 0)) -> 0 | Y21: =INDEX('RAB input'!$H$24:$XFD$73, MATCH($E21, 'RAB input'!$E$24:$E$73, 0), MATCH(Y$4, RAB_years, 0)) -> 0 | Z21: =INDEX('RAB input'!$H$24:$XFD$73, MATCH($E21, 'RAB input'!$E$24:$E$73, 0), MATCH(Z$4, RAB_years, 0)) -> 0 | AA21: =INDEX('RAB input'!$H$24:$XFD$73, MATCH($E21, 'RAB input'!$E$24:$E$73, 0), MATCH(AA$4, RAB_years, 0)) -> 0 | AB21: =INDEX('RAB input'!$H$24:$XFD$73, MATCH($E21, 'RAB input'!$E$24:$E$73, 0), MATCH(AB$4, RAB_years, 0)) -> 0 | AC21: =INDEX('RAB input'!$H$24:$XFD$73, MATCH($E21, 'RAB input'!$E$24:$E$73, 0), MATCH(AC$4, RAB_years, 0)) -> 0 | AD21: =INDEX('RAB input'!$H$24:$XFD$73, MATCH($E21, 'RAB input'!$E$24:$E$73, 0), MATCH(AD$4, RAB_years, 0)) -> 0 | AE21: =INDEX('RAB input'!$H$24:$XFD$73, MATCH($E21, 'RAB input'!$E$24:$E$73, 0), MATCH(AE$4, RAB_years, 0)) -> 0 | AF21: =INDEX('RAB input'!$H$24:$XFD$73, MATCH($E21, 'RAB input'!$E$24:$E$73, 0), MATCH(AF$4, RAB_years, 0)) -> 0 | AG21: =INDEX('RAB input'!$H$24:$XFD$73, MATCH($E21, 'RAB input'!$E$24:$E$73, 0), MATCH(AG$4, RAB_years, 0)) -> 0 | AH21: =INDEX('RAB input'!$H$24:$XFD$73, MATCH($E21, 'RAB input'!$E$24:$E$73, 0), MATCH(AH$4, RAB_years, 0)) -> 0 | AI21: =INDEX('RAB input'!$H$24:$XFD$73, MATCH($E21, 'RAB input'!$E$24:$E$73, 0), MATCH(AI$4, RAB_years, 0)) -> 0 | AJ21: =INDEX('RAB input'!$H$24:$XFD$73, MATCH($E21, 'RAB input'!$E$24:$E$73, 0), MATCH(AJ$4, RAB_years, 0)) -> 0 | AK21: =INDEX('RAB input'!$H$24:$XFD$73, MATCH($E21, 'RAB input'!$E$24:$E$73, 0), MATCH(AK$4, RAB_years, 0)) -> 0 | AL21: =INDEX('RAB input'!$H$24:$XFD$73, MATCH($E21, 'RAB input'!$E$24:$E$73, 0), MATCH(AL$4, RAB_years, 0)) -> 0 | AM21: =INDEX('RAB input'!$H$24:$XFD$73, MATCH($E21, 'RAB input'!$E$24:$E$73, 0), MATCH(AM$4, RAB_years, 0)) -> 0 | AN21: =INDEX('RAB input'!$H$24:$XFD$73, MATCH($E21, 'RAB input'!$E$24:$E$73, 0), MATCH(AN$4, RAB_years, 0)) -> 0 | AO21: =INDEX('RAB input'!$H$24:$XFD$73, MATCH($E21, 'RAB input'!$E$24:$E$73, 0), MATCH(AO$4, RAB_years, 0)) -> 0 | AP21: =INDEX('RAB input'!$H$24:$XFD$73, MATCH($E21, 'RAB input'!$E$24:$E$73, 0), MATCH(AP$4, RAB_years, 0)) -> 0 | AQ21: =INDEX('RAB input'!$H$24:$XFD$73, MATCH($E21, 'RAB input'!$E$24:$E$73, 0), MATCH(AQ$4, RAB_years, 0)) -> 0 | AR21: =INDEX('RAB input'!$H$24:$XFD$73, MATCH($E21, 'RAB input'!$E$24:$E$73, 0), MATCH(AR$4, RAB_years, 0)) -> 0 | AS21: =INDEX('RAB input'!$H$24:$XFD$73, MATCH($E21, 'RAB input'!$E$24:$E$73, 0), MATCH(AS$4, RAB_years, 0)) -> 0 | AT21: =INDEX('RAB input'!$H$24:$XFD$73, MATCH($E21, 'RAB input'!$E$24:$E$73, 0), MATCH(AT$4, RAB_years, 0)) -> 0 | AU21: =INDEX('RAB input'!$H$24:$XFD$73, MATCH($E21, 'RAB input'!$E$24:$E$73, 0), MATCH(AU$4, RAB_years, 0)) -> 0 | AV21: =INDEX('RAB input'!$H$24:$XFD$73, MATCH($E21, 'RAB input'!$E$24:$E$73, 0), MATCH(AV$4, RAB_years, 0)) -> 0 | AW21: =INDEX('RAB input'!$H$24:$XFD$73, MATCH($E21, 'RAB input'!$E$24:$E$73, 0), MATCH(AW$4, RAB_years, 0)) -> 0 | AX21: =INDEX('RAB input'!$H$24:$XFD$73, MATCH($E21, 'RAB input'!$E$24:$E$73, 0), MATCH(AX$4, RAB_years, 0)) -> 0 | AY21: =INDEX('RAB input'!$H$24:$XFD$73, MATCH($E21, 'RAB input'!$E$24:$E$73, 0), MATCH(AY$4, RAB_years, 0)) -> 0 | AZ21: =INDEX('RAB input'!$H$24:$XFD$73, MATCH($E21, 'RAB input'!$E$24:$E$73, 0), MATCH(AZ$4, RAB_years, 0)) -> 0 | BA21: =INDEX('RAB input'!$H$24:$XFD$73, MATCH($E21, 'RAB input'!$E$24:$E$73, 0), MATCH(BA$4, RAB_years, 0)) -> 0 | BB21: =INDEX('RAB input'!$H$24:$XFD$73, MATCH($E21, 'RAB input'!$E$24:$E$73, 0), MATCH(BB$4, RAB_years, 0)) -> 0 | BC21: =INDEX('RAB input'!$H$24:$XFD$73, MATCH($E21, 'RAB input'!$E$24:$E$73, 0), MATCH(BC$4, RAB_years, 0)) -> 0 | BD21: =INDEX('RAB input'!$H$24:$XFD$73, MATCH($E21, 'RAB input'!$E$24:$E$73, 0), MATCH(BD$4, RAB_years, 0)) -> 0 | BE21: =INDEX('RAB input'!$H$24:$XFD$73, MATCH($E21, 'RAB input'!$E$24:$E$73, 0), MATCH(BE$4, RAB_years, 0)) -> 0 | BF21: =INDEX('RAB input'!$H$24:$XFD$73, MATCH($E21, 'RAB input'!$E$24:$E$73, 0), MATCH(BF$4, RAB_years, 0)) -> 0 | BG21: =INDEX('RAB input'!$H$24:$XFD$73, MATCH($E21, 'RAB input'!$E$24:$E$73, 0), MATCH(BG$4, RAB_years, 0)) -> 0 | BH21: =INDEX('RAB input'!$H$24:$XFD$73, MATCH($E21, 'RAB input'!$E$24:$E$73, 0), MATCH(BH$4, RAB_years, 0)) -> 0 | BI21: =INDEX('RAB input'!$H$24:$XFD$73, MATCH($E21, 'RAB input'!$E$24:$E$73, 0), MATCH(BI$4, RAB_years, 0)) -> 0 | BJ21: =INDEX('RAB input'!$H$24:$XFD$73, MATCH($E21, 'RAB input'!$E$24:$E$73, 0), MATCH(BJ$4, RAB_years, 0)) -> 0 | BK21: =INDEX('RAB input'!$H$24:$XFD$73, MATCH($E21, 'RAB input'!$E$24:$E$73, 0), MATCH(BK$4, RAB_years, 0)) -> 0 | BL21: =INDEX('RAB input'!$H$24:$XFD$73, MATCH($E21, 'RAB input'!$E$24:$E$73, 0), MATCH(BL$4, RAB_years, 0)) -> 0 | BM21: =INDEX('RAB input'!$H$24:$XFD$73, MATCH($E21, 'RAB input'!$E$24:$E$73, 0), MATCH(BM$4, RAB_years, 0)) -> 0 | BN21: =INDEX('RAB input'!$H$24:$XFD$73, MATCH($E21, 'RAB input'!$E$24:$E$73, 0), MATCH(BN$4, RAB_years, 0)) -> 0 | BO21: =INDEX('RAB input'!$H$24:$XFD$73, MATCH($E21, 'RAB input'!$E$24:$E$73, 0), MATCH(BO$4, RAB_years, 0)) -> 0 | BP21: =INDEX('RAB input'!$H$24:$XFD$73, MATCH($E21, 'RAB input'!$E$24:$E$73, 0), MATCH(BP$4, RAB_years, 0)) -> 0 | BQ21: =INDEX('RAB input'!$H$24:$XFD$73, MATCH($E21, 'RAB input'!$E$24:$E$73, 0), MATCH(BQ$4, RAB_years, 0)) ->  | BR21: =INDEX('RAB input'!$H$24:$XFD$73, MATCH($E21, 'RAB input'!$E$24:$E$73, 0), MATCH(BR$4, RAB_years, 0)) ->  | BS21: =INDEX('RAB input'!$H$24:$XFD$73, MATCH($E21, 'RAB input'!$E$24:$E$73, 0), MATCH(BS$4, RAB_years, 0)) ->  | BT21: =INDEX('RAB input'!$H$24:$XFD$73, MATCH($E21, 'RAB input'!$E$24:$E$73, 0), MATCH(BT$4, RAB_years, 0)) ->  | BU21: =INDEX('RAB input'!$H$24:$XFD$73, MATCH($E21, 'RAB input'!$E$24:$E$73, 0), MATCH(BU$4, RAB_years, 0)) ->  | BV21: =INDEX('RAB input'!$H$24:$XFD$73, MATCH($E21, 'RAB input'!$E$24:$E$73, 0), MATCH(BV$4, RAB_years, 0)) ->  | BW21: =INDEX('RAB input'!$H$24:$XFD$73, MATCH($E21, 'RAB input'!$E$24:$E$73, 0), MATCH(BW$4, RAB_years, 0)) ->  | BX21: =INDEX('RAB input'!$H$24:$XFD$73, MATCH($E21, 'RAB input'!$E$24:$E$73, 0), MATCH(BX$4, RAB_years, 0)) ->  | BY21: =INDEX('RAB input'!$H$24:$XFD$73, MATCH($E21, 'RAB input'!$E$24:$E$73, 0), MATCH(BY$4, RAB_years, 0)) ->  | BZ21: =INDEX('RAB input'!$H$24:$XFD$73, MATCH($E21, 'RAB input'!$E$24:$E$73, 0), MATCH(BZ$4, RAB_years, 0)) ->  | CA21: =INDEX('RAB input'!$H$24:$XFD$73, MATCH($E21, 'RAB input'!$E$24:$E$73, 0), MATCH(CA$4, RAB_years, 0)) ->  | CB21: =INDEX('RAB input'!$H$24:$XFD$73, MATCH($E21, 'RAB input'!$E$24:$E$73, 0), MATCH(CB$4, RAB_years, 0)) ->  | CC21: =INDEX('RAB input'!$H$24:$XFD$73, MATCH($E21, 'RAB input'!$E$24:$E$73, 0), MATCH(CC$4, RAB_years, 0)) ->  | CD21: =INDEX('RAB input'!$H$24:$XFD$73, MATCH($E21, 'RAB input'!$E$24:$E$73, 0), MATCH(CD$4, RAB_years, 0)) ->  | CE21: =INDEX('RAB input'!$H$24:$XFD$73, MATCH($E21, 'RAB input'!$E$24:$E$73, 0), MATCH(CE$4, RAB_years, 0)) ->  | CF21: =INDEX('RAB input'!$H$24:$XFD$73, MATCH($E21, 'RAB input'!$E$24:$E$73, 0), MATCH(CF$4, RAB_years, 0)) ->  | CG21: =INDEX('RAB input'!$H$24:$XFD$73, MATCH($E21, 'RAB input'!$E$24:$E$73, 0), MATCH(CG$4, RAB_years, 0)) ->  | CH21: =INDEX('RAB input'!$H$24:$XFD$73, MATCH($E21, 'RAB input'!$E$24:$E$73, 0), MATCH(CH$4, RAB_years, 0)) ->  | CI21: =INDEX('RAB input'!$H$24:$XFD$73, MATCH($E21, 'RAB input'!$E$24:$E$73, 0), MATCH(CI$4, RAB_years, 0)) ->  | CJ21: =INDEX('RAB input'!$H$24:$XFD$73, MATCH($E21, 'RAB input'!$E$24:$E$73, 0), MATCH(CJ$4, RAB_years, 0)) -> 
D22: 5 | E22: ='RAB input'!E28 -> Towers and Conductor | G22: =INDEX('[4]TAB roll forward'!$H$8:$H$57,MATCH($E22,'[4]TAB roll forward'!$C$8:$C$57,0)) -> 760.5767292 | H22: =INDEX('RAB input'!$H$24:$XFD$73, MATCH($E22, 'RAB input'!$E$24:$E$73, 0), MATCH(H$4, RAB_years, 0)) -> 1.515420329 | I22: =INDEX('RAB input'!$H$24:$XFD$73, MATCH($E22, 'RAB input'!$E$24:$E$73, 0), MATCH(I$4, RAB_years, 0)) -> 3.757893801 | J22: =INDEX('RAB input'!$H$24:$XFD$73, MATCH($E22, 'RAB input'!$E$24:$E$73, 0), MATCH(J$4, RAB_years, 0)) -> 55.98963241 | K22: =INDEX('RAB input'!$H$24:$XFD$73, MATCH($E22, 'RAB input'!$E$24:$E$73, 0), MATCH(K$4, RAB_years, 0)) -> 48.375355 | L22: =INDEX('RAB input'!$H$24:$XFD$73, MATCH($E22, 'RAB input'!$E$24:$E$73, 0), MATCH(L$4, RAB_years, 0)) -> 88.062519 | M22: =INDEX('RAB input'!$H$24:$XFD$73, MATCH($E22, 'RAB input'!$E$24:$E$73, 0), MATCH(M$4, RAB_years, 0)) -> 0 | N22: =INDEX('RAB input'!$H$24:$XFD$73, MATCH($E22, 'RAB input'!$E$24:$E$73, 0), MATCH(N$4, RAB_years, 0)) -> 0 | O22: =INDEX('RAB input'!$H$24:$XFD$73, MATCH($E22, 'RAB input'!$E$24:$E$73, 0), MATCH(O$4, RAB_years, 0)) -> 0 | P22: =INDEX('RAB input'!$H$24:$XFD$73, MATCH($E22, 'RAB input'!$E$24:$E$73, 0), MATCH(P$4, RAB_years, 0)) -> 0 | Q22: =INDEX('RAB input'!$H$24:$XFD$73, MATCH($E22, 'RAB input'!$E$24:$E$73, 0), MATCH(Q$4, RAB_years, 0)) -> 0 | R22: =INDEX('RAB input'!$H$24:$XFD$73, MATCH($E22, 'RAB input'!$E$24:$E$73, 0), MATCH(R$4, RAB_years, 0)) -> 0 | S22: =INDEX('RAB input'!$H$24:$XFD$73, MATCH($E22, 'RAB input'!$E$24:$E$73, 0), MATCH(S$4, RAB_years, 0)) -> 0 | T22: =INDEX('RAB input'!$H$24:$XFD$73, MATCH($E22, 'RAB input'!$E$24:$E$73, 0), MATCH(T$4, RAB_years, 0)) -> 0 | U22: =INDEX('RAB input'!$H$24:$XFD$73, MATCH($E22, 'RAB input'!$E$24:$E$73, 0), MATCH(U$4, RAB_years, 0)) -> 0 | V22: =INDEX('RAB input'!$H$24:$XFD$73, MATCH($E22, 'RAB input'!$E$24:$E$73, 0), MATCH(V$4, RAB_years, 0)) -> 0 | W22: =INDEX('RAB input'!$H$24:$XFD$73, MATCH($E22, 'RAB input'!$E$24:$E$73, 0), MATCH(W$4, RAB_years, 0)) -> 0 | X22: =INDEX('RAB input'!$H$24:$XFD$73, MATCH($E22, 'RAB input'!$E$24:$E$73, 0), MATCH(X$4, RAB_years, 0)) -> 0 | Y22: =INDEX('RAB input'!$H$24:$XFD$73, MATCH($E22, 'RAB input'!$E$24:$E$73, 0), MATCH(Y$4, RAB_years, 0)) -> 0 | Z22: =INDEX('RAB input'!$H$24:$XFD$73, MATCH($E22, 'RAB input'!$E$24:$E$73, 0), MATCH(Z$4, RAB_years, 0)) -> 0 | AA22: =INDEX('RAB input'!$H$24:$XFD$73, MATCH($E22, 'RAB input'!$E$24:$E$73, 0), MATCH(AA$4, RAB_years, 0)) -> 0 | AB22: =INDEX('RAB input'!$H$24:$XFD$73, MATCH($E22, 'RAB input'!$E$24:$E$73, 0), MATCH(AB$4, RAB_years, 0)) -> 0 | AC22: =INDEX('RAB input'!$H$24:$XFD$73, MATCH($E22, 'RAB input'!$E$24:$E$73, 0), MATCH(AC$4, RAB_years, 0)) -> 0 | AD22: =INDEX('RAB input'!$H$24:$XFD$73, MATCH($E22, 'RAB input'!$E$24:$E$73, 0), MATCH(AD$4, RAB_years, 0)) -> 0 | AE22: =INDEX('RAB input'!$H$24:$XFD$73, MATCH($E22, 'RAB input'!$E$24:$E$73, 0), MATCH(AE$4, RAB_years, 0)) -> 0 | AF22: =INDEX('RAB input'!$H$24:$XFD$73, MATCH($E22, 'RAB input'!$E$24:$E$73, 0), MATCH(AF$4, RAB_years, 0)) -> 0 | AG22: =INDEX('RAB input'!$H$24:$XFD$73, MATCH($E22, 'RAB input'!$E$24:$E$73, 0), MATCH(AG$4, RAB_years, 0)) -> 0 | AH22: =INDEX('RAB input'!$H$24:$XFD$73, MATCH($E22, 'RAB input'!$E$24:$E$73, 0), MATCH(AH$4, RAB_years, 0)) -> 0 | AI22: =INDEX('RAB input'!$H$24:$XFD$73, MATCH($E22, 'RAB input'!$E$24:$E$73, 0), MATCH(AI$4, RAB_years, 0)) -> 0 | AJ22: =INDEX('RAB input'!$H$24:$XFD$73, MATCH($E22, 'RAB input'!$E$24:$E$73, 0), MATCH(AJ$4, RAB_years, 0)) -> 0 | AK22: =INDEX('RAB input'!$H$24:$XFD$73, MATCH($E22, 'RAB input'!$E$24:$E$73, 0), MATCH(AK$4, RAB_years, 0)) -> 0 | AL22: =INDEX('RAB input'!$H$24:$XFD$73, MATCH($E22, 'RAB input'!$E$24:$E$73, 0), MATCH(AL$4, RAB_years, 0)) -> 0 | AM22: =INDEX('RAB input'!$H$24:$XFD$73, MATCH($E22, 'RAB input'!$E$24:$E$73, 0), MATCH(AM$4, RAB_years, 0)) -> 0 | AN22: =INDEX('RAB input'!$H$24:$XFD$73, MATCH($E22, 'RAB input'!$E$24:$E$73, 0), MATCH(AN$4, RAB_years, 0)) -> 0 | AO22: =INDEX('RAB input'!$H$24:$XFD$73, MATCH($E22, 'RAB input'!$E$24:$E$73, 0), MATCH(AO$4, RAB_years, 0)) -> 0 | AP22: =INDEX('RAB input'!$H$24:$XFD$73, MATCH($E22, 'RAB input'!$E$24:$E$73, 0), MATCH(AP$4, RAB_years, 0)) -> 0 | AQ22: =INDEX('RAB input'!$H$24:$XFD$73, MATCH($E22, 'RAB input'!$E$24:$E$73, 0), MATCH(AQ$4, RAB_years, 0)) -> 0 | AR22: =INDEX('RAB input'!$H$24:$XFD$73, MATCH($E22, 'RAB input'!$E$24:$E$73, 0), MATCH(AR$4, RAB_years, 0)) -> 0 | AS22: =INDEX('RAB input'!$H$24:$XFD$73, MATCH($E22, 'RAB input'!$E$24:$E$73, 0), MATCH(AS$4, RAB_years, 0)) -> 0 | AT22: =INDEX('RAB input'!$H$24:$XFD$73, MATCH($E22, 'RAB input'!$E$24:$E$73, 0), MATCH(AT$4, RAB_years, 0)) -> 0 | AU22: =INDEX('RAB input'!$H$24:$XFD$73, MATCH($E22, 'RAB input'!$E$24:$E$73, 0), MATCH(AU$4, RAB_years, 0)) -> 0 | AV22: =INDEX('RAB input'!$H$24:$XFD$73, MATCH($E22, 'RAB input'!$E$24:$E$73, 0), MATCH(AV$4, RAB_years, 0)) -> 0 | AW22: =INDEX('RAB input'!$H$24:$XFD$73, MATCH($E22, 'RAB input'!$E$24:$E$73, 0), MATCH(AW$4, RAB_years, 0)) -> 0 | AX22: =INDEX('RAB input'!$H$24:$XFD$73, MATCH($E22, 'RAB input'!$E$24:$E$73, 0), MATCH(AX$4, RAB_years, 0)) -> 0 | AY22: =INDEX('RAB input'!$H$24:$XFD$73, MATCH($E22, 'RAB input'!$E$24:$E$73, 0), MATCH(AY$4, RAB_years, 0)) -> 0 | AZ22: =INDEX('RAB input'!$H$24:$XFD$73, MATCH($E22, 'RAB input'!$E$24:$E$73, 0), MATCH(AZ$4, RAB_years, 0)) -> 0 | BA22: =INDEX('RAB input'!$H$24:$XFD$73, MATCH($E22, 'RAB input'!$E$24:$E$73, 0), MATCH(BA$4, RAB_years, 0)) -> 0 | BB22: =INDEX('RAB input'!$H$24:$XFD$73, MATCH($E22, 'RAB input'!$E$24:$E$73, 0), MATCH(BB$4, RAB_years, 0)) -> 0 | BC22: =INDEX('RAB input'!$H$24:$XFD$73, MATCH($E22, 'RAB input'!$E$24:$E$73, 0), MATCH(BC$4, RAB_years, 0)) -> 0 | BD22: =INDEX('RAB input'!$H$24:$XFD$73, MATCH($E22, 'RAB input'!$E$24:$E$73, 0), MATCH(BD$4, RAB_years, 0)) -> 0 | BE22: =INDEX('RAB input'!$H$24:$XFD$73, MATCH($E22, 'RAB input'!$E$24:$E$73, 0), MATCH(BE$4, RAB_years, 0)) -> 0 | BF22: =INDEX('RAB input'!$H$24:$XFD$73, MATCH($E22, 'RAB input'!$E$24:$E$73, 0), MATCH(BF$4, RAB_years, 0)) -> 0 | BG22: =INDEX('RAB input'!$H$24:$XFD$73, MATCH($E22, 'RAB input'!$E$24:$E$73, 0), MATCH(BG$4, RAB_years, 0)) -> 0 | BH22: =INDEX('RAB input'!$H$24:$XFD$73, MATCH($E22, 'RAB input'!$E$24:$E$73, 0), MATCH(BH$4, RAB_years, 0)) -> 0 | BI22: =INDEX('RAB input'!$H$24:$XFD$73, MATCH($E22, 'RAB input'!$E$24:$E$73, 0), MATCH(BI$4, RAB_years, 0)) -> 0 | BJ22: =INDEX('RAB input'!$H$24:$XFD$73, MATCH($E22, 'RAB input'!$E$24:$E$73, 0), MATCH(BJ$4, RAB_years, 0)) -> 0 | BK22: =INDEX('RAB input'!$H$24:$XFD$73, MATCH($E22, 'RAB input'!$E$24:$E$73, 0), MATCH(BK$4, RAB_years, 0)) -> 0 | BL22: =INDEX('RAB input'!$H$24:$XFD$73, MATCH($E22, 'RAB input'!$E$24:$E$73, 0), MATCH(BL$4, RAB_years, 0)) -> 0 | BM22: =INDEX('RAB input'!$H$24:$XFD$73, MATCH($E22, 'RAB input'!$E$24:$E$73, 0), MATCH(BM$4, RAB_years, 0)) -> 0 | BN22: =INDEX('RAB input'!$H$24:$XFD$73, MATCH($E22, 'RAB input'!$E$24:$E$73, 0), MATCH(BN$4, RAB_years, 0)) -> 0 | BO22: =INDEX('RAB input'!$H$24:$XFD$73, MATCH($E22, 'RAB input'!$E$24:$E$73, 0), MATCH(BO$4, RAB_years, 0)) -> 0 | BP22: =INDEX('RAB input'!$H$24:$XFD$73, MATCH($E22, 'RAB input'!$E$24:$E$73, 0), MATCH(BP$4, RAB_years, 0)) -> 0 | BQ22: =INDEX('RAB input'!$H$24:$XFD$73, MATCH($E22, 'RAB input'!$E$24:$E$73, 0), MATCH(BQ$4, RAB_years, 0)) ->  | BR22: =INDEX('RAB input'!$H$24:$XFD$73, MATCH($E22, 'RAB input'!$E$24:$E$73, 0), MATCH(BR$4, RAB_years, 0)) ->  | BS22: =INDEX('RAB input'!$H$24:$XFD$73, MATCH($E22, 'RAB input'!$E$24:$E$73, 0), MATCH(BS$4, RAB_years, 0)) ->  | BT22: =INDEX('RAB input'!$H$24:$XFD$73, MATCH($E22, 'RAB input'!$E$24:$E$73, 0), MATCH(BT$4, RAB_years, 0)) ->  | BU22: =INDEX('RAB input'!$H$24:$XFD$73, MATCH($E22, 'RAB input'!$E$24:$E$73, 0), MATCH(BU$4, RAB_years, 0)) ->  | BV22: =INDEX('RAB input'!$H$24:$XFD$73, MATCH($E22, 'RAB input'!$E$24:$E$73, 0), MATCH(BV$4, RAB_years, 0)) ->  | BW22: =INDEX('RAB input'!$H$24:$XFD$73, MATCH($E22, 'RAB input'!$E$24:$E$73, 0), MATCH(BW$4, RAB_years, 0)) ->  | BX22: =INDEX('RAB input'!$H$24:$XFD$73, MATCH($E22, 'RAB input'!$E$24:$E$73, 0), MATCH(BX$4, RAB_years, 0)) ->  | BY22: =INDEX('RAB input'!$H$24:$XFD$73, MATCH($E22, 'RAB input'!$E$24:$E$73, 0), MATCH(BY$4, RAB_years, 0)) ->  | BZ22: =INDEX('RAB input'!$H$24:$XFD$73, MATCH($E22, 'RAB input'!$E$24:$E$73, 0), MATCH(BZ$4, RAB_years, 0)) ->  | CA22: =INDEX('RAB input'!$H$24:$XFD$73, MATCH($E22, 'RAB input'!$E$24:$E$73, 0), MATCH(CA$4, RAB_years, 0)) ->  | CB22: =INDEX('RAB input'!$H$24:$XFD$73, MATCH($E22, 'RAB input'!$E$24:$E$73, 0), MATCH(CB$4, RAB_years, 0)) ->  | CC22: =INDEX('RAB input'!$H$24:$XFD$73, MATCH($E22, 'RAB input'!$E$24:$E$73, 0), MATCH(CC$4, RAB_years, 0)) ->  | CD22: =INDEX('RAB input'!$H$24:$XFD$73, MATCH($E22, 'RAB input'!$E$24:$E$73, 0), MATCH(CD$4, RAB_years, 0)) ->  | CE22: =INDEX('RAB input'!$H$24:$XFD$73, MATCH($E22, 'RAB input'!$E$24:$E$73, 0), MATCH(CE$4, RAB_years, 0)) ->  | CF22: =INDEX('RAB input'!$H$24:$XFD$73, MATCH($E22, 'RAB input'!$E$24:$E$73, 0), MATCH(CF$4, RAB_years, 0)) ->  | CG22: =INDEX('RAB input'!$H$24:$XFD$73, MATCH($E22, 'RAB input'!$E$24:$E$73, 0), MATCH(CG$4, RAB_years, 0)) ->  | CH22: =INDEX('RAB input'!$H$24:$XFD$73, MATCH($E22, 'RAB input'!$E$24:$E$73, 0), MATCH(CH$4, RAB_years, 0)) ->  | CI22: =INDEX('RAB input'!$H$24:$XFD$73, MATCH($E22, 'RAB input'!$E$24:$E$73, 0), MATCH(CI$4, RAB_years, 0)) ->  | CJ22: =INDEX('RAB input'!$H$24:$XFD$73, MATCH($E22, 'RAB input'!$E$24:$E$73, 0), MATCH(CJ$4, RAB_years, 0)) -> 
D23: 6 | E23: ='RAB input'!E29 -> Establishment | G23: =INDEX('[4]TAB roll forward'!$H$8:$H$57,MATCH($E23,'[4]TAB roll forward'!$C$8:$C$57,0)) -> 290.2557378 | H23: =INDEX('RAB input'!$H$24:$XFD$73, MATCH($E23, 'RAB input'!$E$24:$E$73, 0), MATCH(H$4, RAB_years, 0)) -> 5.82758477 | I23: =INDEX('RAB input'!$H$24:$XFD$73, MATCH($E23, 'RAB input'!$E$24:$E$73, 0), MATCH(I$4, RAB_years, 0)) -> 7.821085643 | J23: =INDEX('RAB input'!$H$24:$XFD$73, MATCH($E23, 'RAB input'!$E$24:$E$73, 0), MATCH(J$4, RAB_years, 0)) -> 7.005551488 | K23: =INDEX('RAB input'!$H$24:$XFD$73, MATCH($E23, 'RAB input'!$E$24:$E$73, 0), MATCH(K$4, RAB_years, 0)) -> 20.722286 | L23: =INDEX('RAB input'!$H$24:$XFD$73, MATCH($E23, 'RAB input'!$E$24:$E$73, 0), MATCH(L$4, RAB_years, 0)) -> 37.844399 | M23: =INDEX('RAB input'!$H$24:$XFD$73, MATCH($E23, 'RAB input'!$E$24:$E$73, 0), MATCH(M$4, RAB_years, 0)) -> 0 | N23: =INDEX('RAB input'!$H$24:$XFD$73, MATCH($E23, 'RAB input'!$E$24:$E$73, 0), MATCH(N$4, RAB_years, 0)) -> 0 | O23: =INDEX('RAB input'!$H$24:$XFD$73, MATCH($E23, 'RAB input'!$E$24:$E$73, 0), MATCH(O$4, RAB_years, 0)) -> 0 | P23: =INDEX('RAB input'!$H$24:$XFD$73, MATCH($E23, 'RAB input'!$E$24:$E$73, 0), MATCH(P$4, RAB_years, 0)) -> 0 | Q23: =INDEX('RAB input'!$H$24:$XFD$73, MATCH($E23, 'RAB input'!$E$24:$E$73, 0), MATCH(Q$4, RAB_years, 0)) -> 0 | R23: =INDEX('RAB input'!$H$24:$XFD$73, MATCH($E23, 'RAB input'!$E$24:$E$73, 0), MATCH(R$4, RAB_years, 0)) -> 0 | S23: =INDEX('RAB input'!$H$24:$XFD$73, MATCH($E23, 'RAB input'!$E$24:$E$73, 0), MATCH(S$4, RAB_years, 0)) -> 0 | T23: =INDEX('RAB input'!$H$24:$XFD$73, MATCH($E23, 'RAB input'!$E$24:$E$73, 0), MATCH(T$4, RAB_years, 0)) -> 0 | U23: =INDEX('RAB input'!$H$24:$XFD$73, MATCH($E23, 'RAB input'!$E$24:$E$73, 0), MATCH(U$4, RAB_years, 0)) -> 0 | V23: =INDEX('RAB input'!$H$24:$XFD$73, MATCH($E23, 'RAB input'!$E$24:$E$73, 0), MATCH(V$4, RAB_years, 0)) -> 0 | W23: =INDEX('RAB input'!$H$24:$XFD$73, MATCH($E23, 'RAB input'!$E$24:$E$73, 0), MATCH(W$4, RAB_years, 0)) -> 0 | X23: =INDEX('RAB input'!$H$24:$XFD$73, MATCH($E23, 'RAB input'!$E$24:$E$73, 0), MATCH(X$4, RAB_years, 0)) -> 0 | Y23: =INDEX('RAB input'!$H$24:$XFD$73, MATCH($E23, 'RAB input'!$E$24:$E$73, 0), MATCH(Y$4, RAB_years, 0)) -> 0 | Z23: =INDEX('RAB input'!$H$24:$XFD$73, MATCH($E23, 'RAB input'!$E$24:$E$73, 0), MATCH(Z$4, RAB_years, 0)) -> 0 | AA23: =INDEX('RAB input'!$H$24:$XFD$73, MATCH($E23, 'RAB input'!$E$24:$E$73, 0), MATCH(AA$4, RAB_years, 0)) -> 0 | AB23: =INDEX('RAB input'!$H$24:$XFD$73, MATCH($E23, 'RAB input'!$E$24:$E$73, 0), MATCH(AB$4, RAB_years, 0)) -> 0 | AC23: =INDEX('RAB input'!$H$24:$XFD$73, MATCH($E23, 'RAB input'!$E$24:$E$73, 0), MATCH(AC$4, RAB_years, 0)) -> 0 | AD23: =INDEX('RAB input'!$H$24:$XFD$73, MATCH($E23, 'RAB input'!$E$24:$E$73, 0), MATCH(AD$4, RAB_years, 0)) -> 0 | AE23: =INDEX('RAB input'!$H$24:$XFD$73, MATCH($E23, 'RAB input'!$E$24:$E$73, 0), MATCH(AE$4, RAB_years, 0)) -> 0 | AF23: =INDEX('RAB input'!$H$24:$XFD$73, MATCH($E23, 'RAB input'!$E$24:$E$73, 0), MATCH(AF$4, RAB_years, 0)) -> 0 | AG23: =INDEX('RAB input'!$H$24:$XFD$73, MATCH($E23, 'RAB input'!$E$24:$E$73, 0), MATCH(AG$4, RAB_years, 0)) -> 0 | AH23: =INDEX('RAB input'!$H$24:$XFD$73, MATCH($E23, 'RAB input'!$E$24:$E$73, 0), MATCH(AH$4, RAB_years, 0)) -> 0 | AI23: =INDEX('RAB input'!$H$24:$XFD$73, MATCH($E23, 'RAB input'!$E$24:$E$73, 0), MATCH(AI$4, RAB_years, 0)) -> 0 | AJ23: =INDEX('RAB input'!$H$24:$XFD$73, MATCH($E23, 'RAB input'!$E$24:$E$73, 0), MATCH(AJ$4, RAB_years, 0)) -> 0 | AK23: =INDEX('RAB input'!$H$24:$XFD$73, MATCH($E23, 'RAB input'!$E$24:$E$73, 0), MATCH(AK$4, RAB_years, 0)) -> 0 | AL23: =INDEX('RAB input'!$H$24:$XFD$73, MATCH($E23, 'RAB input'!$E$24:$E$73, 0), MATCH(AL$4, RAB_years, 0)) -> 0 | AM23: =INDEX('RAB input'!$H$24:$XFD$73, MATCH($E23, 'RAB input'!$E$24:$E$73, 0), MATCH(AM$4, RAB_years, 0)) -> 0 | AN23: =INDEX('RAB input'!$H$24:$XFD$73, MATCH($E23, 'RAB input'!$E$24:$E$73, 0), MATCH(AN$4, RAB_years, 0)) -> 0 | AO23: =INDEX('RAB input'!$H$24:$XFD$73, MATCH($E23, 'RAB input'!$E$24:$E$73, 0), MATCH(AO$4, RAB_years, 0)) -> 0 | AP23: =INDEX('RAB input'!$H$24:$XFD$73, MATCH($E23, 'RAB input'!$E$24:$E$73, 0), MATCH(AP$4, RAB_years, 0)) -> 0 | AQ23: =INDEX('RAB input'!$H$24:$XFD$73, MATCH($E23, 'RAB input'!$E$24:$E$73, 0), MATCH(AQ$4, RAB_years, 0)) -> 0 | AR23: =INDEX('RAB input'!$H$24:$XFD$73, MATCH($E23, 'RAB input'!$E$24:$E$73, 0), MATCH(AR$4, RAB_years, 0)) -> 0 | AS23: =INDEX('RAB input'!$H$24:$XFD$73, MATCH($E23, 'RAB input'!$E$24:$E$73, 0), MATCH(AS$4, RAB_years, 0)) -> 0 | AT23: =INDEX('RAB input'!$H$24:$XFD$73, MATCH($E23, 'RAB input'!$E$24:$E$73, 0), MATCH(AT$4, RAB_years, 0)) -> 0 | AU23: =INDEX('RAB input'!$H$24:$XFD$73, MATCH($E23, 'RAB input'!$E$24:$E$73, 0), MATCH(AU$4, RAB_years, 0)) -> 0 | AV23: =INDEX('RAB input'!$H$24:$XFD$73, MATCH($E23, 'RAB input'!$E$24:$E$73, 0), MATCH(AV$4, RAB_years, 0)) -> 0 | AW23: =INDEX('RAB input'!$H$24:$XFD$73, MATCH($E23, 'RAB input'!$E$24:$E$73, 0), MATCH(AW$4, RAB_years, 0)) -> 0 | AX23: =INDEX('RAB input'!$H$24:$XFD$73, MATCH($E23, 'RAB input'!$E$24:$E$73, 0), MATCH(AX$4, RAB_years, 0)) -> 0 | AY23: =INDEX('RAB input'!$H$24:$XFD$73, MATCH($E23, 'RAB input'!$E$24:$E$73, 0), MATCH(AY$4, RAB_years, 0)) -> 0 | AZ23: =INDEX('RAB input'!$H$24:$XFD$73, MATCH($E23, 'RAB input'!$E$24:$E$73, 0), MATCH(AZ$4, RAB_years, 0)) -> 0 | BA23: =INDEX('RAB input'!$H$24:$XFD$73, MATCH($E23, 'RAB input'!$E$24:$E$73, 0), MATCH(BA$4, RAB_years, 0)) -> 0 | BB23: =INDEX('RAB input'!$H$24:$XFD$73, MATCH($E23, 'RAB input'!$E$24:$E$73, 0), MATCH(BB$4, RAB_years, 0)) -> 0 | BC23: =INDEX('RAB input'!$H$24:$XFD$73, MATCH($E23, 'RAB input'!$E$24:$E$73, 0), MATCH(BC$4, RAB_years, 0)) -> 0 | BD23: =INDEX('RAB input'!$H$24:$XFD$73, MATCH($E23, 'RAB input'!$E$24:$E$73, 0), MATCH(BD$4, RAB_years, 0)) -> 0 | BE23: =INDEX('RAB input'!$H$24:$XFD$73, MATCH($E23, 'RAB input'!$E$24:$E$73, 0), MATCH(BE$4, RAB_years, 0)) -> 0 | BF23: =INDEX('RAB input'!$H$24:$XFD$73, MATCH($E23, 'RAB input'!$E$24:$E$73, 0), MATCH(BF$4, RAB_years, 0)) -> 0 | BG23: =INDEX('RAB input'!$H$24:$XFD$73, MATCH($E23, 'RAB input'!$E$24:$E$73, 0), MATCH(BG$4, RAB_years, 0)) -> 0 | BH23: =INDEX('RAB input'!$H$24:$XFD$73, MATCH($E23, 'RAB input'!$E$24:$E$73, 0), MATCH(BH$4, RAB_years, 0)) -> 0 | BI23: =INDEX('RAB input'!$H$24:$XFD$73, MATCH($E23, 'RAB input'!$E$24:$E$73, 0), MATCH(BI$4, RAB_years, 0)) -> 0 | BJ23: =INDEX('RAB input'!$H$24:$XFD$73, MATCH($E23, 'RAB input'!$E$24:$E$73, 0), MATCH(BJ$4, RAB_years, 0)) -> 0 | BK23: =INDEX('RAB input'!$H$24:$XFD$73, MATCH($E23, 'RAB input'!$E$24:$E$73, 0), MATCH(BK$4, RAB_years, 0)) -> 0 | BL23: =INDEX('RAB input'!$H$24:$XFD$73, MATCH($E23, 'RAB input'!$E$24:$E$73, 0), MATCH(BL$4, RAB_years, 0)) -> 0 | BM23: =INDEX('RAB input'!$H$24:$XFD$73, MATCH($E23, 'RAB input'!$E$24:$E$73, 0), MATCH(BM$4, RAB_years, 0)) -> 0 | BN23: =INDEX('RAB input'!$H$24:$XFD$73, MATCH($E23, 'RAB input'!$E$24:$E$73, 0), MATCH(BN$4, RAB_years, 0)) -> 0 | BO23: =INDEX('RAB input'!$H$24:$XFD$73, MATCH($E23, 'RAB input'!$E$24:$E$73, 0), MATCH(BO$4, RAB_years, 0)) -> 0 | BP23: =INDEX('RAB input'!$H$24:$XFD$73, MATCH($E23, 'RAB input'!$E$24:$E$73, 0), MATCH(BP$4, RAB_years, 0)) -> 0 | BQ23: =INDEX('RAB input'!$H$24:$XFD$73, MATCH($E23, 'RAB input'!$E$24:$E$73, 0), MATCH(BQ$4, RAB_years, 0)) ->  | BR23: =INDEX('RAB input'!$H$24:$XFD$73, MATCH($E23, 'RAB input'!$E$24:$E$73, 0), MATCH(BR$4, RAB_years, 0)) ->  | BS23: =INDEX('RAB input'!$H$24:$XFD$73, MATCH($E23, 'RAB input'!$E$24:$E$73, 0), MATCH(BS$4, RAB_years, 0)) ->  | BT23: =INDEX('RAB input'!$H$24:$XFD$73, MATCH($E23, 'RAB input'!$E$24:$E$73, 0), MATCH(BT$4, RAB_years, 0)) ->  | BU23: =INDEX('RAB input'!$H$24:$XFD$73, MATCH($E23, 'RAB input'!$E$24:$E$73, 0), MATCH(BU$4, RAB_years, 0)) ->  | BV23: =INDEX('RAB input'!$H$24:$XFD$73, MATCH($E23, 'RAB input'!$E$24:$E$73, 0), MATCH(BV$4, RAB_years, 0)) ->  | BW23: =INDEX('RAB input'!$H$24:$XFD$73, MATCH($E23, 'RAB input'!$E$24:$E$73, 0), MATCH(BW$4, RAB_years, 0)) ->  | BX23: =INDEX('RAB input'!$H$24:$XFD$73, MATCH($E23, 'RAB input'!$E$24:$E$73, 0), MATCH(BX$4, RAB_years, 0)) ->  | BY23: =INDEX('RAB input'!$H$24:$XFD$73, MATCH($E23, 'RAB input'!$E$24:$E$73, 0), MATCH(BY$4, RAB_years, 0)) ->  | BZ23: =INDEX('RAB input'!$H$24:$XFD$73, MATCH($E23, 'RAB input'!$E$24:$E$73, 0), MATCH(BZ$4, RAB_years, 0)) ->  | CA23: =INDEX('RAB input'!$H$24:$XFD$73, MATCH($E23, 'RAB input'!$E$24:$E$73, 0), MATCH(CA$4, RAB_years, 0)) ->  | CB23: =INDEX('RAB input'!$H$24:$XFD$73, MATCH($E23, 'RAB input'!$E$24:$E$73, 0), MATCH(CB$4, RAB_years, 0)) ->  | CC23: =INDEX('RAB input'!$H$24:$XFD$73, MATCH($E23, 'RAB input'!$E$24:$E$73, 0), MATCH(CC$4, RAB_years, 0)) ->  | CD23: =INDEX('RAB input'!$H$24:$XFD$73, MATCH($E23, 'RAB input'!$E$24:$E$73, 0), MATCH(CD$4, RAB_years, 0)) ->  | CE23: =INDEX('RAB input'!$H$24:$XFD$73, MATCH($E23, 'RAB input'!$E$24:$E$73, 0), MATCH(CE$4, RAB_years, 0)) ->  | CF23: =INDEX('RAB input'!$H$24:$XFD$73, MATCH($E23, 'RAB input'!$E$24:$E$73, 0), MATCH(CF$4, RAB_years, 0)) ->  | CG23: =INDEX('RAB input'!$H$24:$XFD$73, MATCH($E23, 'RAB input'!$E$24:$E$73, 0), MATCH(CG$4, RAB_years, 0)) ->  | CH23: =INDEX('RAB input'!$H$24:$XFD$73, MATCH($E23, 'RAB input'!$E$24:$E$73, 0), MATCH(CH$4, RAB_years, 0)) ->  | CI23: =INDEX('RAB input'!$H$24:$XFD$73, MATCH($E23, 'RAB input'!$E$24:$E$73, 0), MATCH(CI$4, RAB_years, 0)) ->  | CJ23: =INDEX('RAB input'!$H$24:$XFD$73, MATCH($E23, 'RAB input'!$E$24:$E$73, 0), MATCH(CJ$4, RAB_years, 0)) -> 
D24: 7 | E24: ='RAB input'!E30 -> Communications | G24: =INDEX('[4]TAB roll forward'!$H$8:$H$57,MATCH($E24,'[4]TAB roll forward'!$C$8:$C$57,0)) -> 84.89963726 | H24: =INDEX('RAB input'!$H$24:$XFD$73, MATCH($E24, 'RAB input'!$E$24:$E$73, 0), MATCH(H$4, RAB_years, 0)) -> 1.412640478 | I24: =INDEX('RAB input'!$H$24:$XFD$73, MATCH($E24, 'RAB input'!$E$24:$E$73, 0), MATCH(I$4, RAB_years, 0)) -> 7.266650142 | J24: =INDEX('RAB input'!$H$24:$XFD$73, MATCH($E24, 'RAB input'!$E$24:$E$73, 0), MATCH(J$4, RAB_years, 0)) -> 1.297277966 | K24: =INDEX('RAB input'!$H$24:$XFD$73, MATCH($E24, 'RAB input'!$E$24:$E$73, 0), MATCH(K$4, RAB_years, 0)) -> 20.095025 | L24: =INDEX('RAB input'!$H$24:$XFD$73, MATCH($E24, 'RAB input'!$E$24:$E$73, 0), MATCH(L$4, RAB_years, 0)) -> 34.717082 | M24: =INDEX('RAB input'!$H$24:$XFD$73, MATCH($E24, 'RAB input'!$E$24:$E$73, 0), MATCH(M$4, RAB_years, 0)) -> 0 | N24: =INDEX('RAB input'!$H$24:$XFD$73, MATCH($E24, 'RAB input'!$E$24:$E$73, 0), MATCH(N$4, RAB_years, 0)) -> 0 | O24: =INDEX('RAB input'!$H$24:$XFD$73, MATCH($E24, 'RAB input'!$E$24:$E$73, 0), MATCH(O$4, RAB_years, 0)) -> 0 | P24: =INDEX('RAB input'!$H$24:$XFD$73, MATCH($E24, 'RAB input'!$E$24:$E$73, 0), MATCH(P$4, RAB_years, 0)) -> 0 | Q24: =INDEX('RAB input'!$H$24:$XFD$73, MATCH($E24, 'RAB input'!$E$24:$E$73, 0), MATCH(Q$4, RAB_years, 0)) -> 0 | R24: =INDEX('RAB input'!$H$24:$XFD$73, MATCH($E24, 'RAB input'!$E$24:$E$73, 0), MATCH(R$4, RAB_years, 0)) -> 0 | S24: =INDEX('RAB input'!$H$24:$XFD$73, MATCH($E24, 'RAB input'!$E$24:$E$73, 0), MATCH(S$4, RAB_years, 0)) -> 0 | T24: =INDEX('RAB input'!$H$24:$XFD$73, MATCH($E24, 'RAB input'!$E$24:$E$73, 0), MATCH(T$4, RAB_years, 0)) -> 0 | U24: =INDEX('RAB input'!$H$24:$XFD$73, MATCH($E24, 'RAB input'!$E$24:$E$73, 0), MATCH(U$4, RAB_years, 0)) -> 0 | V24: =INDEX('RAB input'!$H$24:$XFD$73, MATCH($E24, 'RAB input'!$E$24:$E$73, 0), MATCH(V$4, RAB_years, 0)) -> 0 | W24: =INDEX('RAB input'!$H$24:$XFD$73, MATCH($E24, 'RAB input'!$E$24:$E$73, 0), MATCH(W$4, RAB_years, 0)) -> 0 | X24: =INDEX('RAB input'!$H$24:$XFD$73, MATCH($E24, 'RAB input'!$E$24:$E$73, 0), MATCH(X$4, RAB_years, 0)) -> 0 | Y24: =INDEX('RAB input'!$H$24:$XFD$73, MATCH($E24, 'RAB input'!$E$24:$E$73, 0), MATCH(Y$4, RAB_years, 0)) -> 0 | Z24: =INDEX('RAB input'!$H$24:$XFD$73, MATCH($E24, 'RAB input'!$E$24:$E$73, 0), MATCH(Z$4, RAB_years, 0)) -> 0 | AA24: =INDEX('RAB input'!$H$24:$XFD$73, MATCH($E24, 'RAB input'!$E$24:$E$73, 0), MATCH(AA$4, RAB_years, 0)) -> 0 | AB24: =INDEX('RAB input'!$H$24:$XFD$73, MATCH($E24, 'RAB input'!$E$24:$E$73, 0), MATCH(AB$4, RAB_years, 0)) -> 0 | AC24: =INDEX('RAB input'!$H$24:$XFD$73, MATCH($E24, 'RAB input'!$E$24:$E$73, 0), MATCH(AC$4, RAB_years, 0)) -> 0 | AD24: =INDEX('RAB input'!$H$24:$XFD$73, MATCH($E24, 'RAB input'!$E$24:$E$73, 0), MATCH(AD$4, RAB_years, 0)) -> 0 | AE24: =INDEX('RAB input'!$H$24:$XFD$73, MATCH($E24, 'RAB input'!$E$24:$E$73, 0), MATCH(AE$4, RAB_years, 0)) -> 0 | AF24: =INDEX('RAB input'!$H$24:$XFD$73, MATCH($E24, 'RAB input'!$E$24:$E$73, 0), MATCH(AF$4, RAB_years, 0)) -> 0 | AG24: =INDEX('RAB input'!$H$24:$XFD$73, MATCH($E24, 'RAB input'!$E$24:$E$73, 0), MATCH(AG$4, RAB_years, 0)) -> 0 | AH24: =INDEX('RAB input'!$H$24:$XFD$73, MATCH($E24, 'RAB input'!$E$24:$E$73, 0), MATCH(AH$4, RAB_years, 0)) -> 0 | AI24: =INDEX('RAB input'!$H$24:$XFD$73, MATCH($E24, 'RAB input'!$E$24:$E$73, 0), MATCH(AI$4, RAB_years, 0)) -> 0 | AJ24: =INDEX('RAB input'!$H$24:$XFD$73, MATCH($E24, 'RAB input'!$E$24:$E$73, 0), MATCH(AJ$4, RAB_years, 0)) -> 0 | AK24: =INDEX('RAB input'!$H$24:$XFD$73, MATCH($E24, 'RAB input'!$E$24:$E$73, 0), MATCH(AK$4, RAB_years, 0)) -> 0 | AL24: =INDEX('RAB input'!$H$24:$XFD$73, MATCH($E24, 'RAB input'!$E$24:$E$73, 0), MATCH(AL$4, RAB_years, 0)) -> 0 | AM24: =INDEX('RAB input'!$H$24:$XFD$73, MATCH($E24, 'RAB input'!$E$24:$E$73, 0), MATCH(AM$4, RAB_years, 0)) -> 0 | AN24: =INDEX('RAB input'!$H$24:$XFD$73, MATCH($E24, 'RAB input'!$E$24:$E$73, 0), MATCH(AN$4, RAB_years, 0)) -> 0 | AO24: =INDEX('RAB input'!$H$24:$XFD$73, MATCH($E24, 'RAB input'!$E$24:$E$73, 0), MATCH(AO$4, RAB_years, 0)) -> 0 | AP24: =INDEX('RAB input'!$H$24:$XFD$73, MATCH($E24, 'RAB input'!$E$24:$E$73, 0), MATCH(AP$4, RAB_years, 0)) -> 0 | AQ24: =INDEX('RAB input'!$H$24:$XFD$73, MATCH($E24, 'RAB input'!$E$24:$E$73, 0), MATCH(AQ$4, RAB_years, 0)) -> 0 | AR24: =INDEX('RAB input'!$H$24:$XFD$73, MATCH($E24, 'RAB input'!$E$24:$E$73, 0), MATCH(AR$4, RAB_years, 0)) -> 0 | AS24: =INDEX('RAB input'!$H$24:$XFD$73, MATCH($E24, 'RAB input'!$E$24:$E$73, 0), MATCH(AS$4, RAB_years, 0)) -> 0 | AT24: =INDEX('RAB input'!$H$24:$XFD$73, MATCH($E24, 'RAB input'!$E$24:$E$73, 0), MATCH(AT$4, RAB_years, 0)) -> 0 | AU24: =INDEX('RAB input'!$H$24:$XFD$73, MATCH($E24, 'RAB input'!$E$24:$E$73, 0), MATCH(AU$4, RAB_years, 0)) -> 0 | AV24: =INDEX('RAB input'!$H$24:$XFD$73, MATCH($E24, 'RAB input'!$E$24:$E$73, 0), MATCH(AV$4, RAB_years, 0)) -> 0 | AW24: =INDEX('RAB input'!$H$24:$XFD$73, MATCH($E24, 'RAB input'!$E$24:$E$73, 0), MATCH(AW$4, RAB_years, 0)) -> 0 | AX24: =INDEX('RAB input'!$H$24:$XFD$73, MATCH($E24, 'RAB input'!$E$24:$E$73, 0), MATCH(AX$4, RAB_years, 0)) -> 0 | AY24: =INDEX('RAB input'!$H$24:$XFD$73, MATCH($E24, 'RAB input'!$E$24:$E$73, 0), MATCH(AY$4, RAB_years, 0)) -> 0 | AZ24: =INDEX('RAB input'!$H$24:$XFD$73, MATCH($E24, 'RAB input'!$E$24:$E$73, 0), MATCH(AZ$4, RAB_years, 0)) -> 0 | BA24: =INDEX('RAB input'!$H$24:$XFD$73, MATCH($E24, 'RAB input'!$E$24:$E$73, 0), MATCH(BA$4, RAB_years, 0)) -> 0 | BB24: =INDEX('RAB input'!$H$24:$XFD$73, MATCH($E24, 'RAB input'!$E$24:$E$73, 0), MATCH(BB$4, RAB_years, 0)) -> 0 | BC24: =INDEX('RAB input'!$H$24:$XFD$73, MATCH($E24, 'RAB input'!$E$24:$E$73, 0), MATCH(BC$4, RAB_years, 0)) -> 0 | BD24: =INDEX('RAB input'!$H$24:$XFD$73, MATCH($E24, 'RAB input'!$E$24:$E$73, 0), MATCH(BD$4, RAB_years, 0)) -> 0 | BE24: =INDEX('RAB input'!$H$24:$XFD$73, MATCH($E24, 'RAB input'!$E$24:$E$73, 0), MATCH(BE$4, RAB_years, 0)) -> 0 | BF24: =INDEX('RAB input'!$H$24:$XFD$73, MATCH($E24, 'RAB input'!$E$24:$E$73, 0), MATCH(BF$4, RAB_years, 0)) -> 0 | BG24: =INDEX('RAB input'!$H$24:$XFD$73, MATCH($E24, 'RAB input'!$E$24:$E$73, 0), MATCH(BG$4, RAB_years, 0)) -> 0 | BH24: =INDEX('RAB input'!$H$24:$XFD$73, MATCH($E24, 'RAB input'!$E$24:$E$73, 0), MATCH(BH$4, RAB_years, 0)) -> 0 | BI24: =INDEX('RAB input'!$H$24:$XFD$73, MATCH($E24, 'RAB input'!$E$24:$E$73, 0), MATCH(BI$4, RAB_years, 0)) -> 0 | BJ24: =INDEX('RAB input'!$H$24:$XFD$73, MATCH($E24, 'RAB input'!$E$24:$E$73, 0), MATCH(BJ$4, RAB_years, 0)) -> 0 | BK24: =INDEX('RAB input'!$H$24:$XFD$73, MATCH($E24, 'RAB input'!$E$24:$E$73, 0), MATCH(BK$4, RAB_years, 0)) -> 0 | BL24: =INDEX('RAB input'!$H$24:$XFD$73, MATCH($E24, 'RAB input'!$E$24:$E$73, 0), MATCH(BL$4, RAB_years, 0)) -> 0 | BM24: =INDEX('RAB input'!$H$24:$XFD$73, MATCH($E24, 'RAB input'!$E$24:$E$73, 0), MATCH(BM$4, RAB_years, 0)) -> 0 | BN24: =INDEX('RAB input'!$H$24:$XFD$73, MATCH($E24, 'RAB input'!$E$24:$E$73, 0), MATCH(BN$4, RAB_years, 0)) -> 0 | BO24: =INDEX('RAB input'!$H$24:$XFD$73, MATCH($E24, 'RAB input'!$E$24:$E$73, 0), MATCH(BO$4, RAB_years, 0)) -> 0 | BP24: =INDEX('RAB input'!$H$24:$XFD$73, MATCH($E24, 'RAB input'!$E$24:$E$73, 0), MATCH(BP$4, RAB_years, 0)) -> 0 | BQ24: =INDEX('RAB input'!$H$24:$XFD$73, MATCH($E24, 'RAB input'!$E$24:$E$73, 0), MATCH(BQ$4, RAB_years, 0)) ->  | BR24: =INDEX('RAB input'!$H$24:$XFD$73, MATCH($E24, 'RAB input'!$E$24:$E$73, 0), MATCH(BR$4, RAB_years, 0)) ->  | BS24: =INDEX('RAB input'!$H$24:$XFD$73, MATCH($E24, 'RAB input'!$E$24:$E$73, 0), MATCH(BS$4, RAB_years, 0)) ->  | BT24: =INDEX('RAB input'!$H$24:$XFD$73, MATCH($E24, 'RAB input'!$E$24:$E$73, 0), MATCH(BT$4, RAB_years, 0)) ->  | BU24: =INDEX('RAB input'!$H$24:$XFD$73, MATCH($E24, 'RAB input'!$E$24:$E$73, 0), MATCH(BU$4, RAB_years, 0)) ->  | BV24: =INDEX('RAB input'!$H$24:$XFD$73, MATCH($E24, 'RAB input'!$E$24:$E$73, 0), MATCH(BV$4, RAB_years, 0)) ->  | BW24: =INDEX('RAB input'!$H$24:$XFD$73, MATCH($E24, 'RAB input'!$E$24:$E$73, 0), MATCH(BW$4, RAB_years, 0)) ->  | BX24: =INDEX('RAB input'!$H$24:$XFD$73, MATCH($E24, 'RAB input'!$E$24:$E$73, 0), MATCH(BX$4, RAB_years, 0)) ->  | BY24: =INDEX('RAB input'!$H$24:$XFD$73, MATCH($E24, 'RAB input'!$E$24:$E$73, 0), MATCH(BY$4, RAB_years, 0)) ->  | BZ24: =INDEX('RAB input'!$H$24:$XFD$73, MATCH($E24, 'RAB input'!$E$24:$E$73, 0), MATCH(BZ$4, RAB_years, 0)) ->  | CA24: =INDEX('RAB input'!$H$24:$XFD$73, MATCH($E24, 'RAB input'!$E$24:$E$73, 0), MATCH(CA$4, RAB_years, 0)) ->  | CB24: =INDEX('RAB input'!$H$24:$XFD$73, MATCH($E24, 'RAB input'!$E$24:$E$73, 0), MATCH(CB$4, RAB_years, 0)) ->  | CC24: =INDEX('RAB input'!$H$24:$XFD$73, MATCH($E24, 'RAB input'!$E$24:$E$73, 0), MATCH(CC$4, RAB_years, 0)) ->  | CD24: =INDEX('RAB input'!$H$24:$XFD$73, MATCH($E24, 'RAB input'!$E$24:$E$73, 0), MATCH(CD$4, RAB_years, 0)) ->  | CE24: =INDEX('RAB input'!$H$24:$XFD$73, MATCH($E24, 'RAB input'!$E$24:$E$73, 0), MATCH(CE$4, RAB_years, 0)) ->  | CF24: =INDEX('RAB input'!$H$24:$XFD$73, MATCH($E24, 'RAB input'!$E$24:$E$73, 0), MATCH(CF$4, RAB_years, 0)) ->  | CG24: =INDEX('RAB input'!$H$24:$XFD$73, MATCH($E24, 'RAB input'!$E$24:$E$73, 0), MATCH(CG$4, RAB_years, 0)) ->  | CH24: =INDEX('RAB input'!$H$24:$XFD$73, MATCH($E24, 'RAB input'!$E$24:$E$73, 0), MATCH(CH$4, RAB_years, 0)) ->  | CI24: =INDEX('RAB input'!$H$24:$XFD$73, MATCH($E24, 'RAB input'!$E$24:$E$73, 0), MATCH(CI$4, RAB_years, 0)) ->  | CJ24: =INDEX('RAB input'!$H$24:$XFD$73, MATCH($E24, 'RAB input'!$E$24:$E$73, 0), MATCH(CJ$4, RAB_years, 0)) -> 
D25: 8 | E25: ='RAB input'!E31 -> Inventory | G25: =INDEX('[4]TAB roll forward'!$H$8:$H$57,MATCH($E25,'[4]TAB roll forward'!$C$8:$C$57,0)) -> 14.83056584 | H25: =INDEX('RAB input'!$H$24:$XFD$73, MATCH($E25, 'RAB input'!$E$24:$E$73, 0), MATCH(H$4, RAB_years, 0)) -> 1.927923122 | I25: =INDEX('RAB input'!$H$24:$XFD$73, MATCH($E25, 'RAB input'!$E$24:$E$73, 0), MATCH(I$4, RAB_years, 0)) -> 0.02288004 | J25: =INDEX('RAB input'!$H$24:$XFD$73, MATCH($E25, 'RAB input'!$E$24:$E$73, 0), MATCH(J$4, RAB_years, 0)) -> 1.01127326 | K25: =INDEX('RAB input'!$H$24:$XFD$73, MATCH($E25, 'RAB input'!$E$24:$E$73, 0), MATCH(K$4, RAB_years, 0)) -> 0 | L25: =INDEX('RAB input'!$H$24:$XFD$73, MATCH($E25, 'RAB input'!$E$24:$E$73, 0), MATCH(L$4, RAB_years, 0)) -> 0 | M25: =INDEX('RAB input'!$H$24:$XFD$73, MATCH($E25, 'RAB input'!$E$24:$E$73, 0), MATCH(M$4, RAB_years, 0)) -> 0 | N25: =INDEX('RAB input'!$H$24:$XFD$73, MATCH($E25, 'RAB input'!$E$24:$E$73, 0), MATCH(N$4, RAB_years, 0)) -> 0 | O25: =INDEX('RAB input'!$H$24:$XFD$73, MATCH($E25, 'RAB input'!$E$24:$E$73, 0), MATCH(O$4, RAB_years, 0)) -> 0 | P25: =INDEX('RAB input'!$H$24:$XFD$73, MATCH($E25, 'RAB input'!$E$24:$E$73, 0), MATCH(P$4, RAB_years, 0)) -> 0 | Q25: =INDEX('RAB input'!$H$24:$XFD$73, MATCH($E25, 'RAB input'!$E$24:$E$73, 0), MATCH(Q$4, RAB_years, 0)) -> 0 | R25: =INDEX('RAB input'!$H$24:$XFD$73, MATCH($E25, 'RAB input'!$E$24:$E$73, 0), MATCH(R$4, RAB_years, 0)) -> 0 | S25: =INDEX('RAB input'!$H$24:$XFD$73, MATCH($E25, 'RAB input'!$E$24:$E$73, 0), MATCH(S$4, RAB_years, 0)) -> 0 | T25: =INDEX('RAB input'!$H$24:$XFD$73, MATCH($E25, 'RAB input'!$E$24:$E$73, 0), MATCH(T$4, RAB_years, 0)) -> 0 | U25: =INDEX('RAB input'!$H$24:$XFD$73, MATCH($E25, 'RAB input'!$E$24:$E$73, 0), MATCH(U$4, RAB_years, 0)) -> 0 | V25: =INDEX('RAB input'!$H$24:$XFD$73, MATCH($E25, 'RAB input'!$E$24:$E$73, 0), MATCH(V$4, RAB_years, 0)) -> 0 | W25: =INDEX('RAB input'!$H$24:$XFD$73, MATCH($E25, 'RAB input'!$E$24:$E$73, 0), MATCH(W$4, RAB_years, 0)) -> 0 | X25: =INDEX('RAB input'!$H$24:$XFD$73, MATCH($E25, 'RAB input'!$E$24:$E$73, 0), MATCH(X$4, RAB_years, 0)) -> 0 | Y25: =INDEX('RAB input'!$H$24:$XFD$73, MATCH($E25, 'RAB input'!$E$24:$E$73, 0), MATCH(Y$4, RAB_years, 0)) -> 0 | Z25: =INDEX('RAB input'!$H$24:$XFD$73, MATCH($E25, 'RAB input'!$E$24:$E$73, 0), MATCH(Z$4, RAB_years, 0)) -> 0 | AA25: =INDEX('RAB input'!$H$24:$XFD$73, MATCH($E25, 'RAB input'!$E$24:$E$73, 0), MATCH(AA$4, RAB_years, 0)) -> 0 | AB25: =INDEX('RAB input'!$H$24:$XFD$73, MATCH($E25, 'RAB input'!$E$24:$E$73, 0), MATCH(AB$4, RAB_years, 0)) -> 0 | AC25: =INDEX('RAB input'!$H$24:$XFD$73, MATCH($E25, 'RAB input'!$E$24:$E$73, 0), MATCH(AC$4, RAB_years, 0)) -> 0 | AD25: =INDEX('RAB input'!$H$24:$XFD$73, MATCH($E25, 'RAB input'!$E$24:$E$73, 0), MATCH(AD$4, RAB_years, 0)) -> 0 | AE25: =INDEX('RAB input'!$H$24:$XFD$73, MATCH($E25, 'RAB input'!$E$24:$E$73, 0), MATCH(AE$4, RAB_years, 0)) -> 0 | AF25: =INDEX('RAB input'!$H$24:$XFD$73, MATCH($E25, 'RAB input'!$E$24:$E$73, 0), MATCH(AF$4, RAB_years, 0)) -> 0 | AG25: =INDEX('RAB input'!$H$24:$XFD$73, MATCH($E25, 'RAB input'!$E$24:$E$73, 0), MATCH(AG$4, RAB_years, 0)) -> 0 | AH25: =INDEX('RAB input'!$H$24:$XFD$73, MATCH($E25, 'RAB input'!$E$24:$E$73, 0), MATCH(AH$4, RAB_years, 0)) -> 0 | AI25: =INDEX('RAB input'!$H$24:$XFD$73, MATCH($E25, 'RAB input'!$E$24:$E$73, 0), MATCH(AI$4, RAB_years, 0)) -> 0 | AJ25: =INDEX('RAB input'!$H$24:$XFD$73, MATCH($E25, 'RAB input'!$E$24:$E$73, 0), MATCH(AJ$4, RAB_years, 0)) -> 0 | AK25: =INDEX('RAB input'!$H$24:$XFD$73, MATCH($E25, 'RAB input'!$E$24:$E$73, 0), MATCH(AK$4, RAB_years, 0)) -> 0 | AL25: =INDEX('RAB input'!$H$24:$XFD$73, MATCH($E25, 'RAB input'!$E$24:$E$73, 0), MATCH(AL$4, RAB_years, 0)) -> 0 | AM25: =INDEX('RAB input'!$H$24:$XFD$73, MATCH($E25, 'RAB input'!$E$24:$E$73, 0), MATCH(AM$4, RAB_years, 0)) -> 0 | AN25: =INDEX('RAB input'!$H$24:$XFD$73, MATCH($E25, 'RAB input'!$E$24:$E$73, 0), MATCH(AN$4, RAB_years, 0)) -> 0 | AO25: =INDEX('RAB input'!$H$24:$XFD$73, MATCH($E25, 'RAB input'!$E$24:$E$73, 0), MATCH(AO$4, RAB_years, 0)) -> 0 | AP25: =INDEX('RAB input'!$H$24:$XFD$73, MATCH($E25, 'RAB input'!$E$24:$E$73, 0), MATCH(AP$4, RAB_years, 0)) -> 0 | AQ25: =INDEX('RAB input'!$H$24:$XFD$73, MATCH($E25, 'RAB input'!$E$24:$E$73, 0), MATCH(AQ$4, RAB_years, 0)) -> 0 | AR25: =INDEX('RAB input'!$H$24:$XFD$73, MATCH($E25, 'RAB input'!$E$24:$E$73, 0), MATCH(AR$4, RAB_years, 0)) -> 0 | AS25: =INDEX('RAB input'!$H$24:$XFD$73, MATCH($E25, 'RAB input'!$E$24:$E$73, 0), MATCH(AS$4, RAB_years, 0)) -> 0 | AT25: =INDEX('RAB input'!$H$24:$XFD$73, MATCH($E25, 'RAB input'!$E$24:$E$73, 0), MATCH(AT$4, RAB_years, 0)) -> 0 | AU25: =INDEX('RAB input'!$H$24:$XFD$73, MATCH($E25, 'RAB input'!$E$24:$E$73, 0), MATCH(AU$4, RAB_years, 0)) -> 0 | AV25: =INDEX('RAB input'!$H$24:$XFD$73, MATCH($E25, 'RAB input'!$E$24:$E$73, 0), MATCH(AV$4, RAB_years, 0)) -> 0 | AW25: =INDEX('RAB input'!$H$24:$XFD$73, MATCH($E25, 'RAB input'!$E$24:$E$73, 0), MATCH(AW$4, RAB_years, 0)) -> 0 | AX25: =INDEX('RAB input'!$H$24:$XFD$73, MATCH($E25, 'RAB input'!$E$24:$E$73, 0), MATCH(AX$4, RAB_years, 0)) -> 0 | AY25: =INDEX('RAB input'!$H$24:$XFD$73, MATCH($E25, 'RAB input'!$E$24:$E$73, 0), MATCH(AY$4, RAB_years, 0)) -> 0 | AZ25: =INDEX('RAB input'!$H$24:$XFD$73, MATCH($E25, 'RAB input'!$E$24:$E$73, 0), MATCH(AZ$4, RAB_years, 0)) -> 0 | BA25: =INDEX('RAB input'!$H$24:$XFD$73, MATCH($E25, 'RAB input'!$E$24:$E$73, 0), MATCH(BA$4, RAB_years, 0)) -> 0 | BB25: =INDEX('RAB input'!$H$24:$XFD$73, MATCH($E25, 'RAB input'!$E$24:$E$73, 0), MATCH(BB$4, RAB_years, 0)) -> 0 | BC25: =INDEX('RAB input'!$H$24:$XFD$73, MATCH($E25, 'RAB input'!$E$24:$E$73, 0), MATCH(BC$4, RAB_years, 0)) -> 0 | BD25: =INDEX('RAB input'!$H$24:$XFD$73, MATCH($E25, 'RAB input'!$E$24:$E$73, 0), MATCH(BD$4, RAB_years, 0)) -> 0 | BE25: =INDEX('RAB input'!$H$24:$XFD$73, MATCH($E25, 'RAB input'!$E$24:$E$73, 0), MATCH(BE$4, RAB_years, 0)) -> 0 | BF25: =INDEX('RAB input'!$H$24:$XFD$73, MATCH($E25, 'RAB input'!$E$24:$E$73, 0), MATCH(BF$4, RAB_years, 0)) -> 0 | BG25: =INDEX('RAB input'!$H$24:$XFD$73, MATCH($E25, 'RAB input'!$E$24:$E$73, 0), MATCH(BG$4, RAB_years, 0)) -> 0 | BH25: =INDEX('RAB input'!$H$24:$XFD$73, MATCH($E25, 'RAB input'!$E$24:$E$73, 0), MATCH(BH$4, RAB_years, 0)) -> 0 | BI25: =INDEX('RAB input'!$H$24:$XFD$73, MATCH($E25, 'RAB input'!$E$24:$E$73, 0), MATCH(BI$4, RAB_years, 0)) -> 0 | BJ25: =INDEX('RAB input'!$H$24:$XFD$73, MATCH($E25, 'RAB input'!$E$24:$E$73, 0), MATCH(BJ$4, RAB_years, 0)) -> 0 | BK25: =INDEX('RAB input'!$H$24:$XFD$73, MATCH($E25, 'RAB input'!$E$24:$E$73, 0), MATCH(BK$4, RAB_years, 0)) -> 0 | BL25: =INDEX('RAB input'!$H$24:$XFD$73, MATCH($E25, 'RAB input'!$E$24:$E$73, 0), MATCH(BL$4, RAB_years, 0)) -> 0 | BM25: =INDEX('RAB input'!$H$24:$XFD$73, MATCH($E25, 'RAB input'!$E$24:$E$73, 0), MATCH(BM$4, RAB_years, 0)) -> 0 | BN25: =INDEX('RAB input'!$H$24:$XFD$73, MATCH($E25, 'RAB input'!$E$24:$E$73, 0), MATCH(BN$4, RAB_years, 0)) -> 0 | BO25: =INDEX('RAB input'!$H$24:$XFD$73, MATCH($E25, 'RAB input'!$E$24:$E$73, 0), MATCH(BO$4, RAB_years, 0)) -> 0 | BP25: =INDEX('RAB input'!$H$24:$XFD$73, MATCH($E25, 'RAB input'!$E$24:$E$73, 0), MATCH(BP$4, RAB_years, 0)) -> 0 | BQ25: =INDEX('RAB input'!$H$24:$XFD$73, MATCH($E25, 'RAB input'!$E$24:$E$73, 0), MATCH(BQ$4, RAB_years, 0)) ->  | BR25: =INDEX('RAB input'!$H$24:$XFD$73, MATCH($E25, 'RAB input'!$E$24:$E$73, 0), MATCH(BR$4, RAB_years, 0)) ->  | BS25: =INDEX('RAB input'!$H$24:$XFD$73, MATCH($E25, 'RAB input'!$E$24:$E$73, 0), MATCH(BS$4, RAB_years, 0)) ->  | BT25: =INDEX('RAB input'!$H$24:$XFD$73, MATCH($E25, 'RAB input'!$E$24:$E$73, 0), MATCH(BT$4, RAB_years, 0)) ->  | BU25: =INDEX('RAB input'!$H$24:$XFD$73, MATCH($E25, 'RAB input'!$E$24:$E$73, 0), MATCH(BU$4, RAB_years, 0)) ->  | BV25: =INDEX('RAB input'!$H$24:$XFD$73, MATCH($E25, 'RAB input'!$E$24:$E$73, 0), MATCH(BV$4, RAB_years, 0)) ->  | BW25: =INDEX('RAB input'!$H$24:$XFD$73, MATCH($E25, 'RAB input'!$E$24:$E$73, 0), MATCH(BW$4, RAB_years, 0)) ->  | BX25: =INDEX('RAB input'!$H$24:$XFD$73, MATCH($E25, 'RAB input'!$E$24:$E$73, 0), MATCH(BX$4, RAB_years, 0)) ->  | BY25: =INDEX('RAB input'!$H$24:$XFD$73, MATCH($E25, 'RAB input'!$E$24:$E$73, 0), MATCH(BY$4, RAB_years, 0)) ->  | BZ25: =INDEX('RAB input'!$H$24:$XFD$73, MATCH($E25, 'RAB input'!$E$24:$E$73, 0), MATCH(BZ$4, RAB_years, 0)) ->  | CA25: =INDEX('RAB input'!$H$24:$XFD$73, MATCH($E25, 'RAB input'!$E$24:$E$73, 0), MATCH(CA$4, RAB_years, 0)) ->  | CB25: =INDEX('RAB input'!$H$24:$XFD$73, MATCH($E25, 'RAB input'!$E$24:$E$73, 0), MATCH(CB$4, RAB_years, 0)) ->  | CC25: =INDEX('RAB input'!$H$24:$XFD$73, MATCH($E25, 'RAB input'!$E$24:$E$73, 0), MATCH(CC$4, RAB_years, 0)) ->  | CD25: =INDEX('RAB input'!$H$24:$XFD$73, MATCH($E25, 'RAB input'!$E$24:$E$73, 0), MATCH(CD$4, RAB_years, 0)) ->  | CE25: =INDEX('RAB input'!$H$24:$XFD$73, MATCH($E25, 'RAB input'!$E$24:$E$73, 0), MATCH(CE$4, RAB_years, 0)) ->  | CF25: =INDEX('RAB input'!$H$24:$XFD$73, MATCH($E25, 'RAB input'!$E$24:$E$73, 0), MATCH(CF$4, RAB_years, 0)) ->  | CG25: =INDEX('RAB input'!$H$24:$XFD$73, MATCH($E25, 'RAB input'!$E$24:$E$73, 0), MATCH(CG$4, RAB_years, 0)) ->  | CH25: =INDEX('RAB input'!$H$24:$XFD$73, MATCH($E25, 'RAB input'!$E$24:$E$73, 0), MATCH(CH$4, RAB_years, 0)) ->  | CI25: =INDEX('RAB input'!$H$24:$XFD$73, MATCH($E25, 'RAB input'!$E$24:$E$73, 0), MATCH(CI$4, RAB_years, 0)) ->  | CJ25: =INDEX('RAB input'!$H$24:$XFD$73, MATCH($E25, 'RAB input'!$E$24:$E$73, 0), MATCH(CJ$4, RAB_years, 0)) -> 
D26: 9 | E26: ='RAB input'!E32 -> IT | G26: =INDEX('[4]TAB roll forward'!$H$8:$H$57,MATCH($E26,'[4]TAB roll forward'!$C$8:$C$57,0)) -> 30.61900661 | H26: =INDEX('RAB input'!$H$24:$XFD$73, MATCH($E26, 'RAB input'!$E$24:$E$73, 0), MATCH(H$4, RAB_years, 0)) -> 2.220168421 | I26: =INDEX('RAB input'!$H$24:$XFD$73, MATCH($E26, 'RAB input'!$E$24:$E$73, 0), MATCH(I$4, RAB_years, 0)) -> 1.062788641 | J26: =INDEX('RAB input'!$H$24:$XFD$73, MATCH($E26, 'RAB input'!$E$24:$E$73, 0), MATCH(J$4, RAB_years, 0)) -> 2.980068457 | K26: =INDEX('RAB input'!$H$24:$XFD$73, MATCH($E26, 'RAB input'!$E$24:$E$73, 0), MATCH(K$4, RAB_years, 0)) -> 9.730892 | L26: =INDEX('RAB input'!$H$24:$XFD$73, MATCH($E26, 'RAB input'!$E$24:$E$73, 0), MATCH(L$4, RAB_years, 0)) -> 13.682 | M26: =INDEX('RAB input'!$H$24:$XFD$73, MATCH($E26, 'RAB input'!$E$24:$E$73, 0), MATCH(M$4, RAB_years, 0)) -> 0 | N26: =INDEX('RAB input'!$H$24:$XFD$73, MATCH($E26, 'RAB input'!$E$24:$E$73, 0), MATCH(N$4, RAB_years, 0)) -> 0 | O26: =INDEX('RAB input'!$H$24:$XFD$73, MATCH($E26, 'RAB input'!$E$24:$E$73, 0), MATCH(O$4, RAB_years, 0)) -> 0 | P26: =INDEX('RAB input'!$H$24:$XFD$73, MATCH($E26, 'RAB input'!$E$24:$E$73, 0), MATCH(P$4, RAB_years, 0)) -> 0 | Q26: =INDEX('RAB input'!$H$24:$XFD$73, MATCH($E26, 'RAB input'!$E$24:$E$73, 0), MATCH(Q$4, RAB_years, 0)) -> 0 | R26: =INDEX('RAB input'!$H$24:$XFD$73, MATCH($E26, 'RAB input'!$E$24:$E$73, 0), MATCH(R$4, RAB_years, 0)) -> 0 | S26: =INDEX('RAB input'!$H$24:$XFD$73, MATCH($E26, 'RAB input'!$E$24:$E$73, 0), MATCH(S$4, RAB_years, 0)) -> 0 | T26: =INDEX('RAB input'!$H$24:$XFD$73, MATCH($E26, 'RAB input'!$E$24:$E$73, 0), MATCH(T$4, RAB_years, 0)) -> 0 | U26: =INDEX('RAB input'!$H$24:$XFD$73, MATCH($E26, 'RAB input'!$E$24:$E$73, 0), MATCH(U$4, RAB_years, 0)) -> 0 | V26: =INDEX('RAB input'!$H$24:$XFD$73, MATCH($E26, 'RAB input'!$E$24:$E$73, 0), MATCH(V$4, RAB_years, 0)) -> 0 | W26: =INDEX('RAB input'!$H$24:$XFD$73, MATCH($E26, 'RAB input'!$E$24:$E$73, 0), MATCH(W$4, RAB_years, 0)) -> 0 | X26: =INDEX('RAB input'!$H$24:$XFD$73, MATCH($E26, 'RAB input'!$E$24:$E$73, 0), MATCH(X$4, RAB_years, 0)) -> 0 | Y26: =INDEX('RAB input'!$H$24:$XFD$73, MATCH($E26, 'RAB input'!$E$24:$E$73, 0), MATCH(Y$4, RAB_years, 0)) -> 0 | Z26: =INDEX('RAB input'!$H$24:$XFD$73, MATCH($E26, 'RAB input'!$E$24:$E$73, 0), MATCH(Z$4, RAB_years, 0)) -> 0 | AA26: =INDEX('RAB input'!$H$24:$XFD$73, MATCH($E26, 'RAB input'!$E$24:$E$73, 0), MATCH(AA$4, RAB_years, 0)) -> 0 | AB26: =INDEX('RAB input'!$H$24:$XFD$73, MATCH($E26, 'RAB input'!$E$24:$E$73, 0), MATCH(AB$4, RAB_years, 0)) -> 0 | AC26: =INDEX('RAB input'!$H$24:$XFD$73, MATCH($E26, 'RAB input'!$E$24:$E$73, 0), MATCH(AC$4, RAB_years, 0)) -> 0 | AD26: =INDEX('RAB input'!$H$24:$XFD$73, MATCH($E26, 'RAB input'!$E$24:$E$73, 0), MATCH(AD$4, RAB_years, 0)) -> 0 | AE26: =INDEX('RAB input'!$H$24:$XFD$73, MATCH($E26, 'RAB input'!$E$24:$E$73, 0), MATCH(AE$4, RAB_years, 0)) -> 0 | AF26: =INDEX('RAB input'!$H$24:$XFD$73, MATCH($E26, 'RAB input'!$E$24:$E$73, 0), MATCH(AF$4, RAB_years, 0)) -> 0 | AG26: =INDEX('RAB input'!$H$24:$XFD$73, MATCH($E26, 'RAB input'!$E$24:$E$73, 0), MATCH(AG$4, RAB_years, 0)) -> 0 | AH26: =INDEX('RAB input'!$H$24:$XFD$73, MATCH($E26, 'RAB input'!$E$24:$E$73, 0), MATCH(AH$4, RAB_years, 0)) -> 0 | AI26: =INDEX('RAB input'!$H$24:$XFD$73, MATCH($E26, 'RAB input'!$E$24:$E$73, 0), MATCH(AI$4, RAB_years, 0)) -> 0 | AJ26: =INDEX('RAB input'!$H$24:$XFD$73, MATCH($E26, 'RAB input'!$E$24:$E$73, 0), MATCH(AJ$4, RAB_years, 0)) -> 0 | AK26: =INDEX('RAB input'!$H$24:$XFD$73, MATCH($E26, 'RAB input'!$E$24:$E$73, 0), MATCH(AK$4, RAB_years, 0)) -> 0 | AL26: =INDEX('RAB input'!$H$24:$XFD$73, MATCH($E26, 'RAB input'!$E$24:$E$73, 0), MATCH(AL$4, RAB_years, 0)) -> 0 | AM26: =INDEX('RAB input'!$H$24:$XFD$73, MATCH($E26, 'RAB input'!$E$24:$E$73, 0), MATCH(AM$4, RAB_years, 0)) -> 0 | AN26: =INDEX('RAB input'!$H$24:$XFD$73, MATCH($E26, 'RAB input'!$E$24:$E$73, 0), MATCH(AN$4, RAB_years, 0)) -> 0 | AO26: =INDEX('RAB input'!$H$24:$XFD$73, MATCH($E26, 'RAB input'!$E$24:$E$73, 0), MATCH(AO$4, RAB_years, 0)) -> 0 | AP26: =INDEX('RAB input'!$H$24:$XFD$73, MATCH($E26, 'RAB input'!$E$24:$E$73, 0), MATCH(AP$4, RAB_years, 0)) -> 0 | AQ26: =INDEX('RAB input'!$H$24:$XFD$73, MATCH($E26, 'RAB input'!$E$24:$E$73, 0), MATCH(AQ$4, RAB_years, 0)) -> 0 | AR26: =INDEX('RAB input'!$H$24:$XFD$73, MATCH($E26, 'RAB input'!$E$24:$E$73, 0), MATCH(AR$4, RAB_years, 0)) -> 0 | AS26: =INDEX('RAB input'!$H$24:$XFD$73, MATCH($E26, 'RAB input'!$E$24:$E$73, 0), MATCH(AS$4, RAB_years, 0)) -> 0 | AT26: =INDEX('RAB input'!$H$24:$XFD$73, MATCH($E26, 'RAB input'!$E$24:$E$73, 0), MATCH(AT$4, RAB_years, 0)) -> 0 | AU26: =INDEX('RAB input'!$H$24:$XFD$73, MATCH($E26, 'RAB input'!$E$24:$E$73, 0), MATCH(AU$4, RAB_years, 0)) -> 0 | AV26: =INDEX('RAB input'!$H$24:$XFD$73, MATCH($E26, 'RAB input'!$E$24:$E$73, 0), MATCH(AV$4, RAB_years, 0)) -> 0 | AW26: =INDEX('RAB input'!$H$24:$XFD$73, MATCH($E26, 'RAB input'!$E$24:$E$73, 0), MATCH(AW$4, RAB_years, 0)) -> 0 | AX26: =INDEX('RAB input'!$H$24:$XFD$73, MATCH($E26, 'RAB input'!$E$24:$E$73, 0), MATCH(AX$4, RAB_years, 0)) -> 0 | AY26: =INDEX('RAB input'!$H$24:$XFD$73, MATCH($E26, 'RAB input'!$E$24:$E$73, 0), MATCH(AY$4, RAB_years, 0)) -> 0 | AZ26: =INDEX('RAB input'!$H$24:$XFD$73, MATCH($E26, 'RAB input'!$E$24:$E$73, 0), MATCH(AZ$4, RAB_years, 0)) -> 0 | BA26: =INDEX('RAB input'!$H$24:$XFD$73, MATCH($E26, 'RAB input'!$E$24:$E$73, 0), MATCH(BA$4, RAB_years, 0)) -> 0 | BB26: =INDEX('RAB input'!$H$24:$XFD$73, MATCH($E26, 'RAB input'!$E$24:$E$73, 0), MATCH(BB$4, RAB_years, 0)) -> 0 | BC26: =INDEX('RAB input'!$H$24:$XFD$73, MATCH($E26, 'RAB input'!$E$24:$E$73, 0), MATCH(BC$4, RAB_years, 0)) -> 0 | BD26: =INDEX('RAB input'!$H$24:$XFD$73, MATCH($E26, 'RAB input'!$E$24:$E$73, 0), MATCH(BD$4, RAB_years, 0)) -> 0 | BE26: =INDEX('RAB input'!$H$24:$XFD$73, MATCH($E26, 'RAB input'!$E$24:$E$73, 0), MATCH(BE$4, RAB_years, 0)) -> 0 | BF26: =INDEX('RAB input'!$H$24:$XFD$73, MATCH($E26, 'RAB input'!$E$24:$E$73, 0), MATCH(BF$4, RAB_years, 0)) -> 0 | BG26: =INDEX('RAB input'!$H$24:$XFD$73, MATCH($E26, 'RAB input'!$E$24:$E$73, 0), MATCH(BG$4, RAB_years, 0)) -> 0 | BH26: =INDEX('RAB input'!$H$24:$XFD$73, MATCH($E26, 'RAB input'!$E$24:$E$73, 0), MATCH(BH$4, RAB_years, 0)) -> 0 | BI26: =INDEX('RAB input'!$H$24:$XFD$73, MATCH($E26, 'RAB input'!$E$24:$E$73, 0), MATCH(BI$4, RAB_years, 0)) -> 0 | BJ26: =INDEX('RAB input'!$H$24:$XFD$73, MATCH($E26, 'RAB input'!$E$24:$E$73, 0), MATCH(BJ$4, RAB_years, 0)) -> 0 | BK26: =INDEX('RAB input'!$H$24:$XFD$73, MATCH($E26, 'RAB input'!$E$24:$E$73, 0), MATCH(BK$4, RAB_years, 0)) -> 0 | BL26: =INDEX('RAB input'!$H$24:$XFD$73, MATCH($E26, 'RAB input'!$E$24:$E$73, 0), MATCH(BL$4, RAB_years, 0)) -> 0 | BM26: =INDEX('RAB input'!$H$24:$XFD$73, MATCH($E26, 'RAB input'!$E$24:$E$73, 0), MATCH(BM$4, RAB_years, 0)) -> 0 | BN26: =INDEX('RAB input'!$H$24:$XFD$73, MATCH($E26, 'RAB input'!$E$24:$E$73, 0), MATCH(BN$4, RAB_years, 0)) -> 0 | BO26: =INDEX('RAB input'!$H$24:$XFD$73, MATCH($E26, 'RAB input'!$E$24:$E$73, 0), MATCH(BO$4, RAB_years, 0)) -> 0 | BP26: =INDEX('RAB input'!$H$24:$XFD$73, MATCH($E26, 'RAB input'!$E$24:$E$73, 0), MATCH(BP$4, RAB_years, 0)) -> 0 | BQ26: =INDEX('RAB input'!$H$24:$XFD$73, MATCH($E26, 'RAB input'!$E$24:$E$73, 0), MATCH(BQ$4, RAB_years, 0)) ->  | BR26: =INDEX('RAB input'!$H$24:$XFD$73, MATCH($E26, 'RAB input'!$E$24:$E$73, 0), MATCH(BR$4, RAB_years, 0)) ->  | BS26: =INDEX('RAB input'!$H$24:$XFD$73, MATCH($E26, 'RAB input'!$E$24:$E$73, 0), MATCH(BS$4, RAB_years, 0)) ->  | BT26: =INDEX('RAB input'!$H$24:$XFD$73, MATCH($E26, 'RAB input'!$E$24:$E$73, 0), MATCH(BT$4, RAB_years, 0)) ->  | BU26: =INDEX('RAB input'!$H$24:$XFD$73, MATCH($E26, 'RAB input'!$E$24:$E$73, 0), MATCH(BU$4, RAB_years, 0)) ->  | BV26: =INDEX('RAB input'!$H$24:$XFD$73, MATCH($E26, 'RAB input'!$E$24:$E$73, 0), MATCH(BV$4, RAB_years, 0)) ->  | BW26: =INDEX('RAB input'!$H$24:$XFD$73, MATCH($E26, 'RAB input'!$E$24:$E$73, 0), MATCH(BW$4, RAB_years, 0)) ->  | BX26: =INDEX('RAB input'!$H$24:$XFD$73, MATCH($E26, 'RAB input'!$E$24:$E$73, 0), MATCH(BX$4, RAB_years, 0)) ->  | BY26: =INDEX('RAB input'!$H$24:$XFD$73, MATCH($E26, 'RAB input'!$E$24:$E$73, 0), MATCH(BY$4, RAB_years, 0)) ->  | BZ26: =INDEX('RAB input'!$H$24:$XFD$73, MATCH($E26, 'RAB input'!$E$24:$E$73, 0), MATCH(BZ$4, RAB_years, 0)) ->  | CA26: =INDEX('RAB input'!$H$24:$XFD$73, MATCH($E26, 'RAB input'!$E$24:$E$73, 0), MATCH(CA$4, RAB_years, 0)) ->  | CB26: =INDEX('RAB input'!$H$24:$XFD$73, MATCH($E26, 'RAB input'!$E$24:$E$73, 0), MATCH(CB$4, RAB_years, 0)) ->  | CC26: =INDEX('RAB input'!$H$24:$XFD$73, MATCH($E26, 'RAB input'!$E$24:$E$73, 0), MATCH(CC$4, RAB_years, 0)) ->  | CD26: =INDEX('RAB input'!$H$24:$XFD$73, MATCH($E26, 'RAB input'!$E$24:$E$73, 0), MATCH(CD$4, RAB_years, 0)) ->  | CE26: =INDEX('RAB input'!$H$24:$XFD$73, MATCH($E26, 'RAB input'!$E$24:$E$73, 0), MATCH(CE$4, RAB_years, 0)) ->  | CF26: =INDEX('RAB input'!$H$24:$XFD$73, MATCH($E26, 'RAB input'!$E$24:$E$73, 0), MATCH(CF$4, RAB_years, 0)) ->  | CG26: =INDEX('RAB input'!$H$24:$XFD$73, MATCH($E26, 'RAB input'!$E$24:$E$73, 0), MATCH(CG$4, RAB_years, 0)) ->  | CH26: =INDEX('RAB input'!$H$24:$XFD$73, MATCH($E26, 'RAB input'!$E$24:$E$73, 0), MATCH(CH$4, RAB_years, 0)) ->  | CI26: =INDEX('RAB input'!$H$24:$XFD$73, MATCH($E26, 'RAB input'!$E$24:$E$73, 0), MATCH(CI$4, RAB_years, 0)) ->  | CJ26: =INDEX('RAB input'!$H$24:$XFD$73, MATCH($E26, 'RAB input'!$E$24:$E$73, 0), MATCH(CJ$4, RAB_years, 0)) -> 
D27: 10 | E27: ='RAB input'!E33 -> Vehicles | G27: =INDEX('[4]TAB roll forward'!$H$8:$H$57,MATCH($E27,'[4]TAB roll forward'!$C$8:$C$57,0)) -> 0.3875811819 | H27: =INDEX('RAB input'!$H$24:$XFD$73, MATCH($E27, 'RAB input'!$E$24:$E$73, 0), MATCH(H$4, RAB_years, 0)) -> 0.1674753928 | I27: =INDEX('RAB input'!$H$24:$XFD$73, MATCH($E27, 'RAB input'!$E$24:$E$73, 0), MATCH(I$4, RAB_years, 0)) -> 0 | J27: =INDEX('RAB input'!$H$24:$XFD$73, MATCH($E27, 'RAB input'!$E$24:$E$73, 0), MATCH(J$4, RAB_years, 0)) -> 0.8708860839 | K27: =INDEX('RAB input'!$H$24:$XFD$73, MATCH($E27, 'RAB input'!$E$24:$E$73, 0), MATCH(K$4, RAB_years, 0)) -> 0.584434 | L27: =INDEX('RAB input'!$H$24:$XFD$73, MATCH($E27, 'RAB input'!$E$24:$E$73, 0), MATCH(L$4, RAB_years, 0)) -> 1.267509 | M27: =INDEX('RAB input'!$H$24:$XFD$73, MATCH($E27, 'RAB input'!$E$24:$E$73, 0), MATCH(M$4, RAB_years, 0)) -> 0 | N27: =INDEX('RAB input'!$H$24:$XFD$73, MATCH($E27, 'RAB input'!$E$24:$E$73, 0), MATCH(N$4, RAB_years, 0)) -> 0 | O27: =INDEX('RAB input'!$H$24:$XFD$73, MATCH($E27, 'RAB input'!$E$24:$E$73, 0), MATCH(O$4, RAB_years, 0)) -> 0 | P27: =INDEX('RAB input'!$H$24:$XFD$73, MATCH($E27, 'RAB input'!$E$24:$E$73, 0), MATCH(P$4, RAB_years, 0)) -> 0 | Q27: =INDEX('RAB input'!$H$24:$XFD$73, MATCH($E27, 'RAB input'!$E$24:$E$73, 0), MATCH(Q$4, RAB_years, 0)) -> 0 | R27: =INDEX('RAB input'!$H$24:$XFD$73, MATCH($E27, 'RAB input'!$E$24:$E$73, 0), MATCH(R$4, RAB_years, 0)) -> 0 | S27: =INDEX('RAB input'!$H$24:$XFD$73, MATCH($E27, 'RAB input'!$E$24:$E$73, 0), MATCH(S$4, RAB_years, 0)) -> 0 | T27: =INDEX('RAB input'!$H$24:$XFD$73, MATCH($E27, 'RAB input'!$E$24:$E$73, 0), MATCH(T$4, RAB_years, 0)) -> 0 | U27: =INDEX('RAB input'!$H$24:$XFD$73, MATCH($E27, 'RAB input'!$E$24:$E$73, 0), MATCH(U$4, RAB_years, 0)) -> 0 | V27: =INDEX('RAB input'!$H$24:$XFD$73, MATCH($E27, 'RAB input'!$E$24:$E$73, 0), MATCH(V$4, RAB_years, 0)) -> 0 | W27: =INDEX('RAB input'!$H$24:$XFD$73, MATCH($E27, 'RAB input'!$E$24:$E$73, 0), MATCH(W$4, RAB_years, 0)) -> 0 | X27: =INDEX('RAB input'!$H$24:$XFD$73, MATCH($E27, 'RAB input'!$E$24:$E$73, 0), MATCH(X$4, RAB_years, 0)) -> 0 | Y27: =INDEX('RAB input'!$H$24:$XFD$73, MATCH($E27, 'RAB input'!$E$24:$E$73, 0), MATCH(Y$4, RAB_years, 0)) -> 0 | Z27: =INDEX('RAB input'!$H$24:$XFD$73, MATCH($E27, 'RAB input'!$E$24:$E$73, 0), MATCH(Z$4, RAB_years, 0)) -> 0 | AA27: =INDEX('RAB input'!$H$24:$XFD$73, MATCH($E27, 'RAB input'!$E$24:$E$73, 0), MATCH(AA$4, RAB_years, 0)) -> 0 | AB27: =INDEX('RAB input'!$H$24:$XFD$73, MATCH($E27, 'RAB input'!$E$24:$E$73, 0), MATCH(AB$4, RAB_years, 0)) -> 0 | AC27: =INDEX('RAB input'!$H$24:$XFD$73, MATCH($E27, 'RAB input'!$E$24:$E$73, 0), MATCH(AC$4, RAB_years, 0)) -> 0 | AD27: =INDEX('RAB input'!$H$24:$XFD$73, MATCH($E27, 'RAB input'!$E$24:$E$73, 0), MATCH(AD$4, RAB_years, 0)) -> 0 | AE27: =INDEX('RAB input'!$H$24:$XFD$73, MATCH($E27, 'RAB input'!$E$24:$E$73, 0), MATCH(AE$4, RAB_years, 0)) -> 0 | AF27: =INDEX('RAB input'!$H$24:$XFD$73, MATCH($E27, 'RAB input'!$E$24:$E$73, 0), MATCH(AF$4, RAB_years, 0)) -> 0 | AG27: =INDEX('RAB input'!$H$24:$XFD$73, MATCH($E27, 'RAB input'!$E$24:$E$73, 0), MATCH(AG$4, RAB_years, 0)) -> 0 | AH27: =INDEX('RAB input'!$H$24:$XFD$73, MATCH($E27, 'RAB input'!$E$24:$E$73, 0), MATCH(AH$4, RAB_years, 0)) -> 0 | AI27: =INDEX('RAB input'!$H$24:$XFD$73, MATCH($E27, 'RAB input'!$E$24:$E$73, 0), MATCH(AI$4, RAB_years, 0)) -> 0 | AJ27: =INDEX('RAB input'!$H$24:$XFD$73, MATCH($E27, 'RAB input'!$E$24:$E$73, 0), MATCH(AJ$4, RAB_years, 0)) -> 0 | AK27: =INDEX('RAB input'!$H$24:$XFD$73, MATCH($E27, 'RAB input'!$E$24:$E$73, 0), MATCH(AK$4, RAB_years, 0)) -> 0 | AL27: =INDEX('RAB input'!$H$24:$XFD$73, MATCH($E27, 'RAB input'!$E$24:$E$73, 0), MATCH(AL$4, RAB_years, 0)) -> 0 | AM27: =INDEX('RAB input'!$H$24:$XFD$73, MATCH($E27, 'RAB input'!$E$24:$E$73, 0), MATCH(AM$4, RAB_years, 0)) -> 0 | AN27: =INDEX('RAB input'!$H$24:$XFD$73, MATCH($E27, 'RAB input'!$E$24:$E$73, 0), MATCH(AN$4, RAB_years, 0)) -> 0 | AO27: =INDEX('RAB input'!$H$24:$XFD$73, MATCH($E27, 'RAB input'!$E$24:$E$73, 0), MATCH(AO$4, RAB_years, 0)) -> 0 | AP27: =INDEX('RAB input'!$H$24:$XFD$73, MATCH($E27, 'RAB input'!$E$24:$E$73, 0), MATCH(AP$4, RAB_years, 0)) -> 0 | AQ27: =INDEX('RAB input'!$H$24:$XFD$73, MATCH($E27, 'RAB input'!$E$24:$E$73, 0), MATCH(AQ$4, RAB_years, 0)) -> 0 | AR27: =INDEX('RAB input'!$H$24:$XFD$73, MATCH($E27, 'RAB input'!$E$24:$E$73, 0), MATCH(AR$4, RAB_years, 0)) -> 0 | AS27: =INDEX('RAB input'!$H$24:$XFD$73, MATCH($E27, 'RAB input'!$E$24:$E$73, 0), MATCH(AS$4, RAB_years, 0)) -> 0 | AT27: =INDEX('RAB input'!$H$24:$XFD$73, MATCH($E27, 'RAB input'!$E$24:$E$73, 0), MATCH(AT$4, RAB_years, 0)) -> 0 | AU27: =INDEX('RAB input'!$H$24:$XFD$73, MATCH($E27, 'RAB input'!$E$24:$E$73, 0), MATCH(AU$4, RAB_years, 0)) -> 0 | AV27: =INDEX('RAB input'!$H$24:$XFD$73, MATCH($E27, 'RAB input'!$E$24:$E$73, 0), MATCH(AV$4, RAB_years, 0)) -> 0 | AW27: =INDEX('RAB input'!$H$24:$XFD$73, MATCH($E27, 'RAB input'!$E$24:$E$73, 0), MATCH(AW$4, RAB_years, 0)) -> 0 | AX27: =INDEX('RAB input'!$H$24:$XFD$73, MATCH($E27, 'RAB input'!$E$24:$E$73, 0), MATCH(AX$4, RAB_years, 0)) -> 0 | AY27: =INDEX('RAB input'!$H$24:$XFD$73, MATCH($E27, 'RAB input'!$E$24:$E$73, 0), MATCH(AY$4, RAB_years, 0)) -> 0 | AZ27: =INDEX('RAB input'!$H$24:$XFD$73, MATCH($E27, 'RAB input'!$E$24:$E$73, 0), MATCH(AZ$4, RAB_years, 0)) -> 0 | BA27: =INDEX('RAB input'!$H$24:$XFD$73, MATCH($E27, 'RAB input'!$E$24:$E$73, 0), MATCH(BA$4, RAB_years, 0)) -> 0 | BB27: =INDEX('RAB input'!$H$24:$XFD$73, MATCH($E27, 'RAB input'!$E$24:$E$73, 0), MATCH(BB$4, RAB_years, 0)) -> 0 | BC27: =INDEX('RAB input'!$H$24:$XFD$73, MATCH($E27, 'RAB input'!$E$24:$E$73, 0), MATCH(BC$4, RAB_years, 0)) -> 0 | BD27: =INDEX('RAB input'!$H$24:$XFD$73, MATCH($E27, 'RAB input'!$E$24:$E$73, 0), MATCH(BD$4, RAB_years, 0)) -> 0 | BE27: =INDEX('RAB input'!$H$24:$XFD$73, MATCH($E27, 'RAB input'!$E$24:$E$73, 0), MATCH(BE$4, RAB_years, 0)) -> 0 | BF27: =INDEX('RAB input'!$H$24:$XFD$73, MATCH($E27, 'RAB input'!$E$24:$E$73, 0), MATCH(BF$4, RAB_years, 0)) -> 0 | BG27: =INDEX('RAB input'!$H$24:$XFD$73, MATCH($E27, 'RAB input'!$E$24:$E$73, 0), MATCH(BG$4, RAB_years, 0)) -> 0 | BH27: =INDEX('RAB input'!$H$24:$XFD$73, MATCH($E27, 'RAB input'!$E$24:$E$73, 0), MATCH(BH$4, RAB_years, 0)) -> 0 | BI27: =INDEX('RAB input'!$H$24:$XFD$73, MATCH($E27, 'RAB input'!$E$24:$E$73, 0), MATCH(BI$4, RAB_years, 0)) -> 0 | BJ27: =INDEX('RAB input'!$H$24:$XFD$73, MATCH($E27, 'RAB input'!$E$24:$E$73, 0), MATCH(BJ$4, RAB_years, 0)) -> 0 | BK27: =INDEX('RAB input'!$H$24:$XFD$73, MATCH($E27, 'RAB input'!$E$24:$E$73, 0), MATCH(BK$4, RAB_years, 0)) -> 0 | BL27: =INDEX('RAB input'!$H$24:$XFD$73, MATCH($E27, 'RAB input'!$E$24:$E$73, 0), MATCH(BL$4, RAB_years, 0)) -> 0 | BM27: =INDEX('RAB input'!$H$24:$XFD$73, MATCH($E27, 'RAB input'!$E$24:$E$73, 0), MATCH(BM$4, RAB_years, 0)) -> 0 | BN27: =INDEX('RAB input'!$H$24:$XFD$73, MATCH($E27, 'RAB input'!$E$24:$E$73, 0), MATCH(BN$4, RAB_years, 0)) -> 0 | BO27: =INDEX('RAB input'!$H$24:$XFD$73, MATCH($E27, 'RAB input'!$E$24:$E$73, 0), MATCH(BO$4, RAB_years, 0)) -> 0 | BP27: =INDEX('RAB input'!$H$24:$XFD$73, MATCH($E27, 'RAB input'!$E$24:$E$73, 0), MATCH(BP$4, RAB_years, 0)) -> 0 | BQ27: =INDEX('RAB input'!$H$24:$XFD$73, MATCH($E27, 'RAB input'!$E$24:$E$73, 0), MATCH(BQ$4, RAB_years, 0)) ->  | BR27: =INDEX('RAB input'!$H$24:$XFD$73, MATCH($E27, 'RAB input'!$E$24:$E$73, 0), MATCH(BR$4, RAB_years, 0)) ->  | BS27: =INDEX('RAB input'!$H$24:$XFD$73, MATCH($E27, 'RAB input'!$E$24:$E$73, 0), MATCH(BS$4, RAB_years, 0)) ->  | BT27: =INDEX('RAB input'!$H$24:$XFD$73, MATCH($E27, 'RAB input'!$E$24:$E$73, 0), MATCH(BT$4, RAB_years, 0)) ->  | BU27: =INDEX('RAB input'!$H$24:$XFD$73, MATCH($E27, 'RAB input'!$E$24:$E$73, 0), MATCH(BU$4, RAB_years, 0)) ->  | BV27: =INDEX('RAB input'!$H$24:$XFD$73, MATCH($E27, 'RAB input'!$E$24:$E$73, 0), MATCH(BV$4, RAB_years, 0)) ->  | BW27: =INDEX('RAB input'!$H$24:$XFD$73, MATCH($E27, 'RAB input'!$E$24:$E$73, 0), MATCH(BW$4, RAB_years, 0)) ->  | BX27: =INDEX('RAB input'!$H$24:$XFD$73, MATCH($E27, 'RAB input'!$E$24:$E$73, 0), MATCH(BX$4, RAB_years, 0)) ->  | BY27: =INDEX('RAB input'!$H$24:$XFD$73, MATCH($E27, 'RAB input'!$E$24:$E$73, 0), MATCH(BY$4, RAB_years, 0)) ->  | BZ27: =INDEX('RAB input'!$H$24:$XFD$73, MATCH($E27, 'RAB input'!$E$24:$E$73, 0), MATCH(BZ$4, RAB_years, 0)) ->  | CA27: =INDEX('RAB input'!$H$24:$XFD$73, MATCH($E27, 'RAB input'!$E$24:$E$73, 0), MATCH(CA$4, RAB_years, 0)) ->  | CB27: =INDEX('RAB input'!$H$24:$XFD$73, MATCH($E27, 'RAB input'!$E$24:$E$73, 0), MATCH(CB$4, RAB_years, 0)) ->  | CC27: =INDEX('RAB input'!$H$24:$XFD$73, MATCH($E27, 'RAB input'!$E$24:$E$73, 0), MATCH(CC$4, RAB_years, 0)) ->  | CD27: =INDEX('RAB input'!$H$24:$XFD$73, MATCH($E27, 'RAB input'!$E$24:$E$73, 0), MATCH(CD$4, RAB_years, 0)) ->  | CE27: =INDEX('RAB input'!$H$24:$XFD$73, MATCH($E27, 'RAB input'!$E$24:$E$73, 0), MATCH(CE$4, RAB_years, 0)) ->  | CF27: =INDEX('RAB input'!$H$24:$XFD$73, MATCH($E27, 'RAB input'!$E$24:$E$73, 0), MATCH(CF$4, RAB_years, 0)) ->  | CG27: =INDEX('RAB input'!$H$24:$XFD$73, MATCH($E27, 'RAB input'!$E$24:$E$73, 0), MATCH(CG$4, RAB_years, 0)) ->  | CH27: =INDEX('RAB input'!$H$24:$XFD$73, MATCH($E27, 'RAB input'!$E$24:$E$73, 0), MATCH(CH$4, RAB_years, 0)) ->  | CI27: =INDEX('RAB input'!$H$24:$XFD$73, MATCH($E27, 'RAB input'!$E$24:$E$73, 0), MATCH(CI$4, RAB_years, 0)) ->  | CJ27: =INDEX('RAB input'!$H$24:$XFD$73, MATCH($E27, 'RAB input'!$E$24:$E$73, 0), MATCH(CJ$4, RAB_years, 0)) -> 
D28: 11 | E28: ='RAB input'!E34 -> Other (non-network) | G28: =INDEX('[4]TAB roll forward'!$H$8:$H$57,MATCH($E28,'[4]TAB roll forward'!$C$8:$C$57,0)) -> 15.41025826 | H28: =INDEX('RAB input'!$H$24:$XFD$73, MATCH($E28, 'RAB input'!$E$24:$E$73, 0), MATCH(H$4, RAB_years, 0)) -> 5.559338522 | I28: =INDEX('RAB input'!$H$24:$XFD$73, MATCH($E28, 'RAB input'!$E$24:$E$73, 0), MATCH(I$4, RAB_years, 0)) -> 1.86425158 | J28: =INDEX('RAB input'!$H$24:$XFD$73, MATCH($E28, 'RAB input'!$E$24:$E$73, 0), MATCH(J$4, RAB_years, 0)) -> 1.561655182 | K28: =INDEX('RAB input'!$H$24:$XFD$73, MATCH($E28, 'RAB input'!$E$24:$E$73, 0), MATCH(K$4, RAB_years, 0)) -> 1.263159 | L28: =INDEX('RAB input'!$H$24:$XFD$73, MATCH($E28, 'RAB input'!$E$24:$E$73, 0), MATCH(L$4, RAB_years, 0)) -> 3 | M28: =INDEX('RAB input'!$H$24:$XFD$73, MATCH($E28, 'RAB input'!$E$24:$E$73, 0), MATCH(M$4, RAB_years, 0)) -> 0 | N28: =INDEX('RAB input'!$H$24:$XFD$73, MATCH($E28, 'RAB input'!$E$24:$E$73, 0), MATCH(N$4, RAB_years, 0)) -> 0 | O28: =INDEX('RAB input'!$H$24:$XFD$73, MATCH($E28, 'RAB input'!$E$24:$E$73, 0), MATCH(O$4, RAB_years, 0)) -> 0 | P28: =INDEX('RAB input'!$H$24:$XFD$73, MATCH($E28, 'RAB input'!$E$24:$E$73, 0), MATCH(P$4, RAB_years, 0)) -> 0 | Q28: =INDEX('RAB input'!$H$24:$XFD$73, MATCH($E28, 'RAB input'!$E$24:$E$73, 0), MATCH(Q$4, RAB_years, 0)) -> 0 | R28: =INDEX('RAB input'!$H$24:$XFD$73, MATCH($E28, 'RAB input'!$E$24:$E$73, 0), MATCH(R$4, RAB_years, 0)) -> 0 | S28: =INDEX('RAB input'!$H$24:$XFD$73, MATCH($E28, 'RAB input'!$E$24:$E$73, 0), MATCH(S$4, RAB_years, 0)) -> 0 | T28: =INDEX('RAB input'!$H$24:$XFD$73, MATCH($E28, 'RAB input'!$E$24:$E$73, 0), MATCH(T$4, RAB_years, 0)) -> 0 | U28: =INDEX('RAB input'!$H$24:$XFD$73, MATCH($E28, 'RAB input'!$E$24:$E$73, 0), MATCH(U$4, RAB_years, 0)) -> 0 | V28: =INDEX('RAB input'!$H$24:$XFD$73, MATCH($E28, 'RAB input'!$E$24:$E$73, 0), MATCH(V$4, RAB_years, 0)) -> 0 | W28: =INDEX('RAB input'!$H$24:$XFD$73, MATCH($E28, 'RAB input'!$E$24:$E$73, 0), MATCH(W$4, RAB_years, 0)) -> 0 | X28: =INDEX('RAB input'!$H$24:$XFD$73, MATCH($E28, 'RAB input'!$E$24:$E$73, 0), MATCH(X$4, RAB_years, 0)) -> 0 | Y28: =INDEX('RAB input'!$H$24:$XFD$73, MATCH($E28, 'RAB input'!$E$24:$E$73, 0), MATCH(Y$4, RAB_years, 0)) -> 0 | Z28: =INDEX('RAB input'!$H$24:$XFD$73, MATCH($E28, 'RAB input'!$E$24:$E$73, 0), MATCH(Z$4, RAB_years, 0)) -> 0 | AA28: =INDEX('RAB input'!$H$24:$XFD$73, MATCH($E28, 'RAB input'!$E$24:$E$73, 0), MATCH(AA$4, RAB_years, 0)) -> 0 | AB28: =INDEX('RAB input'!$H$24:$XFD$73, MATCH($E28, 'RAB input'!$E$24:$E$73, 0), MATCH(AB$4, RAB_years, 0)) -> 0 | AC28: =INDEX('RAB input'!$H$24:$XFD$73, MATCH($E28, 'RAB input'!$E$24:$E$73, 0), MATCH(AC$4, RAB_years, 0)) -> 0 | AD28: =INDEX('RAB input'!$H$24:$XFD$73, MATCH($E28, 'RAB input'!$E$24:$E$73, 0), MATCH(AD$4, RAB_years, 0)) -> 0 | AE28: =INDEX('RAB input'!$H$24:$XFD$73, MATCH($E28, 'RAB input'!$E$24:$E$73, 0), MATCH(AE$4, RAB_years, 0)) -> 0 | AF28: =INDEX('RAB input'!$H$24:$XFD$73, MATCH($E28, 'RAB input'!$E$24:$E$73, 0), MATCH(AF$4, RAB_years, 0)) -> 0 | AG28: =INDEX('RAB input'!$H$24:$XFD$73, MATCH($E28, 'RAB input'!$E$24:$E$73, 0), MATCH(AG$4, RAB_years, 0)) -> 0 | AH28: =INDEX('RAB input'!$H$24:$XFD$73, MATCH($E28, 'RAB input'!$E$24:$E$73, 0), MATCH(AH$4, RAB_years, 0)) -> 0 | AI28: =INDEX('RAB input'!$H$24:$XFD$73, MATCH($E28, 'RAB input'!$E$24:$E$73, 0), MATCH(AI$4, RAB_years, 0)) -> 0 | AJ28: =INDEX('RAB input'!$H$24:$XFD$73, MATCH($E28, 'RAB input'!$E$24:$E$73, 0), MATCH(AJ$4, RAB_years, 0)) -> 0 | AK28: =INDEX('RAB input'!$H$24:$XFD$73, MATCH($E28, 'RAB input'!$E$24:$E$73, 0), MATCH(AK$4, RAB_years, 0)) -> 0 | AL28: =INDEX('RAB input'!$H$24:$XFD$73, MATCH($E28, 'RAB input'!$E$24:$E$73, 0), MATCH(AL$4, RAB_years, 0)) -> 0 | AM28: =INDEX('RAB input'!$H$24:$XFD$73, MATCH($E28, 'RAB input'!$E$24:$E$73, 0), MATCH(AM$4, RAB_years, 0)) -> 0 | AN28: =INDEX('RAB input'!$H$24:$XFD$73, MATCH($E28, 'RAB input'!$E$24:$E$73, 0), MATCH(AN$4, RAB_years, 0)) -> 0 | AO28: =INDEX('RAB input'!$H$24:$XFD$73, MATCH($E28, 'RAB input'!$E$24:$E$73, 0), MATCH(AO$4, RAB_years, 0)) -> 0 | AP28: =INDEX('RAB input'!$H$24:$XFD$73, MATCH($E28, 'RAB input'!$E$24:$E$73, 0), MATCH(AP$4, RAB_years, 0)) -> 0 | AQ28: =INDEX('RAB input'!$H$24:$XFD$73, MATCH($E28, 'RAB input'!$E$24:$E$73, 0), MATCH(AQ$4, RAB_years, 0)) -> 0 | AR28: =INDEX('RAB input'!$H$24:$XFD$73, MATCH($E28, 'RAB input'!$E$24:$E$73, 0), MATCH(AR$4, RAB_years, 0)) -> 0 | AS28: =INDEX('RAB input'!$H$24:$XFD$73, MATCH($E28, 'RAB input'!$E$24:$E$73, 0), MATCH(AS$4, RAB_years, 0)) -> 0 | AT28: =INDEX('RAB input'!$H$24:$XFD$73, MATCH($E28, 'RAB input'!$E$24:$E$73, 0), MATCH(AT$4, RAB_years, 0)) -> 0 | AU28: =INDEX('RAB input'!$H$24:$XFD$73, MATCH($E28, 'RAB input'!$E$24:$E$73, 0), MATCH(AU$4, RAB_years, 0)) -> 0 | AV28: =INDEX('RAB input'!$H$24:$XFD$73, MATCH($E28, 'RAB input'!$E$24:$E$73, 0), MATCH(AV$4, RAB_years, 0)) -> 0 | AW28: =INDEX('RAB input'!$H$24:$XFD$73, MATCH($E28, 'RAB input'!$E$24:$E$73, 0), MATCH(AW$4, RAB_years, 0)) -> 0 | AX28: =INDEX('RAB input'!$H$24:$XFD$73, MATCH($E28, 'RAB input'!$E$24:$E$73, 0), MATCH(AX$4, RAB_years, 0)) -> 0 | AY28: =INDEX('RAB input'!$H$24:$XFD$73, MATCH($E28, 'RAB input'!$E$24:$E$73, 0), MATCH(AY$4, RAB_years, 0)) -> 0 | AZ28: =INDEX('RAB input'!$H$24:$XFD$73, MATCH($E28, 'RAB input'!$E$24:$E$73, 0), MATCH(AZ$4, RAB_years, 0)) -> 0 | BA28: =INDEX('RAB input'!$H$24:$XFD$73, MATCH($E28, 'RAB input'!$E$24:$E$73, 0), MATCH(BA$4, RAB_years, 0)) -> 0 | BB28: =INDEX('RAB input'!$H$24:$XFD$73, MATCH($E28, 'RAB input'!$E$24:$E$73, 0), MATCH(BB$4, RAB_years, 0)) -> 0 | BC28: =INDEX('RAB input'!$H$24:$XFD$73, MATCH($E28, 'RAB input'!$E$24:$E$73, 0), MATCH(BC$4, RAB_years, 0)) -> 0 | BD28: =INDEX('RAB input'!$H$24:$XFD$73, MATCH($E28, 'RAB input'!$E$24:$E$73, 0), MATCH(BD$4, RAB_years, 0)) -> 0 | BE28: =INDEX('RAB input'!$H$24:$XFD$73, MATCH($E28, 'RAB input'!$E$24:$E$73, 0), MATCH(BE$4, RAB_years, 0)) -> 0 | BF28: =INDEX('RAB input'!$H$24:$XFD$73, MATCH($E28, 'RAB input'!$E$24:$E$73, 0), MATCH(BF$4, RAB_years, 0)) -> 0 | BG28: =INDEX('RAB input'!$H$24:$XFD$73, MATCH($E28, 'RAB input'!$E$24:$E$73, 0), MATCH(BG$4, RAB_years, 0)) -> 0 | BH28: =INDEX('RAB input'!$H$24:$XFD$73, MATCH($E28, 'RAB input'!$E$24:$E$73, 0), MATCH(BH$4, RAB_years, 0)) -> 0 | BI28: =INDEX('RAB input'!$H$24:$XFD$73, MATCH($E28, 'RAB input'!$E$24:$E$73, 0), MATCH(BI$4, RAB_years, 0)) -> 0 | BJ28: =INDEX('RAB input'!$H$24:$XFD$73, MATCH($E28, 'RAB input'!$E$24:$E$73, 0), MATCH(BJ$4, RAB_years, 0)) -> 0 | BK28: =INDEX('RAB input'!$H$24:$XFD$73, MATCH($E28, 'RAB input'!$E$24:$E$73, 0), MATCH(BK$4, RAB_years, 0)) -> 0 | BL28: =INDEX('RAB input'!$H$24:$XFD$73, MATCH($E28, 'RAB input'!$E$24:$E$73, 0), MATCH(BL$4, RAB_years, 0)) -> 0 | BM28: =INDEX('RAB input'!$H$24:$XFD$73, MATCH($E28, 'RAB input'!$E$24:$E$73, 0), MATCH(BM$4, RAB_years, 0)) -> 0 | BN28: =INDEX('RAB input'!$H$24:$XFD$73, MATCH($E28, 'RAB input'!$E$24:$E$73, 0), MATCH(BN$4, RAB_years, 0)) -> 0 | BO28: =INDEX('RAB input'!$H$24:$XFD$73, MATCH($E28, 'RAB input'!$E$24:$E$73, 0), MATCH(BO$4, RAB_years, 0)) -> 0 | BP28: =INDEX('RAB input'!$H$24:$XFD$73, MATCH($E28, 'RAB input'!$E$24:$E$73, 0), MATCH(BP$4, RAB_years, 0)) -> 0 | BQ28: =INDEX('RAB input'!$H$24:$XFD$73, MATCH($E28, 'RAB input'!$E$24:$E$73, 0), MATCH(BQ$4, RAB_years, 0)) ->  | BR28: =INDEX('RAB input'!$H$24:$XFD$73, MATCH($E28, 'RAB input'!$E$24:$E$73, 0), MATCH(BR$4, RAB_years, 0)) ->  | BS28: =INDEX('RAB input'!$H$24:$XFD$73, MATCH($E28, 'RAB input'!$E$24:$E$73, 0), MATCH(BS$4, RAB_years, 0)) ->  | BT28: =INDEX('RAB input'!$H$24:$XFD$73, MATCH($E28, 'RAB input'!$E$24:$E$73, 0), MATCH(BT$4, RAB_years, 0)) ->  | BU28: =INDEX('RAB input'!$H$24:$XFD$73, MATCH($E28, 'RAB input'!$E$24:$E$73, 0), MATCH(BU$4, RAB_years, 0)) ->  | BV28: =INDEX('RAB input'!$H$24:$XFD$73, MATCH($E28, 'RAB input'!$E$24:$E$73, 0), MATCH(BV$4, RAB_years, 0)) ->  | BW28: =INDEX('RAB input'!$H$24:$XFD$73, MATCH($E28, 'RAB input'!$E$24:$E$73, 0), MATCH(BW$4, RAB_years, 0)) ->  | BX28: =INDEX('RAB input'!$H$24:$XFD$73, MATCH($E28, 'RAB input'!$E$24:$E$73, 0), MATCH(BX$4, RAB_years, 0)) ->  | BY28: =INDEX('RAB input'!$H$24:$XFD$73, MATCH($E28, 'RAB input'!$E$24:$E$73, 0), MATCH(BY$4, RAB_years, 0)) ->  | BZ28: =INDEX('RAB input'!$H$24:$XFD$73, MATCH($E28, 'RAB input'!$E$24:$E$73, 0), MATCH(BZ$4, RAB_years, 0)) ->  | CA28: =INDEX('RAB input'!$H$24:$XFD$73, MATCH($E28, 'RAB input'!$E$24:$E$73, 0), MATCH(CA$4, RAB_years, 0)) ->  | CB28: =INDEX('RAB input'!$H$24:$XFD$73, MATCH($E28, 'RAB input'!$E$24:$E$73, 0), MATCH(CB$4, RAB_years, 0)) ->  | CC28: =INDEX('RAB input'!$H$24:$XFD$73, MATCH($E28, 'RAB input'!$E$24:$E$73, 0), MATCH(CC$4, RAB_years, 0)) ->  | CD28: =INDEX('RAB input'!$H$24:$XFD$73, MATCH($E28, 'RAB input'!$E$24:$E$73, 0), MATCH(CD$4, RAB_years, 0)) ->  | CE28: =INDEX('RAB input'!$H$24:$XFD$73, MATCH($E28, 'RAB input'!$E$24:$E$73, 0), MATCH(CE$4, RAB_years, 0)) ->  | CF28: =INDEX('RAB input'!$H$24:$XFD$73, MATCH($E28, 'RAB input'!$E$24:$E$73, 0), MATCH(CF$4, RAB_years, 0)) ->  | CG28: =INDEX('RAB input'!$H$24:$XFD$73, MATCH($E28, 'RAB input'!$E$24:$E$73, 0), MATCH(CG$4, RAB_years, 0)) ->  | CH28: =INDEX('RAB input'!$H$24:$XFD$73, MATCH($E28, 'RAB input'!$E$24:$E$73, 0), MATCH(CH$4, RAB_years, 0)) ->  | CI28: =INDEX('RAB input'!$H$24:$XFD$73, MATCH($E28, 'RAB input'!$E$24:$E$73, 0), MATCH(CI$4, RAB_years, 0)) ->  | CJ28: =INDEX('RAB input'!$H$24:$XFD$73, MATCH($E28, 'RAB input'!$E$24:$E$73, 0), MATCH(CJ$4, RAB_years, 0)) -> 
D29: 12 | E29: ='RAB input'!E35 -> Premises | G29: =INDEX('[4]TAB roll forward'!$H$8:$H$57,MATCH($E29,'[4]TAB roll forward'!$C$8:$C$57,0)) -> 0.8246189311 | H29: =INDEX('RAB input'!$H$24:$XFD$73, MATCH($E29, 'RAB input'!$E$24:$E$73, 0), MATCH(H$4, RAB_years, 0)) -> 0 | I29: =INDEX('RAB input'!$H$24:$XFD$73, MATCH($E29, 'RAB input'!$E$24:$E$73, 0), MATCH(I$4, RAB_years, 0)) -> 0 | J29: =INDEX('RAB input'!$H$24:$XFD$73, MATCH($E29, 'RAB input'!$E$24:$E$73, 0), MATCH(J$4, RAB_years, 0)) -> 0 | K29: =INDEX('RAB input'!$H$24:$XFD$73, MATCH($E29, 'RAB input'!$E$24:$E$73, 0), MATCH(K$4, RAB_years, 0)) -> 0.211876 | L29: =INDEX('RAB input'!$H$24:$XFD$73, MATCH($E29, 'RAB input'!$E$24:$E$73, 0), MATCH(L$4, RAB_years, 0)) -> 0.225 | M29: =INDEX('RAB input'!$H$24:$XFD$73, MATCH($E29, 'RAB input'!$E$24:$E$73, 0), MATCH(M$4, RAB_years, 0)) -> 0 | N29: =INDEX('RAB input'!$H$24:$XFD$73, MATCH($E29, 'RAB input'!$E$24:$E$73, 0), MATCH(N$4, RAB_years, 0)) -> 0 | O29: =INDEX('RAB input'!$H$24:$XFD$73, MATCH($E29, 'RAB input'!$E$24:$E$73, 0), MATCH(O$4, RAB_years, 0)) -> 0 | P29: =INDEX('RAB input'!$H$24:$XFD$73, MATCH($E29, 'RAB input'!$E$24:$E$73, 0), MATCH(P$4, RAB_years, 0)) -> 0 | Q29: =INDEX('RAB input'!$H$24:$XFD$73, MATCH($E29, 'RAB input'!$E$24:$E$73, 0), MATCH(Q$4, RAB_years, 0)) -> 0 | R29: =INDEX('RAB input'!$H$24:$XFD$73, MATCH($E29, 'RAB input'!$E$24:$E$73, 0), MATCH(R$4, RAB_years, 0)) -> 0 | S29: =INDEX('RAB input'!$H$24:$XFD$73, MATCH($E29, 'RAB input'!$E$24:$E$73, 0), MATCH(S$4, RAB_years, 0)) -> 0 | T29: =INDEX('RAB input'!$H$24:$XFD$73, MATCH($E29, 'RAB input'!$E$24:$E$73, 0), MATCH(T$4, RAB_years, 0)) -> 0 | U29: =INDEX('RAB input'!$H$24:$XFD$73, MATCH($E29, 'RAB input'!$E$24:$E$73, 0), MATCH(U$4, RAB_years, 0)) -> 0 | V29: =INDEX('RAB input'!$H$24:$XFD$73, MATCH($E29, 'RAB input'!$E$24:$E$73, 0), MATCH(V$4, RAB_years, 0)) -> 0 | W29: =INDEX('RAB input'!$H$24:$XFD$73, MATCH($E29, 'RAB input'!$E$24:$E$73, 0), MATCH(W$4, RAB_years, 0)) -> 0 | X29: =INDEX('RAB input'!$H$24:$XFD$73, MATCH($E29, 'RAB input'!$E$24:$E$73, 0), MATCH(X$4, RAB_years, 0)) -> 0 | Y29: =INDEX('RAB input'!$H$24:$XFD$73, MATCH($E29, 'RAB input'!$E$24:$E$73, 0), MATCH(Y$4, RAB_years, 0)) -> 0 | Z29: =INDEX('RAB input'!$H$24:$XFD$73, MATCH($E29, 'RAB input'!$E$24:$E$73, 0), MATCH(Z$4, RAB_years, 0)) -> 0 | AA29: =INDEX('RAB input'!$H$24:$XFD$73, MATCH($E29, 'RAB input'!$E$24:$E$73, 0), MATCH(AA$4, RAB_years, 0)) -> 0 | AB29: =INDEX('RAB input'!$H$24:$XFD$73, MATCH($E29, 'RAB input'!$E$24:$E$73, 0), MATCH(AB$4, RAB_years, 0)) -> 0 | AC29: =INDEX('RAB input'!$H$24:$XFD$73, MATCH($E29, 'RAB input'!$E$24:$E$73, 0), MATCH(AC$4, RAB_years, 0)) -> 0 | AD29: =INDEX('RAB input'!$H$24:$XFD$73, MATCH($E29, 'RAB input'!$E$24:$E$73, 0), MATCH(AD$4, RAB_years, 0)) -> 0 | AE29: =INDEX('RAB input'!$H$24:$XFD$73, MATCH($E29, 'RAB input'!$E$24:$E$73, 0), MATCH(AE$4, RAB_years, 0)) -> 0 | AF29: =INDEX('RAB input'!$H$24:$XFD$73, MATCH($E29, 'RAB input'!$E$24:$E$73, 0), MATCH(AF$4, RAB_years, 0)) -> 0 | AG29: =INDEX('RAB input'!$H$24:$XFD$73, MATCH($E29, 'RAB input'!$E$24:$E$73, 0), MATCH(AG$4, RAB_years, 0)) -> 0 | AH29: =INDEX('RAB input'!$H$24:$XFD$73, MATCH($E29, 'RAB input'!$E$24:$E$73, 0), MATCH(AH$4, RAB_years, 0)) -> 0 | AI29: =INDEX('RAB input'!$H$24:$XFD$73, MATCH($E29, 'RAB input'!$E$24:$E$73, 0), MATCH(AI$4, RAB_years, 0)) -> 0 | AJ29: =INDEX('RAB input'!$H$24:$XFD$73, MATCH($E29, 'RAB input'!$E$24:$E$73, 0), MATCH(AJ$4, RAB_years, 0)) -> 0 | AK29: =INDEX('RAB input'!$H$24:$XFD$73, MATCH($E29, 'RAB input'!$E$24:$E$73, 0), MATCH(AK$4, RAB_years, 0)) -> 0 | AL29: =INDEX('RAB input'!$H$24:$XFD$73, MATCH($E29, 'RAB input'!$E$24:$E$73, 0), MATCH(AL$4, RAB_years, 0)) -> 0 | AM29: =INDEX('RAB input'!$H$24:$XFD$73, MATCH($E29, 'RAB input'!$E$24:$E$73, 0), MATCH(AM$4, RAB_years, 0)) -> 0 | AN29: =INDEX('RAB input'!$H$24:$XFD$73, MATCH($E29, 'RAB input'!$E$24:$E$73, 0), MATCH(AN$4, RAB_years, 0)) -> 0 | AO29: =INDEX('RAB input'!$H$24:$XFD$73, MATCH($E29, 'RAB input'!$E$24:$E$73, 0), MATCH(AO$4, RAB_years, 0)) -> 0 | AP29: =INDEX('RAB input'!$H$24:$XFD$73, MATCH($E29, 'RAB input'!$E$24:$E$73, 0), MATCH(AP$4, RAB_years, 0)) -> 0 | AQ29: =INDEX('RAB input'!$H$24:$XFD$73, MATCH($E29, 'RAB input'!$E$24:$E$73, 0), MATCH(AQ$4, RAB_years, 0)) -> 0 | AR29: =INDEX('RAB input'!$H$24:$XFD$73, MATCH($E29, 'RAB input'!$E$24:$E$73, 0), MATCH(AR$4, RAB_years, 0)) -> 0 | AS29: =INDEX('RAB input'!$H$24:$XFD$73, MATCH($E29, 'RAB input'!$E$24:$E$73, 0), MATCH(AS$4, RAB_years, 0)) -> 0 | AT29: =INDEX('RAB input'!$H$24:$XFD$73, MATCH($E29, 'RAB input'!$E$24:$E$73, 0), MATCH(AT$4, RAB_years, 0)) -> 0 | AU29: =INDEX('RAB input'!$H$24:$XFD$73, MATCH($E29, 'RAB input'!$E$24:$E$73, 0), MATCH(AU$4, RAB_years, 0)) -> 0 | AV29: =INDEX('RAB input'!$H$24:$XFD$73, MATCH($E29, 'RAB input'!$E$24:$E$73, 0), MATCH(AV$4, RAB_years, 0)) -> 0 | AW29: =INDEX('RAB input'!$H$24:$XFD$73, MATCH($E29, 'RAB input'!$E$24:$E$73, 0), MATCH(AW$4, RAB_years, 0)) -> 0 | AX29: =INDEX('RAB input'!$H$24:$XFD$73, MATCH($E29, 'RAB input'!$E$24:$E$73, 0), MATCH(AX$4, RAB_years, 0)) -> 0 | AY29: =INDEX('RAB input'!$H$24:$XFD$73, MATCH($E29, 'RAB input'!$E$24:$E$73, 0), MATCH(AY$4, RAB_years, 0)) -> 0 | AZ29: =INDEX('RAB input'!$H$24:$XFD$73, MATCH($E29, 'RAB input'!$E$24:$E$73, 0), MATCH(AZ$4, RAB_years, 0)) -> 0 | BA29: =INDEX('RAB input'!$H$24:$XFD$73, MATCH($E29, 'RAB input'!$E$24:$E$73, 0), MATCH(BA$4, RAB_years, 0)) -> 0 | BB29: =INDEX('RAB input'!$H$24:$XFD$73, MATCH($E29, 'RAB input'!$E$24:$E$73, 0), MATCH(BB$4, RAB_years, 0)) -> 0 | BC29: =INDEX('RAB input'!$H$24:$XFD$73, MATCH($E29, 'RAB input'!$E$24:$E$73, 0), MATCH(BC$4, RAB_years, 0)) -> 0 | BD29: =INDEX('RAB input'!$H$24:$XFD$73, MATCH($E29, 'RAB input'!$E$24:$E$73, 0), MATCH(BD$4, RAB_years, 0)) -> 0 | BE29: =INDEX('RAB input'!$H$24:$XFD$73, MATCH($E29, 'RAB input'!$E$24:$E$73, 0), MATCH(BE$4, RAB_years, 0)) -> 0 | BF29: =INDEX('RAB input'!$H$24:$XFD$73, MATCH($E29, 'RAB input'!$E$24:$E$73, 0), MATCH(BF$4, RAB_years, 0)) -> 0 | BG29: =INDEX('RAB input'!$H$24:$XFD$73, MATCH($E29, 'RAB input'!$E$24:$E$73, 0), MATCH(BG$4, RAB_years, 0)) -> 0 | BH29: =INDEX('RAB input'!$H$24:$XFD$73, MATCH($E29, 'RAB input'!$E$24:$E$73, 0), MATCH(BH$4, RAB_years, 0)) -> 0 | BI29: =INDEX('RAB input'!$H$24:$XFD$73, MATCH($E29, 'RAB input'!$E$24:$E$73, 0), MATCH(BI$4, RAB_years, 0)) -> 0 | BJ29: =INDEX('RAB input'!$H$24:$XFD$73, MATCH($E29, 'RAB input'!$E$24:$E$73, 0), MATCH(BJ$4, RAB_years, 0)) -> 0 | BK29: =INDEX('RAB input'!$H$24:$XFD$73, MATCH($E29, 'RAB input'!$E$24:$E$73, 0), MATCH(BK$4, RAB_years, 0)) -> 0 | BL29: =INDEX('RAB input'!$H$24:$XFD$73, MATCH($E29, 'RAB input'!$E$24:$E$73, 0), MATCH(BL$4, RAB_years, 0)) -> 0 | BM29: =INDEX('RAB input'!$H$24:$XFD$73, MATCH($E29, 'RAB input'!$E$24:$E$73, 0), MATCH(BM$4, RAB_years, 0)) -> 0 | BN29: =INDEX('RAB input'!$H$24:$XFD$73, MATCH($E29, 'RAB input'!$E$24:$E$73, 0), MATCH(BN$4, RAB_years, 0)) -> 0 | BO29: =INDEX('RAB input'!$H$24:$XFD$73, MATCH($E29, 'RAB input'!$E$24:$E$73, 0), MATCH(BO$4, RAB_years, 0)) -> 0 | BP29: =INDEX('RAB input'!$H$24:$XFD$73, MATCH($E29, 'RAB input'!$E$24:$E$73, 0), MATCH(BP$4, RAB_years, 0)) -> 0 | BQ29: =INDEX('RAB input'!$H$24:$XFD$73, MATCH($E29, 'RAB input'!$E$24:$E$73, 0), MATCH(BQ$4, RAB_years, 0)) ->  | BR29: =INDEX('RAB input'!$H$24:$XFD$73, MATCH($E29, 'RAB input'!$E$24:$E$73, 0), MATCH(BR$4, RAB_years, 0)) ->  | BS29: =INDEX('RAB input'!$H$24:$XFD$73, MATCH($E29, 'RAB input'!$E$24:$E$73, 0), MATCH(BS$4, RAB_years, 0)) ->  | BT29: =INDEX('RAB input'!$H$24:$XFD$73, MATCH($E29, 'RAB input'!$E$24:$E$73, 0), MATCH(BT$4, RAB_years, 0)) ->  | BU29: =INDEX('RAB input'!$H$24:$XFD$73, MATCH($E29, 'RAB input'!$E$24:$E$73, 0), MATCH(BU$4, RAB_years, 0)) ->  | BV29: =INDEX('RAB input'!$H$24:$XFD$73, MATCH($E29, 'RAB input'!$E$24:$E$73, 0), MATCH(BV$4, RAB_years, 0)) ->  | BW29: =INDEX('RAB input'!$H$24:$XFD$73, MATCH($E29, 'RAB input'!$E$24:$E$73, 0), MATCH(BW$4, RAB_years, 0)) ->  | BX29: =INDEX('RAB input'!$H$24:$XFD$73, MATCH($E29, 'RAB input'!$E$24:$E$73, 0), MATCH(BX$4, RAB_years, 0)) ->  | BY29: =INDEX('RAB input'!$H$24:$XFD$73, MATCH($E29, 'RAB input'!$E$24:$E$73, 0), MATCH(BY$4, RAB_years, 0)) ->  | BZ29: =INDEX('RAB input'!$H$24:$XFD$73, MATCH($E29, 'RAB input'!$E$24:$E$73, 0), MATCH(BZ$4, RAB_years, 0)) ->  | CA29: =INDEX('RAB input'!$H$24:$XFD$73, MATCH($E29, 'RAB input'!$E$24:$E$73, 0), MATCH(CA$4, RAB_years, 0)) ->  | CB29: =INDEX('RAB input'!$H$24:$XFD$73, MATCH($E29, 'RAB input'!$E$24:$E$73, 0), MATCH(CB$4, RAB_years, 0)) ->  | CC29: =INDEX('RAB input'!$H$24:$XFD$73, MATCH($E29, 'RAB input'!$E$24:$E$73, 0), MATCH(CC$4, RAB_years, 0)) ->  | CD29: =INDEX('RAB input'!$H$24:$XFD$73, MATCH($E29, 'RAB input'!$E$24:$E$73, 0), MATCH(CD$4, RAB_years, 0)) ->  | CE29: =INDEX('RAB input'!$H$24:$XFD$73, MATCH($E29, 'RAB input'!$E$24:$E$73, 0), MATCH(CE$4, RAB_years, 0)) ->  | CF29: =INDEX('RAB input'!$H$24:$XFD$73, MATCH($E29, 'RAB input'!$E$24:$E$73, 0), MATCH(CF$4, RAB_years, 0)) ->  | CG29: =INDEX('RAB input'!$H$24:$XFD$73, MATCH($E29, 'RAB input'!$E$24:$E$73, 0), MATCH(CG$4, RAB_years, 0)) ->  | CH29: =INDEX('RAB input'!$H$24:$XFD$73, MATCH($E29, 'RAB input'!$E$24:$E$73, 0), MATCH(CH$4, RAB_years, 0)) ->  | CI29: =INDEX('RAB input'!$H$24:$XFD$73, MATCH($E29, 'RAB input'!$E$24:$E$73, 0), MATCH(CI$4, RAB_years, 0)) ->  | CJ29: =INDEX('RAB input'!$H$24:$XFD$73, MATCH($E29, 'RAB input'!$E$24:$E$73, 0), MATCH(CJ$4, RAB_years, 0)) -> 
D30: 13 | E30: ='RAB input'!E36 -> Land | G30: =INDEX('[4]TAB roll forward'!$H$8:$H$57,MATCH($E30,'[4]TAB roll forward'!$C$8:$C$57,0)) -> 70.28637562 | H30: =INDEX('RAB input'!$H$24:$XFD$73, MATCH($E30, 'RAB input'!$E$24:$E$73, 0), MATCH(H$4, RAB_years, 0)) -> 0 | I30: =INDEX('RAB input'!$H$24:$XFD$73, MATCH($E30, 'RAB input'!$E$24:$E$73, 0), MATCH(I$4, RAB_years, 0)) -> 0 | J30: =INDEX('RAB input'!$H$24:$XFD$73, MATCH($E30, 'RAB input'!$E$24:$E$73, 0), MATCH(J$4, RAB_years, 0)) -> 1.168248652 | K30: =INDEX('RAB input'!$H$24:$XFD$73, MATCH($E30, 'RAB input'!$E$24:$E$73, 0), MATCH(K$4, RAB_years, 0)) -> 0 | L30: =INDEX('RAB input'!$H$24:$XFD$73, MATCH($E30, 'RAB input'!$E$24:$E$73, 0), MATCH(L$4, RAB_years, 0)) -> 0 | M30: =INDEX('RAB input'!$H$24:$XFD$73, MATCH($E30, 'RAB input'!$E$24:$E$73, 0), MATCH(M$4, RAB_years, 0)) -> 0 | N30: =INDEX('RAB input'!$H$24:$XFD$73, MATCH($E30, 'RAB input'!$E$24:$E$73, 0), MATCH(N$4, RAB_years, 0)) -> 0 | O30: =INDEX('RAB input'!$H$24:$XFD$73, MATCH($E30, 'RAB input'!$E$24:$E$73, 0), MATCH(O$4, RAB_years, 0)) -> 0 | P30: =INDEX('RAB input'!$H$24:$XFD$73, MATCH($E30, 'RAB input'!$E$24:$E$73, 0), MATCH(P$4, RAB_years, 0)) -> 0 | Q30: =INDEX('RAB input'!$H$24:$XFD$73, MATCH($E30, 'RAB input'!$E$24:$E$73, 0), MATCH(Q$4, RAB_years, 0)) -> 0 | R30: =INDEX('RAB input'!$H$24:$XFD$73, MATCH($E30, 'RAB input'!$E$24:$E$73, 0), MATCH(R$4, RAB_years, 0)) -> 0 | S30: =INDEX('RAB input'!$H$24:$XFD$73, MATCH($E30, 'RAB input'!$E$24:$E$73, 0), MATCH(S$4, RAB_years, 0)) -> 0 | T30: =INDEX('RAB input'!$H$24:$XFD$73, MATCH($E30, 'RAB input'!$E$24:$E$73, 0), MATCH(T$4, RAB_years, 0)) -> 0 | U30: =INDEX('RAB input'!$H$24:$XFD$73, MATCH($E30, 'RAB input'!$E$24:$E$73, 0), MATCH(U$4, RAB_years, 0)) -> 0 | V30: =INDEX('RAB input'!$H$24:$XFD$73, MATCH($E30, 'RAB input'!$E$24:$E$73, 0), MATCH(V$4, RAB_years, 0)) -> 0 | W30: =INDEX('RAB input'!$H$24:$XFD$73, MATCH($E30, 'RAB input'!$E$24:$E$73, 0), MATCH(W$4, RAB_years, 0)) -> 0 | X30: =INDEX('RAB input'!$H$24:$XFD$73, MATCH($E30, 'RAB input'!$E$24:$E$73, 0), MATCH(X$4, RAB_years, 0)) -> 0 | Y30: =INDEX('RAB input'!$H$24:$XFD$73, MATCH($E30, 'RAB input'!$E$24:$E$73, 0), MATCH(Y$4, RAB_years, 0)) -> 0 | Z30: =INDEX('RAB input'!$H$24:$XFD$73, MATCH($E30, 'RAB input'!$E$24:$E$73, 0), MATCH(Z$4, RAB_years, 0)) -> 0 | AA30: =INDEX('RAB input'!$H$24:$XFD$73, MATCH($E30, 'RAB input'!$E$24:$E$73, 0), MATCH(AA$4, RAB_years, 0)) -> 0 | AB30: =INDEX('RAB input'!$H$24:$XFD$73, MATCH($E30, 'RAB input'!$E$24:$E$73, 0), MATCH(AB$4, RAB_years, 0)) -> 0 | AC30: =INDEX('RAB input'!$H$24:$XFD$73, MATCH($E30, 'RAB input'!$E$24:$E$73, 0), MATCH(AC$4, RAB_years, 0)) -> 0 | AD30: =INDEX('RAB input'!$H$24:$XFD$73, MATCH($E30, 'RAB input'!$E$24:$E$73, 0), MATCH(AD$4, RAB_years, 0)) -> 0 | AE30: =INDEX('RAB input'!$H$24:$XFD$73, MATCH($E30, 'RAB input'!$E$24:$E$73, 0), MATCH(AE$4, RAB_years, 0)) -> 0 | AF30: =INDEX('RAB input'!$H$24:$XFD$73, MATCH($E30, 'RAB input'!$E$24:$E$73, 0), MATCH(AF$4, RAB_years, 0)) -> 0 | AG30: =INDEX('RAB input'!$H$24:$XFD$73, MATCH($E30, 'RAB input'!$E$24:$E$73, 0), MATCH(AG$4, RAB_years, 0)) -> 0 | AH30: =INDEX('RAB input'!$H$24:$XFD$73, MATCH($E30, 'RAB input'!$E$24:$E$73, 0), MATCH(AH$4, RAB_years, 0)) -> 0 | AI30: =INDEX('RAB input'!$H$24:$XFD$73, MATCH($E30, 'RAB input'!$E$24:$E$73, 0), MATCH(AI$4, RAB_years, 0)) -> 0 | AJ30: =INDEX('RAB input'!$H$24:$XFD$73, MATCH($E30, 'RAB input'!$E$24:$E$73, 0), MATCH(AJ$4, RAB_years, 0)) -> 0 | AK30: =INDEX('RAB input'!$H$24:$XFD$73, MATCH($E30, 'RAB input'!$E$24:$E$73, 0), MATCH(AK$4, RAB_years, 0)) -> 0 | AL30: =INDEX('RAB input'!$H$24:$XFD$73, MATCH($E30, 'RAB input'!$E$24:$E$73, 0), MATCH(AL$4, RAB_years, 0)) -> 0 | AM30: =INDEX('RAB input'!$H$24:$XFD$73, MATCH($E30, 'RAB input'!$E$24:$E$73, 0), MATCH(AM$4, RAB_years, 0)) -> 0 | AN30: =INDEX('RAB input'!$H$24:$XFD$73, MATCH($E30, 'RAB input'!$E$24:$E$73, 0), MATCH(AN$4, RAB_years, 0)) -> 0 | AO30: =INDEX('RAB input'!$H$24:$XFD$73, MATCH($E30, 'RAB input'!$E$24:$E$73, 0), MATCH(AO$4, RAB_years, 0)) -> 0 | AP30: =INDEX('RAB input'!$H$24:$XFD$73, MATCH($E30, 'RAB input'!$E$24:$E$73, 0), MATCH(AP$4, RAB_years, 0)) -> 0 | AQ30: =INDEX('RAB input'!$H$24:$XFD$73, MATCH($E30, 'RAB input'!$E$24:$E$73, 0), MATCH(AQ$4, RAB_years, 0)) -> 0 | AR30: =INDEX('RAB input'!$H$24:$XFD$73, MATCH($E30, 'RAB input'!$E$24:$E$73, 0), MATCH(AR$4, RAB_years, 0)) -> 0 | AS30: =INDEX('RAB input'!$H$24:$XFD$73, MATCH($E30, 'RAB input'!$E$24:$E$73, 0), MATCH(AS$4, RAB_years, 0)) -> 0 | AT30: =INDEX('RAB input'!$H$24:$XFD$73, MATCH($E30, 'RAB input'!$E$24:$E$73, 0), MATCH(AT$4, RAB_years, 0)) -> 0 | AU30: =INDEX('RAB input'!$H$24:$XFD$73, MATCH($E30, 'RAB input'!$E$24:$E$73, 0), MATCH(AU$4, RAB_years, 0)) -> 0 | AV30: =INDEX('RAB input'!$H$24:$XFD$73, MATCH($E30, 'RAB input'!$E$24:$E$73, 0), MATCH(AV$4, RAB_years, 0)) -> 0 | AW30: =INDEX('RAB input'!$H$24:$XFD$73, MATCH($E30, 'RAB input'!$E$24:$E$73, 0), MATCH(AW$4, RAB_years, 0)) -> 0 | AX30: =INDEX('RAB input'!$H$24:$XFD$73, MATCH($E30, 'RAB input'!$E$24:$E$73, 0), MATCH(AX$4, RAB_years, 0)) -> 0 | AY30: =INDEX('RAB input'!$H$24:$XFD$73, MATCH($E30, 'RAB input'!$E$24:$E$73, 0), MATCH(AY$4, RAB_years, 0)) -> 0 | AZ30: =INDEX('RAB input'!$H$24:$XFD$73, MATCH($E30, 'RAB input'!$E$24:$E$73, 0), MATCH(AZ$4, RAB_years, 0)) -> 0 | BA30: =INDEX('RAB input'!$H$24:$XFD$73, MATCH($E30, 'RAB input'!$E$24:$E$73, 0), MATCH(BA$4, RAB_years, 0)) -> 0 | BB30: =INDEX('RAB input'!$H$24:$XFD$73, MATCH($E30, 'RAB input'!$E$24:$E$73, 0), MATCH(BB$4, RAB_years, 0)) -> 0 | BC30: =INDEX('RAB input'!$H$24:$XFD$73, MATCH($E30, 'RAB input'!$E$24:$E$73, 0), MATCH(BC$4, RAB_years, 0)) -> 0 | BD30: =INDEX('RAB input'!$H$24:$XFD$73, MATCH($E30, 'RAB input'!$E$24:$E$73, 0), MATCH(BD$4, RAB_years, 0)) -> 0 | BE30: =INDEX('RAB input'!$H$24:$XFD$73, MATCH($E30, 'RAB input'!$E$24:$E$73, 0), MATCH(BE$4, RAB_years, 0)) -> 0 | BF30: =INDEX('RAB input'!$H$24:$XFD$73, MATCH($E30, 'RAB input'!$E$24:$E$73, 0), MATCH(BF$4, RAB_years, 0)) -> 0 | BG30: =INDEX('RAB input'!$H$24:$XFD$73, MATCH($E30, 'RAB input'!$E$24:$E$73, 0), MATCH(BG$4, RAB_years, 0)) -> 0 | BH30: =INDEX('RAB input'!$H$24:$XFD$73, MATCH($E30, 'RAB input'!$E$24:$E$73, 0), MATCH(BH$4, RAB_years, 0)) -> 0 | BI30: =INDEX('RAB input'!$H$24:$XFD$73, MATCH($E30, 'RAB input'!$E$24:$E$73, 0), MATCH(BI$4, RAB_years, 0)) -> 0 | BJ30: =INDEX('RAB input'!$H$24:$XFD$73, MATCH($E30, 'RAB input'!$E$24:$E$73, 0), MATCH(BJ$4, RAB_years, 0)) -> 0 | BK30: =INDEX('RAB input'!$H$24:$XFD$73, MATCH($E30, 'RAB input'!$E$24:$E$73, 0), MATCH(BK$4, RAB_years, 0)) -> 0 | BL30: =INDEX('RAB input'!$H$24:$XFD$73, MATCH($E30, 'RAB input'!$E$24:$E$73, 0), MATCH(BL$4, RAB_years, 0)) -> 0 | BM30: =INDEX('RAB input'!$H$24:$XFD$73, MATCH($E30, 'RAB input'!$E$24:$E$73, 0), MATCH(BM$4, RAB_years, 0)) -> 0 | BN30: =INDEX('RAB input'!$H$24:$XFD$73, MATCH($E30, 'RAB input'!$E$24:$E$73, 0), MATCH(BN$4, RAB_years, 0)) -> 0 | BO30: =INDEX('RAB input'!$H$24:$XFD$73, MATCH($E30, 'RAB input'!$E$24:$E$73, 0), MATCH(BO$4, RAB_years, 0)) -> 0 | BP30: =INDEX('RAB input'!$H$24:$XFD$73, MATCH($E30, 'RAB input'!$E$24:$E$73, 0), MATCH(BP$4, RAB_years, 0)) -> 0 | BQ30: =INDEX('RAB input'!$H$24:$XFD$73, MATCH($E30, 'RAB input'!$E$24:$E$73, 0), MATCH(BQ$4, RAB_years, 0)) ->  | BR30: =INDEX('RAB input'!$H$24:$XFD$73, MATCH($E30, 'RAB input'!$E$24:$E$73, 0), MATCH(BR$4, RAB_years, 0)) ->  | BS30: =INDEX('RAB input'!$H$24:$XFD$73, MATCH($E30, 'RAB input'!$E$24:$E$73, 0), MATCH(BS$4, RAB_years, 0)) ->  | BT30: =INDEX('RAB input'!$H$24:$XFD$73, MATCH($E30, 'RAB input'!$E$24:$E$73, 0), MATCH(BT$4, RAB_years, 0)) ->  | BU30: =INDEX('RAB input'!$H$24:$XFD$73, MATCH($E30, 'RAB input'!$E$24:$E$73, 0), MATCH(BU$4, RAB_years, 0)) ->  | BV30: =INDEX('RAB input'!$H$24:$XFD$73, MATCH($E30, 'RAB input'!$E$24:$E$73, 0), MATCH(BV$4, RAB_years, 0)) ->  | BW30: =INDEX('RAB input'!$H$24:$XFD$73, MATCH($E30, 'RAB input'!$E$24:$E$73, 0), MATCH(BW$4, RAB_years, 0)) ->  | BX30: =INDEX('RAB input'!$H$24:$XFD$73, MATCH($E30, 'RAB input'!$E$24:$E$73, 0), MATCH(BX$4, RAB_years, 0)) ->  | BY30: =INDEX('RAB input'!$H$24:$XFD$73, MATCH($E30, 'RAB input'!$E$24:$E$73, 0), MATCH(BY$4, RAB_years, 0)) ->  | BZ30: =INDEX('RAB input'!$H$24:$XFD$73, MATCH($E30, 'RAB input'!$E$24:$E$73, 0), MATCH(BZ$4, RAB_years, 0)) ->  | CA30: =INDEX('RAB input'!$H$24:$XFD$73, MATCH($E30, 'RAB input'!$E$24:$E$73, 0), MATCH(CA$4, RAB_years, 0)) ->  | CB30: =INDEX('RAB input'!$H$24:$XFD$73, MATCH($E30, 'RAB input'!$E$24:$E$73, 0), MATCH(CB$4, RAB_years, 0)) ->  | CC30: =INDEX('RAB input'!$H$24:$XFD$73, MATCH($E30, 'RAB input'!$E$24:$E$73, 0), MATCH(CC$4, RAB_years, 0)) ->  | CD30: =INDEX('RAB input'!$H$24:$XFD$73, MATCH($E30, 'RAB input'!$E$24:$E$73, 0), MATCH(CD$4, RAB_years, 0)) ->  | CE30: =INDEX('RAB input'!$H$24:$XFD$73, MATCH($E30, 'RAB input'!$E$24:$E$73, 0), MATCH(CE$4, RAB_years, 0)) ->  | CF30: =INDEX('RAB input'!$H$24:$XFD$73, MATCH($E30, 'RAB input'!$E$24:$E$73, 0), MATCH(CF$4, RAB_years, 0)) ->  | CG30: =INDEX('RAB input'!$H$24:$XFD$73, MATCH($E30, 'RAB input'!$E$24:$E$73, 0), MATCH(CG$4, RAB_years, 0)) ->  | CH30: =INDEX('RAB input'!$H$24:$XFD$73, MATCH($E30, 'RAB input'!$E$24:$E$73, 0), MATCH(CH$4, RAB_years, 0)) ->  | CI30: =INDEX('RAB input'!$H$24:$XFD$73, MATCH($E30, 'RAB input'!$E$24:$E$73, 0), MATCH(CI$4, RAB_years, 0)) ->  | CJ30: =INDEX('RAB input'!$H$24:$XFD$73, MATCH($E30, 'RAB input'!$E$24:$E$73, 0), MATCH(CJ$4, RAB_years, 0)) -> 
D31: 14 | E31: ='RAB input'!E37 -> Easements | G31: =INDEX('[4]TAB roll forward'!$H$8:$H$57,MATCH($E31,'[4]TAB roll forward'!$C$8:$C$57,0)) -> 94.57015355 | H31: =INDEX('RAB input'!$H$24:$XFD$73, MATCH($E31, 'RAB input'!$E$24:$E$73, 0), MATCH(H$4, RAB_years, 0)) -> 0 | I31: =INDEX('RAB input'!$H$24:$XFD$73, MATCH($E31, 'RAB input'!$E$24:$E$73, 0), MATCH(I$4, RAB_years, 0)) -> 0.1462815738 | J31: =INDEX('RAB input'!$H$24:$XFD$73, MATCH($E31, 'RAB input'!$E$24:$E$73, 0), MATCH(J$4, RAB_years, 0)) -> 0 | K31: =INDEX('RAB input'!$H$24:$XFD$73, MATCH($E31, 'RAB input'!$E$24:$E$73, 0), MATCH(K$4, RAB_years, 0)) -> 0 | L31: =INDEX('RAB input'!$H$24:$XFD$73, MATCH($E31, 'RAB input'!$E$24:$E$73, 0), MATCH(L$4, RAB_years, 0)) -> 0 | M31: =INDEX('RAB input'!$H$24:$XFD$73, MATCH($E31, 'RAB input'!$E$24:$E$73, 0), MATCH(M$4, RAB_years, 0)) -> 0 | N31: =INDEX('RAB input'!$H$24:$XFD$73, MATCH($E31, 'RAB input'!$E$24:$E$73, 0), MATCH(N$4, RAB_years, 0)) -> 0 | O31: =INDEX('RAB input'!$H$24:$XFD$73, MATCH($E31, 'RAB input'!$E$24:$E$73, 0), MATCH(O$4, RAB_years, 0)) -> 0 | P31: =INDEX('RAB input'!$H$24:$XFD$73, MATCH($E31, 'RAB input'!$E$24:$E$73, 0), MATCH(P$4, RAB_years, 0)) -> 0 | Q31: =INDEX('RAB input'!$H$24:$XFD$73, MATCH($E31, 'RAB input'!$E$24:$E$73, 0), MATCH(Q$4, RAB_years, 0)) -> 0 | R31: =INDEX('RAB input'!$H$24:$XFD$73, MATCH($E31, 'RAB input'!$E$24:$E$73, 0), MATCH(R$4, RAB_years, 0)) -> 0 | S31: =INDEX('RAB input'!$H$24:$XFD$73, MATCH($E31, 'RAB input'!$E$24:$E$73, 0), MATCH(S$4, RAB_years, 0)) -> 0 | T31: =INDEX('RAB input'!$H$24:$XFD$73, MATCH($E31, 'RAB input'!$E$24:$E$73, 0), MATCH(T$4, RAB_years, 0)) -> 0 | U31: =INDEX('RAB input'!$H$24:$XFD$73, MATCH($E31, 'RAB input'!$E$24:$E$73, 0), MATCH(U$4, RAB_years, 0)) -> 0 | V31: =INDEX('RAB input'!$H$24:$XFD$73, MATCH($E31, 'RAB input'!$E$24:$E$73, 0), MATCH(V$4, RAB_years, 0)) -> 0 | W31: =INDEX('RAB input'!$H$24:$XFD$73, MATCH($E31, 'RAB input'!$E$24:$E$73, 0), MATCH(W$4, RAB_years, 0)) -> 0 | X31: =INDEX('RAB input'!$H$24:$XFD$73, MATCH($E31, 'RAB input'!$E$24:$E$73, 0), MATCH(X$4, RAB_years, 0)) -> 0 | Y31: =INDEX('RAB input'!$H$24:$XFD$73, MATCH($E31, 'RAB input'!$E$24:$E$73, 0), MATCH(Y$4, RAB_years, 0)) -> 0 | Z31: =INDEX('RAB input'!$H$24:$XFD$73, MATCH($E31, 'RAB input'!$E$24:$E$73, 0), MATCH(Z$4, RAB_years, 0)) -> 0 | AA31: =INDEX('RAB input'!$H$24:$XFD$73, MATCH($E31, 'RAB input'!$E$24:$E$73, 0), MATCH(AA$4, RAB_years, 0)) -> 0 | AB31: =INDEX('RAB input'!$H$24:$XFD$73, MATCH($E31, 'RAB input'!$E$24:$E$73, 0), MATCH(AB$4, RAB_years, 0)) -> 0 | AC31: =INDEX('RAB input'!$H$24:$XFD$73, MATCH($E31, 'RAB input'!$E$24:$E$73, 0), MATCH(AC$4, RAB_years, 0)) -> 0 | AD31: =INDEX('RAB input'!$H$24:$XFD$73, MATCH($E31, 'RAB input'!$E$24:$E$73, 0), MATCH(AD$4, RAB_years, 0)) -> 0 | AE31: =INDEX('RAB input'!$H$24:$XFD$73, MATCH($E31, 'RAB input'!$E$24:$E$73, 0), MATCH(AE$4, RAB_years, 0)) -> 0 | AF31: =INDEX('RAB input'!$H$24:$XFD$73, MATCH($E31, 'RAB input'!$E$24:$E$73, 0), MATCH(AF$4, RAB_years, 0)) -> 0 | AG31: =INDEX('RAB input'!$H$24:$XFD$73, MATCH($E31, 'RAB input'!$E$24:$E$73, 0), MATCH(AG$4, RAB_years, 0)) -> 0 | AH31: =INDEX('RAB input'!$H$24:$XFD$73, MATCH($E31, 'RAB input'!$E$24:$E$73, 0), MATCH(AH$4, RAB_years, 0)) -> 0 | AI31: =INDEX('RAB input'!$H$24:$XFD$73, MATCH($E31, 'RAB input'!$E$24:$E$73, 0), MATCH(AI$4, RAB_years, 0)) -> 0 | AJ31: =INDEX('RAB input'!$H$24:$XFD$73, MATCH($E31, 'RAB input'!$E$24:$E$73, 0), MATCH(AJ$4, RAB_years, 0)) -> 0 | AK31: =INDEX('RAB input'!$H$24:$XFD$73, MATCH($E31, 'RAB input'!$E$24:$E$73, 0), MATCH(AK$4, RAB_years, 0)) -> 0 | AL31: =INDEX('RAB input'!$H$24:$XFD$73, MATCH($E31, 'RAB input'!$E$24:$E$73, 0), MATCH(AL$4, RAB_years, 0)) -> 0 | AM31: =INDEX('RAB input'!$H$24:$XFD$73, MATCH($E31, 'RAB input'!$E$24:$E$73, 0), MATCH(AM$4, RAB_years, 0)) -> 0 | AN31: =INDEX('RAB input'!$H$24:$XFD$73, MATCH($E31, 'RAB input'!$E$24:$E$73, 0), MATCH(AN$4, RAB_years, 0)) -> 0 | AO31: =INDEX('RAB input'!$H$24:$XFD$73, MATCH($E31, 'RAB input'!$E$24:$E$73, 0), MATCH(AO$4, RAB_years, 0)) -> 0 | AP31: =INDEX('RAB input'!$H$24:$XFD$73, MATCH($E31, 'RAB input'!$E$24:$E$73, 0), MATCH(AP$4, RAB_years, 0)) -> 0 | AQ31: =INDEX('RAB input'!$H$24:$XFD$73, MATCH($E31, 'RAB input'!$E$24:$E$73, 0), MATCH(AQ$4, RAB_years, 0)) -> 0 | AR31: =INDEX('RAB input'!$H$24:$XFD$73, MATCH($E31, 'RAB input'!$E$24:$E$73, 0), MATCH(AR$4, RAB_years, 0)) -> 0 | AS31: =INDEX('RAB input'!$H$24:$XFD$73, MATCH($E31, 'RAB input'!$E$24:$E$73, 0), MATCH(AS$4, RAB_years, 0)) -> 0 | AT31: =INDEX('RAB input'!$H$24:$XFD$73, MATCH($E31, 'RAB input'!$E$24:$E$73, 0), MATCH(AT$4, RAB_years, 0)) -> 0 | AU31: =INDEX('RAB input'!$H$24:$XFD$73, MATCH($E31, 'RAB input'!$E$24:$E$73, 0), MATCH(AU$4, RAB_years, 0)) -> 0 | AV31: =INDEX('RAB input'!$H$24:$XFD$73, MATCH($E31, 'RAB input'!$E$24:$E$73, 0), MATCH(AV$4, RAB_years, 0)) -> 0 | AW31: =INDEX('RAB input'!$H$24:$XFD$73, MATCH($E31, 'RAB input'!$E$24:$E$73, 0), MATCH(AW$4, RAB_years, 0)) -> 0 | AX31: =INDEX('RAB input'!$H$24:$XFD$73, MATCH($E31, 'RAB input'!$E$24:$E$73, 0), MATCH(AX$4, RAB_years, 0)) -> 0 | AY31: =INDEX('RAB input'!$H$24:$XFD$73, MATCH($E31, 'RAB input'!$E$24:$E$73, 0), MATCH(AY$4, RAB_years, 0)) -> 0 | AZ31: =INDEX('RAB input'!$H$24:$XFD$73, MATCH($E31, 'RAB input'!$E$24:$E$73, 0), MATCH(AZ$4, RAB_years, 0)) -> 0 | BA31: =INDEX('RAB input'!$H$24:$XFD$73, MATCH($E31, 'RAB input'!$E$24:$E$73, 0), MATCH(BA$4, RAB_years, 0)) -> 0 | BB31: =INDEX('RAB input'!$H$24:$XFD$73, MATCH($E31, 'RAB input'!$E$24:$E$73, 0), MATCH(BB$4, RAB_years, 0)) -> 0 | BC31: =INDEX('RAB input'!$H$24:$XFD$73, MATCH($E31, 'RAB input'!$E$24:$E$73, 0), MATCH(BC$4, RAB_years, 0)) -> 0 | BD31: =INDEX('RAB input'!$H$24:$XFD$73, MATCH($E31, 'RAB input'!$E$24:$E$73, 0), MATCH(BD$4, RAB_years, 0)) -> 0 | BE31: =INDEX('RAB input'!$H$24:$XFD$73, MATCH($E31, 'RAB input'!$E$24:$E$73, 0), MATCH(BE$4, RAB_years, 0)) -> 0 | BF31: =INDEX('RAB input'!$H$24:$XFD$73, MATCH($E31, 'RAB input'!$E$24:$E$73, 0), MATCH(BF$4, RAB_years, 0)) -> 0 | BG31: =INDEX('RAB input'!$H$24:$XFD$73, MATCH($E31, 'RAB input'!$E$24:$E$73, 0), MATCH(BG$4, RAB_years, 0)) -> 0 | BH31: =INDEX('RAB input'!$H$24:$XFD$73, MATCH($E31, 'RAB input'!$E$24:$E$73, 0), MATCH(BH$4, RAB_years, 0)) -> 0 | BI31: =INDEX('RAB input'!$H$24:$XFD$73, MATCH($E31, 'RAB input'!$E$24:$E$73, 0), MATCH(BI$4, RAB_years, 0)) -> 0 | BJ31: =INDEX('RAB input'!$H$24:$XFD$73, MATCH($E31, 'RAB input'!$E$24:$E$73, 0), MATCH(BJ$4, RAB_years, 0)) -> 0 | BK31: =INDEX('RAB input'!$H$24:$XFD$73, MATCH($E31, 'RAB input'!$E$24:$E$73, 0), MATCH(BK$4, RAB_years, 0)) -> 0 | BL31: =INDEX('RAB input'!$H$24:$XFD$73, MATCH($E31, 'RAB input'!$E$24:$E$73, 0), MATCH(BL$4, RAB_years, 0)) -> 0 | BM31: =INDEX('RAB input'!$H$24:$XFD$73, MATCH($E31, 'RAB input'!$E$24:$E$73, 0), MATCH(BM$4, RAB_years, 0)) -> 0 | BN31: =INDEX('RAB input'!$H$24:$XFD$73, MATCH($E31, 'RAB input'!$E$24:$E$73, 0), MATCH(BN$4, RAB_years, 0)) -> 0 | BO31: =INDEX('RAB input'!$H$24:$XFD$73, MATCH($E31, 'RAB input'!$E$24:$E$73, 0), MATCH(BO$4, RAB_years, 0)) -> 0 | BP31: =INDEX('RAB input'!$H$24:$XFD$73, MATCH($E31, 'RAB input'!$E$24:$E$73, 0), MATCH(BP$4, RAB_years, 0)) -> 0 | BQ31: =INDEX('RAB input'!$H$24:$XFD$73, MATCH($E31, 'RAB input'!$E$24:$E$73, 0), MATCH(BQ$4, RAB_years, 0)) ->  | BR31: =INDEX('RAB input'!$H$24:$XFD$73, MATCH($E31, 'RAB input'!$E$24:$E$73, 0), MATCH(BR$4, RAB_years, 0)) ->  | BS31: =INDEX('RAB input'!$H$24:$XFD$73, MATCH($E31, 'RAB input'!$E$24:$E$73, 0), MATCH(BS$4, RAB_years, 0)) ->  | BT31: =INDEX('RAB input'!$H$24:$XFD$73, MATCH($E31, 'RAB input'!$E$24:$E$73, 0), MATCH(BT$4, RAB_years, 0)) ->  | BU31: =INDEX('RAB input'!$H$24:$XFD$73, MATCH($E31, 'RAB input'!$E$24:$E$73, 0), MATCH(BU$4, RAB_years, 0)) ->  | BV31: =INDEX('RAB input'!$H$24:$XFD$73, MATCH($E31, 'RAB input'!$E$24:$E$73, 0), MATCH(BV$4, RAB_years, 0)) ->  | BW31: =INDEX('RAB input'!$H$24:$XFD$73, MATCH($E31, 'RAB input'!$E$24:$E$73, 0), MATCH(BW$4, RAB_years, 0)) ->  | BX31: =INDEX('RAB input'!$H$24:$XFD$73, MATCH($E31, 'RAB input'!$E$24:$E$73, 0), MATCH(BX$4, RAB_years, 0)) ->  | BY31: =INDEX('RAB input'!$H$24:$XFD$73, MATCH($E31, 'RAB input'!$E$24:$E$73, 0), MATCH(BY$4, RAB_years, 0)) ->  | BZ31: =INDEX('RAB input'!$H$24:$XFD$73, MATCH($E31, 'RAB input'!$E$24:$E$73, 0), MATCH(BZ$4, RAB_years, 0)) ->  | CA31: =INDEX('RAB input'!$H$24:$XFD$73, MATCH($E31, 'RAB input'!$E$24:$E$73, 0), MATCH(CA$4, RAB_years, 0)) ->  | CB31: =INDEX('RAB input'!$H$24:$XFD$73, MATCH($E31, 'RAB input'!$E$24:$E$73, 0), MATCH(CB$4, RAB_years, 0)) ->  | CC31: =INDEX('RAB input'!$H$24:$XFD$73, MATCH($E31, 'RAB input'!$E$24:$E$73, 0), MATCH(CC$4, RAB_years, 0)) ->  | CD31: =INDEX('RAB input'!$H$24:$XFD$73, MATCH($E31, 'RAB input'!$E$24:$E$73, 0), MATCH(CD$4, RAB_years, 0)) ->  | CE31: =INDEX('RAB input'!$H$24:$XFD$73, MATCH($E31, 'RAB input'!$E$24:$E$73, 0), MATCH(CE$4, RAB_years, 0)) ->  | CF31: =INDEX('RAB input'!$H$24:$XFD$73, MATCH($E31, 'RAB input'!$E$24:$E$73, 0), MATCH(CF$4, RAB_years, 0)) ->  | CG31: =INDEX('RAB input'!$H$24:$XFD$73, MATCH($E31, 'RAB input'!$E$24:$E$73, 0), MATCH(CG$4, RAB_years, 0)) ->  | CH31: =INDEX('RAB input'!$H$24:$XFD$73, MATCH($E31, 'RAB input'!$E$24:$E$73, 0), MATCH(CH$4, RAB_years, 0)) ->  | CI31: =INDEX('RAB input'!$H$24:$XFD$73, MATCH($E31, 'RAB input'!$E$24:$E$73, 0), MATCH(CI$4, RAB_years, 0)) ->  | CJ31: =INDEX('RAB input'!$H$24:$XFD$73, MATCH($E31, 'RAB input'!$E$24:$E$73, 0), MATCH(CJ$4, RAB_years, 0)) -> 
D32: 15 | E32: ='RAB input'!E38 -> Equity raising costs (2003-08) | G32: =INDEX('[4]TAB roll forward'!$H$8:$H$57,MATCH($E32,'[4]TAB roll forward'!$C$8:$C$57,0)) -> 0 | H32: =INDEX('RAB input'!$H$24:$XFD$73, MATCH($E32, 'RAB input'!$E$24:$E$73, 0), MATCH(H$4, RAB_years, 0)) -> 0 | I32: =INDEX('RAB input'!$H$24:$XFD$73, MATCH($E32, 'RAB input'!$E$24:$E$73, 0), MATCH(I$4, RAB_years, 0)) -> 0 | J32: =INDEX('RAB input'!$H$24:$XFD$73, MATCH($E32, 'RAB input'!$E$24:$E$73, 0), MATCH(J$4, RAB_years, 0)) -> 0 | K32: =INDEX('RAB input'!$H$24:$XFD$73, MATCH($E32, 'RAB input'!$E$24:$E$73, 0), MATCH(K$4, RAB_years, 0)) -> 0 | L32: =INDEX('RAB input'!$H$24:$XFD$73, MATCH($E32, 'RAB input'!$E$24:$E$73, 0), MATCH(L$4, RAB_years, 0)) -> 0 | M32: =INDEX('RAB input'!$H$24:$XFD$73, MATCH($E32, 'RAB input'!$E$24:$E$73, 0), MATCH(M$4, RAB_years, 0)) -> 0 | N32: =INDEX('RAB input'!$H$24:$XFD$73, MATCH($E32, 'RAB input'!$E$24:$E$73, 0), MATCH(N$4, RAB_years, 0)) -> 0 | O32: =INDEX('RAB input'!$H$24:$XFD$73, MATCH($E32, 'RAB input'!$E$24:$E$73, 0), MATCH(O$4, RAB_years, 0)) -> 0 | P32: =INDEX('RAB input'!$H$24:$XFD$73, MATCH($E32, 'RAB input'!$E$24:$E$73, 0), MATCH(P$4, RAB_years, 0)) -> 0 | Q32: =INDEX('RAB input'!$H$24:$XFD$73, MATCH($E32, 'RAB input'!$E$24:$E$73, 0), MATCH(Q$4, RAB_years, 0)) -> 0 | R32: =INDEX('RAB input'!$H$24:$XFD$73, MATCH($E32, 'RAB input'!$E$24:$E$73, 0), MATCH(R$4, RAB_years, 0)) -> 0 | S32: =INDEX('RAB input'!$H$24:$XFD$73, MATCH($E32, 'RAB input'!$E$24:$E$73, 0), MATCH(S$4, RAB_years, 0)) -> 0 | T32: =INDEX('RAB input'!$H$24:$XFD$73, MATCH($E32, 'RAB input'!$E$24:$E$73, 0), MATCH(T$4, RAB_years, 0)) -> 0 | U32: =INDEX('RAB input'!$H$24:$XFD$73, MATCH($E32, 'RAB input'!$E$24:$E$73, 0), MATCH(U$4, RAB_years, 0)) -> 0 | V32: =INDEX('RAB input'!$H$24:$XFD$73, MATCH($E32, 'RAB input'!$E$24:$E$73, 0), MATCH(V$4, RAB_years, 0)) -> 0 | W32: =INDEX('RAB input'!$H$24:$XFD$73, MATCH($E32, 'RAB input'!$E$24:$E$73, 0), MATCH(W$4, RAB_years, 0)) -> 0 | X32: =INDEX('RAB input'!$H$24:$XFD$73, MATCH($E32, 'RAB input'!$E$24:$E$73, 0), MATCH(X$4, RAB_years, 0)) -> 0 | Y32: =INDEX('RAB input'!$H$24:$XFD$73, MATCH($E32, 'RAB input'!$E$24:$E$73, 0), MATCH(Y$4, RAB_years, 0)) -> 0 | Z32: =INDEX('RAB input'!$H$24:$XFD$73, MATCH($E32, 'RAB input'!$E$24:$E$73, 0), MATCH(Z$4, RAB_years, 0)) -> 0 | AA32: =INDEX('RAB input'!$H$24:$XFD$73, MATCH($E32, 'RAB input'!$E$24:$E$73, 0), MATCH(AA$4, RAB_years, 0)) -> 0 | AB32: =INDEX('RAB input'!$H$24:$XFD$73, MATCH($E32, 'RAB input'!$E$24:$E$73, 0), MATCH(AB$4, RAB_years, 0)) -> 0 | AC32: =INDEX('RAB input'!$H$24:$XFD$73, MATCH($E32, 'RAB input'!$E$24:$E$73, 0), MATCH(AC$4, RAB_years, 0)) -> 0 | AD32: =INDEX('RAB input'!$H$24:$XFD$73, MATCH($E32, 'RAB input'!$E$24:$E$73, 0), MATCH(AD$4, RAB_years, 0)) -> 0 | AE32: =INDEX('RAB input'!$H$24:$XFD$73, MATCH($E32, 'RAB input'!$E$24:$E$73, 0), MATCH(AE$4, RAB_years, 0)) -> 0 | AF32: =INDEX('RAB input'!$H$24:$XFD$73, MATCH($E32, 'RAB input'!$E$24:$E$73, 0), MATCH(AF$4, RAB_years, 0)) -> 0 | AG32: =INDEX('RAB input'!$H$24:$XFD$73, MATCH($E32, 'RAB input'!$E$24:$E$73, 0), MATCH(AG$4, RAB_years, 0)) -> 0 | AH32: =INDEX('RAB input'!$H$24:$XFD$73, MATCH($E32, 'RAB input'!$E$24:$E$73, 0), MATCH(AH$4, RAB_years, 0)) -> 0 | AI32: =INDEX('RAB input'!$H$24:$XFD$73, MATCH($E32, 'RAB input'!$E$24:$E$73, 0), MATCH(AI$4, RAB_years, 0)) -> 0 | AJ32: =INDEX('RAB input'!$H$24:$XFD$73, MATCH($E32, 'RAB input'!$E$24:$E$73, 0), MATCH(AJ$4, RAB_years, 0)) -> 0 | AK32: =INDEX('RAB input'!$H$24:$XFD$73, MATCH($E32, 'RAB input'!$E$24:$E$73, 0), MATCH(AK$4, RAB_years, 0)) -> 0 | AL32: =INDEX('RAB input'!$H$24:$XFD$73, MATCH($E32, 'RAB input'!$E$24:$E$73, 0), MATCH(AL$4, RAB_years, 0)) -> 0 | AM32: =INDEX('RAB input'!$H$24:$XFD$73, MATCH($E32, 'RAB input'!$E$24:$E$73, 0), MATCH(AM$4, RAB_years, 0)) -> 0 | AN32: =INDEX('RAB input'!$H$24:$XFD$73, MATCH($E32, 'RAB input'!$E$24:$E$73, 0), MATCH(AN$4, RAB_years, 0)) -> 0 | AO32: =INDEX('RAB input'!$H$24:$XFD$73, MATCH($E32, 'RAB input'!$E$24:$E$73, 0), MATCH(AO$4, RAB_years, 0)) -> 0 | AP32: =INDEX('RAB input'!$H$24:$XFD$73, MATCH($E32, 'RAB input'!$E$24:$E$73, 0), MATCH(AP$4, RAB_years, 0)) -> 0 | AQ32: =INDEX('RAB input'!$H$24:$XFD$73, MATCH($E32, 'RAB input'!$E$24:$E$73, 0), MATCH(AQ$4, RAB_years, 0)) -> 0 | AR32: =INDEX('RAB input'!$H$24:$XFD$73, MATCH($E32, 'RAB input'!$E$24:$E$73, 0), MATCH(AR$4, RAB_years, 0)) -> 0 | AS32: =INDEX('RAB input'!$H$24:$XFD$73, MATCH($E32, 'RAB input'!$E$24:$E$73, 0), MATCH(AS$4, RAB_years, 0)) -> 0 | AT32: =INDEX('RAB input'!$H$24:$XFD$73, MATCH($E32, 'RAB input'!$E$24:$E$73, 0), MATCH(AT$4, RAB_years, 0)) -> 0 | AU32: =INDEX('RAB input'!$H$24:$XFD$73, MATCH($E32, 'RAB input'!$E$24:$E$73, 0), MATCH(AU$4, RAB_years, 0)) -> 0 | AV32: =INDEX('RAB input'!$H$24:$XFD$73, MATCH($E32, 'RAB input'!$E$24:$E$73, 0), MATCH(AV$4, RAB_years, 0)) -> 0 | AW32: =INDEX('RAB input'!$H$24:$XFD$73, MATCH($E32, 'RAB input'!$E$24:$E$73, 0), MATCH(AW$4, RAB_years, 0)) -> 0 | AX32: =INDEX('RAB input'!$H$24:$XFD$73, MATCH($E32, 'RAB input'!$E$24:$E$73, 0), MATCH(AX$4, RAB_years, 0)) -> 0 | AY32: =INDEX('RAB input'!$H$24:$XFD$73, MATCH($E32, 'RAB input'!$E$24:$E$73, 0), MATCH(AY$4, RAB_years, 0)) -> 0 | AZ32: =INDEX('RAB input'!$H$24:$XFD$73, MATCH($E32, 'RAB input'!$E$24:$E$73, 0), MATCH(AZ$4, RAB_years, 0)) -> 0 | BA32: =INDEX('RAB input'!$H$24:$XFD$73, MATCH($E32, 'RAB input'!$E$24:$E$73, 0), MATCH(BA$4, RAB_years, 0)) -> 0 | BB32: =INDEX('RAB input'!$H$24:$XFD$73, MATCH($E32, 'RAB input'!$E$24:$E$73, 0), MATCH(BB$4, RAB_years, 0)) -> 0 | BC32: =INDEX('RAB input'!$H$24:$XFD$73, MATCH($E32, 'RAB input'!$E$24:$E$73, 0), MATCH(BC$4, RAB_years, 0)) -> 0 | BD32: =INDEX('RAB input'!$H$24:$XFD$73, MATCH($E32, 'RAB input'!$E$24:$E$73, 0), MATCH(BD$4, RAB_years, 0)) -> 0 | BE32: =INDEX('RAB input'!$H$24:$XFD$73, MATCH($E32, 'RAB input'!$E$24:$E$73, 0), MATCH(BE$4, RAB_years, 0)) -> 0 | BF32: =INDEX('RAB input'!$H$24:$XFD$73, MATCH($E32, 'RAB input'!$E$24:$E$73, 0), MATCH(BF$4, RAB_years, 0)) -> 0 | BG32: =INDEX('RAB input'!$H$24:$XFD$73, MATCH($E32, 'RAB input'!$E$24:$E$73, 0), MATCH(BG$4, RAB_years, 0)) -> 0 | BH32: =INDEX('RAB input'!$H$24:$XFD$73, MATCH($E32, 'RAB input'!$E$24:$E$73, 0), MATCH(BH$4, RAB_years, 0)) -> 0 | BI32: =INDEX('RAB input'!$H$24:$XFD$73, MATCH($E32, 'RAB input'!$E$24:$E$73, 0), MATCH(BI$4, RAB_years, 0)) -> 0 | BJ32: =INDEX('RAB input'!$H$24:$XFD$73, MATCH($E32, 'RAB input'!$E$24:$E$73, 0), MATCH(BJ$4, RAB_years, 0)) -> 0 | BK32: =INDEX('RAB input'!$H$24:$XFD$73, MATCH($E32, 'RAB input'!$E$24:$E$73, 0), MATCH(BK$4, RAB_years, 0)) -> 0 | BL32: =INDEX('RAB input'!$H$24:$XFD$73, MATCH($E32, 'RAB input'!$E$24:$E$73, 0), MATCH(BL$4, RAB_years, 0)) -> 0 | BM32: =INDEX('RAB input'!$H$24:$XFD$73, MATCH($E32, 'RAB input'!$E$24:$E$73, 0), MATCH(BM$4, RAB_years, 0)) -> 0 | BN32: =INDEX('RAB input'!$H$24:$XFD$73, MATCH($E32, 'RAB input'!$E$24:$E$73, 0), MATCH(BN$4, RAB_years, 0)) -> 0 | BO32: =INDEX('RAB input'!$H$24:$XFD$73, MATCH($E32, 'RAB input'!$E$24:$E$73, 0), MATCH(BO$4, RAB_years, 0)) -> 0 | BP32: =INDEX('RAB input'!$H$24:$XFD$73, MATCH($E32, 'RAB input'!$E$24:$E$73, 0), MATCH(BP$4, RAB_years, 0)) -> 0 | BQ32: =INDEX('RAB input'!$H$24:$XFD$73, MATCH($E32, 'RAB input'!$E$24:$E$73, 0), MATCH(BQ$4, RAB_years, 0)) ->  | BR32: =INDEX('RAB input'!$H$24:$XFD$73, MATCH($E32, 'RAB input'!$E$24:$E$73, 0), MATCH(BR$4, RAB_years, 0)) ->  | BS32: =INDEX('RAB input'!$H$24:$XFD$73, MATCH($E32, 'RAB input'!$E$24:$E$73, 0), MATCH(BS$4, RAB_years, 0)) ->  | BT32: =INDEX('RAB input'!$H$24:$XFD$73, MATCH($E32, 'RAB input'!$E$24:$E$73, 0), MATCH(BT$4, RAB_years, 0)) ->  | BU32: =INDEX('RAB input'!$H$24:$XFD$73, MATCH($E32, 'RAB input'!$E$24:$E$73, 0), MATCH(BU$4, RAB_years, 0)) ->  | BV32: =INDEX('RAB input'!$H$24:$XFD$73, MATCH($E32, 'RAB input'!$E$24:$E$73, 0), MATCH(BV$4, RAB_years, 0)) ->  | BW32: =INDEX('RAB input'!$H$24:$XFD$73, MATCH($E32, 'RAB input'!$E$24:$E$73, 0), MATCH(BW$4, RAB_years, 0)) ->  | BX32: =INDEX('RAB input'!$H$24:$XFD$73, MATCH($E32, 'RAB input'!$E$24:$E$73, 0), MATCH(BX$4, RAB_years, 0)) ->  | BY32: =INDEX('RAB input'!$H$24:$XFD$73, MATCH($E32, 'RAB input'!$E$24:$E$73, 0), MATCH(BY$4, RAB_years, 0)) ->  | BZ32: =INDEX('RAB input'!$H$24:$XFD$73, MATCH($E32, 'RAB input'!$E$24:$E$73, 0), MATCH(BZ$4, RAB_years, 0)) ->  | CA32: =INDEX('RAB input'!$H$24:$XFD$73, MATCH($E32, 'RAB input'!$E$24:$E$73, 0), MATCH(CA$4, RAB_years, 0)) ->  | CB32: =INDEX('RAB input'!$H$24:$XFD$73, MATCH($E32, 'RAB input'!$E$24:$E$73, 0), MATCH(CB$4, RAB_years, 0)) ->  | CC32: =INDEX('RAB input'!$H$24:$XFD$73, MATCH($E32, 'RAB input'!$E$24:$E$73, 0), MATCH(CC$4, RAB_years, 0)) ->  | CD32: =INDEX('RAB input'!$H$24:$XFD$73, MATCH($E32, 'RAB input'!$E$24:$E$73, 0), MATCH(CD$4, RAB_years, 0)) ->  | CE32: =INDEX('RAB input'!$H$24:$XFD$73, MATCH($E32, 'RAB input'!$E$24:$E$73, 0), MATCH(CE$4, RAB_years, 0)) ->  | CF32: =INDEX('RAB input'!$H$24:$XFD$73, MATCH($E32, 'RAB input'!$E$24:$E$73, 0), MATCH(CF$4, RAB_years, 0)) ->  | CG32: =INDEX('RAB input'!$H$24:$XFD$73, MATCH($E32, 'RAB input'!$E$24:$E$73, 0), MATCH(CG$4, RAB_years, 0)) ->  | CH32: =INDEX('RAB input'!$H$24:$XFD$73, MATCH($E32, 'RAB input'!$E$24:$E$73, 0), MATCH(CH$4, RAB_years, 0)) ->  | CI32: =INDEX('RAB input'!$H$24:$XFD$73, MATCH($E32, 'RAB input'!$E$24:$E$73, 0), MATCH(CI$4, RAB_years, 0)) ->  | CJ32: =INDEX('RAB input'!$H$24:$XFD$73, MATCH($E32, 'RAB input'!$E$24:$E$73, 0), MATCH(CJ$4, RAB_years, 0)) -> 
